Workbook

Sheet Índice
A1: =+"Índice de Contenidos"&" - "&PremisaCosto!A2 -> Índice de Contenidos - EDEMET
G2: Significado de los colores:
B3: Hoja | D3: Descripción | G3: Decisiones a tomar/Intervenciones
G4: Reportes
B5: Tablero | D5: Seleccionar empresa desde donde se toman los datos | G5: Carga de Datos Externos (o vinculados)
D6: Elección sobre el modo en que se cierran las pérdidas | G6: Cálculos
D7: Comparativa de Tarifa vigente versus Tarifa Nueva
D8: Comparativa de Ingresos a Tarifa Vigente versus Ingresos con Tarifa Nueva
D9: Comparativa de Tarifa Media Vigente versus Tarifa Media Nueva | F9: Reporte de Resultados y Análisis
D10: Gráfico de Tarifa Media por Consumo
D11: Gráfico de Tarifa Media por Factor de Carga y Consumo
B13: Resumen | D13: Resumen de Costos e Ingresos por componente del Régimen Tarifario
D14: Resumen Económico
B16: Pliegos | D16: Comparación de Pliegos: Vigente vs Nuevo
B18: CD | D18: Cálculo de Cargos de Distribución
B20: CCOMF | D20: Cálculo de Cargos de Comercialización Fijo
B22: CCOMV | D22: Cálculo de Cargos de Comercialización Variable
B24: CSERAP | D24: Cálculo de Cargos por el Servicio de Alumbrado Público
B26: CX | D26: Cálculo de Cargos de Conexión
B28: CCONAP | D28: Cálculo de Cargos por el Consumo de Alumbrado Público | F28: Cálculo de Nuevos Cargos Tarifarios
B30: CENEGEN | D30: Cálculo de Cargos por Energía en Generación
B32: CPOTGEN | D32: Cálculo de Cargos Potencia en Generación
B34: CPT | D34: Cálculo de Cargos por Potencia en Transmisión
B36: CPET | D36: Cálculo de Cargos por Pérdida de Energía en Transmisión
B38: CPERDP | D38: Cálculo de Cargos por Pérdida de Potencia en Distribución
B40: CPERDE | D40: Cálculo de Cargos por Pérdida de Energía en Distribución
B42: Límites | D42: Límites de consumo por bloques y escalones
D43: Puntos de corte de subcategorías
B45: Costos | D45: Costos para Asignación siguiendo Régimen Tarifario
D46: Costos siguiendo criterio Económico
B48: Balance | D48: Balance de Energía
D49: Energía en punta y fuera de punta, con pérdidas y sin pérdidas por nivel de tensión
D50: Balance de Potencia
D51: Potencia Simultánea en punta y fuera de punta, con pérdidas y sin pérdidas por nivel de tensión
B53: Parámetros | D53: Parámetros característicos de consumo para todas las categorías tarifarias | F53: Proyección de los Nuevos Costos
B55: PremisaCosto | D55: Datos IMP
D56: Porcentajes de pérdidas permitidas
D57: Precios Energía y Potencia
D58: Costos de Conexión por categoría tarifaria
D59: Cargos Fijos de Comercialización por categorías tarifaria
D60: Alicuotas de subsidios para subcategorías
D61: Ventana de años
D62: Variables auxiliares para funcionamiento del modelo
B64: Energía | D64: Energía para facturación
D65: Estimación de Energía con pérdidas en punta y fuera de punta para cálculo de costos
B67: Clientes | D67: Clientes para facturación | F67: Demanda a Facturar
B69: Potencia | D69: Potencia para facturación
D70: Cálculo de Potencia Simultánea para determinación de costos

Sheet Tablero
A1: =+"Tablero de Mando y Análisis"&" - "&PremisaCosto!A2 -> Tablero de Mando y Análisis - EDEMET
A3: Selector de Empresa | D3: EDEMET | E3: 1
D4: EDECHI
A6: Cierre de Pérdidas a utilizar:
G7: Tareas Boton ASEP:
G8: 1-Elegir empresa que se desea enviar ya que se inhabilita selector
A9: Resumen | B9: Costo Permitido | C9: Ingreso | D9: Check | G9: 2- Rompe vínculos con archivo de Inputs
A10: VP IMP sin Pérdidas | B10: =+Resumen!M21 -> 921487702.5 | C10: =+Resumen!N21 -> 921487702.5 | D10: =+IF(ROUND(B10-C10,)=0,"OK","Error") -> OK
A11: VP Pérdidas | B11: =+Resumen!M30 -> 209282574.8 | C11: =+Resumen!N30 -> 193397262.2 | D11: =+IF(ROUND(B11-C11,)=0,"OK",IF(Resumen!$P$32=1,"Abstmo Proy","Error")) -> Abstmo Proy
A12: VP IMP Total | B12: =+B10+B11 -> 1130770277 | C12: =+C10+C11 -> 1114884965 | D12: =+IF(ROUND(B12-C12,)=0,"OK",IF(Resumen!$P$32=1,"Abstmo Proy","Error")) -> Abstmo Proy
F13: Base CPG 12
A14: =+"Costos de Abastecimiento "&PremisaCosto!$F$89 -> Costos de Abastecimiento 2026/2027 | B14: =+Resumen!C25+Resumen!C26 -> 687308571.1 | C14: =+Resumen!H25+Resumen!H26 -> 687308571.1 | D14: =+IF(ROUND(B14-C14,)=0,"OK","Error") -> OK
A16: Análisis de Cuadro Tarifario Vigente vs. Nuevo
B17: Tarifa Vigente | E17: Tarifa Nueva | H17: Diferencias | K17: Diferencia entre bloqus horarios
A18: Categorías | B18: $/Cliente mes | C18: $/kWh | D18: $/kW mes | E18: $/Cliente mes | F18: $/kWh | H18: $/Cliente mes | I18: $/kWh | J18: $/kW mes
A19: =+A188 -> ATH | B19: =+E664+I664 -> 14.34 | C19: =+B664+F664+H664+L664+N664+P664+R664+T664+V664+X664 -> 0 | D19: =+C664+G664+M664+O664+Q664+S664+U664+W664+Y664 -> 0 | E19: =+E525+I525 -> 14.34 | F19: =+B525+D525+F525+H525+J525+L525+N525+P525+R525+T525+V525+X525 -> 0 | G19: =+C525+G525+M525+O525+Q525+S525+U525+W525+Y525 -> 0 | H19: =+IF(OR(B19=0,E19=0),"",(E19-B19)/B19) -> -2.477485132e-16 | I19: =+IF(OR(C19=0,F19=0),"",(F19-C19)/C19) ->  | J19: =+IF(OR(D19=0,G19=0),"",(G19-D19)/D19) ->  | K19: Tarifa Nueva | N19: Tarifa Vigente
A20: ATH Punta | C20: =+B665+F665+H665+L665+N665+P665+R665+T665+V665+X665 -> 0.22332 | D20: =+C665+G665+M665+O665+Q665+S665+U665+W665+Y665 -> 16.21 | F20: =+B526+D526+F526+H526+J526+L526+N526+P526+R526+T526+V526+X526 -> 0.2152999327 | G20: 21.82819792 | H20: =+IF(OR(B20=0,E20=0),"",(E20-B20)/B20) ->  | I20: =+IF(OR(C20=0,F20=0),"",(F20-C20)/C20) -> -0.03591289323 | J20: 0.3465883973
A21: ATH Fuera de Punta Medio | C21: =+B666+F666+H666+L666+N666+P666+R666+T666+V666+X666 -> 0.12401 | D21: =+C666+G666+M666+O666+Q666+S666+U666+W666+Y666 -> 5.89 | F21: =+B527+D527+F527+H527+J527+L527+N527+P527+R527+T527+V527+X527 -> 0.1078609227 | G21: =+C527+G527+M527+O527+Q527+S527+U527+W527+Y527 -> 5.354811233 | H21: =+IF(OR(B21=0,E21=0),"",(E21-B21)/B21) ->  | I21: =+IF(OR(C21=0,F21=0),"",(F21-C21)/C21) -> -0.1302239926 | J21: =+IF(OR(D21=0,G21=0),"",(G21-D21)/D21) -> -0.09086396715 | K21: =+F20/F21-1 -> 0.9960883641 | L21: =+F21/F22-1 -> 0.6380645993 | N21: =+C20/C21-1 -> 0.8008225143 | O21: =+C21/C22-1 -> 0.784830167
A22: =+A191 -> ATH Fuera de Punta Bajo | C22: =+B667+F667+H667+L667+N667+P667+R667+T667+V667+X667 -> 0.06948 | D22: =+C667+G667+M667+O667+Q667+S667+U667+W667+Y667 -> 5.89 | F22: =+B528+D528+F528+H528+J528+L528+N528+P528+R528+T528+V528+X528 -> 0.06584656229 | G22: =+C528+G528+M528+O528+Q528+S528+U528+W528+Y528 -> 5.354811233 | I22: -0.05229472816 | J22: -0.09086396715 | K22: =+F20/F22-1 -> 2.269721686 | N22: =+C20/C22-1 -> 2.214162349
A23: =+A192 -> ATD | B23: =+E668+I668 -> 14.34 | C23: =+B668+F668+H668+L668+N668+P668+R668+T668+V668+X668 -> 0.16297 | D23: =+C668+G668+M668+O668+Q668+S668+U668+W668+Y668 -> 9.45 | E23: =+E529+I529 -> 14.34 | F23: =+B529+D529+F529+H529+J529+L529+N529+P529+R529+T529+V529+X529 -> 0.169600781 | G23: =+C529+G529+M529+O529+Q529+S529+U529+W529+Y529 -> 9.411357886 | H23: -3.716227697e-16 | I23: 0.04068712643 | J23: -0.004089112631
A24: =+A193 -> MTH | B24: =+E669+I669 -> 14.34 | C24: =+B669+F669+H669+L669+N669+P669+R669+T669+V669+X669 -> 0 | D24: =+C669+G669+M669+O669+Q669+S669+U669+W669+Y669 -> 0 | E24: =+E530+I530 -> 14.34 | F24: =+B530+D530+F530+H530+J530+L530+N530+P530+R530+T530+V530+X530 -> 0 | G24: =+C530+G530+M530+O530+Q530+S530+U530+W530+Y530 -> 0 | H24: -3.716227697e-16
A25: =+A194 -> MTH Punta | C25: =+B670+F670+H670+L670+N670+P670+R670+T670+V670+X670 -> 0.27916 | D25: =+C670+G670+M670+O670+Q670+S670+U670+W670+Y670 -> 18.17 | F25: =+B531+D531+F531+H531+J531+L531+N531+P531+R531+T531+V531+X531 -> 0.2676577557 | G25: =+C531+G531+M531+O531+Q531+S531+U531+W531+Y531 -> 17.27548806 | I25: -0.04120305295 | J25: -0.04923015654
A26: =+A195 -> MTH Fuera de Punta Medio | C26: =+B671+F671+H671+L671+N671+P671+R671+T671+V671+X671 -> 0.15744 | D26: =+C671+G671+M671+O671+Q671+S671+U671+W671+Y671 -> 2.81 | F26: =+B532+D532+F532+H532+J532+L532+N532+P532+R532+T532+V532+X532 -> 0.1359035553 | G26: =+C532+G532+M532+O532+Q532+S532+U532+W532+Y532 -> 2.51404539 | H26: =+IF(OR(B26=0,E26=0),"",(E26-B26)/B26) ->  | I26: =+IF(OR(C26=0,F26=0),"",(F26-C26)/C26) -> -0.1367914424 | J26: =+IF(OR(D26=0,G26=0),"",(G26-D26)/D26) -> -0.1053219253 | K26: =+F25/F26-1 -> 0.9694683861 | L26: =+F26/F27-1 -> 0.6646012135 | N26: =+C25/C26-1 -> 0.7731199187 | O26: =+C26/C27-1 -> 0.8211683054
A27: =+A196 -> MTH Fuera de Punta Bajo | C27: =+B672+F672+H672+L672+N672+P672+R672+T672+V672+X672 -> 0.08645 | D27: =+C672+G672+M672+O672+Q672+S672+U672+W672+Y672 -> 2.81 | F27: =+B533+D533+F533+H533+J533+L533+N533+P533+R533+T533+V533+X533 -> 0.08164331145 | G27: =+C533+G533+M533+O533+Q533+S533+U533+W533+Y533 -> 2.51404539 | I27: -0.05560079299 | J27: -0.1053219253 | K27: =+F25/F27-1 -> 2.278379465 | N27: =+C25/C27-1 -> 2.229149798
A28: MTD | B28: =+E673+I673 -> 14.27 | C28: 0 | D28: 0 | E28: =+E534+I534 -> 14.27 | F28: 0 | G28: 0 | H28: -1.244819089e-16
A29: MTD_1 (0-10,000) | C29: 0.14819 | D29: 20.6 | F29: 0.1458024852 | G29: 20.02635089 | I29: -0.01611117371 | J29: -0.02784704429
A30: MTD_2 (10,001-30,000) | C30: 0.14819 | D30: 20.6 | F30: 0 | G30: 0
A31: =+A200 -> MTD_3 (30,001-50,000) | C31: 0.14819 | D31: 20.6 | F31: 0 | G31: 0
A32: MTD_4 (50,001-más) | C32: 0.14819 | D32: 20.6 | F32: 0 | G32: 0
A33: MTD_5 (xxx) | C33: 0 | D33: 0 | F33: 0 | G33: 0
A34: BTH | B34: =+E678+I678 -> 5.67 | E34: =+E540+I540 -> 5.67 | F34: 0 | G34: 0 | H34: -1.566452239e-16 | I34: =+IF(OR(C34=0,F34=0),"",(F34-C34)/C34) -> 
A35: BTH Punta | C35: =+B679+F679+H679+L679+N679+P679+R679+T679+V679+X679 -> 0.27185 | D35: =+C679+G679+M679+O679+Q679+S679+U679+W679+Y679 -> 19.04 | E35: =+E541+I541 -> 0 | F35: 0.2596397972 | G35: 18.31781732 | I35: -0.04491522083 | J35: -0.03792976237
A36: BTH Fuera de Punta Medio | C36: =+B680+F680+H680+L680+N680+P680+R680+T680+V680+X680 -> 0.14855 | D36: =+C680+G680+M680+O680+Q680+S680+U680+W680+Y680 -> 2.51 | E36: =+E542+I542 -> 0 | F36: =+B542+D542+F542+H542+J542+L542+N542+P542+R542+T542+V542+X542 -> 0.1281729514 | G36: =+C542+G542+M542+O542+Q542+S542+U542+W542+Y542 -> 2.322420823 | H36: =+IF(OR(B36=0,E36=0),"",(E36-B36)/B36) ->  | I36: =+IF(OR(C36=0,F36=0),"",(F36-C36)/C36) -> -0.1371729964 | J36: =+IF(OR(D36=0,G36=0),"",(G36-D36)/D36) -> -0.07473273992 | K36: =+F35/F36-1 -> 1.025698827 | L36: =+F36/F37-1 -> 0.6385856044 | N36: =+C35/C36-1 -> 0.8300235611 | O36: =+C36/C37-1 -> 0.7871751684
A37: BTH Fuera de Punta Bajo | C37: 0.08312 | D37: 2.51 | E37: 0 | F37: 0.07822169989 | G37: 2.322420823 | I37: -0.05893046333 | J37: -0.07473273992 | K37: =+F35/F37-1 -> 2.319280936 | N37: =+C35/C37-1 -> 2.270572666
A38: =+A207 -> BTD | B38: =+E682+I682 -> 5.66 | E38: =+E544+I544 -> 5.66 | F38: =+B544+D544+F544+H544+J544+L544+N544+P544+R544+T544+V544+X544 -> 0 | G38: =+C544+G544+M544+O544+Q544+S544+U544+W544+Y544 -> 0 | H38: 0
A39: BTD_1 (0-10,000) | C39: =+B683+F683+H683+L683+N683+P683+R683+T683+V683+X683 -> 0.13941 | D39: =+C683+G683+M683+O683+Q683+S683+U683+W683+Y683 -> 18.43 | F39: 0.1391367457 | G39: 17.6395767 | I39: -0.001960076547 | J39: -0.04288786243
A40: BTD_2 (10,001-30,000) | C40: =+B684+F684+H684+L684+N684+P684+R684+T684+V684+X684 -> 0.14548 | D40: =+C684+G684+M684+O684+Q684+S684+U684+W684+Y684 -> 18.43 | F40: 0.1452543539 | G40: 17.6395767 | I40: -0.001551045223 | J40: -0.04288786243
A41: BTD_3 (30,001-50,000) | C41: =+B685+F685+H685+L685+N685+P685+R685+T685+V685+X685 -> 0.15727 | D41: =+C685+G685+M685+O685+Q685+S685+U685+W685+Y685 -> 18.43 | F41: 0.1571002065 | G41: 17.6395767 | I41: -0.001079630606 | J41: -0.04288786243
A42: BTD_4 (50,001-más) | C42: =+B686+F686+H686+L686+N686+P686+R686+T686+V686+X686 -> 0.16884 | D42: =+C686+G686+M686+O686+Q686+S686+U686+W686+Y686 -> 18.43 | F42: 0.1687518488 | G42: 17.6395767 | I42: -0.0005220990519 | J42: -0.04288786243
A43: BTD_5 (xxx) | D43: =+C690+G690+M690+O690+Q690+S690+U690+W690+Y690 -> 0 | F43: =+B549+D549+F549+H549+J549+L549+N549+P549+R549+T549+V549+X549 -> 0 | G43: 0
A44: BTS | B44: =+E687+I687 -> 3.16 | D44: =+C689+G689+M689+O689+Q689+S689+U689+W689+Y689 -> 0 | E44: =+E550+I550 -> 3.16 | F44: =+B550+D550+F550+H550+J550+L550+N550+P550+R550+T550+V550+X550 -> 0 | G44: 0 | H44: 0 | I44: =+IF(OR(C44=0,F44=0),"",(F44-C44)/C44) -> 
A45: BTS_1 (0-300) | C45: =+B688+F688+H688+L688+N688+P688+R688+T688+V688+X688 -> 0.1543 | D45: =+C690+G690+M690+O690+Q690+S690+U690+W690+Y690 -> 0 | F45: =+B551+D551+F551+H551+J551+L551+N551+P551+R551+T551+V551+X551 -> 0.1451792259 | G45: 0 | I45: =+IF(OR(C45=0,F45=0),"",(F45-C45)/C45) -> -0.05911065508
A46: BTS_2 (301-750) | C46: =+B689+F689+H689+L689+N689+P689+R689+T689+V689+X689 -> 0.22286 | D46: =+C689+G689+I689+M689+O689+Q689+S689+U689+W689+Y689 -> 0 | F46: =+B552+D552+F552+H552+J552+L552+N552+P552+R552+T552+V552+X552 -> 0.2100349637 | G46: 0 | I46: =+IF(OR(C46=0,F46=0),"",(F46-C46)/C46) -> -0.05754750184
A47: BTS_3 (751-más) | C47: =+B690+F690+H690+L690+N690+P690+R690+T690+V690+X690 -> 0.33191 | D47: =+C690+G690+I690+M690+O690+Q690+S690+U690+W690+Y690 -> 0 | F47: =+B553+D553+F553+H553+J553+L553+N553+P553+R553+T553+V553+X553 -> 0.3131930473 | G47: 0 | I47: =+IF(OR(C47=0,F47=0),"",(F47-C47)/C47) -> -0.05639165044
A48: BTS_4 (xxx)
A49: BTS_5 (xxx) | D49: =+C707+G707+M707+O707+Q707+S707+U707+W707+Y707 -> 0 | F49: =+B555+D555+F555+H555+J555+L555+N555+P555+R555+T555+V555+X555 -> 0 | G49: =+C555+G555+M555+O555+Q555+S555+U555+W555+Y555 -> 0
A50: BTSH | B50: =+E691+I691 -> 3.06 | C50: =+B708+F708+H708+L708+N708+P708+R708+T708+V708+X708 -> 0 | D50: =+C708+G708+M708+O708+Q708+S708+U708+W708+Y708 -> 0 | E50: =+E556+I556 -> 3.06 | F50: =+B556+D556+F556+H556+J556+L556+N556+P556+R556+T556+V556+X556 -> 0 | G50: =+C556+G556+M556+O556+Q556+S556+U556+W556+Y556 -> 0 | H50: =+IF(OR(B50=0,E50=0),"",(E50-B50)/B50) -> -4.353815783e-16 | I50: =+IF(OR(C50=0,F50=0),"",(F50-C50)/C50) -> 
A51: =+A220 -> BTSH_1 Punta | C51: =+B693+F693+H693+L693+N693+P693+R693+T693+V693+X693 -> 0.38515 | D51: =+C693+G693+M693+O693+Q693+S693+U693+W693+Y693 -> 0 | F51: =+B557+D557+F557+H557+J557+L557+N557+P557+R557+T557+V557+X557 -> 0.3545184161 | G51: =+C557+G557+M557+O557+Q557+S557+U557+W557+Y557 -> 0 | I51: =+IF(OR(C51=0,F51=0),"",(F51-C51)/C51) -> -0.0795315692 | J51: =+IF(OR(D51=0,G51=0),"",(G51-D51)/D51) -> 
A52: BTSH_1 Fuera de Punta Medio | C52: =+B694+E694+F694+H694+L694+N694+P694+R694+T694+V694+X694 -> 0.18504 | D52: =+C694+G694+M694+O694+Q694+S694+U694+W694+Y694 -> 0 | F52: 0.1849269071 | G52: 0 | H52: =+IF(OR(B52=0,E52=0),"",(E52-B52)/B52) ->  | I52: =+IF(OR(C52=0,F52=0),"",(F52-C52)/C52) -> -0.0006111808514 | K52: =+F51/F52-1 -> 0.9170731923 | L52: =+F52/F53-1 -> 0.6474801672 | N52: =+C51/C52-1 -> 1.08144185 | O52: =+C52/C53-1 -> 0.6592539455
A53: BTSH_1 Fuera de Punta Bajo | C53: =+B695+E695+F695+H695+L695+N695+P695+R695+T695+V695+X695 -> 0.11152 | D53: 0 | F53: 0.1122483358 | G53: 0 | I53: 0.006530988483 | K53: =+F51/F53-1 -> 2.158340063 | N53: =+C51/C53-1 -> 2.453640603
A54: BTSH_2 Punta | C54: =+B714+F714+H714+L714+N714+P714+R714+T714+V714+X714 -> 0 | D54: =+C714+G714+M714+O714+Q714+S714+U714+W714+Y714 -> 0 | F54: =+B560+D560+F560+H560+J560+L560+N560+P560+R560+T560+V560+X560 -> 0 | G54: =+C560+G560+M560+O560+Q560+S560+U560+W560+Y560 -> 0
A55: BTSH_2 Fuera de Punta Medio | C55: =+B715+F715+H715+L715+N715+P715+R715+T715+V715+X715 -> 0 | D55: =+C715+G715+M715+O715+Q715+S715+U715+W715+Y715 -> 0 | F55: =+B561+D561+F561+H561+J561+L561+N561+P561+R561+T561+V561+X561 -> 0 | G55: =+C561+G561+M561+O561+Q561+S561+U561+W561+Y561 -> 0
A56: BTSH_2 Fuera de Punta Bajo | C56: =+B716+F716+H716+L716+N716+P716+R716+T716+V716+X716 -> 0 | D56: =+C716+G716+M716+O716+Q716+S716+U716+W716+Y716 -> 0 | F56: =+B562+D562+F562+H562+J562+L562+N562+P562+R562+T562+V562+X562 -> 0 | G56: =+C562+G562+M562+O562+Q562+S562+U562+W562+Y562 -> 0
A57: =+A226 -> BTSH_3 Punta | C57: =+B718+F718+H718+L718+N718+P718+R718+T718+V718+X718 -> 0 | D57: =+C718+G718+M718+O718+Q718+S718+U718+W718+Y718 -> 0 | F57: =+B563+D563+F563+H563+J563+L563+N563+P563+R563+T563+V563+X563 -> 0 | G57: =+C563+G563+M563+O563+Q563+S563+U563+W563+Y563 -> 0
A58: BTSH_3 Fuera de Punta Medio | C58: 0 | D58: 0 | F58: 0 | G58: 0
A59: BTSH_3 Fuera de Punta Bajo | C59: 0 | D59: 0 | F59: 0 | G59: 0
A60: =+A229 -> BTS Prepago | B60: =+E704+I704 -> 0 | C60: =+B711+F711+H711+L711+N711+P711+R711+T711+V711+X711 -> 0 | D60: =+C711+G711+M711+O711+Q711+S711+U711+W711+Y711 -> 0 | E60: =+E566+I566 -> 0 | F60: =+B566+D566+F566+H566+J566+L566+N566+P566+R566+T566+V566+X566 -> 0 | G60: =+C566+G566+M566+O566+Q566+S566+U566+W566+Y566 -> 0
A61: BTS Prep | C61: =+B705+D705+F705+H705+L705+N705+P705+R705+T705+V705+X705 -> 0.15944 | D61: =+C705+G705+M705+O705+Q705+S705+U705+W705+Y705 -> 0 | F61: =+B567+D567+F567+H567+J567+L567+N567+P567+R567+T567+V567+X567 -> 0.1517101107 | G61: 0 | I61: =+IF(OR(C61=0,F61=0),"",(F61-C61)/C61) -> -0.04848149353 | J61: =+IF(OR(D61=0,G61=0),"",(G61-D61)/D61) ->  | L61: =+F61/F45-1 -> 0.04498498121 | N61: =+C61/C45-1 -> 0.0333117304
A62: X1D_2 (10,001-30,000) | C62: 0 | D62: 0 | F62: 0 | G62: 0
A63: X1D_3 (30,001-50,000) | C63: 0 | D63: 0 | F63: 0 | G63: 0
A64: X1D_4 (50,001-más) | C64: 0 | D64: 0 | F64: 0 | G64: 0
A65: X1D_5 (xxx) | C65: 0 | D65: 0 | F65: 0 | G65: 0
A66: X2H | B66: =+E717+I717 -> 0 | C66: =+B717+F717+H717+L717+N717+P717+R717+T717+V717+X717 -> 0 | D66: =+C717+G717+M717+O717+Q717+S717+U717+W717+Y717 -> 0 | E66: =+E572+I572 -> 0 | F66: =+B572+D572+F572+H572+J572+L572+N572+P572+R572+T572+V572+X572 -> 0 | G66: =+C572+G572+M572+O572+Q572+S572+U572+W572+Y572 -> 0 | H66: =+IF(OR(B66=0,E66=0),"",(E66-B66)/B66) ->  | I66: =+IF(OR(C66=0,F66=0),"",(F66-C66)/C66) ->  | J66: =+IF(OR(D66=0,G66=0),"",(G66-D66)/D66) -> 
A67: X2H Punta | C67: 0 | D67: 0 | F67: 0 | G67: 0
A68: X2H Fuera de Punta | C68: 0 | D68: 0 | F68: 0 | G68: 0
A69: X2D | B69: =+E720+I720 -> 0 | C69: 0 | D69: 0 | E69: =+E575+I575 -> 0 | F69: 0 | G69: 0
A70: X2D_1 (0 - 10000) | C70: 0 | D70: 0 | F70: 0 | G70: 0
A71: X2D_2 (10,001-30,000) | C71: 0 | D71: 0 | F71: 0 | G71: 0
A72: X2D_3 (30,001-50,000) | C72: 0 | D72: 0 | F72: 0 | G72: 0
A73: X2D_4 (50,001-más) | C73: 0 | D73: 0 | F73: 0 | G73: 0
A74: X2D_5 (xxx) | C74: 0 | D74: 0 | F74: 0 | G74: 0
A75: X3D | B75: =+E726+I726 -> 0 | C75: =+B726+F726+H726+L726+N726+P726+R726+T726+V726+X726 -> 0 | D75: =+C726+G726+M726+O726+Q726+S726+U726+W726+Y726 -> 0 | E75: =+E581+I581 -> 0 | F75: =+B581+D581+F581+H581+J581+L581+N581+P581+R581+T581+V581+X581 -> 0 | G75: =+C581+G581+M581+O581+Q581+S581+U581+W581+Y581 -> 0 | H75: =+IF(OR(B75=0,E75=0),"",(E75-B75)/B75) ->  | I75: =+IF(OR(C75=0,F75=0),"",(F75-C75)/C75) ->  | J75: =+IF(OR(D75=0,G75=0),"",(G75-D75)/D75) -> 
A76: X3D_1 (0-10,000) | C76: 0 | D76: 0 | F76: 0 | G76: 0
A77: X3D_2 (10,001-30,000) | C77: 0 | D77: 0 | F77: 0 | G77: 0
A78: X3D_3 (30,001-50,000) | C78: 0 | D78: 0 | F78: 0 | G78: 0
A79: X3D_4 (50,001-más) | C79: 0 | D79: 0 | F79: 0 | G79: 0
A80: X3D_5 (xxx) | C80: 0 | D80: 0 | F80: 0 | G80: 0
A83: =+"Análisis de Impacto de Ingresos a Tarifa Vigente vs. Ingresos con Nueva Tarifa -"&PremisaCosto!F89 -> Análisis de Impacto de Ingresos a Tarifa Vigente vs. Ingresos con Nueva Tarifa -2026/2027
A104: =+"Ingreso a Tarifa Vigente " &PremisaCosto!F89 -> Ingreso a Tarifa Vigente 2026/2027 | B104: Total | C104: VAD | D104: Abastecimiento | E104: Pérdidas | F104: CD | G104: CCOMF | H104: CCOMV | I104: CSERAP | J104: CX | K104: CCONAP | L104: CENEGEN | M104: CPOTGEN | N104: CPT | O104: CPET | P104: CPERDP | Q104: CPERDE
A105: =+A19 -> ATH | B105: =+SUM(C105:E105) -> 194.8978394 | C105: =+SUM(F105:J105) -> 35.62152007 | D105: =+SUM(K105:O105) -> 147.2639474 | E105: =+SUM(P105:Q105) -> 12.01237192 | F105: =+SUM([1]ITV_CD!$O$9:$O$11,[1]ITV_CD!$W$9:$W$11) -> 23.02108849 | G105: =+SUM([1]ITV_CCOMF!$O$8,[1]ITV_CCOMF!$W$8) -> 0.0006887480059 | H105: =SUM([1]ITV_CCOMV!$O$9:$O$11,[1]ITV_CCOMV!$W$9:$W$11) -> 10.82454975 | I105: =+SUM([1]ITV_CSERAP!$O$9:$O$11,[1]ITV_CSERAP!$W$9:$W$11) -> 1.77517277 | J105: =+SUM([1]ITV_CX!$O$8,[1]ITV_CX!$W$8) -> 2.031949931e-05 | K105: =+SUM([1]ITV_CCONAP!$O$7,[1]ITV_CCONAP!$W$7)*[1]ITV_CCONAP!$Z8 -> 2.656085572 | L105: =+SUM([1]ITV_CENEGEN!$O$8,[1]ITV_CENEGEN!$W$8)*[1]ITV_CENEGEN!$Z9 -> 134.8320208 | M105: =+SUM([1]ITV_CPOTGEN!$O$8,[1]ITV_CPOTGEN!$W$8)*[1]ITV_CPOTGEN!$Z9 -> 1.980793123 | N105: =+SUM([1]ITV_CPT!$O$7,[1]ITV_CPT!$W$7)*[1]ITV_CPT!$Z8 -> 4.271396727 | O105: =+SUM([1]ITV_CPET!$O$7,[1]ITV_CPET!$W$7)*[1]ITV_CPET!$Z8 -> 3.523651212 | P105: =+SUM([1]ITV_CPERDP!$O$7,[1]ITV_CPERDP!$W$7)*[1]ITV_CPERDP!$Z8 -> 0 | Q105: =SUM([1]ITV_CPERDE!$O$7,[1]ITV_CPERDE!$W$7)*[1]ITV_CPERDE!$Z8 -> 12.01237192
A106: =+A23 -> ATD | B106: =+SUM(C106:E106) -> 6810.257764 | C106: =+SUM(F106:J106) -> 2374.801201 | D106: =+SUM(K106:O106) -> 4222.281287 | E106: =+SUM(P106:Q106) -> 213.1752753 | F106: =+SUM([1]ITV_CD!$O$12,[1]ITV_CD!$W$12) -> 1762.908859 | G106: =+SUM([1]ITV_CCOMF!$O$12,[1]ITV_CCOMF!$W$12) -> 377.8274775 | H106: =+SUM([1]ITV_CCOMV!$O$12,[1]ITV_CCOMV!$W$12) -> 191.5112647 | I106: =+SUM([1]ITV_CSERAP!$O$12,[1]ITV_CSERAP!$W$12) -> 31.40690285 | J106: =+SUM([1]ITV_CX!$O$12,[1]ITV_CX!$W$12) -> 11.14669677 | K106: =SUM([1]ITV_CCONAP!$O$7,[1]ITV_CCONAP!$W$7)*[1]ITV_CCONAP!$Z12 -> 46.99228321 | L106: =+SUM([1]ITV_CENEGEN!$O$8,[1]ITV_CENEGEN!$W$8)*[1]ITV_CENEGEN!$Z13 -> 2257.282589 | M106: =+SUM([1]ITV_CPOTGEN!$O$8,[1]ITV_CPOTGEN!$W$8)*[1]ITV_CPOTGEN!$Z13 -> 525.3781558 | N106: =+SUM([1]ITV_CPT!$O$7,[1]ITV_CPT!$W$7)*[1]ITV_CPT!$Z12 -> 1330.286738 | O106: =+SUM([1]ITV_CPET!$O$7,[1]ITV_CPET!$W$7)*[1]ITV_CPET!$Z12 -> 62.34152144 | P106: =SUM([1]ITV_CPERDP!$O$7,[1]ITV_CPERDP!$W$7)*[1]ITV_CPERDP!$Z12 -> 0 | Q106: =+SUM([1]ITV_CPERDE!$O$7,[1]ITV_CPERDE!$W$7)*[1]ITV_CPERDE!$Z12 -> 213.1752753
A107: =+A24 -> MTH | B107: 2680727.852 | C107: 601557.6939 | D107: =+SUM(K107:O107) -> 1956535.003 | E107: 122635.1552 | F107: =+SUM([1]ITV_CD!$O$14:$O$16,[1]ITV_CD!$W$14:$W$16) -> 471095.2003 | G107: =+SUM([1]ITV_CCOMF!$O$13,[1]ITV_CCOMF!$W$13) -> 2138.16765 | H107: =+SUM([1]ITV_CCOMV!$O$14:$O$16,[1]ITV_CCOMV!$W$14:$W$16) -> 110205.8317 | I107: =+SUM([1]ITV_CSERAP!$O$14:$O$16,[1]ITV_CSERAP!$W$14:$W$16) -> 18073.21285 | J107: =+SUM([1]ITV_CX!$O$13,[1]ITV_CX!$W$13) -> 45.28134697 | K107: =+SUM([1]ITV_CCONAP!$O$7,[1]ITV_CCONAP!$W$7)*[1]ITV_CCONAP!$Z13 -> 27041.87487 | L107: =+SUM([1]ITV_CENEGEN!$O$8,[1]ITV_CENEGEN!$W$8)*[1]ITV_CENEGEN!$Z14 -> 1732817.97 | M107: =+SUM([1]ITV_CPOTGEN!$O$8,[1]ITV_CPOTGEN!$W$8)*[1]ITV_CPOTGEN!$Z14 -> 14848.80226 | N107: =+SUM([1]ITV_CPT!$O$7,[1]ITV_CPT!$W$7)*[1]ITV_CPT!$Z13 -> 145951.7079 | O107: =+SUM([1]ITV_CPET!$O$7,[1]ITV_CPET!$W$7)*[1]ITV_CPET!$Z13 -> 35874.64806 | P107: =+SUM([1]ITV_CPERDP!$O$7,[1]ITV_CPERDP!$W$7)*[1]ITV_CPERDP!$Z13 -> 0 | Q107: =+SUM([1]ITV_CPERDE!$O$7,[1]ITV_CPERDE!$W$7)*[1]ITV_CPERDE!$Z13 -> 122635.1552
A108: =+A28 -> MTD | B108: 205943989.3 | C108: 53097863.27 | D108: 143528122.1 | E108: 9318003.902 | F108: =+SUM([1]ITV_CD!$O$18:$O$52,[1]ITV_CD!$W$18:$W$52) -> 43207341.57 | G108: =+SUM([1]ITV_CCOMF!$O$17,[1]ITV_CCOMF!$W$17) -> 122923.3816 | H108: =+SUM([1]ITV_CCOMV!$O$18:$O$52,[1]ITV_CCOMV!$W$18:$W$52) -> 8381806.952 | I108: =+SUM([1]ITV_CSERAP!$O$18:$O$52,[1]ITV_CSERAP!$W$18:$W$52) -> 1383204.596 | J108: =+SUM([1]ITV_CX!$O$17,[1]ITV_CX!$W$17) -> 2586.774902 | K108: =+SUM([1]ITV_CCONAP!$O$7,[1]ITV_CCONAP!$W$7)*[1]ITV_CCONAP!$Z17 -> 2054161.988 | L108: =+SUM([1]ITV_CENEGEN!$O$8,[1]ITV_CENEGEN!$W$8)*[1]ITV_CENEGEN!$Z18 -> 103007449.6 | M108: =+SUM([1]ITV_CPOTGEN!$O$8,[1]ITV_CPOTGEN!$W$8)*[1]ITV_CPOTGEN!$Z18 -> 27854332.09 | N108: =+SUM([1]ITV_CPT!$O$7,[1]ITV_CPT!$W$7)*[1]ITV_CPT!$Z17 -> 7887058.969 | O108: =+SUM([1]ITV_CPET!$O$7,[1]ITV_CPET!$W$7)*[1]ITV_CPET!$Z17 -> 2725119.421 | P108: =+SUM([1]ITV_CPERDP!$O$7,[1]ITV_CPERDP!$W$7)*[1]ITV_CPERDP!$Z17 -> 0 | Q108: =+SUM([1]ITV_CPERDE!$O$7,[1]ITV_CPERDE!$W$7)*[1]ITV_CPERDE!$Z17 -> 9318003.902
A109: =+A34 -> BTH | B109: 5102446.536 | C109: 1496014.392 | D109: 3388484.731 | E109: 217947.4129 | F109: =SUM([1]ITV_CD!$O$55:$O$57,[1]ITV_CD!$W$55:$W$57) -> 1259130.504 | G109: =+SUM([1]ITV_CCOMF!$O$54,[1]ITV_CCOMF!$W$54) -> 5683.265726 | H109: =+SUM([1]ITV_CCOMV!$O$55:$O$57,[1]ITV_CCOMV!$W$55:$W$57) -> 198491.0675 | I109: =+SUM([1]ITV_CSERAP!$O$55:$O$57,[1]ITV_CSERAP!$W$55:$W$57) -> 32551.55608 | J109: =+SUM([1]ITV_CX!$O$54,[1]ITV_CX!$W$54) -> 157.9984868 | K109: =+SUM([1]ITV_CCONAP!$O$7,[1]ITV_CCONAP!$W$7)*[1]ITV_CCONAP!$Z54 -> 48704.95985 | L109: =+SUM([1]ITV_CENEGEN!$O$8,[1]ITV_CENEGEN!$W$8)*[1]ITV_CENEGEN!$Z55 -> 2938443.831 | M109: =SUM([1]ITV_CPOTGEN!$O$8,[1]ITV_CPOTGEN!$W$8)*[1]ITV_CPOTGEN!$Z55 -> 39281.93217 | N109: =+SUM([1]ITV_CPT!$O$7,[1]ITV_CPT!$W$7)*[1]ITV_CPT!$Z54 -> 297440.3931 | O109: =SUM([1]ITV_CPET!$O$7,[1]ITV_CPET!$W$7)*[1]ITV_CPET!$Z54 -> 64613.61507 | P109: =SUM([1]ITV_CPERDP!$O$7,[1]ITV_CPERDP!$W$7)*[1]ITV_CPERDP!$Z54 -> 0 | Q109: =SUM([1]ITV_CPERDE!$O$7,[1]ITV_CPERDE!$W$7)*[1]ITV_CPERDE!$Z54 -> 217947.4129
A110: =+A38 -> BTD | B110: 318656944.6 | C110: 102160245.9 | D110: 202758129 | E110: 13738569.72 | F110: =+SUM([1]ITV_CD!$O$59:$O$93,[1]ITV_CD!$W$59:$W$93) -> 87038004.43 | G110: =+SUM([1]ITV_CCOMF!$O$58,[1]ITV_CCOMF!$W$58) -> 663432.1132 | H110: =+SUM([1]ITV_CCOMV!$O$59:$O$93,[1]ITV_CCOMV!$W$59:$W$93) -> 12395565.68 | I110: =+SUM([1]ITV_CSERAP!$O$59:$O$93,[1]ITV_CSERAP!$W$59:$W$93) -> 2045573.647 | J110: =+SUM([1]ITV_CX!$O$58,[1]ITV_CX!$W$58) -> 17670.00898 | K110: =+SUM([1]ITV_CCONAP!$O$7,[1]ITV_CCONAP!$W$7)*[1]ITV_CCONAP!$Z58 -> 3037829.162 | L110: =+SUM([1]ITV_CENEGEN!$O$8,[1]ITV_CENEGEN!$W$8)*[1]ITV_CENEGEN!$Z59 -> 149231075 | M110: =+SUM([1]ITV_CPOTGEN!$O$8,[1]ITV_CPOTGEN!$W$8)*[1]ITV_CPOTGEN!$Z59 -> 34676650.96 | N110: =+SUM([1]ITV_CPT!$O$7,[1]ITV_CPT!$W$7)*[1]ITV_CPT!$Z58 -> 11782488.94 | O110: =+SUM([1]ITV_CPET!$O$7,[1]ITV_CPET!$W$7)*[1]ITV_CPET!$Z58 -> 4030084.918 | P110: =+SUM([1]ITV_CPERDP!$O$7,[1]ITV_CPERDP!$W$7)*[1]ITV_CPERDP!$Z58 -> 0 | Q110: =+SUM([1]ITV_CPERDE!$O$7,[1]ITV_CPERDE!$W$7)*[1]ITV_CPERDE!$Z58 -> 13738569.72
A111: =+A44 -> BTS | B111: 456819062.3 | C111: 141913148 | D111: 296022452.8 | E111: 18883461.51 | F111: =+SUM([1]ITV_CD!$O$96:$O$121,[1]ITV_CD!$W$96:$W$121) -> 98999954.87 | G111: =+SUM([1]ITV_CCOMF!$O$95,[1]ITV_CCOMF!$W$95) -> 22000835.59 | H111: =+SUM([1]ITV_CCOMV!$O$96:$O$121,[1]ITV_CCOMV!$W$96:$W$121) -> 17735689.02 | I111: =+SUM([1]ITV_CSERAP!$O$96:$O$121,[1]ITV_CSERAP!$W$96:$W$121) -> 2864798.648 | J111: =+SUM([1]ITV_CX!$O$95,[1]ITV_CX!$W$95) -> 311869.837 | K111: =+SUM([1]ITV_CCONAP!$O$7,[1]ITV_CCONAP!$W$7)*[1]ITV_CCONAP!$Z95 -> 4316838.199 | L111: =+SUM([1]ITV_CENEGEN!$O$8,[1]ITV_CENEGEN!$W$8)*[1]ITV_CENEGEN!$Z96 -> 190007897.6 | M111: =SUM([1]ITV_CPOTGEN!$O$8,[1]ITV_CPOTGEN!$W$8)*[1]ITV_CPOTGEN!$Z96 -> 73473397.88 | N111: =+SUM([1]ITV_CPT!$O$7,[1]ITV_CPT!$W$7)*[1]ITV_CPT!$Z95 -> 22514896.42 | O111: =SUM([1]ITV_CPET!$O$7,[1]ITV_CPET!$W$7)*[1]ITV_CPET!$Z95 -> 5709422.658 | P111: =SUM([1]ITV_CPERDP!$O$7,[1]ITV_CPERDP!$W$7)*[1]ITV_CPERDP!$Z95 -> 0 | Q111: =SUM([1]ITV_CPERDE!$O$7,[1]ITV_CPERDE!$W$7)*[1]ITV_CPERDE!$Z95 -> 18883461.51
A112: =+A50 -> BTSH | B112: 232096.5011 | C112: 71254.22758 | D112: 149180.0659 | E112: 11662.20755 | F112: =+SUM([1]ITV_CD!$O$127,[1]ITV_CD!$W$127) -> 56545.47147 | G112: =+SUM([1]ITV_CCOMF!$O$127,[1]ITV_CCOMF!$W$127) -> 2487.118376 | H112: =+SUM([1]ITV_CCOMV!$O$127,[1]ITV_CCOMV!$W$127) -> 10427.97824 | I112: =+SUM([1]ITV_CSERAP!$O$127,[1]ITV_CSERAP!$W$127) -> 1763.184727 | J112: =+SUM([1]ITV_CX!$O$127,[1]ITV_CX!$W$127) -> 30.47476048 | K112: =+SUM([1]ITV_CCONAP!$O$7,[1]ITV_CCONAP!$W$7)*[1]ITV_CCONAP!$Z127 -> 2569.212031 | L112: =+SUM([1]ITV_CENEGEN!$O$8,[1]ITV_CENEGEN!$W$8)*[1]ITV_CENEGEN!$Z128 -> 87644.91896 | M112: =SUM([1]ITV_CPOTGEN!$O$8,[1]ITV_CPOTGEN!$W$8)*[1]ITV_CPOTGEN!$Z128 -> 42127.5208 | N112: =+SUM([1]ITV_CPT!$O$7,[1]ITV_CPT!$W$7)*[1]ITV_CPT!$Z127 -> 13450.58063 | O112: =SUM([1]ITV_CPET!$O$7,[1]ITV_CPET!$W$7)*[1]ITV_CPET!$Z127 -> 3387.833511 | P112: =SUM([1]ITV_CPERDP!$O$7,[1]ITV_CPERDP!$W$7)*[1]ITV_CPERDP!$Z127 -> 0 | Q112: =SUM([1]ITV_CPERDE!$O$7,[1]ITV_CPERDE!$W$7)*[1]ITV_CPERDE!$Z127 -> 11662.20755
A113: =+A60 -> BTS Prepago | B113: 1497600.288 | C113: 673430.568 | D113: 718835.2593 | E113: 105334.4607 | F113: =+SUM([1]ITV_CD!$O$141:$O$149,[1]ITV_CD!$W$141:$W$149) -> 465079.216 | G113: =+SUM([1]ITV_CCOMF!$O$140,[1]ITV_CCOMF!$W$140) -> 104773.6739 | H113: =+SUM([1]ITV_CCOMV!$O$141:$O$149,[1]ITV_CCOMV!$W$141:$W$149) -> 82622.59384 | I113: =+SUM([1]ITV_CSERAP!$O$141:$O$149,[1]ITV_CSERAP!$W$141:$W$149) -> 13552.34854 | J113: =+SUM([1]ITV_CX!$O$140,[1]ITV_CX!$W$140) -> 7402.735744 | K113: =+SUM([1]ITV_CCONAP!$O$7,[1]ITV_CCONAP!$W$7)*[1]ITV_CCONAP!$Z140 -> 20188.3261 | L113: =+SUM([1]ITV_CENEGEN!$O$8,[1]ITV_CENEGEN!$W$8)*[1]ITV_CENEGEN!$Z141 -> 408317.2159 | M113: =SUM([1]ITV_CPOTGEN!$O$8,[1]ITV_CPOTGEN!$W$8)*[1]ITV_CPOTGEN!$Z141 -> 157890.5595 | N113: =+SUM([1]ITV_CPT!$O$7,[1]ITV_CPT!$W$7)*[1]ITV_CPT!$Z140 -> 105708.3186 | O113: =SUM([1]ITV_CPET!$O$7,[1]ITV_CPET!$W$7)*[1]ITV_CPET!$Z140 -> 26730.83918 | P113: =SUM([1]ITV_CPERDP!$O$7,[1]ITV_CPERDP!$W$7)*[1]ITV_CPERDP!$Z140 -> 0 | Q113: =SUM([1]ITV_CPERDE!$O$7,[1]ITV_CPERDE!$W$7)*[1]ITV_CPERDE!$Z140 -> 105334.4607
A114: =+A66 -> X2H | B114: =+SUM(C114:E114) -> 0 | C114: =+SUM(F114:J114) -> 0 | D114: =+SUM(K114:O114) -> 0 | E114: =+SUM(P114:Q114) -> 0
A115: =+A69 -> X2D | B115: =+SUM(C115:E115) -> 0 | C115: =+SUM(F115:J115) -> 0 | D115: =+SUM(K115:O115) -> 0 | E115: =+SUM(P115:Q115) -> 0
A116: =+A75 -> X3D | B116: =+SUM(C116:E116) -> 0 | C116: =+SUM(F116:J116) -> 0 | D116: =+SUM(K116:O116) -> 0 | E116: =+SUM(P116:Q116) -> 0
A117: Total | B117: =+SUM(B105:B116) -> 990939872.5 | C117: =+SUM(C105:C116) -> 300015924.4 | D117: =+SUM(D105:D116) -> 648526108.5 | E117: =+SUM(E105:E116) -> 42397839.56 | F117: =+SUM(F105:F116) -> 231498937.2 | G117: =+SUM(G105:G116) -> 22902651.14 | H117: 38915011.46 | I117: 6359550.375 | J117: 339774.258 | K117: 9507383.37 | L117: 447416038.3 | M117: 136259057.1 | N117: 42748329.88 | O117: 12595299.8 | P117: 0 | Q117: 42397839.56
A118: =+"Ingreso a Tarifa Nueva" -> Ingreso a Tarifa Nueva | B118: =+B104 -> Total | C118: =+C104 -> VAD | D118: Abastecimiento | E118: Pérdidas | F118: CD | G118: CCOMF | H118: CCOMV | I118: CSERAP | J118: CX | K118: CCONAP | L118: CENEGEN | M118: CPOTGEN | N118: CPT | O118: CPET | P118: CPERDP | Q118: CPERDE
A119: =+A105 -> ATH | B119: =+SUM(C119:E119) -> 181.9797228 | C119: =+SUM(F119:J119) -> 32.34155411 | D119: =+SUM(K119:O119) -> 138.1168593 | E119: =+SUM(P119:Q119) -> 11.52130938 | F119: =+CD!$Z11+CD!$AE11 -> 20.8266178 | G119: =+CCOMF!$Z11+CCOMF!$AE11 -> 0.0006887480059 | H119: =+CCOMV!$Z11+CCOMV!$AE11 -> 9.729011331 | I119: =+CSERAP!$Z11+CSERAP!$AE11 -> 1.785215911 | J119: =+CX!$Z11+CX!$AE11 -> 2.031949931e-05 | K119: =+CCONAP!$Z11+CCONAP!$AE11 -> 2.106152059 | L119: =+CENEGEN!$Z11+CENEGEN!$AE11 -> 113.1599427 | M119: =+CPOTGEN!$Z11+CPOTGEN!$AE11 -> 14.71682014 | N119: =+CPT!$Z11+CPT!$AE11 -> 5.070313271 | O119: =+CPET!$Z11+CPET!$AE11 -> 3.063631118 | P119: =+CPERDP!$AT11+CPERDP!$AY11 -> 0 | Q119: =+CPERDE!$AT11+CPERDE!$AY11 -> 11.52130938
A120: ATD | B120: 6942.560043 | C120: =+SUM(F120:J120) -> 2187.548113 | D120: 4550.551202 | E120: 204.4607274 | F120: =+CD!$Z15+CD!$AE15 -> 1594.860688 | G120: =+CCOMF!$Z15+CCOMF!$AE15 -> 377.8274775 | H120: =+CCOMV!$Z15+CCOMV!$AE15 -> 172.128662 | I120: =+CSERAP!$Z15+CSERAP!$AE15 -> 31.5845892 | J120: =+CX!$Z15+CX!$AE15 -> 11.14669677 | K120: =+CCONAP!$Z15+CCONAP!$AE15 -> 37.26269027 | L120: =+CENEGEN!$Z15+CENEGEN!$AE15 -> 1894.460729 | M120: =+CPOTGEN!$Z15+CPOTGEN!$AE15 -> 985.5232214 | N120: =+CPT!$Z15+CPT!$AE15 -> 1579.101857 | O120: =+CPET!$Z15+CPET!$AE15 -> 54.20270439 | P120: =+CPERDP!$AT15+CPERDP!$AY15 -> 0 | Q120: =+CPERDE!$AT15+CPERDE!$AY15 -> 204.4607274
A121: MTH | B121: 2509840.497 | C121: 545599.3053 | D121: 1846619.329 | E121: 117621.863 | F121: =+CD!$Z16+CD!$AE16 -> 426188.3485 | G121: =+CCOMF!$Z16+CCOMF!$AE16 -> 2138.16765 | H121: =+CCOMV!$Z16+CCOMV!$AE16 -> 99052.04475 | I121: =+CSERAP!$Z16+CSERAP!$AE16 -> 18175.46309 | J121: =+CX!$Z16+CX!$AE16 -> 45.28134697 | K121: =+CCONAP!$Z16+CCONAP!$AE16 -> 21442.94635 | L121: =+CENEGEN!$Z16+CENEGEN!$AE16 -> 1454295.36 | M121: =+CPOTGEN!$Z16+CPOTGEN!$AE16 -> 166439.5581 | N121: =+CPT!$Z16+CPT!$AE16 -> 173250.3274 | O121: =+CPET!$Z16+CPET!$AE16 -> 31191.13713 | P121: =+CPERDP!$AT16+CPERDP!$AY16 -> 0 | Q121: =+CPERDE!$AT16+CPERDE!$AY16 -> 117621.863
A122: MTD | B122: 201859621.4 | C122: 48138664.9 | D122: 144783870.1 | E122: 8937086.409 | F122: =+CD!$Z20+CD!$AE20 -> 39088629.07 | G122: =+CCOMF!$Z20+CCOMF!$AE20 -> 122923.3816 | H122: =+CCOMV!$Z20+CCOMV!$AE20 -> 7533495.481 | I122: =+CSERAP!$Z20+CSERAP!$AE20 -> 1391030.185 | J122: =+CX!$Z20+CX!$AE20 -> 2586.774902 | K122: =+CCONAP!$Z20+CCONAP!$AE20 -> 1628854.712 | L122: =+CENEGEN!$Z20+CENEGEN!$AE20 -> 86450659.35 | M122: =+CPOTGEN!$Z20+CPOTGEN!$AE20 -> 44972762.43 | N122: =+CPT!$Z20+CPT!$AE20 -> 9362244.324 | O122: =+CPET!$Z20+CPET!$AE20 -> 2369349.336 | P122: =+CPERDP!$AT20+CPERDP!$AY20 -> 0 | Q122: =+CPERDE!$AT20+CPERDE!$AY20 -> 8937086.409
A123: BTH | B123: 4761371.54 | C123: 1356083.716 | D123: 3196250.043 | E123: 209037.7813 | F123: =+CD!$Z76+CD!$AE76 -> 1139104.685 | G123: =+CCOMF!$Z76+CCOMF!$AE76 -> 5683.265726 | H123: =+CCOMV!$Z76+CCOMV!$AE76 -> 178402.0482 | I123: =+CSERAP!$Z76+CSERAP!$AE76 -> 32735.71838 | J123: =+CX!$Z76+CX!$AE76 -> 157.9984868 | K123: =+CCONAP!$Z76+CCONAP!$AE76 -> 38620.76302 | L123: =+CENEGEN!$Z76+CENEGEN!$AE76 -> 2466136.261 | M123: =+CPOTGEN!$Z76+CPOTGEN!$AE76 -> 282241.5864 | N123: =+CPT!$Z76+CPT!$AE76 -> 353073.2612 | O123: =+CPET!$Z76+CPET!$AE76 -> 56178.17141 | P123: =+CPERDP!$AT76+CPERDP!$AY76 -> 0 | Q123: =+CPERDE!$AT76+CPERDE!$AY76 -> 209037.7813
A124: BTD | B124: 317404539.7 | C124: 92626997.67 | D124: 211600601.3 | E124: 13176940.69 | F124: =+CD!$Z80+CD!$AE80 -> 78747729.21 | G124: =+CCOMF!$Z80+CCOMF!$AE80 -> 663432.1132 | H124: =+CCOMV!$Z80+CCOMV!$AE80 -> 11141020.84 | I124: =+CSERAP!$Z80+CSERAP!$AE80 -> 2057145.494 | J124: =+CX!$Z80+CX!$AE80 -> 17670.00898 | K124: =+CCONAP!$Z80+CCONAP!$AE80 -> 2408856.932 | L124: =+CENEGEN!$Z80+CENEGEN!$AE80 -> 125244580.6 | M124: =+CPOTGEN!$Z80+CPOTGEN!$AE80 -> 66456944.44 | N124: =+CPT!$Z80+CPT!$AE80 -> 13986270.5 | O124: =+CPET!$Z80+CPET!$AE80 -> 3503948.836 | P124: =+CPERDP!$AT80+CPERDP!$AY80 -> 0 | Q124: =+CPERDE!$AT80+CPERDE!$AY80 -> 13176940.69
A125: BTS | B125: 433093107.9 | C125: 130622890.4 | D125: 284358706.8 | E125: 18111510.68 | F125: =+CD!$Z136+CD!$AE136 -> 89491048.67 | G125: =+CCOMF!$Z136+CCOMF!$AE136 -> 22000835.59 | H125: =+CCOMV!$Z136+CCOMV!$AE136 -> 15940433.9 | I125: =+CSERAP!$Z136+CSERAP!$AE136 -> 2878702.432 | J125: =+CX!$Z136+CX!$AE136 -> 311869.837 | K125: =+CCONAP!$Z136+CCONAP!$AE136 -> 3423051.484 | L125: =+CENEGEN!$Z136+CENEGEN!$AE136 -> 175413903.5 | M125: =+CPOTGEN!$Z136+CPOTGEN!$AE136 -> 73831652.58 | N125: =+CPT!$Z136+CPT!$AE136 -> 26726053.65 | O125: =+CPET!$Z136+CPET!$AE136 -> 4964045.494 | P125: =+CPERDP!$AT136+CPERDP!$AY136 -> 0 | Q125: =+CPERDE!$AT136+CPERDE!$AY136 -> 18111510.68
A126: BTSH | B126: =+SUM(C126:E126) -> 225698.3245 | C126: 64818.63969 | D126: =+SUM(K126:O126) -> 149694.2252 | E126: =+SUM(P126:Q126) -> 11185.45964 | F126: =+CD!$Z196+CD!$AE196 -> 51155.31019 | G126: =+CCOMF!$Z196+CCOMF!$AE196 -> 2487.118376 | H126: =+CCOMV!$Z196+CCOMV!$AE196 -> 9372.57631 | I126: =+CSERAP!$Z196+CSERAP!$AE196 -> 1773.160046 | J126: =+CX!$Z196+CX!$AE196 -> 30.47476048 | K126: =+CCONAP!$Z196+CCONAP!$AE196 -> 2037.26539 | L126: =+CENEGEN!$Z196+CENEGEN!$AE196 -> 80913.14915 | M126: =+CPOTGEN!$Z196+CPOTGEN!$AE196 -> 47831.906 | N126: =+CPT!$Z196+CPT!$AE196 -> 15966.35992 | O126: =+CPET!$Z196+CPET!$AE196 -> 2945.544705 | P126: =+CPERDP!$AT196+CPERDP!$AY196 -> 0 | Q126: =+CPERDE!$AT196+CPERDE!$AY196 -> 11185.45964
A127: BTS Prepago | B127: 1425353.445 | C127: 620811.7351 | D127: 703513.2938 | E127: 101028.4163 | F127: =+CD!$Z209+CD!$AE209 -> 420745.8338 | G127: =+CCOMF!$Z209+CCOMF!$AE209 -> 104773.6738 | H127: =+CCOMV!$Z209+CCOMV!$AE209 -> 74260.46997 | I127: =+CSERAP!$Z209+CSERAP!$AE209 -> 13629.02172 | J127: =+CX!$Z209+CX!$AE209 -> 7402.735744 | K127: =+CCONAP!$Z209+CCONAP!$AE209 -> 16008.40162 | L127: =+CENEGEN!$Z209+CENEGEN!$AE209 -> 342686.7927 | M127: =+CPOTGEN!$Z209+CPOTGEN!$AE209 -> 196097.1613 | N127: =+CPT!$Z209+CPT!$AE209 -> 125479.8664 | O127: =+CPET!$Z209+CPET!$AE209 -> 23241.07178 | P127: =+CPERDP!$AT209+CPERDP!$AY209 -> 0 | Q127: =+CPERDE!$AT209+CPERDE!$AY209 -> 101028.4163
A128: X2H | B128: =+SUM(C128:E128) -> 0 | C128: =+SUM(F128:J128) -> 0 | D128: =+SUM(K128:O128) -> 0 | E128: =+SUM(P128:Q128) -> 0 | F128: =+CD!$Z265+CD!$AE265 -> 0 | G128: =+CCOMF!$Z265+CCOMF!$AE265 -> 0 | H128: =+CCOMV!$Z265+CCOMV!$AE265 -> 0 | I128: =+CSERAP!$Z265+CSERAP!$AE265 -> 0 | J128: =+CX!$Z265+CX!$AE265 -> 0 | K128: =+CCONAP!$Z265+CCONAP!$AE265 -> 0 | L128: =+CENEGEN!$Z265+CENEGEN!$AE265 -> 0 | M128: =+CPOTGEN!$Z265+CPOTGEN!$AE265 -> 0 | N128: =+CPT!$Z265+CPT!$AE265 -> 0 | O128: =+CPET!$Z265+CPET!$AE265 -> 0 | P128: =+CPERDP!$AT265+CPERDP!$AY265 -> 0 | Q128: =+CPERDE!$AT265+CPERDE!$AY265 -> 0
A129: X2D | B129: =+SUM(C129:E129) -> 0 | C129: =+SUM(F129:J129) -> 0 | D129: =+SUM(K129:O129) -> 0 | E129: =+SUM(P129:Q129) -> 0 | F129: =+CD!$Z268+CD!$AE268 -> 0 | G129: =+CCOMF!$Z268+CCOMF!$AE268 -> 0 | H129: =+CCOMV!$Z268+CCOMV!$AE268 -> 0 | I129: =+CSERAP!$Z268+CSERAP!$AE268 -> 0 | J129: =+CX!$Z268+CX!$AE268 -> 0 | K129: =+CCONAP!$Z268+CCONAP!$AE268 -> 0 | L129: =+CENEGEN!$Z268+CENEGEN!$AE268 -> 0 | M129: =+CPOTGEN!$Z268+CPOTGEN!$AE268 -> 0 | N129: =+CPT!$Z268+CPT!$AE268 -> 0 | O129: =+CPET!$Z268+CPET!$AE268 -> 0 | P129: =+CPERDP!$AT268+CPERDP!$AY268 -> 0 | Q129: =+CPERDE!$AT268+CPERDE!$AY268 -> 0
A130: X3D | B130: =+SUM(C130:E130) -> 0 | C130: =+SUM(F130:J130) -> 0 | D130: =+SUM(K130:O130) -> 0 | E130: =+SUM(P130:Q130) -> 0 | F130: =+CD!$Z324+CD!$AE324 -> 0 | G130: =+CCOMF!$Z324+CCOMF!$AE324 -> 0 | H130: =+CCOMV!$Z324+CCOMV!$AE324 -> 0 | I130: =+CSERAP!$Z324+CSERAP!$AE324 -> 0 | J130: =+CX!$Z324+CX!$AE324 -> 0 | K130: =+CCONAP!$Z324+CCONAP!$AE324 -> 0 | L130: =+CENEGEN!$Z324+CENEGEN!$AE324 -> 0 | M130: =+CPOTGEN!$Z324+CPOTGEN!$AE324 -> 0 | N130: =+CPT!$Z324+CPT!$AE324 -> 0 | O130: =+CPET!$Z324+CPET!$AE324 -> 0 | P130: =+CPERDP!$AT324+CPERDP!$AY324 -> 0 | Q130: =+CPERDE!$AT324+CPERDE!$AY324 -> 0
A131: Total | B131: =+SUM(B119:B127) -> 961286657.4 | C131: =+SUM(C119:C127) -> 273978086.3 | D131: =+SUM(D119:D127) -> 646643943.8 | E131: =+SUM(E119:E127) -> 40664627.28 | F131: 209366216.8 | G131: 22902651.14 | H131: 34976219.21 | I131: 6393224.844 | J131: 339774.258 | K131: =+SUM(K119:K127) -> 7538911.873 | L131: =+SUM(L119:L127) -> 391455182.7 | M131: 185954969.9 | N131: 50743922.46 | O131: =+SUM(O119:O127) -> 10950956.86 | P131: 0 | Q131: =+SUM(Q119:Q127) -> 40664627.28
A132: Diferencias | B132: =+B118 -> Total | C132: =+C118 -> VAD | D132: Abastecimiento | E132: Pérdidas | F132: CD | G132: CCOMF | H132: CCOMV | I132: CSERAP | J132: CX | K132: CCONAP | L132: CENEGEN | M132: CPOTGEN | N132: CPT | O132: CPET | P132: CPERDP | Q132: CPERDE
A133: =+A119 -> ATH | B133: =+IF(B105=0,"",(B119-B105)/B105) -> -0.06628147683 | C133: =+IF(C105=0,"",(C119-C105)/C105) -> -0.09207821446 | D133: =+IF(D105=0,"",(D119-D105)/D105) -> -0.06211356065 | E133: =+IF(E105=0,"",(E119-E105)/E105) -> -0.04087973104 | F133: -0.09532436719 | G133: -1.574163792e-16 | H133: -0.1012086821 | I133: 0.00565755744 | J133: -1.167200144e-15 | K133: =+IF(K105=0,"",(K119-K105)/K105) -> -0.20704661 | L133: -0.1607339114 | M133: 6.429761326 | N133: 0.1870387124 | O133: =+IF(O105=0,"",(O119-O105)/O105) -> -0.1305521081 | Q133: =+IF(Q105=0,"",(Q119-Q105)/Q105) -> -0.04087973104
A134: ATD | B134: 0.01942691209 | C134: =+IF(C106=0,"",(C120-C106)/C106) -> -0.0788500055 | D134: 0.07774705005 | E134: -0.04087973104 | F134: -0.09532436719 | G134: -3.008961616e-16 | H134: -0.1012086821 | I134: 0.00565755744 | J134: -7.968086315e-16 | K134: -0.20704661 | L134: -0.1607339114 | M134: 0.8758359298 | N134: 0.1870387124 | O134: -0.1305521081 | Q134: -0.04087973104
A135: MTH | B135: -0.06374662569 | C135: =+IF(C107=0,"",(C121-C107)/C107) -> -0.0930224801 | D135: -0.05617874152 | E135: -0.04087973104 | F135: -0.09532436719 | G135: -2.126808677e-16 | H135: -0.1012086821 | I135: 0.00565755744 | J135: -1.412255829e-15 | K135: -0.20704661 | L135: -0.1607339114 | M135: 10.20895512 | N135: 0.1870387124 | O135: -0.1305521081 | Q135: -0.04087973104
A136: MTD | B136: -0.01983242066 | C136: =+IF(C108=0,"",(C122-C108)/C108) -> -0.09339732467 | D136: 0.008749142835 | E136: -0.04087973104 | F136: -0.09532436719 | G136: -1.183819956e-16 | H136: -0.1012086626 | I136: 0.005657579253 | J136: -1.054782194e-15 | K136: -0.20704661 | L136: -0.1607339114 | M136: 0.6145697651 | N136: 0.1870387124 | O136: -0.1305521081 | Q136: -0.04087973104
A137: BTH | B137: -0.06684538355 | C137: =+IF(C109=0,"",(C123-C109)/C109) -> -0.09353564798 | D137: -0.05673175589 | E137: -0.04087973104 | F137: -0.09532436717 | G137: -1.600302969e-16 | H137: -0.1012086821 | I137: 0.00565755747 | J137: -7.195438387e-16 | K137: -0.20704661 | L137: -0.1607339114 | M137: 6.185023007 | N137: 0.1870387124 | O137: -0.1305521081 | Q137: -0.04087973104
A138: BTD | B138: -0.003930260846 | C138: =+IF(C110=0,"",(C124-C110)/C110) -> -0.09331661387 | D138: 0.04361093873 | E138: -0.04087973104 | F138: -0.09524891191 | G138: 0 | H138: -0.1012091646 | I138: 0.005657017578 | J138: -1.235306268e-15 | K138: -0.20704661 | L138: -0.1607339114 | M138: 0.9164752827 | N138: 0.1870387124 | O138: -0.1305521081 | Q138: -0.04087973104
A139: BTS | B139: -0.05193731249 | C139: =+IF(C111=0,"",(C125-C111)/C111) -> -0.07955751601 | D139: -0.03940155859 | E139: -0.04087973104 | F139: -0.09604960142 | G139: -3.38649892e-16 | H139: -0.1012227446 | I139: 0.004853319671 | J139: -1.493127042e-15 | K139: -0.20704661 | L139: -0.07680730256 | M139: 0.004875978487 | N139: 0.1870387124 | O139: -0.1305521081 | Q139: -0.04087973104
A140: BTSH | B140: -0.02756688078 | C140: -0.09031868155 | D140: 0.00344656788 | E140: -0.04087973104 | F140: -0.09532436702 | G140: -3.656821125e-16 | H140: -0.1012086819 | I140: 0.005657557628 | J140: -1.049209989e-15 | K140: -0.20704661 | L140: -0.07680730256 | M140: 0.1354075694 | N140: 0.1870387124 | O140: -0.1305521081 | Q140: -0.04087973104
A141: BTS Prepago | B141: -0.04824173945 | C141: -0.07813549819 | D141: -0.02131498886 | E141: -0.04087973104 | F141: -0.09532436767 | G141: -5.253214138e-10 | H141: -0.1012086826 | I141: 0.005657556912 | J141: -1.105733421e-15 | K141: -0.20704661 | L141: -0.1607339114 | M141: 0.2419815464 | N141: 0.1870387124 | O141: -0.1305521081 | Q141: -0.04087973104
A142: =+A128 -> X2H
A143: =+A129 -> X2D
A144: =+A130 -> X3D
A145: Total | B145: =+(SUM(B119:B130)-SUM(B105:B116))/SUM(B105:B116) -> -0.02992433339 | C145: =+(SUM(C119:C130)-SUM(C105:C116))/SUM(C105:C116) -> -0.086788187 | D145: =+(SUM(D119:D130)-SUM(D105:D116))/SUM(D105:D116) -> -0.002902218827 | E145: =+(SUM(E119:E130)-SUM(E105:E116))/SUM(E105:E116) -> -0.04087973104 | F145: =+(SUM(F119:F130)-SUM(F105:F116))/SUM(F105:F116) -> -0.09560614248 | G145: =+(SUM(G119:G130)-SUM(G105:G116))/SUM(G105:G116) -> -2.403591375e-12 | H145: -0.1012152406 | I145: 0.00529510203 | J145: -1.370501962e-15 | K145: =+(SUM(K119:K130)-SUM(K105:K116))/SUM(K105:K116) -> -0.20704661 | L145: =+(SUM(L119:L130)-SUM(L105:L116))/SUM(L105:L116) -> -0.1250756585 | M145: 0.3647164002 | N145: 0.1870387124 | O145: =+(SUM(O119:O130)-SUM(O105:O116))/SUM(O105:O116) -> -0.1305521081 | Q145: =+(SUM(Q119:Q130)-SUM(Q105:Q116))/SUM(Q105:Q116) -> -0.04087973104
A147: Análisis de Impacto de Tarifa Media Vigente vs. Tarifa Media Nueva
A148: Tarifa Media Vigente | B148: Total | C148: VAD | D148: Abastecimiento | E148: Pérdidas | F148: CD | G148: CCOMF | H148: CCOMV | I148: CSERAP | J148: CX | K148: CCONAP | L148: CENEGEN | M148: CPOTGEN | N148: CPT | O148: CPET | P148: CPERDP | Q148: CPERDE
A149: =+A105 -> ATH | B149: =+SUM(C149:E149) -> 146.0219145 | C149: =+SUM(F149:J149) -> 26.68845676 | D149: =+SUM(K149:O149) -> 110.3335143 | E149: =+SUM(P149:Q149) -> 8.999943511 | F149: =+IF([1]EnergíaVig!$V$8=0,"",F105/[1]EnergíaVig!$V$8) -> 17.24792551 | G149: =+IF([1]EnergíaVig!$V$8=0,"",G105/[1]EnergíaVig!$V$8) -> 0.0005160257433 | H149: =+IF([1]EnergíaVig!$V$8=0,"",H105/[1]EnergíaVig!$V$8) -> 8.11 | I149: =+IF([1]EnergíaVig!$V$8=0,"",I105/[1]EnergíaVig!$V$8) -> 1.33 | J149: =+IF([1]EnergíaVig!$V$8=0,"",J105/[1]EnergíaVig!$V$8) -> 1.522383317e-05 | K149: =+IF([1]EnergíaVig!$V$8=0,"",K105/[1]EnergíaVig!$V$8) -> 1.99 | L149: =+IF([1]EnergíaVig!$V$8=0,"",L105/[1]EnergíaVig!$V$8) -> 101.0192308 | M149: =+IF([1]EnergíaVig!$V$8=0,"",M105/[1]EnergíaVig!$V$8) -> 1.484055467 | N149: =+IF([1]EnergíaVig!$V$8=0,"",N105/[1]EnergíaVig!$V$8) -> 3.200228025 | O149: =+IF([1]EnergíaVig!$V$8=0,"",O105/[1]EnergíaVig!$V$8) -> 2.64 | P149: =+IF([1]EnergíaVig!$V$8=0,"",P105/[1]EnergíaVig!$V$8) -> 0 | Q149: =+IF([1]EnergíaVig!$V$8=0,"",Q105/[1]EnergíaVig!$V$8) -> 8.999943511
A150: ATD | B150: =+SUM(C150:E150) -> 288.3965627 | C150: =+SUM(F150:J150) -> 100.5666051 | D150: =+SUM(K150:O150) -> 178.8025435 | E150: =+SUM(P150:Q150) -> 9.027414053 | F150: =+IF([1]EnergíaVig!$V$12=0,"",F106/[1]EnergíaVig!$V$12) -> 74.65456859 | G150: =+IF([1]EnergíaVig!$V$12=0,"",G106/[1]EnergíaVig!$V$12) -> 16.00000317 | H150: =+IF([1]EnergíaVig!$V$12=0,"",H106/[1]EnergíaVig!$V$12) -> 8.11 | I150: =+IF([1]EnergíaVig!$V$12=0,"",I106/[1]EnergíaVig!$V$12) -> 1.33 | J150: =+IF([1]EnergíaVig!$V$12=0,"",J106/[1]EnergíaVig!$V$12) -> 0.4720333862 | K150: =+IF([1]EnergíaVig!$V$12=0,"",K106/[1]EnergíaVig!$V$12) -> 1.99 | L150: =+IF([1]EnergíaVig!$V$12=0,"",L106/[1]EnergíaVig!$V$12) -> 95.59 | M150: =+IF([1]EnergíaVig!$V$12=0,"",M106/[1]EnergíaVig!$V$12) -> 22.24838758 | N150: =+IF([1]EnergíaVig!$V$12=0,"",N106/[1]EnergíaVig!$V$12) -> 56.33415591 | O150: =+IF([1]EnergíaVig!$V$12=0,"",O106/[1]EnergíaVig!$V$12) -> 2.64 | P150: =+IF([1]EnergíaVig!$V$12=0,"",P106/[1]EnergíaVig!$V$12) -> 0 | Q150: =+IF([1]EnergíaVig!$V$12=0,"",Q106/[1]EnergíaVig!$V$12) -> 9.027414053
A151: MTH | B151: 197.2736155 | C151: 44.26837329 | D151: =+SUM(K151:O151) -> 143.9805737 | E151: 9.024668592 | F151: =+F107/[1]EnergíaVig!$V$13 -> 34.66769421 | G151: =+G107/[1]EnergíaVig!$V$13 -> 0.1573468424 | H151: =+H107/[1]EnergíaVig!$V$13 -> 8.11 | I151: =+I107/[1]EnergíaVig!$V$13 -> 1.33 | J151: =+J107/[1]EnergíaVig!$V$13 -> 0.003332234948 | K151: =+K107/[1]EnergíaVig!$V$13 -> 1.99 | L151: =+L107/[1]EnergíaVig!$V$13 -> 127.5173329 | M151: =+M107/[1]EnergíaVig!$V$13 -> 1.092717004 | N151: =+N107/[1]EnergíaVig!$V$13 -> 10.74052373 | O151: =+O107/[1]EnergíaVig!$V$13 -> 2.64 | P151: =+P107/[1]EnergíaVig!$V$13 -> 0 | Q151: =+Q107/[1]EnergíaVig!$V$13 -> 9.024668592
A152: MTD | B152: 199.4260552 | C152: 51.41736572 | D152: 138.9855917 | E152: 9.023097821 | F152: =+F108/[1]EnergíaVig!$V$17 -> 41.83986975 | G152: =+G108/[1]EnergíaVig!$V$17 -> 0.1190329719 | H152: =+H108/[1]EnergíaVig!$V$17 -> 8.116530627 | I152: =+I108/[1]EnergíaVig!$V$17 -> 1.339427468 | J152: =+J108/[1]EnergíaVig!$V$17 -> 0.002504905903 | K152: =+K108/[1]EnergíaVig!$V$17 -> 1.989149688 | L152: =+L108/[1]EnergíaVig!$V$17 -> 99.7473605 | M152: =+M108/[1]EnergíaVig!$V$17 -> 26.97276862 | N152: =+N108/[1]EnergíaVig!$V$17 -> 7.637440953 | O152: =+O108/[1]EnergíaVig!$V$17 -> 2.638871948 | P152: =+P108/[1]EnergíaVig!$V$17 -> 0 | Q152: =+Q108/[1]EnergíaVig!$V$17 -> 9.023097821
A153: BTH | B153: 208.4770963 | C153: 61.12454765 | D153: 138.4475962 | E153: 8.904952453 | F153: =+F109/[1]EnergíaVig!$V$54 -> 51.44588375 | G153: =+G109/[1]EnergíaVig!$V$54 -> 0.2322083589 | H153: =+H109/[1]EnergíaVig!$V$54 -> 8.11 | I153: =+I109/[1]EnergíaVig!$V$54 -> 1.33 | J153: =+J109/[1]EnergíaVig!$V$54 -> 0.006455543537 | K153: =+K109/[1]EnergíaVig!$V$54 -> 1.99 | L153: =+L109/[1]EnergíaVig!$V$54 -> 120.0597073 | M153: =+M109/[1]EnergíaVig!$V$54 -> 1.604991468 | N153: =+N109/[1]EnergíaVig!$V$54 -> 12.15289745 | O153: =+O109/[1]EnergíaVig!$V$54 -> 2.64 | P153: =+P109/[1]EnergíaVig!$V$54 -> 0 | Q153: =+Q109/[1]EnergíaVig!$V$54 -> 8.904952453
A154: BTD | B154: 208.6766533 | C154: 66.90096851 | D154: 132.7788034 | E154: 8.996881443 | F154: =+F110/[1]EnergíaVig!$V$58 -> 56.9979716 | G154: =+G110/[1]EnergíaVig!$V$58 -> 0.4344571661 | H154: =+H110/[1]EnergíaVig!$V$58 -> 8.117397744 | I154: =+I110/[1]EnergíaVig!$V$58 -> 1.339570564 | J154: =+J110/[1]EnergíaVig!$V$58 -> 0.01157143568 | K154: =+K110/[1]EnergíaVig!$V$58 -> 1.989362019 | L154: =+L110/[1]EnergíaVig!$V$58 -> 97.72591446 | M154: =+M110/[1]EnergíaVig!$V$58 -> 22.70845683 | N154: =+N110/[1]EnergíaVig!$V$58 -> 7.715916445 | O154: =+O110/[1]EnergíaVig!$V$58 -> 2.639153634 | P154: =+P110/[1]EnergíaVig!$V$58 -> 0 | Q154: =+Q110/[1]EnergíaVig!$V$58 -> 8.996881443
A155: BTS | B155: 213.5856838 | C155: 66.35147099 | D155: 138.4052533 | E155: 8.82895959 | F155: =+F111/[1]EnergíaVig!$V$95 -> 46.28741401 | G155: =+G111/[1]EnergíaVig!$V$95 -> 10.28648737 | H155: =+H111/[1]EnergíaVig!$V$95 -> 8.292318732 | I155: =+I111/[1]EnergíaVig!$V$95 -> 1.339436177 | J155: =+J111/[1]EnergíaVig!$V$95 -> 0.1458146954 | K155: =+K111/[1]EnergíaVig!$V$95 -> 2.018337051 | L155: =+L111/[1]EnergíaVig!$V$95 -> 88.83816396 | M155: =+M111/[1]EnergíaVig!$V$95 -> 34.35247613 | N155: =+N111/[1]EnergíaVig!$V$95 -> 10.52683643 | O155: =+O111/[1]EnergíaVig!$V$95 -> 2.669439705 | P155: =+P111/[1]EnergíaVig!$V$95 -> 0 | Q155: =+Q111/[1]EnergíaVig!$V$95 -> 8.82895959
A156: BTSH | B156: 184.2887455 | C156: 56.57712268 | D156: 118.4516229 | E156: 9.26 | F156: =+F112/[1]EnergíaVig!$V$127 -> 44.898109 | G156: =+G112/[1]EnergíaVig!$V$127 -> 1.974816179 | H156: =+H112/[1]EnergíaVig!$V$127 -> 8.28 | I156: =+I112/[1]EnergíaVig!$V$127 -> 1.4 | J156: =+J112/[1]EnergíaVig!$V$127 -> 0.02419750127 | K156: =+K112/[1]EnergíaVig!$V$127 -> 2.04 | L156: =+L112/[1]EnergíaVig!$V$127 -> 69.59162285 | M156: =+M112/[1]EnergíaVig!$V$127 -> 33.45 | N156: =+N112/[1]EnergíaVig!$V$127 -> 10.68 | O156: =+O112/[1]EnergíaVig!$V$127 -> 2.69 | P156: =+P112/[1]EnergíaVig!$V$127 -> 0 | Q156: =+Q112/[1]EnergíaVig!$V$127 -> 9.26
A157: BTS Prepago | B157: 150.3645071 | C157: 67.61487443 | D157: 72.17367031 | E157: 10.57596235 | F157: =+F113/[1]EnergíaVig!$V$140 -> 46.69564211 | G157: =+G113/[1]EnergíaVig!$V$140 -> 10.51965732 | H157: =+H113/[1]EnergíaVig!$V$140 -> 8.295608446 | I157: =+I113/[1]EnergíaVig!$V$140 -> 1.360705005 | J157: =+J113/[1]EnergíaVig!$V$140 -> 0.7432615499 | K157: =+K113/[1]EnergíaVig!$V$140 -> 2.026981249 | L157: =+L113/[1]EnergíaVig!$V$140 -> 40.99653118 | M157: =+M113/[1]EnergíaVig!$V$140 -> 15.85278552 | N157: =+N113/[1]EnergíaVig!$V$140 -> 10.61349904 | O157: =+O113/[1]EnergíaVig!$V$140 -> 2.683873321 | P157: =+P113/[1]EnergíaVig!$V$140 -> 0 | Q157: =+Q113/[1]EnergíaVig!$V$140 -> 10.57596235
A158: Total | B158: =+SUM(C158:E158) -> 203.6200858 | C158: =+SUM(F158:J158) -> 61.64780524 | D158: =+SUM(K158:O158) -> 133.2602971 | E158: =+SUM(P158:Q158) -> 8.711983409 | F158: =+SUM(F105:F113)/[1]EnergíaVig!$V$7 -> 47.56881296 | G158: =+SUM(G105:G113)/[1]EnergíaVig!$V$7 -> 4.706077451 | H158: =+SUM(H105:H113)/[1]EnergíaVig!$V$7 -> 7.996325702 | I158: =+SUM(I105:I113)/[1]EnergíaVig!$V$7 -> 1.306771711 | J158: =+SUM(J105:J113)/[1]EnergíaVig!$V$7 -> 0.06981741827 | K158: =+SUM(K105:K113)/[1]EnergíaVig!$V$7 -> 1.953594028 | L158: =+SUM(L105:L113)/[1]EnergíaVig!$V$7 -> 91.93584256 | M158: =+SUM(M105:M113)/[1]EnergíaVig!$V$7 -> 27.99875317 | N158: =+SUM(N105:N113)/[1]EnergíaVig!$V$7 -> 8.784002783 | O158: =+SUM(O105:O113)/[1]EnergíaVig!$V$7 -> 2.588104583 | P158: =+SUM(P105:P113)/[1]EnergíaVig!$V$7 -> 0 | Q158: =+SUM(Q105:Q113)/[1]EnergíaVig!$V$7 -> 8.711983409
A159: Tarifa Media Nueva | B159: =+B148 -> Total | C159: =+C148 -> VAD | D159: Abastecimiento | E159: Pérdidas | F159: CD | G159: CCOMF | H159: CCOMV | I159: CSERAP | J159: CX | K159: CCONAP | L159: CENEGEN | M159: CPOTGEN | N159: CPT | O159: CPET | P159: CPERDP | Q159: CPERDE
A160: =+A149 -> ATH | B160: =+SUM(C160:E160) -> 136.3433664 | C160: =+SUM(F160:J160) -> 24.23103131 | D160: =+SUM(K160:O160) -> 103.4803068 | E160: =+SUM(P160:Q160) -> 8.632028241 | F160: =+IF(Energía!$Z$11=0,"",F119/Energía!$Z$11) -> 15.60377792 | G160: =+IF(Energía!$Z$11=0,"",G119/Energía!$Z$11) -> 0.0005160257433 | H160: =+IF(Energía!$Z$11=0,"",H119/Energía!$Z$11) -> 7.289197588 | I160: =+IF(Energía!$Z$11=0,"",I119/Energía!$Z$11) -> 1.337524551 | J160: =+IF(Energía!$Z$11=0,"",J119/Energía!$Z$11) -> 1.522383317e-05 | K160: =+IF(Energía!$Z$11=0,"",K119/Energía!$Z$11) -> 1.577977246 | L160: =+IF(Energía!$Z$11=0,"",L119/Energía!$Z$11) -> 84.78201468 | M160: =+IF(Energía!$Z$11=0,"",M119/Energía!$Z$11) -> 11.02617792 | N160: =+IF(Energía!$Z$11=0,"",N119/Energía!$Z$11) -> 3.798794555 | O160: =+IF(Energía!$Z$11=0,"",O119/Energía!$Z$11) -> 2.295342435 | P160: =+IF(Energía!$Z$11=0,"",P119/Energía!$Z$11) -> 0 | Q160: =+IF(Energía!$Z$11=0,"",Q119/Energía!$Z$11) -> 8.632028241
A161: ATD | B161: 293.9992174 | C161: =+SUM(F161:J161) -> 92.63692778 | D161: 192.7039138 | E161: 8.658375795 | F161: =+IF(Energía!$Z$15=0,"",F120/Energía!$Z$15) -> 67.53816908 | G161: =+IF(Energía!$Z$15=0,"",G120/Energía!$Z$15) -> 16.00000317 | H161: =+IF(Energía!$Z$15=0,"",H120/Energía!$Z$15) -> 7.289197588 | I161: =+IF(Energía!$Z$15=0,"",I120/Energía!$Z$15) -> 1.337524551 | J161: =+IF(Energía!$Z$15=0,"",J120/Energía!$Z$15) -> 0.4720333862 | K161: =+IF(Energía!$Z$15=0,"",K120/Energía!$Z$15) -> 1.577977246 | L161: =+IF(Energía!$Z$15=0,"",L120/Energía!$Z$15) -> 80.22544541 | M161: =+IF(Energía!$Z$15=0,"",M120/Energía!$Z$15) -> 41.73432481 | N161: =+IF(Energía!$Z$15=0,"",N120/Energía!$Z$15) -> 66.8708239 | O161: =+IF(Energía!$Z$15=0,"",O120/Energía!$Z$15) -> 2.295342435 | P161: =+IF(Energía!$Z$15=0,"",P120/Energía!$Z$15) -> 0 | Q161: =+IF(Energía!$Z$15=0,"",Q120/Energía!$Z$15) -> 8.658375795
A162: MTH | B162: 184.6980882 | C162: 40.15041941 | D162: 135.8919262 | E162: 8.655742567 | F162: =+F121/Energía!$Z$16 -> 31.3630182 | G162: =+G121/Energía!$Z$16 -> 0.1573468424 | H162: =+H121/Energía!$Z$16 -> 7.289197588 | I162: =+I121/Energía!$Z$16 -> 1.337524551 | J162: =+J121/Energía!$Z$16 -> 0.003332234948 | K162: =+K121/Energía!$Z$16 -> 1.577977246 | L162: =+L121/Energía!$Z$16 -> 107.0209732 | M162: =+M121/Energía!$Z$16 -> 12.24821586 | N162: =+N121/Energía!$Z$16 -> 12.74941746 | O162: =+O121/Energía!$Z$16 -> 2.295342435 | P162: =+P121/Energía!$Z$16 -> 0 | Q162: =+Q121/Energía!$Z$16 -> 8.655742567
A163: MTD | B163: 195.4709538 | C163: 46.61512132 | D163: 140.2015965 | E163: 8.654236009 | F163: =+F122/Energía!$Z$20 -> 37.85151064 | G163: =+G122/Energía!$Z$20 -> 0.1190329719 | H163: =+H122/Energía!$Z$20 -> 7.295067417 | I163: =+I122/Energía!$Z$20 -> 1.347005385 | J163: =+J122/Energía!$Z$20 -> 0.002504905903 | K163: =+K122/Energía!$Z$20 -> 1.577302989 | L163: =+L122/Energía!$Z$20 -> 83.71457709 | M163: =+M122/Energía!$Z$20 -> 43.54941669 | N163: =+N122/Energía!$Z$20 -> 9.065938075 | O163: =+O122/Energía!$Z$20 -> 2.294361652 | P163: =+P122/Energía!$Z$20 -> 0 | Q163: =+Q122/Energía!$Z$20 -> 8.654236009
A164: BTH | B164: 194.5413642 | C164: 55.40722329 | D164: 130.5932205 | E164: 8.540920363 | F164: =+F123/Energía!$Z$76 -> 46.54183728 | G164: =+G123/Energía!$Z$76 -> 0.2322083581 | H164: =+H123/Energía!$Z$76 -> 7.289197563 | I164: =+I123/Energía!$Z$76 -> 1.337524547 | J164: =+J123/Energía!$Z$76 -> 0.006455543515 | K164: =+K123/Energía!$Z$76 -> 1.577977241 | L164: =+L123/Energía!$Z$76 -> 100.7620406 | M164: =+M123/Energía!$Z$76 -> 11.53190058 | N164: =+N123/Energía!$Z$76 -> 14.42595969 | O164: =+O123/Energía!$Z$76 -> 2.295342427 | P164: =+P123/Energía!$Z$76 -> 0 | Q164: =+Q123/Energía!$Z$76 -> 8.540920363
A165: BTD | B165: 207.8565224 | C165: 60.65800329 | D165: 138.5694268 | E165: 8.629092293 | F165: =+F124/Energía!$Z$80 -> 51.56898246 | G165: =+G124/Energía!$Z$80 -> 0.4344572136 | H165: =+H124/Energía!$Z$80 -> 7.295843498 | I165: =+I124/Energía!$Z$80 -> 1.347148685 | J165: =+J124/Energía!$Z$80 -> 0.01157143695 | K165: =+K124/Energía!$Z$80 -> 1.57747153 | L165: =+L124/Energía!$Z$80 -> 82.01805495 | M165: =+M124/Energía!$Z$80 -> 43.52020098 | N165: =+N124/Energía!$Z$80 -> 9.159092523 | O165: =+O124/Energía!$Z$80 -> 2.294606814 | P165: =+P124/Energía!$Z$80 -> 0 | Q165: =+Q124/Energía!$Z$80 -> 8.629092293
A166: BTS | B166: 202.4926018 | C166: 61.07270804 | D166: 132.9518603 | E166: 8.46803344 | F166: =+F125/Energía!$Z$136 -> 41.8415231 | G166: =+G125/Energía!$Z$136 -> 10.28648657 | H166: =+H125/Energía!$Z$136 -> 7.452946894 | I166: =+I125/Energía!$Z$136 -> 1.345936785 | J166: =+J125/Energía!$Z$136 -> 0.1458146841 | K166: =+K125/Energía!$Z$136 -> 1.600447083 | L166: =+L125/Energía!$Z$136 -> 82.01473787 | M166: =+M125/Energía!$Z$136 -> 34.51997539 | N166: =+N125/Energía!$Z$136 -> 12.4957614 | O166: =+O125/Energía!$Z$136 -> 2.320938544 | P166: =+P125/Energía!$Z$136 -> 0 | Q166: =+Q125/Energía!$Z$136 -> 8.46803344
A167: BTSH | B167: =+SUM(C167:E167) -> 179.2084739 | C167: 51.46714991 | D167: =+SUM(K167:O167) -> 118.8598706 | E167: =+SUM(P167:Q167) -> 8.881453408 | F167: =+IFERROR(F126/Energía!$Z$196,0) -> 40.61822388 | G167: =+IFERROR(G126/Energía!$Z$196,0) -> 1.974816117 | H167: =+IFERROR(H126/Energía!$Z$196,0) -> 7.441991877 | I167: =+IFERROR(I126/Energía!$Z$196,0) -> 1.407920536 | J167: =+IFERROR(J126/Energía!$Z$196,0) -> 0.0241975005 | K167: =+IFERROR(K126/Energía!$Z$196,0) -> 1.617624864 | L167: =+IFERROR(L126/Energía!$Z$196,0) -> 64.24647598 | M167: =+IFERROR(M126/Energía!$Z$196,0) -> 37.97938199 | N167: =+IFERROR(N126/Energía!$Z$196,0) -> 12.67757305 | O167: =+IFERROR(O126/Energía!$Z$196,0) -> 2.338814755 | P167: =+IFERROR(P126/Energía!$Z$196,0) -> 0 | Q167: =+IFERROR(Q126/Energía!$Z$196,0) -> 8.881453408
A168: BTS Prepago | B168: 143.1106455 | C168: 62.33174548 | D168: 70.63528134 | E168: 10.14361871 | F168: =+IFERROR(F127/Energía!$Z$209,0) -> 42.24440477 | G168: =+IFERROR(G127/Energía!$Z$209,0) -> 10.51965612 | H168: =+IFERROR(H127/Energía!$Z$209,0) -> 7.45602 | I168: =+IFERROR(I127/Energía!$Z$209,0) -> 1.368403116 | J168: =+IFERROR(J127/Energía!$Z$209,0) -> 0.7432614658 | K168: =+IFERROR(K127/Energía!$Z$209,0) -> 1.607301471 | L168: =+IFERROR(L127/Energía!$Z$209,0) -> 34.40699448 | M168: =+IFERROR(M127/Energía!$Z$209,0) -> 19.68886484 | N168: =+IFERROR(N127/Energía!$Z$209,0) -> 12.59863281 | O168: =+IFERROR(O127/Energía!$Z$209,0) -> 2.333487737 | P168: =+IFERROR(P127/Energía!$Z$209,0) -> 0 | Q168: =+IFERROR(Q127/Energía!$Z$209,0) -> 10.14361871
A169: Total | B169: =+SUM(C169:E169) -> 197.5268904 | C169: =+SUM(F169:J169) -> 56.29750399 | D169: =+SUM(K169:O169) -> 132.8735466 | E169: =+SUM(P169:Q169) -> 8.355839871 | F169: =+SUM(F119:F127)/Energía!$Z$10 -> 43.02094225 | G169: =+SUM(G119:G127)/Energía!$Z$10 -> 4.706077451 | H169: =+SUM(H119:H127)/Energía!$Z$10 -> 7.186975672 | I169: =+SUM(I119:I127)/Energía!$Z$10 -> 1.313691201 | J169: =+SUM(J119:J127)/Energía!$Z$10 -> 0.06981741827 | K169: =+SUM(K119:K127)/Energía!$Z$10 -> 1.549109007 | L169: =+SUM(L119:L127)/Energía!$Z$10 -> 80.43690651 | M169: =+SUM(M119:M127)/Energía!$Z$10 -> 38.21035764 | N169: =+SUM(N119:N127)/Energía!$Z$10 -> 10.42695135 | O169: =+SUM(O119:O127)/Energía!$Z$10 -> 2.250222074 | P169: =+SUM(P119:P127)/Energía!$Z$10 -> 0 | Q169: =+SUM(Q119:Q127)/Energía!$Z$10 -> 8.355839871
A170: Diferencias | B170: =+B159 -> Total | C170: =+C159 -> VAD | D170: Abastecimiento | E170: Pérdidas | F170: CD | G170: CCOMF | H170: CCOMV | I170: CSERAP | J170: CX | K170: CCONAP | L170: CENEGEN | M170: CPOTGEN | N170: CPT | O170: CPET | P170: CPERDP | Q170: CPERDE
A171: =+A160 -> ATH | B171: =+IF(B149=0,"",(B160-B149)/B149) -> -0.06628147683 | C171: =+IF(C149=0,"",(C160-C149)/C149) -> -0.09207821446 | D171: =+IF(D149=0,"",(D160-D149)/D149) -> -0.06211356065 | E171: -0.04087973104 | F171: =+IF(F149="","",(F160-F149)/F149) -> -0.09532436719 | G171: =+IF(G149="","",(G160-G149)/G149) -> 0 | H171: -0.1012086821 | I171: 0.00565755744 | J171: -1.224049465e-15 | K171: =+IF(K149="","",(K160-K149)/K149) -> -0.20704661 | L171: =+IF(L149="","",(L160-L149)/L149) -> -0.1607339114 | M171: 6.429761326 | N171: 0.1870387124 | O171: =+IF(O149="","",(O160-O149)/O149) -> -0.1305521081 | Q171: =+IF(Q149="","",(Q160-Q149)/Q149) -> -0.04087973104
A172: ATD | B172: 0.01942691209 | C172: =+IF(C150=0,"",(C161-C150)/C150) -> -0.0788500055 | D172: 0.07774705005 | E172: -0.04087973104 | F172: =+IF(F150="","",(F161-F150)/F150) -> -0.09532436719 | G172: -2.220445609e-16 | H172: -0.1012086821 | I172: 0.00565755744 | J172: -8.23200371e-16 | K172: =+IF(K150="","",(K161-K150)/K150) -> -0.20704661 | L172: =+IF(L150="","",(L161-L150)/L150) -> -0.1607339114 | M172: 0.8758359298 | N172: 0.1870387124 | O172: =+IF(O150="","",(O161-O150)/O150) -> -0.1305521081 | Q172: =+IF(Q150="","",(Q161-Q150)/Q150) -> -0.04087973104
A173: MTH | B173: -0.06374662569 | C173: =+IF(C151=0,"",(C162-C151)/C151) -> -0.0930224801 | D173: -0.05617874152 | E173: -0.04087973104 | F173: =+(F162-F151)/F151 -> -0.09532436719 | G173: -1.763974109e-16 | H173: -0.1012086821 | I173: 0.00565755744 | J173: -1.431618609e-15 | K173: =+(K162-K151)/K151 -> -0.20704661 | L173: -0.1607339114 | M173: 10.20895512 | N173: 0.1870387124 | O173: =+(O162-O151)/O151 -> -0.1305521081 | Q173: =+(Q162-Q151)/Q151 -> -0.04087973104
A174: MTD | B174: -0.01983242068 | C174: =+IF(C152=0,"",(C163-C152)/C152) -> -0.09339732469 | D174: 0.008749142812 | E174: -0.04087973106 | F174: =+(F163-F152)/F152 -> -0.09532436721 | G174: -2.314092195e-11 | H174: -0.1012086626 | I174: 0.00565757923 | J174: -2.314176883e-11 | K174: -0.20704661 | L174: -0.1607339114 | M174: 0.6145697651 | N174: 0.1870387124 | O174: -0.1305521081 | Q174: -0.04087973106
A175: BTH | B175: -0.0668453868 | C175: =+IF(C153=0,"",(C164-C153)/C153) -> -0.09353565113 | D175: -0.05673175917 | E175: -0.04087973437 | F175: =+(F164-F153)/F153 -> -0.09532437031 | G175: -3.47711677e-09 | H175: -0.1012086852 | I175: 0.005657553973 | J175: -3.477117365e-09 | K175: -0.2070466128 | L175: -0.1607339143 | M175: 6.185022982 | N175: 0.1870387083 | O175: -0.1305521111 | Q175: -0.04087973437
A176: BTD | B176: -0.003930151946 | C176: =+IF(C154=0,"",(C165-C154)/C154) -> -0.09331651475 | D176: 0.04361105283 | E176: -0.04087962618 | F176: =+(F165-F154)/F154 -> -0.095248813 | G176: 1.093293886e-07 | H176: -0.1012090663 | I176: 0.005657127526 | J176: 1.093293874e-07 | K176: -0.2070465233 | L176: -0.1607338197 | M176: 0.9164754922 | N176: 0.1870388422 | O176: -0.130552013 | Q176: -0.04087962618
A177: BTS | B177: -0.05193738593 | C177: =+IF(C155=0,"",(C166-C155)/C155) -> -0.07955758731 | D177: -0.039401633 | E177: -0.04087980533 | F177: =+(F166-F155)/F155 -> -0.09604967144 | G177: -7.746096881e-08 | H177: -0.1012228142 | I177: 0.004853241834 | J177: -7.746096987e-08 | K177: -0.2070466714 | L177: -0.07680737407 | M177: 0.004875900648 | N177: 0.1870386205 | O177: -0.1305521755 | Q177: -0.04087980533
A178: BTSH | B178: -0.02756691173 | C178: -0.09031871051 | D178: 0.003446535944 | E178: -0.04087976156 | F178: =+(F167-F156)/F156 -> -0.09532439582 | G178: -3.182577466e-08 | H178: -0.1012087105 | I178: 0.005657525622 | J178: -3.182577527e-08 | K178: -0.2070466352 | L178: -0.07680733194 | M178: 0.1354075333 | N178: 0.1870386746 | O178: -0.1305521358 | Q178: -0.04087976156
A179: BTS Prepago | B179: -0.04824184711 | C179: -0.07813560247 | D179: -0.02131509957 | E179: -0.04087983953 | F179: -0.09532447001 | G179: -1.136451369e-07 | H179: -0.1012087842 | I179: 0.005657443152 | J179: -1.131198167e-07 | K179: -0.2070466997 | L179: -0.1607340064 | M179: 0.241981406 | N179: 0.1870385781 | O179: -0.1305522065 | Q179: -0.04087983953
A180: Total | B180: =+(B169-B158)/B158 -> -0.02992433339 | C180: =+(C169-C158)/C158 -> -0.086788187 | D180: =+(D169-D158)/D158 -> -0.002902218827 | E180: =+(E169-E158)/E158 -> -0.04087973104 | F180: -0.09560614248 | G180: -2.403666423e-12 | H180: -0.1012152406 | I180: 0.00529510203 | J180: -1.391408005e-15 | K180: =+(K169-K158)/K158 -> -0.20704661 | L180: =+(L169-L158)/L158 -> -0.1250756585 | M180: 0.3647164002 | N180: 0.1870387124 | O180: =+(O169-O158)/O158 -> -0.1305521081 | Q180: =+(Q169-Q158)/Q158 -> -0.04087973104
E181: =1/(1-PremisaCosto!F38)-1 -> 0.09950993931 | F181: =+E181*D169 -> 13.22223856
A182: Análisis de Tarifa Media | Q182: Parámetros para Análisis de Tarifa Media
E183: =+E158/D158 -> 0.06537568651
A184: Selector de Costos para comparación de tarifas
A186: Cuadro Tarifario | B186: Tarifas | V186: Parámetros
A187: Categorías | B187: $/Cliente mes | C187: $/kWh | D187: $/kW mes | V187: Kep | W187: Kefp | X187: FCp | Y187: FCfp | Z187: Categorías
A188: =+PremisaCosto!A93 -> ATH | B188: =+E599+I599 -> 14.34 | C188: =+B599+D599+F599+H599+J599+L599+N599+P599+R599+T599+V599+X599 -> 0 | D188: =+C599+G599+M599+O599+Q599+S599+U599+W599+Y599 -> 0 | Z188: =+A188 -> ATH
A189: =+PremisaCosto!A94 -> ATH Punta | C189: 0.2152999327 | D189: 21.82819792 | V189: =+Parametros!B10 -> 0.2818552157 | X189: 0.5483146274 | Z189: ATH Punta
A190: =+PremisaCosto!A95 -> ATH Fuera de Punta Medio | C190: 0.1078609227 | D190: 5.354811233 | W190: =(1-V189)/2 -> 0.3590723921 | Y190: 0.5902255624 | Z190: =+A190 -> ATH Fuera de Punta Medio
A191: =+PremisaCosto!A96 -> ATH Fuera de Punta Bajo | C191: 0.06584656229 | D191: 5.354811233 | W191: =+W190 -> 0.3590723921 | Y191: 0.5902255624 | Z191: ATH Fuera de Punta Bajo
A192: =+PremisaCosto!A97 -> ATD | B192: =+E603+I603 -> 14.34 | C192: 0.169600781 | D192: 9.411357886 | X192: 0.7146301783 | Z192: ATD
A193: =+PremisaCosto!A98 -> MTH | B193: =+E604+I604 -> 14.34 | C193: 0 | D193: 0 | M193: Para cambio de escala: | Z193: MTH
A194: =+PremisaCosto!A99 -> MTH Punta | C194: 0.2676577557 | D194: 17.27548806 | M194: kWh inicial | N194: 40 | V194: =+Parametros!B8 -> 0.2818552157 | X194: 0.5483146274 | Z194: MTH Punta
A195: =+PremisaCosto!A100 -> MTH Fuera de Punta Medio | C195: =+B606+D606+F606+H606+J606+L606+N606+P606+R606+T606+V606+X606 -> 0.1359035553 | D195: =+C606+G606+M606+O606+Q606+S606+U606+W606+Y606 -> 2.51404539 | W195: =(1-V194)/2 -> 0.3590723921 | Y195: 0.5902255624 | Z195: =+A195 -> MTH Fuera de Punta Medio
A196: =+PremisaCosto!A101 -> MTH Fuera de Punta Bajo | C196: =+B607+D607+F607+H607+J607+L607+N607+P607+R607+T607+V607+X607 -> 0.08164331145 | D196: =+C607+G607+M607+O607+Q607+S607+U607+W607+Y607 -> 2.51404539 | M196: kWh final | N196: 50000 | W196: =+W195 -> 0.3590723921 | Y196: 0.5902255624 | Z196: MTH Fuera de Punta Bajo
A197: =+PremisaCosto!A102 -> MTD | B197: =+E608+I608 -> 14.27 | C197: 0 | D197: 0 | Z197: MTD
A198: =+PremisaCosto!A103 -> MTD_1 (0-10,000) | C198: 0.1458024852 | D198: 20.02635089 | X198: 0.52 | Z198: MTD_1 (0-10,000)
A199: =+PremisaCosto!A114 -> MTD_2 (10,001-30,000) | C199: 0 | D199: 0 | X199: =+X198 -> 0.52 | Z199: MTD_2 (10,001-30,000)
A200: =+PremisaCosto!A125 -> MTD_3 (30,001-50,000) | C200: 0 | D200: 0 | X200: =+X199 -> 0.52 | Z200: MTD_3 (30,001-50,000)
A201: =+PremisaCosto!A136 -> MTD_4 (50,001-más) | C201: 0 | D201: 0 | X201: =+X200 -> 0.52 | Z201: MTD_4 (50,001-más)
A202: =+PremisaCosto!A147 -> MTD_5 (xxx) | C202: =+B613+D613+F613+H613+J613+L613+N613+P613+R613+T613+V613+X613 -> 0 | D202: 0 | Z202: MTD_5 (xxx)
A203: =+PremisaCosto!A158 -> BTH | B203: =+E614+I614 -> 5.67 | C203: =+B614+D614+F614+H614+J614+L614+N614+P614+R614+T614+V614+X614 -> 0 | D203: 0 | Z203: BTH
A204: =+PremisaCosto!A159 -> BTH Punta | C204: =+B615+D615+F615+H615+J615+L615+N615+P615+R615+T615+V615+X615 -> 0.2596397972 | D204: 18.31781732 | V204: =+Parametros!B6 -> 0.3006697864 | X204: 0.4841106429 | Z204: BTH Punta
A205: =+PremisaCosto!A160 -> BTH Fuera de Punta Medio | C205: =+B616+D616+F616+H616+J616+L616+N616+P616+R616+T616+V616+X616 -> 0.1281729514 | D205: =+C616+G616+M616+O616+Q616+S616+U616+W616+Y616 -> 2.322420823 | W205: =(1-V204)/2 -> 0.3496651068 | Y205: 0.4008565847 | Z205: =+A205 -> BTH Fuera de Punta Medio
A206: =+PremisaCosto!A161 -> BTH Fuera de Punta Bajo | C206: =+B617+D617+F617+H617+J617+L617+N617+P617+R617+T617+V617+X617 -> 0.07822169989 | D206: =+C617+G617+M617+O617+Q617+S617+U617+W617+Y617 -> 2.322420823 | W206: =+W205 -> 0.3496651068 | Y206: 0.4008565847 | Z206: BTH Fuera de Punta Bajo
A207: =+PremisaCosto!A162 -> BTD | B207: =+E618+I618 -> 5.66 | C207: 0 | D207: 0 | Z207: BTD
A208: =+PremisaCosto!A163 -> BTD_1 (0-10,000) | C208: 0.1391367457 | D208: 17.6395767 | X208: 0.52 | Z208: BTD_1 (0-10,000)
A209: =+PremisaCosto!A174 -> BTD_2 (10,001-30,000) | C209: 0.1452543539 | D209: 17.6395767 | X209: =+X208 -> 0.52 | Z209: BTD_2 (10,001-30,000)
A210: =+PremisaCosto!A185 -> BTD_3 (30,001-50,000) | C210: 0.1571002065 | D210: 17.6395767 | X210: =+X209 -> 0.52 | Z210: BTD_3 (30,001-50,000)
A211: =+PremisaCosto!A196 -> BTD_4 (50,001-más) | C211: 0.1687518488 | D211: 17.6395767 | X211: =+X210 -> 0.52 | Z211: BTD_4 (50,001-más)
A212: =+PremisaCosto!A207 -> BTD_5 (xxx) | C212: =+B623+D623+F623+H623+J623+L623+N623+P623+R623+T623+V623+X623 -> 0 | D212: 0 | Z212: BTD_5 (xxx)
A213: =+PremisaCosto!A218 -> BTS | B213: =+E624+I624 -> 3.16 | C213: 0 | D213: 0 | Z213: BTS
A214: =+PremisaCosto!A219 -> BTS_1 (0-300) | C214: 0.1451792259 | D214: 0 | M214: Para cambio de escala: | Z214: BTS_1 (0-300)
A215: =+PremisaCosto!A230 -> BTS_2 (301-750) | C215: 0.2100349637 | D215: 0 | M215: FC inicial | N215: 0.1 | Z215: BTS_2 (301-750)
A216: =+PremisaCosto!A241 -> BTS_3 (751-más) | C216: 0.3131930473 | D216: 0 | M216: FC final | N216: 0.6 | Z216: BTS_3 (751-más)
A217: =+PremisaCosto!A252 -> BTS_4 (xxx) | C217: 0 | D217: 0 | M217: kW fijo | N217: 50 | Z217: BTS_4 (xxx)
A218: =+PremisaCosto!A263 -> BTS_5 (xxx) | C218: 0 | D218: 0 | Z218: BTS_5 (xxx)
A219: =+PremisaCosto!A278 -> BTSH | B219: =+E630+I630 -> 3.06 | C219: 0 | D219: 0 | Z219: BTSH
A220: =+PremisaCosto!A280 -> BTSH_1 Punta | C220: 0.3545184161 | D220: 0 | V220: =+Parametros!B12 -> 0.2352960949 | Z220: BTSH_1 Punta
A221: =+PremisaCosto!A281 -> BTSH_1 Fuera de Punta Medio | C221: =+B632+D632+F632+H632+J632+L632+N632+P632+R632+T632+V632+X632 -> 0.1849269071 | D221: =+C632+G632+M632+O632+Q632+S632+U632+W632+Y632 -> 0 | W221: =(1-V220)/2 -> 0.3823519525 | Z221: BTSH_1 Fuera de Punta Medio
A222: =+PremisaCosto!A282 -> BTSH_1 Fuera de Punta Bajo | C222: 0.1122483358 | D222: 0 | W222: =+W221 -> 0.3823519525 | Z222: BTSH_1 Fuera de Punta Bajo
A223: =+PremisaCosto!A284 -> BTSH_2 Punta | B223: =+E634+I634 -> 0 | C223: 0 | D223: 0 | Z223: BTSH_2 Punta
A224: =+PremisaCosto!A285 -> BTSH_2 Fuera de Punta Medio | B224: 0 | C224: 0 | D224: 0 | Z224: BTSH_2 Fuera de Punta Medio
A225: =+PremisaCosto!A286 -> BTSH_2 Fuera de Punta Bajo | B225: 0 | C225: 0 | D225: 0 | Z225: BTSH_2 Fuera de Punta Bajo
A226: =+PremisaCosto!A288 -> BTSH_3 Punta | B226: 0 | C226: 0 | D226: 0 | Z226: BTSH_3 Punta
A227: =+PremisaCosto!A289 -> BTSH_3 Fuera de Punta Medio | B227: 0 | C227: 0 | D227: 0 | Z227: BTSH_3 Fuera de Punta Medio
... 467 more rows

Sheet Resumen
A1: =+"Resumen y Controles"&" - "&PremisaCosto!A2 -> Resumen y Controles - EDEMET
R2: Recuperación costos 2026/2027 | S2: Cuatro años = 1
R3: 1 | S3: Tres años = 2
C4: Costos | H4: Ingresos | M4: VP - IMP | P4: Checks | R4: Ingresos año 1 nueva tarifa | S4: Ingresos año 1 tarifa vigente | T4: Ingresos a recuperar en tres años
A5: Resumen siguiendo Regimen Tarifario | B5: u.m. | C5: =+PremisaCosto!F89 -> 2026/2027 | D5: =+PremisaCosto!G89 -> 2027/2028 | E5: =+PremisaCosto!H89 -> 2028/2029 | F5: =+PremisaCosto!I89 -> 2029/2030 | H5: =+C5 -> 2026/2027 | I5: =+D5 -> 2027/2028 | J5: =+E5 -> 2028/2029 | K5: =+F5 -> 2029/2030 | M5: Permitido | N5: Ingresos
A6: Sistema de Distribucion | B6: $ | C6: =+(Costos!E35) -> 187170394.5 | D6: =+(Costos!F35) -> 222164825.5 | E6: =+(Costos!G35) -> 225308969.3 | F6: =+(Costos!H35) -> 227150613.5 | H6: =+CD!Z10+CD!AE10 -> 209366216.8 | I6: =+CD!AA10+CD!AF10 -> 212544340.1 | J6: =+CD!AB10+CD!AG10 -> 215909032.2 | K6: =+CD!AC10+CD!AH10 -> 219213457.3 | M6: =+SUMPRODUCT(C6:F6,PremisaCosto!$F$84:$I$84) -> 702912037 | N6: =+SUMPRODUCT(H6:K6,PremisaCosto!$F$84:$I$84) -> 702912037 | P6: =+IF(ROUND(M6-N6,0)=0,"OK","Error") -> OK | Q6: =+N6-M6 -> 0 | R6: =IF($R$3=1,0,CD!Z4) -> 0 | S6: =IF($R$3=1,0,CD!AA4) -> 0 | T6: =+R6-S6 -> 0
A7: Conexión | B7: $ | C7: =+Costos!E39 -> 339774.258 | D7: =+Costos!F39 -> 350308.7048 | E7: =+Costos!G39 -> 361154.6597 | F7: =+Costos!H39 -> 372356.8748 | H7: =+CX!Z10+CX!AE10 -> 339774.258 | I7: =+CX!AA10+CX!AF10 -> 350308.7048 | J7: =+CX!AB10+CX!AG10 -> 361154.6597 | K7: =+CX!AC10+CX!AH10 -> 372356.8748 | M7: =+SUMPRODUCT(C7:F7,PremisaCosto!$F$84:$I$84) -> 1165335.429 | N7: =+SUMPRODUCT(H7:K7,PremisaCosto!$F$84:$I$84) -> 1165335.429 | P7: =+IF(ROUND(M7-N7,0)=0,"OK","Error") -> OK | Q7: 0 | R7: =IF($R$3=1,0,CX!Z4) -> 0 | S7: =IF($R$3=1,0,CX!AA4) -> 0 | T7: =+R7-S7 -> 0
A8: Comercializacion Fijo | B8: $ | C8: =+Costos!E41 -> 22902651.14 | D8: =+Costos!F41 -> 23610748.2 | E8: =+Costos!G41 -> 24340930.22 | F8: =+Costos!H41 -> 25093871.3 | H8: =+CCOMF!Z10+CCOMF!AE10 -> 22902651.14 | I8: =+CCOMF!AA10+CCOMF!AF10 -> 23610748.2 | J8: =+CCOMF!AB10+CCOMF!AG10 -> 24340930.22 | K8: =+CCOMF!AC10+CCOMF!AH10 -> 25093871.3 | M8: =+SUMPRODUCT(C8:F8,PremisaCosto!$F$84:$I$84) -> 78542550.64 | N8: =+SUMPRODUCT(H8:K8,PremisaCosto!$F$84:$I$84) -> 78542550.64 | P8: OK | Q8: =+N8-M8 -> 0 | R8: =IF($R$3=1,0,CCOMF!Z4) -> 0 | S8: =IF($R$3=1,0,CCOMF!AA4) -> 0 | T8: =+R8-S8 -> 0
A9: Comercializacion Variable | B9: $ | C9: =+Costos!E42 -> 30890100.4 | D9: =+Costos!F42 -> 36996110.05 | E9: =+Costos!G42 -> 37739936.57 | F9: =+Costos!H42 -> 38465549.47 | H9: =+CCOMV!Z10+CCOMV!AE10 -> 34976219.21 | I9: =+CCOMV!AA10+CCOMV!AF10 -> 35502402.49 | J9: =+CCOMV!AB10+CCOMV!AG10 -> 36059897.32 | K9: =+CCOMV!AC10+CCOMV!AH10 -> 36608350.1 | M9: =+SUMPRODUCT(C9:F9,PremisaCosto!$F$84:$I$84) -> 117406416.3 | N9: =+SUMPRODUCT(H9:K9,PremisaCosto!$F$84:$I$84) -> 117406416.3 | P9: OK | Q9: =+N9-M9 -> 0 | R9: =IF($R$3=1,0,CCOMV!Z4) -> 0 | S9: =IF($R$3=1,0,CCOMV!AA4) -> 0 | T9: =+R9-S9 -> 0
A10: Servicio Alumbrado Publico | B10: $ | C10: =+Costos!E43 -> 5937017.393 | D10: =+Costos!F43 -> 6646230.568 | E10: =+Costos!G43 -> 6781716.4 | F10: =+Costos!H43 -> 6909261.096 | H10: =+CSERAP!Z10+CSERAP!AE10 -> 6393224.844 | I10: =+CSERAP!AA10+CSERAP!AF10 -> 6489615.814 | J10: =+CSERAP!AB10+CSERAP!AG10 -> 6591723.203 | K10: =+CSERAP!AC10+CSERAP!AH10 -> 6692134.239 | M10: =+SUMPRODUCT(C10:F10,PremisaCosto!$F$84:$I$84) -> 21461363.1 | N10: =+SUMPRODUCT(H10:K10,PremisaCosto!$F$84:$I$84) -> 21461363.1 | P10: OK | Q10: =+N10-M10 -> 0 | R10: =IF($R$3=1,0,CSERAP!Z4) -> 0 | S10: =IF($R$3=1,0,CSERAP!AA4) -> 0 | T10: =+R10-S10 -> 0
A11: Consumo Alumbrado Publico | B11: $ | C11: =+Costos!E27 -> 7538911.873 | D11: =+Costos!F27 -> 7572134.335 | E11: =+Costos!G27 -> 7605503.201 | F11: =+Costos!H27 -> 7639019.117 | H11: =+CCONAP!Z10+CCONAP!AE10 -> 7538911.873 | I11: =+CCONAP!AA10+CCONAP!AF10 -> 7652404.907 | J11: =+CCONAP!AB10+CCONAP!AG10 -> 7772644.408 | K11: =+CCONAP!AC10+CCONAP!AH10 -> 7890918.981 | M11: =+SUMPRODUCT(C11:F11,PremisaCosto!$F$84:$I$84) -> 24931457.07 | N11: =+SUMPRODUCT(H11:K11,PremisaCosto!$F$84:$I$84) -> 25306573.45 | P11: =+IF(ROUND(C11-H11,0)=0,"OK","Error") -> OK | Q11: =+H11-C11 -> 0 | T11: =+SUM(T6:T10) -> 0
A12: Generacion Energia | B12: $ | C12: =+Costos!E22+Costos!E23 -> 391455182.7 | D12: =+Costos!F22+Costos!F23 -> 397505813.8 | E12: =+Costos!G22+Costos!G23 -> 403905853.9 | F12: =+Costos!H22+Costos!H23 -> 410207006.3 | H12: =+CENEGEN!AE10+CENEGEN!Z10 -> 391455182.7 | I12: =+CENEGEN!AF10+CENEGEN!AA10 -> 396576675.3 | J12: =+CENEGEN!AG10+CENEGEN!AB10 -> 402048646.4 | K12: =+CENEGEN!AH10+CENEGEN!AC10 -> 407348488.6 | M12: =+SUMPRODUCT(C12:F12,PremisaCosto!$F$84:$I$84) -> 1314745563 | N12: =+SUMPRODUCT(H12:K12,PremisaCosto!$F$84:$I$84) -> 1310503765 | P12: =+IF(ROUND(C12-H12,0)=0,"OK","Error") -> OK | Q12: 0
A13: Perdidas Energia Distribucion | B13: $ | C13: =+Costos!E11+Costos!E12 -> 40664627.28 | D13: =+Costos!F11+Costos!F12 -> 65580199.04 | E13: =+Costos!G11+Costos!G12 -> 66520994.01 | F13: =+Costos!H11+Costos!H12 -> 67445067.61 | H13: =+CPERDE!AY10+CPERDE!AT10 -> 40664627.28 | I13: =+CPERDE!AZ10+CPERDE!AU10 -> 65373191.34 | J13: =+CPERDE!BA10+CPERDE!AV10 -> 66306169.84 | K13: =+CPERDE!BB10+CPERDE!AW10 -> 67222565.9 | M13: =+SUMPRODUCT(C13:F13,PremisaCosto!$F$84:$I$84) -> 193897668.4 | N13: =+SUMPRODUCT(H13:K13,PremisaCosto!$F$84:$I$84) -> 193397262.2 | P13: =+IF(ROUND(C13-H13,0)=0,"OK","Error") -> OK | Q13: 0
A14: Generacion Potencia | B14: $ | C14: =+Costos!E24 -> 185954969.9 | D14: =+Costos!F24 -> 188883553.4 | E14: =+Costos!G24 -> 191976015.8 | F14: =+Costos!H24 -> 195008112.8 | H14: =+CPOTGEN!AE10+CPOTGEN!Z10 -> 185954969.9 | I14: =+CPOTGEN!AF10+CPOTGEN!AA10 -> 188485713.1 | J14: =+CPOTGEN!AG10+CPOTGEN!AB10 -> 191181078.9 | K14: =+CPOTGEN!AH10+CPOTGEN!AC10 -> 193786339.7 | M14: =+SUMPRODUCT(C14:F14,PremisaCosto!$F$84:$I$84) -> 624781520.8 | N14: =+SUMPRODUCT(H14:K14,PremisaCosto!$F$84:$I$84) -> 622967017.1 | P14: =+IF(ROUND(C14-H14,0)=0,"OK","Error") -> OK | Q14: 0
A15: Perdidas Potencia Distribucion | B15: $ | C15: =+Costos!E13 -> 0 | D15: =+Costos!F13 -> 0 | E15: =+Costos!G13 -> 0 | F15: =+Costos!H13 -> 0 | H15: =+CPERDP!AY10+CPERDP!AT10 -> 0 | I15: =+CPERDP!AZ10+CPERDP!AU10 -> 0 | J15: =+CPERDP!BA10+CPERDP!AV10 -> 0 | K15: =+CPERDP!BB10+CPERDP!AW10 -> 0 | M15: =+SUMPRODUCT(C15:F15,PremisaCosto!$F$84:$I$84) -> 0 | N15: =+SUMPRODUCT(H15:K15,PremisaCosto!$F$84:$I$84) -> 0 | P15: =+IF(ROUND(C15-H15,0)=0,"OK","Error") -> OK | Q15: 0
A16: Sistema Transmision | B16: $ | C16: =+Costos!E18 -> 50743922.46 | D16: =+Costos!F18 -> 49001866.03 | E16: =+Costos!G18 -> 49002572.31 | F16: =+Costos!H18 -> 49003362.45 | H16: =+CPT!Z10+CPT!AE10 -> 50743922.46 | I16: =+CPT!AA10+CPT!AF10 -> 51484657.09 | J16: =+CPT!AB10+CPT!AG10 -> 52271572.22 | K16: =+CPT!AC10+CPT!AH10 -> 53050007.01 | M16: =+SUMPRODUCT(C16:F16,PremisaCosto!$F$84:$I$84) -> 162732920.3 | N16: =+SUMPRODUCT(H16:K16,PremisaCosto!$F$84:$I$84) -> 170237291.9 | P16: =+IF(ROUND(C16-H16,0)=0,"OK","Error") -> OK | Q16: 0
A17: Perdida Energia Transmision | B17: $ | C17: =+Costos!E20 -> 10950956.86 | D17: =+Costos!F20 -> 10581012.46 | E17: =+Costos!G20 -> 10581283.49 | F17: =+Costos!H20 -> 10581546.84 | H17: =+CPET!Z10+CPET!AE10 -> 10950956.86 | I17: =+CPET!AA10+CPET!AF10 -> 11115865.89 | J17: =+CPET!AB10+CPET!AG10 -> 11290573.13 | K17: =+CPET!AC10+CPET!AH10 -> 11462415.82 | M17: =+SUMPRODUCT(C17:F17,PremisaCosto!$F$84:$I$84) -> 35133373.13 | N17: =+SUMPRODUCT(H17:K17,PremisaCosto!$F$84:$I$84) -> 36760320.31 | P17: OK | Q17: 0
C19: Costos | H19: Ingresos | M19: VP - IMP sin Pérdidas | P19: Checks
A20: Resumen Económico | B20: u.m. | C20: =+C5 -> 2026/2027 | D20: =+D5 -> 2027/2028 | E20: =+E5 -> 2028/2029 | F20: =+F5 -> 2029/2030 | H20: =+H5 -> 2026/2027 | I20: =+I5 -> 2027/2028 | J20: =+J5 -> 2028/2029 | K20: =+K5 -> 2029/2030 | M20: Permitido | N20: Ingresos
A21: Distribución | B21: $ | C21: =+SUM(C22:C24) -> 247239937.7 | D21: =+SUM(D22:D24) -> 289768223 | E21: =+SUM(E22:E24) -> 294532707.1 | F21: =+SUM(F22:F24) -> 297991652.2 | H21: =+SUM(H22:H24) -> 273978086.3 | I21: =+SUM(I22:I24) -> 278497415.3 | J21: =+SUM(J22:J24) -> 283262737.6 | K21: =+SUM(K22:K24) -> 287980169.8 | M21: =+SUM(M22:M24) -> 921487702.5 | N21: =+SUM(N22:N24) -> 921487702.5 | P21: =+IF(ROUND(M21-N21,0)=0,"OK","Error") -> OK
A22: Sistema de Distribución | B22: $ | C22: =+C6+C7 -> 187510168.8 | D22: =+D6+D7 -> 222515134.2 | E22: =+E6+E7 -> 225670123.9 | F22: =+F6+F7 -> 227522970.4 | H22: =+H6+H7 -> 209705991.1 | I22: =+I6+I7 -> 212894648.8 | J22: =+J6+J7 -> 216270186.9 | K22: =+K6+K7 -> 219585814.2 | M22: =+M6+M7 -> 704077372.4 | N22: =+N6+N7 -> 704077372.4 | P22: =+IF(ROUND(M22-N22,0)=0,"OK","Error") -> OK
A23: Comercialización | B23: $ | C23: =+C8+C9 -> 53792751.54 | D23: =+D8+D9 -> 60606858.26 | E23: =+E8+E9 -> 62080866.79 | F23: =+F8+F9 -> 63559420.77 | H23: =+H8+H9 -> 57878870.35 | I23: =+I8+I9 -> 59113150.69 | J23: =+J8+J9 -> 60400827.54 | K23: =+K8+K9 -> 61702221.41 | M23: =+M8+M9 -> 195948967 | N23: =+N8+N9 -> 195948967 | P23: =+IF(ROUND(M23-N23,0)=0,"OK","Error") -> OK
A24: Alumbrado Público | B24: $ | C24: =+C10 -> 5937017.393 | D24: =+D10 -> 6646230.568 | E24: =+E10 -> 6781716.4 | F24: =+F10 -> 6909261.096 | H24: =+H10 -> 6393224.844 | I24: =+I10 -> 6489615.814 | J24: =+J10 -> 6591723.203 | K24: =+K10 -> 6692134.239 | M24: =+M10 -> 21461363.1 | N24: =+N10 -> 21461363.1 | P24: =+IF(ROUND(M24-N24,0)=0,"OK","Error") -> OK
A25: Transmisión | B25: $ | C25: =+C16+C17 -> 61694879.32 | D25: =+D16+D17 -> 59582878.49 | E25: =+E16+E17 -> 59583855.8 | F25: =+F16+F17 -> 59584909.29 | H25: =+H16+H17 -> 61694879.32 | I25: =+I16+I17 -> 62600522.98 | J25: =+J16+J17 -> 63562145.36 | K25: =+K16+K17 -> 64512422.83
A26: Generación | B26: $ | C26: =+C11+C12+C13+C14+C15 -> 625613691.8 | D26: =+D11+D12+D13+D14+D15 -> 659541700.6 | E26: =+E11+E12+E13+E14+E15 -> 670008366.9 | F26: =+F11+F12+F13+F14+F15 -> 680299205.8 | H26: =+H11+H12+H13+H14+H15 -> 625613691.8 | I26: =+I11+I12+I13+I14+I15 -> 658087984.6 | J26: =+J11+J12+J13+J14+J15 -> 667308539.5 | K26: =+K11+K12+K13+K14+K15 -> 676248313.1
C28: Costos | H28: Ingresos | M28: VP - IMP de Pérdidas | P28: Check
A29: Cierre Pérdidas Permitidas | B29: u.m. | C29: =+PremisaCosto!F89 -> 2026/2027 | D29: =+PremisaCosto!G89 -> 2027/2028 | E29: =+PremisaCosto!H89 -> 2028/2029 | F29: =+PremisaCosto!I89 -> 2029/2030 | H29: =+C29 -> 2026/2027 | I29: =+D29 -> 2027/2028 | J29: =+E29 -> 2028/2029 | K29: =+F29 -> 2029/2030 | M29: Permitido | N29: Ingresos
A30: Pérdidas | B30: $ | C30: =+PremisaCosto!F33 -> 58179372.73 | D30: =+PremisaCosto!G33 -> 64971800.46 | E30: =+PremisaCosto!H33 -> 65976551.49 | F30: =+PremisaCosto!I33 -> 66966676.37 | H30: =+H13+H15 -> 40664627.28 | I30: =+I13+I15 -> 65373191.34 | J30: =+J13+J15 -> 66306169.84 | K30: =+K13+K15 -> 67222565.9 | M30: =+SUMPRODUCT(C30:F30,PremisaCosto!$F$84:$I$84) -> 209282574.8 | N30: =+SUMPRODUCT(H30:K30,PremisaCosto!$F$84:$I$84) -> 193397262.2 | P30: =+IF(ROUND(M30-N30,)=0,"OK",IF(P32=1,"Abtsmo Proy", "Error")) -> Abtsmo Proy
P32: 1

Sheet Pliegos
A1: Pliegos Tarifarios: Vigente vs Nuevo
B3: Componente | C3: =+[1]PliegoVig!C5 -> Ene-Jun/2026 | D3: Nuevo | E3: Diff
A4: =+[1]PliegoVig!A5 -> BTS (0-300)
A5: =+[1]PliegoVig!A6 -> Comercialización | C5: =+[1]PliegoVig!C6 -> 0
A6: =+[1]PliegoVig!A7 -> - Fijo (Primeros 10 kWh) | B6: =+[1]PliegoVig!B7 -> BTS1CCCOF | C6: =+[1]PliegoVig!C7 -> 3.16 | D6: =+SUMIF($F$472:$F$1925,B6,$G$472:$G$1925) -> 3.16 | E6: =+IF(C6=0,"",D6/C6-1) -> 0
A7: =+[1]PliegoVig!A8 -> - Energía (Siguientes kWh) | B7: =+[1]PliegoVig!B8 -> BTS1EtCCOV | C7: =+[1]PliegoVig!C8 -> 0.00871 | D7: 0.007826525102 | E7: =+IF(C7=0,"",D7/C7-1) -> -0.10143225 | G7: =+SUM(C7:C10,C14:C16,C17:C18,C21:C22) -> 0.1543 | H7: =+SUM(D7:D10,D14:D16,D17:D18,D21:D22) -> 0.1451792259 | I7: =+H7/G7-1 -> -0.05911065508
A8: =+[1]PliegoVig!A9 -> Distribución | B8: =+[1]PliegoVig!B9 ->  | C8: =+[1]PliegoVig!C9 -> 0 | D8: 0
A9: =+[1]PliegoVig!A10 -> - Energía | B9: =+[1]PliegoVig!B10 -> BTS1EtCD | C9: =+[1]PliegoVig!C10 -> 0.04907 | D9: 0.04393882521 | E9: -0.1045684693
A10: =+[1]PliegoVig!A11 -> - Pérdidas Energía | B10: =+[1]PliegoVig!B11 -> BTS1EtCPEP | C10: =+[1]PliegoVig!C11 -> 0.00936 | D10: 0.008892492759 | E10: -0.04994735479
A11: =+[1]PliegoVig!A12 -> - Pérdidas Potencia | B11: =+[1]PliegoVig!B12 -> BTS1EtCPP | C11: =+[1]PliegoVig!C12 -> 0 | D11: 0
A12: =+[1]PliegoVig!A13 -> - Cargos por Conexión | B12: =+[1]PliegoVig!B13 -> BTS1CxCX | C12: =+[1]PliegoVig!C13 -> 16.66 | D12: 16.66 | E12: -1.443289932e-15
A13: =+[1]PliegoVig!A14 -> Alumbrado Público | B13: =+[1]PliegoVig!B14 ->  | C13: =+[1]PliegoVig!C14 -> 0 | D13: 0
A14: =+[1]PliegoVig!A15 -> - Sistema | B14: =+[1]PliegoVig!B15 -> BTS1EtCSAP | C14: =+[1]PliegoVig!C15 -> 0.00142 | D14: 0.00141340173 | E14: -0.004646669145
A15: =+[1]PliegoVig!A16 -> - Consumo de energía | B15: =+[1]PliegoVig!B16 -> BTS1EtCCAP | C15: =+[1]PliegoVig!C16 -> 0.00212 | D15: 0.001680669331 | E15: -0.2072314479
A16: =+[1]PliegoVig!A17 -> Transmisión | B16: =+[1]PliegoVig!B17 ->  | C16: =+[1]PliegoVig!C17 -> 0 | D16: 0
A17: =+[1]PliegoVig!A18 -> - Energía | B17: =+[1]PliegoVig!B18 -> BTS1EtCUCOST | C17: =+[1]PliegoVig!C18 -> 0.01116 | D17: 0.01312211017 | E17: 0.1758163238
A18: =+[1]PliegoVig!A19 -> - Pérdidas de Energía en Transmisión | B18: =+[1]PliegoVig!B19 -> BTS1EtCPST | C18: =+[1]PliegoVig!C19 -> 0.00283 | D18: 0.002437275354 | E18: -0.1387719598
A19: =+[1]PliegoVig!A20 -> - Capacidad Transmision costo pérdidas | C19: =+[1]PliegoVig!C20 -> 0 | D19: 0
A20: =+[1]PliegoVig!A21 -> Generación | B20: =+[1]PliegoVig!B21 ->  | C20: =+[1]PliegoVig!C21 -> 0 | D20: 0
A21: =+[1]PliegoVig!A22 -> - Energía | B21: =+[1]PliegoVig!B22 -> BTS1EtCEGP | C21: =+[1]PliegoVig!C22 -> 0.05021324146 | D21: 0.04635649374 | E21: -0.07680738397
A22: =+[1]PliegoVig!A23 -> - Potencia Energizada | B22: =+[1]PliegoVig!B23 -> BTS1EtCPG | C22: =+[1]PliegoVig!C23 -> 0.01941675854 | D22: 0.01951143251 | E22: 0.00487588988
A23: =+[1]PliegoVig!A24 -> BTS (301-750) | B23: =+[1]PliegoVig!B24 -> 
A24: =+[1]PliegoVig!A25 -> Comercialización | B24: =+[1]PliegoVig!B25 -> 0 | C24: =+[1]PliegoVig!C25 -> 0 | D24: =+SUMIF($F$472:$F$1925,B24,$G$472:$G$1925) -> 0
A25: =+[1]PliegoVig!A26 -> - Fijo (Primeros 10 kWh) | B25: =+[1]PliegoVig!B26 -> BTS2CCCOF | C25: =+[1]PliegoVig!C26 -> 3.16 | D25: 3.16 | E25: 0
A26: =+[1]PliegoVig!A27 -> - Energía (Siguientes kWh) | B26: =+[1]PliegoVig!B27 -> BTS2EtCCOV | C26: =+[1]PliegoVig!C27 -> 0.00871 | D26: 0.007826525102 | E26: -0.10143225
A27: =+[1]PliegoVig!A28 -> Distribución | B27: =+[1]PliegoVig!B28 ->  | C27: =+[1]PliegoVig!C28 -> 0 | D27: 0
A28: =+[1]PliegoVig!A29 -> - Energía | B28: =+[1]PliegoVig!B29 -> BTS2EtCD | C28: =+[1]PliegoVig!C29 -> 0.04907 | D28: 0.04393882521 | E28: -0.1045684693
A29: =+[1]PliegoVig!A30 -> - Pérdidas Energía | B29: =+[1]PliegoVig!B30 -> BTS2EtCPEP | C29: =+[1]PliegoVig!C30 -> 0.00936 | D29: 0.008892492759 | E29: -0.04994735479
A30: =+[1]PliegoVig!A31 -> - Pérdidas Potencia | B30: =+[1]PliegoVig!B31 -> BTS2EtCPP | C30: =+[1]PliegoVig!C31 -> 0 | D30: 0
A31: =+[1]PliegoVig!A32 -> - Cargos por Conexión | B31: =+[1]PliegoVig!B32 -> BTS2CxCX | C31: =+[1]PliegoVig!C32 -> 16.66 | D31: 16.66 | E31: -1.443289932e-15
A32: =+[1]PliegoVig!A33 -> Alumbrado Público | B32: =+[1]PliegoVig!B33 ->  | C32: =+[1]PliegoVig!C33 -> 0 | D32: 0
A33: =+[1]PliegoVig!A34 -> - Sistema | B33: =+[1]PliegoVig!B34 -> BTS2EtCSAP | C33: =+[1]PliegoVig!C34 -> 0.00142 | D33: 0.00141340173 | E33: -0.004646669145
A34: =+[1]PliegoVig!A35 -> - Consumo de energía | B34: =+[1]PliegoVig!B35 -> BTS2EtCCAP | C34: =+[1]PliegoVig!C35 -> 0.00212 | D34: 0.001680669331 | E34: -0.2072314479
A35: =+[1]PliegoVig!A36 -> Transmisión | B35: =+[1]PliegoVig!B36 ->  | C35: =+[1]PliegoVig!C36 -> 0 | D35: 0
A36: =+[1]PliegoVig!A37 -> - Energía | B36: =+[1]PliegoVig!B37 -> BTS2EtCUCOST | C36: =+[1]PliegoVig!C37 -> 0.01116 | D36: 0.01312211017 | E36: 0.1758163238
A37: =+[1]PliegoVig!A38 -> - Pérdidas de Energía en Transmisión | B37: =+[1]PliegoVig!B38 -> BTS2EtCPST | C37: =+[1]PliegoVig!C38 -> 0.00283 | D37: 0.002437275354 | E37: -0.1387719598
A38: =+[1]PliegoVig!A39 -> Generación | B38: =+[1]PliegoVig!B39 ->  | C38: =+[1]PliegoVig!C39 -> 0 | D38: 0
A39: =+[1]PliegoVig!A40 -> - Energía | B39: =+[1]PliegoVig!B40 -> BTS2EtCEGP | C39: =+[1]PliegoVig!C40 -> 0.09965485908 | D39: 0.09200063005 | E39: -0.07680738397
A40: =+[1]PliegoVig!A41 -> - Potencia Energizada | B40: =+[1]PliegoVig!B41 -> BTS2EtCPG | C40: =+[1]PliegoVig!C41 -> 0.03853514092 | D40: 0.03872303403 | E40: 0.00487588988
A41: =+[1]PliegoVig!A42 -> BTS (750-más) | B41: =+[1]PliegoVig!B42 -> 
A42: =+[1]PliegoVig!A43 -> Comercialización | B42: =+[1]PliegoVig!B43 -> 0 | C42: =+[1]PliegoVig!C43 -> 0 | D42: =+SUMIF($F$472:$F$1925,B42,$G$472:$G$1925) -> 0
A43: =+[1]PliegoVig!A44 -> - Fijo (Primeros 10 kWh) | B43: =+[1]PliegoVig!B44 -> BTS3CCCOF | C43: =+[1]PliegoVig!C44 -> 3.16 | D43: 3.16 | E43: 0
A44: =+[1]PliegoVig!A45 -> - Energía (Siguientes kWh) | B44: =+[1]PliegoVig!B45 -> BTS3EtCCOV | C44: =+[1]PliegoVig!C45 -> 0.00871 | D44: 0.007826525102 | E44: -0.10143225
A45: =+[1]PliegoVig!A46 -> Distribución | B45: =+[1]PliegoVig!B46 ->  | C45: =+[1]PliegoVig!C46 -> 0 | D45: 0
A46: =+[1]PliegoVig!A47 -> - Energía | B46: =+[1]PliegoVig!B47 -> BTS3EtCD | C46: =+[1]PliegoVig!C47 -> 0.04907 | D46: 0.04393882521 | E46: -0.1045684693
A47: =+[1]PliegoVig!A48 -> - Pérdidas Energía | B47: =+[1]PliegoVig!B48 -> BTS3EtCPEP | C47: =+[1]PliegoVig!C48 -> 0.00936 | D47: 0.008892492759 | E47: -0.04994735479
A48: =+[1]PliegoVig!A49 -> - Pérdidas Potencia | B48: =+[1]PliegoVig!B49 -> BTS3EtCPP | C48: =+[1]PliegoVig!C49 -> 0 | D48: 0
A49: =+[1]PliegoVig!A50 -> - Cargos por Conexión | B49: =+[1]PliegoVig!B50 -> BTS3CxCX | C49: =+[1]PliegoVig!C50 -> 16.66 | D49: 16.66 | E49: -1.443289932e-15
A50: =+[1]PliegoVig!A51 -> Alumbrado Público | B50: =+[1]PliegoVig!B51 ->  | C50: =+[1]PliegoVig!C51 -> 0 | D50: 0
A51: =+[1]PliegoVig!A52 -> - Sistema | B51: =+[1]PliegoVig!B52 -> BTS3EtCSAP | C51: =+[1]PliegoVig!C52 -> 0.00142 | D51: 0.00141340173 | E51: -0.004646669145
A52: =+[1]PliegoVig!A53 -> - Consumo de energía | B52: =+[1]PliegoVig!B53 -> BTS3EtCCAP | C52: =+[1]PliegoVig!C53 -> 0.00212 | D52: 0.001680669331 | E52: -0.2072314479
A53: =+[1]PliegoVig!A54 -> Transmisión | B53: =+[1]PliegoVig!B54 ->  | C53: =+[1]PliegoVig!C54 -> 0 | D53: 0
A54: =+[1]PliegoVig!A55 -> - Energía | B54: =+[1]PliegoVig!B55 -> BTS3EtCUCOST | C54: =+[1]PliegoVig!C55 -> 0.01116 | D54: 0.01312211017 | E54: 0.1758163238
A55: =+[1]PliegoVig!A56 -> - Pérdidas de Energía en Transmisión | B55: =+[1]PliegoVig!B56 -> BTS3EtCPST | C55: =+[1]PliegoVig!C56 -> 0.00283 | D55: 0.002437275354 | E55: -0.1387719598
A56: =+[1]PliegoVig!A57 -> Generación | B56: =+[1]PliegoVig!B57 ->  | C56: =+[1]PliegoVig!C57 -> 0 | D56: 0
A57: =+[1]PliegoVig!A58 -> - Energía | B57: =+[1]PliegoVig!B58 -> BTS3EtCEGP | C57: =+[1]PliegoVig!C58 -> 0.1782955884 | D57: 0.1646011707 | E57: -0.07680738397
A58: =+[1]PliegoVig!A59 -> - Potencia Energizada | B58: =+[1]PliegoVig!B59 -> BTS3EtCPG | C58: =+[1]PliegoVig!C59 -> 0.06894441162 | D58: 0.06928057698 | E58: 0.00487588988
A59: =+[1]PliegoVig!A60 -> BTD (0-10,000) | B59: =+[1]PliegoVig!B60 -> 
A60: =+[1]PliegoVig!A61 -> Comercialización | B60: =+[1]PliegoVig!B61 ->  | C60: =+[1]PliegoVig!C61 -> 0 | D60: =+SUMIF($F$472:$F$1925,B60,$G$472:$G$1925) -> 0
A61: =+[1]PliegoVig!A62 -> - Fijo | B61: =+[1]PliegoVig!B62 -> BTD1CCCOF | C61: =+[1]PliegoVig!C62 -> 5.66 | D61: 5.66 | E61: 0
A62: =+[1]PliegoVig!A63 -> - Energía | B62: =+[1]PliegoVig!B63 -> BTD1EtCCOV | C62: =+[1]PliegoVig!C63 -> 0.00812 | D62: 0.007298645417 | E62: -0.1011520423
A63: =+[1]PliegoVig!A64 -> Distribución | B63: =+[1]PliegoVig!B64 ->  | C63: =+[1]PliegoVig!C64 -> 0 | D63: 0
A64: =+[1]PliegoVig!A65 -> - Demanda Máxima | B64: =+[1]PliegoVig!B65 -> BTD1PpCD | C64: =+[1]PliegoVig!C65 -> 16.02 | D64: 14.35536879 | E64: -0.1039095637
A65: =+[1]PliegoVig!A66 -> - Pérdidas Energía en Distribución | B65: =+[1]PliegoVig!B66 -> BTD1EtCPEP | C65: =+[1]PliegoVig!C66 -> 0.00811 | D65: 0.007941813739 | E65: -0.02073813332
A66: =+[1]PliegoVig!A67 -> - Pérdidas Potencia en Distribución | B66: BTD1PpCPEP | C66: =+[1]PliegoVig!C67 -> 0.25 | D66: 0.1921679215 | E66: -0.2313283139
A67: =+[1]PliegoVig!A68 -> - Cargos por Conexión | B67: =+[1]PliegoVig!B68 -> BTD1CxCX | C67: =+[1]PliegoVig!C68 -> 71.69 | D67: 71.69 | E67: -1.33226763e-15
A68: =+[1]PliegoVig!A69 -> Alumbrado Público | B68: =+[1]PliegoVig!B69 ->  | C68: =+[1]PliegoVig!C69 -> 0 | D68: 0
A69: =+[1]PliegoVig!A70 -> - Sistema | B69: =+[1]PliegoVig!B70 -> BTD1EtCSAP | C69: =+[1]PliegoVig!C70 -> 0.00134 | D69: 0.001347666049 | E69: 0.005720931752
A70: =+[1]PliegoVig!A71 -> - Consumo de energía | B70: =+[1]PliegoVig!B71 -> BTD1EtCCAP | C70: =+[1]PliegoVig!C71 -> 0.00199 | D70: 0.001578077347 | E70: -0.206996308
A71: =+[1]PliegoVig!A72 -> Transmisión | B71: =+[1]PliegoVig!B72 ->  | C71: =+[1]PliegoVig!C72 -> 0 | D71: 0 | E71: =+IF(C71=0,"",D71/C71-1) -> 
A72: =+[1]PliegoVig!A73 -> - Demanda Máxima | B72: =+[1]PliegoVig!B73 -> BTD1PpCUCOST | C72: =+[1]PliegoVig!C73 -> 1.09 | D72: 1.274818163 | E72: 0.1695579474
A73: =+[1]PliegoVig!A74 -> - Energía | B73: =+[1]PliegoVig!B74 -> BTD1EtCUCOST | C73: =+[1]PliegoVig!C74 -> 0.00377 | D73: 0.004581305005 | E73: 0.2152002666
A74: =+[1]PliegoVig!A75 -> - Pérdidas de Energía en Transmisión | B74: =+[1]PliegoVig!B75 -> BTD1EtCPST | C74: =+[1]PliegoVig!C75 -> 0.00264 | D74: 0.002295488042 | E74: -0.1304969536
A75: =+[1]PliegoVig!A76 -> - Capacidad Transmision costo pérdidas | B75: =+[1]PliegoVig!B76 -> BTD1PpCPST | C75: =+[1]PliegoVig!C76 -> 0 | D75: 0
A76: =+[1]PliegoVig!A77 -> Generación | B76: =+[1]PliegoVig!B77 ->  | C76: =+[1]PliegoVig!C77 -> 0 | D76: 0
A77: =+[1]PliegoVig!A78 -> - Demanda Máxima | B77: =+[1]PliegoVig!B78 -> BTD1PpCPG | C77: =+[1]PliegoVig!C78 -> 1.07 | D77: 1.817221821 | E77: 0.6983381509
A78: =+[1]PliegoVig!A79 -> - Energía | B78: =+[1]PliegoVig!B79 -> BTD1EtCEGP | C78: =+[1]PliegoVig!C79 -> 0.09369 | D78: 0.07863572117 | E78: -0.1606818106
A79: =+[1]PliegoVig!A80 -> - Potencia Energizada | B79: =+[1]PliegoVig!B80 -> BTD1EtCPG | C79: =+[1]PliegoVig!C80 -> 0.01975 | D79: 0.03545802896 | E79: 0.7953432387
A80: =+[1]PliegoVig!A81 -> BTD (10,001-30,000) | B80: =+[1]PliegoVig!B81 -> 
A81: =+[1]PliegoVig!A82 -> Comercialización | B81: =+[1]PliegoVig!B82 ->  | C81: =+[1]PliegoVig!C82 -> 0 | D81: =+SUMIF($F$472:$F$1925,B81,$G$472:$G$1925) -> 0
A82: =+[1]PliegoVig!A83 -> - Fijo | B82: =+[1]PliegoVig!B83 -> BTD2CCCOF | C82: =+[1]PliegoVig!C83 -> 5.66 | D82: 5.66 | E82: 0
A83: =+[1]PliegoVig!A84 -> - Energía | B83: =+[1]PliegoVig!B84 -> BTD2EtCCOV | C83: =+[1]PliegoVig!C84 -> 0.00812 | D83: 0.007298645417 | E83: -0.1011520423
A84: =+[1]PliegoVig!A85 -> Distribución | B84: =+[1]PliegoVig!B85 ->  | C84: =+[1]PliegoVig!C85 -> 0 | D84: 0
A85: =+[1]PliegoVig!A86 -> - Demanda Máxima | B85: =+[1]PliegoVig!B86 -> BTD2PpCD | C85: =+[1]PliegoVig!C86 -> 16.02 | D85: 14.35536879 | E85: -0.1039095637
A86: =+[1]PliegoVig!A87 -> - Pérdidas Energía en Distribución | B86: =+[1]PliegoVig!B87 -> BTD2EtCPEP | C86: =+[1]PliegoVig!C87 -> 0.00811 | D86: 0.007941813739 | E86: -0.02073813332
A87: =+[1]PliegoVig!A88 -> - Pérdidas Potencia en Distribución | B87: BTD2PpCPEP | C87: =+[1]PliegoVig!C88 -> 0.25 | D87: 0.1921679215 | E87: -0.2313283139
A88: =+[1]PliegoVig!A89 -> - Cargos por Conexión | B88: =+[1]PliegoVig!B89 -> BTD2CxCX | C88: =+[1]PliegoVig!C89 -> 71.69 | D88: 71.69 | E88: -1.33226763e-15
A89: =+[1]PliegoVig!A90 -> Alumbrado Público | B89: =+[1]PliegoVig!B90 ->  | C89: =+[1]PliegoVig!C90 -> 0 | D89: 0
A90: =+[1]PliegoVig!A91 -> - Sistema | B90: =+[1]PliegoVig!B91 -> BTD2EtCSAP | C90: =+[1]PliegoVig!C91 -> 0.00134 | D90: 0.001347666049 | E90: 0.005720931752
A91: =+[1]PliegoVig!A92 -> - Consumo de energía | B91: =+[1]PliegoVig!B92 -> BTD2EtCCAP | C91: =+[1]PliegoVig!C92 -> 0.00199 | D91: 0.001578077347 | E91: -0.206996308
A92: =+[1]PliegoVig!A93 -> Transmisión | B92: =+[1]PliegoVig!B93 ->  | C92: =+[1]PliegoVig!C93 -> 0 | D92: 0
A93: =+[1]PliegoVig!A94 -> - Demanda Máxima | B93: =+[1]PliegoVig!B94 -> BTD2PpCUCOST | C93: =+[1]PliegoVig!C94 -> 1.09 | D93: 1.274818163 | E93: 0.1695579474
A94: =+[1]PliegoVig!A95 -> - Energía | B94: =+[1]PliegoVig!B95 -> BTD2EtCUCOST | C94: =+[1]PliegoVig!C95 -> 0.00377 | D94: 0.004581305005 | E94: 0.2152002666
A95: =+[1]PliegoVig!A96 -> - Pérdidas de Energía en Transmisión | B95: =+[1]PliegoVig!B96 -> BTD2EtCPST | C95: =+[1]PliegoVig!C96 -> 0.00264 | D95: 0.002295488042 | E95: -0.1304969536
A96: =+[1]PliegoVig!A97 -> Generación | B96: =+[1]PliegoVig!B97 ->  | C96: =+[1]PliegoVig!C97 -> 0 | D96: 0
A97: =+[1]PliegoVig!A98 -> - Demanda Máxima | B97: =+[1]PliegoVig!B98 -> BTD2PpCPG | C97: =+[1]PliegoVig!C98 -> 1.07 | D97: 1.817221821 | E97: 0.6983381509
A98: =+[1]PliegoVig!A99 -> - Energía | B98: =+[1]PliegoVig!B99 -> BTD2EtCEGP | C98: =+[1]PliegoVig!C99 -> 0.09869 | D98: 0.08283231211 | E98: -0.1606818106
A99: =+[1]PliegoVig!A100 -> - Potencia Energizada | B99: =+[1]PliegoVig!B100 -> BTD2EtCPG | C99: =+[1]PliegoVig!C100 -> 0.02082 | D99: 0.03737904623 | E99: 0.7953432387
A100: =+[1]PliegoVig!A101 -> BTD (30,001-50,000) | B100: =+[1]PliegoVig!B101 -> 
A101: =+[1]PliegoVig!A102 -> Comercialización | B101: =+[1]PliegoVig!B102 ->  | C101: =+[1]PliegoVig!C102 -> 0 | D101: =+SUMIF($F$472:$F$1925,B101,$G$472:$G$1925) -> 0
A102: =+[1]PliegoVig!A103 -> - Fijo | B102: =+[1]PliegoVig!B103 -> BTD3CCCOF | C102: =+[1]PliegoVig!C103 -> 5.66 | D102: 5.66 | E102: 0
A103: =+[1]PliegoVig!A104 -> - Energía | B103: =+[1]PliegoVig!B104 -> BTD3EtCCOV | C103: =+[1]PliegoVig!C104 -> 0.00812 | D103: 0.007298645417 | E103: -0.1011520423
A104: =+[1]PliegoVig!A105 -> Distribución | B104: =+[1]PliegoVig!B105 ->  | C104: =+[1]PliegoVig!C105 -> 0 | D104: 0
A105: =+[1]PliegoVig!A106 -> - Demanda Máxima | B105: =+[1]PliegoVig!B106 -> BTD3PpCD | C105: =+[1]PliegoVig!C106 -> 16.02 | D105: 14.35536879 | E105: -0.1039095637
A106: =+[1]PliegoVig!A107 -> - Pérdidas Energía en Distribución | B106: =+[1]PliegoVig!B107 -> BTD3EtCPEP | C106: =+[1]PliegoVig!C107 -> 0.00811 | D106: 0.007941813739 | E106: -0.02073813332
A107: =+[1]PliegoVig!A108 -> - Pérdidas Potencia en Distribución | B107: BTD3PpCPEP | C107: =+[1]PliegoVig!C108 -> 0.25 | D107: 0.1921679215 | E107: -0.2313283139
A108: =+[1]PliegoVig!A109 -> - Cargos por Conexión | B108: =+[1]PliegoVig!B109 -> BTD3CxCX | C108: =+[1]PliegoVig!C109 -> 71.69 | D108: 71.69 | E108: -1.33226763e-15
A109: =+[1]PliegoVig!A110 -> Alumbrado Público | B109: =+[1]PliegoVig!B110 ->  | C109: =+[1]PliegoVig!C110 -> 0 | D109: 0
A110: =+[1]PliegoVig!A111 -> - Sistema | B110: =+[1]PliegoVig!B111 -> BTD3EtCSAP | C110: =+[1]PliegoVig!C111 -> 0.00134 | D110: 0.001347666049 | E110: 0.005720931752
A111: =+[1]PliegoVig!A112 -> - Consumo de energía | B111: =+[1]PliegoVig!B112 -> BTD3EtCCAP | C111: =+[1]PliegoVig!C112 -> 0.00199 | D111: 0.001578077347 | E111: -0.206996308
A112: =+[1]PliegoVig!A113 -> Transmisión | B112: =+[1]PliegoVig!B113 ->  | C112: =+[1]PliegoVig!C113 -> 0 | D112: 0
A113: =+[1]PliegoVig!A114 -> - Demanda Máxima | B113: =+[1]PliegoVig!B114 -> BTD3PpCUCOST | C113: =+[1]PliegoVig!C114 -> 1.09 | D113: 1.274818163 | E113: 0.1695579474
A114: =+[1]PliegoVig!A115 -> - Energía | B114: =+[1]PliegoVig!B115 -> BTD3EtCUCOST | C114: =+[1]PliegoVig!C115 -> 0.00377 | D114: 0.004581305005 | E114: 0.2152002666
A115: =+[1]PliegoVig!A116 -> - Pérdidas de Energía en Transmisión | B115: =+[1]PliegoVig!B116 -> BTD3EtCPST | C115: =+[1]PliegoVig!C116 -> 0.00264 | D115: 0.002295488042 | E115: -0.1304969536
A116: =+[1]PliegoVig!A117 -> Generación | B116: =+[1]PliegoVig!B117 ->  | C116: =+[1]PliegoVig!C117 -> 0 | D116: 0
A117: =+[1]PliegoVig!A118 -> - Demanda Máxima | B117: =+[1]PliegoVig!B118 -> BTD3PpCPG | C117: =+[1]PliegoVig!C118 -> 1.07 | D117: 1.817221821 | E117: 0.6983381509
A118: =+[1]PliegoVig!A119 -> - Energía | B118: =+[1]PliegoVig!B119 -> BTD3EtCEGP | C118: =+[1]PliegoVig!C119 -> 0.10844 | D118: 0.09101566446 | E118: -0.1606818106
A119: =+[1]PliegoVig!A120 -> - Potencia Energizada | B119: =+[1]PliegoVig!B120 -> BTD3EtCPG | C119: =+[1]PliegoVig!C120 -> 0.02286 | D119: 0.04104154644 | E119: 0.7953432387
A120: =+[1]PliegoVig!A121 -> BTD (50,001-más) | B120: =+[1]PliegoVig!B121 -> 
A121: =+[1]PliegoVig!A122 -> Comercialización | B121: =+[1]PliegoVig!B122 ->  | C121: =+[1]PliegoVig!C122 -> 0 | D121: =+SUMIF($F$472:$F$1925,B121,$G$472:$G$1925) -> 0
A122: =+[1]PliegoVig!A123 -> - Fijo | B122: =+[1]PliegoVig!B123 -> BTD4CCCOF | C122: =+[1]PliegoVig!C123 -> 5.66 | D122: 5.66 | E122: 0
A123: =+[1]PliegoVig!A124 -> - Energía | B123: =+[1]PliegoVig!B124 -> BTD4EtCCOV | C123: =+[1]PliegoVig!C124 -> 0.00812 | D123: 0.007298645417 | E123: -0.1011520423
A124: =+[1]PliegoVig!A125 -> Distribución | B124: =+[1]PliegoVig!B125 ->  | C124: =+[1]PliegoVig!C125 -> 0 | D124: 0
A125: =+[1]PliegoVig!A126 -> - Demanda Máxima | B125: =+[1]PliegoVig!B126 -> BTD4PpCD | C125: =+[1]PliegoVig!C126 -> 16.02 | D125: 14.35536879 | E125: -0.1039095637
A126: =+[1]PliegoVig!A127 -> - Pérdidas Energía en Distribución | B126: =+[1]PliegoVig!B127 -> BTD4EtCPEP | C126: =+[1]PliegoVig!C127 -> 0.00811 | D126: 0.007941813739 | E126: -0.02073813332
A127: =+[1]PliegoVig!A128 -> - Pérdidas Potencia en Distribución | B127: BTD4PpCPEP | C127: =+[1]PliegoVig!C128 -> 0.25 | D127: 0.1921679215 | E127: -0.2313283139
A128: =+[1]PliegoVig!A129 -> - Cargos por Conexión | B128: =+[1]PliegoVig!B129 -> BTD4CxCX | C128: =+[1]PliegoVig!C129 -> 71.69 | D128: 71.69 | E128: -1.33226763e-15
A129: =+[1]PliegoVig!A130 -> Alumbrado Público | B129: =+[1]PliegoVig!B130 ->  | C129: =+[1]PliegoVig!C130 -> 0 | D129: 0
A130: =+[1]PliegoVig!A131 -> - Sistema | B130: =+[1]PliegoVig!B131 -> BTD4EtCSAP | C130: =+[1]PliegoVig!C131 -> 0.00134 | D130: 0.001347666049 | E130: 0.005720931752
A131: =+[1]PliegoVig!A132 -> - Consumo de energía | B131: =+[1]PliegoVig!B132 -> BTD4EtCCAP | C131: =+[1]PliegoVig!C132 -> 0.00199 | D131: 0.001578077347 | E131: -0.206996308
A132: =+[1]PliegoVig!A133 -> Transmisión | B132: =+[1]PliegoVig!B133 ->  | C132: =+[1]PliegoVig!C133 -> 0 | D132: 0
A133: =+[1]PliegoVig!A134 -> - Demanda Máxima | B133: =+[1]PliegoVig!B134 -> BTD4PpCUCOST | C133: =+[1]PliegoVig!C134 -> 1.09 | D133: 1.274818163 | E133: 0.1695579474
A134: =+[1]PliegoVig!A135 -> - Energía | B134: =+[1]PliegoVig!B135 -> BTD4EtCUCOST | C134: =+[1]PliegoVig!C135 -> 0.00377 | D134: 0.004581305005 | E134: 0.2152002666
A135: =+[1]PliegoVig!A136 -> - Pérdidas de Energía en Transmisión | B135: =+[1]PliegoVig!B136 -> BTD4EtCPST | C135: =+[1]PliegoVig!C136 -> 0.00264 | D135: 0.002295488042 | E135: =+IF(C135=0,"",D135/C135-1) -> -0.1304969536
A136: =+[1]PliegoVig!A137 -> Generación | B136: =+[1]PliegoVig!B137 ->  | C136: =+[1]PliegoVig!C137 -> 0 | D136: 0
A137: =+[1]PliegoVig!A138 -> - Demanda Máxima | B137: =+[1]PliegoVig!B138 -> BTD4PpCPG | C137: =+[1]PliegoVig!C138 -> 1.07 | D137: 1.817221821 | E137: 0.6983381509
A138: =+[1]PliegoVig!A139 -> - Energía | B138: =+[1]PliegoVig!B139 -> BTD4EtCEGP | C138: =+[1]PliegoVig!C139 -> 0.11798 | D138: 0.09902275999 | E138: -0.1606818106
A139: =+[1]PliegoVig!A140 -> - Potencia Energizada | B139: =+[1]PliegoVig!B140 -> BTD4EtCPG | C139: =+[1]PliegoVig!C140 -> 0.02489 | D139: 0.04468609321 | E139: 0.7953432387
A140: =+[1]PliegoVig!A141 -> BTH | B140: =+[1]PliegoVig!B141 -> 
A141: =+[1]PliegoVig!A142 -> Comercialización | B141: =+[1]PliegoVig!B142 ->  | C141: =+[1]PliegoVig!C142 -> 0 | D141: =+SUMIF($F$472:$F$1925,B141,$G$472:$G$1925) -> 0
A142: =+[1]PliegoVig!A143 -> - Fijo | B142: =+[1]PliegoVig!B143 -> BTH1CCCOF | C142: =+[1]PliegoVig!C143 -> 5.67 | D142: 5.67 | E142: -1.110223025e-16
A143: =+[1]PliegoVig!A144 -> - Energía | B143: =+[1]PliegoVig!B144 -> BTH1EtCCOV | C143: =+[1]PliegoVig!C144 -> 0.00811 | D143: 0.007289197563 | E143: -0.1012086852
A144: =+[1]PliegoVig!A145 -> Distribución | B144: =+[1]PliegoVig!B145 ->  | C144: =+[1]PliegoVig!C145 -> 0 | D144: 0
A145: =+[1]PliegoVig!A146 -> - Demanda Máxima en Punta | B145: =+[1]PliegoVig!B146 -> BTH1PpCD | C145: =+[1]PliegoVig!C146 -> 16.59 | D145: 15.00856875 | E145: -0.09532436714
A146: - Demanda Máxima Fuera de Punta Medio | B146: BTH1PfpmCD | C146: =+C147 -> 2.29 | D146: 2.071707199 | E146: -0.09532436714
A147: =+[1]PliegoVig!A147 -> - Demanda Máxima Fuera de Punta | B147: =+[1]PliegoVig!B147 -> BTH1PfpCD | C147: =+[1]PliegoVig!C147 -> 2.29 | D147: 2.071707199 | E147: -0.09532436714
A148: =+[1]PliegoVig!A148 -> - Pérdidas Energía en Distribución en Punta | B148: =+[1]PliegoVig!B148 -> BTH1EpCPEP | C148: =+[1]PliegoVig!C148 -> 0.01054 | D148: 0.01026586419 | E148: -0.02600909051
A149: - Pérdidas Energía en Distribución Fuera de Punta Medio | B149: BTH1EfpmCPEFP | C149: =+C150 -> 0.00725 | D149: 0.007061434094 | E149: -0.02600909051
A150: =+[1]PliegoVig!A149 -> - Pérdidas Energía en Distribución Fuera de Punta | B150: =+[1]PliegoVig!B149 -> BTH1EfpCPEFP | C150: =+[1]PliegoVig!C149 -> 0.00725 | D150: 0.007061434094 | E150: -0.02600909051
A151: =+[1]PliegoVig!A150 -> - Pérdidas Potencia en Distribución Punta | B151: BTH1PpCPEP | C151: =+[1]PliegoVig!C150 -> 0.29 | D151: 0.2366024443 | E151: -0.1841295025
A152: - Pérdidas Potencia en Distribución Fuera de Punta Medio | B152: BTH1PfpCPEFP | C152: =+[1]PliegoVig!C151 -> 0.02 | D152: 0.01631740995 | E152: =+IF(C152=0,"",D152/C152-1) -> -0.1841295025
A153: - Pérdidas Potencia en Distribución Fuera de Punta Bajo | C153: =+C152 -> 0.02 | D153: =+D152 -> 0.01631740995 | E153: -0.1841295025
A154: =+[1]PliegoVig!A152 -> - Cargos por Conexión | B154: =+[1]PliegoVig!B152 -> BTH1CxCX | C154: =+[1]PliegoVig!C152 -> 71.69 | D154: =+SUMIF($F$472:$F$1925,B154,$G$472:$G$1925) -> 71.69 | E154: -7.771561172e-16
A155: =+[1]PliegoVig!A153 -> Alumbrado Público | B155: =+[1]PliegoVig!B153 ->  | C155: =+[1]PliegoVig!C153 -> 0 | D155: 0
A156: =+[1]PliegoVig!A154 -> - Sistema | B156: =+[1]PliegoVig!B154 -> BTH1EtCSAP | C156: =+[1]PliegoVig!C154 -> 0.00133 | D156: 0.001337524547 | E156: 0.005657553973
A157: =+[1]PliegoVig!A155 -> - Consumo de energía | B157: =+[1]PliegoVig!B155 -> BTH1EtCCAP | C157: =+[1]PliegoVig!C155 -> 0.00199 | D157: 0.001577977241 | E157: -0.2070466128
A158: =+[1]PliegoVig!A156 -> Transmisión | B158: =+[1]PliegoVig!B156 ->  | C158: =+[1]PliegoVig!C156 -> 0 | D158: 0
A159: - Demanda Máxima en Punta | B159: =+[1]PliegoVig!B157 -> BTH1PpCUCOST | C159: =+[1]PliegoVig!C157 -> 2.07 | D159: 2.426000811 | E159: 0.171981068
A160: - Demanda Máxima en Fuera de Punta Medio | B160: BTH1PfpCUCOST | C160: =+C161 -> 0.2 | D160: 0.2343962136
A161: - Demanda Máxima en Fuera de Punta Bajo | B161: BTH1PfpCUCOST | C161: =+[1]PliegoVig!C158 -> 0.2 | D161: 0.2343962136 | E161: 0.171981068
A162: =+[1]PliegoVig!A159 -> - Energía | B162: =+[1]PliegoVig!B159 -> BTH1EtCUCOST | C162: =+[1]PliegoVig!C159 -> 0.00589 | D162: 0.007212979845 | E162: 0.2246145746
A163: =+[1]PliegoVig!A160 -> - Pérdidas de Energía en Transmisión | B163: =+[1]PliegoVig!B160 -> BTH1EtCPST | C163: =+[1]PliegoVig!C160 -> 0.00264 | D163: 0.002295342427 | E163: -0.1305521111
A164: =+[1]PliegoVig!A161 -> - Capacidad Transmision costo pérdidas | C164: =+[1]PliegoVig!C161 -> 0 | D164: 0
A165: =+[1]PliegoVig!A162 -> Generación | B165: =+[1]PliegoVig!B162 ->  | C165: =+[1]PliegoVig!C162 -> 0 | D165: 0
A166: - Demanda Máxima Punta | B166: =+[1]PliegoVig!B163 -> BTH1PpCPG | C166: =+[1]PliegoVig!C163 -> 0.09 | D166: 0.6466453202 | E166: 6.184948002
A167: - Demanda Máxima Fuera de Punta | B167: BTH1PfpCPG | D167: 0
A168: =+[1]PliegoVig!A164 -> - Energía en Punta | B168: =+[1]PliegoVig!B164 -> BTH1EpCEGP | C168: =+[1]PliegoVig!C164 -> 0.23999 | D168: 0.2198587959 | E168: -0.08388351217
A169: =+[1]PliegoVig!A165 -> - Energía Fuera de Punta Medio | B169: =+[1]PliegoVig!B165 -> BTH1EfpmCEGFP | C169: =+[1]PliegoVig!C165 -> 0.11998 | D169: 0.09159638017 | E169: =+IF(C169=0,"",D169/C169-1) -> -0.2365695935
A170: =+[1]PliegoVig!A166 -> - Energía Fuera de Punta Bajo | B170: BTH1EfpCEGFP | C170: =+[1]PliegoVig!C166 -> 0.05455 | D170: 0.04164512868 | E170: =+IF(C170=0,"",D170/C170-1) -> -0.2365695935
A171: =+[1]PliegoVig!A167 -> - Potencia Energizada | B171: =+[1]PliegoVig!B167 -> BTH1EtCPG | C171: =+[1]PliegoVig!C167 -> 0.00136 | D171: 0.009802115497 | E171: 6.207437865
A172: =+[1]PliegoVig!A168 -> MTD (0-10,000) | B172: =+[1]PliegoVig!B168 -> 
A173: =+[1]PliegoVig!A169 -> Comercialización | B173: =+[1]PliegoVig!B169 ->  | C173: =+[1]PliegoVig!C169 -> 0 | D173: =+SUMIF($F$472:$F$1925,B173,$G$472:$G$1925) -> 0
A174: =+[1]PliegoVig!A170 -> – Fijo | B174: =+[1]PliegoVig!B170 -> MTD1CCCOF | C174: =+[1]PliegoVig!C170 -> 14.27 | D174: 14.27 | E174: -1.110223025e-16
A175: =+[1]PliegoVig!A171 -> – Energía | B175: =+[1]PliegoVig!B171 -> MTD1EtCCOV | C175: =+[1]PliegoVig!C171 -> 0.00812 | D175: 0.007298185876 | E175: -0.101208636
A176: =+[1]PliegoVig!A172 -> Distribución | B176: =+[1]PliegoVig!B172 ->  | C176: =+[1]PliegoVig!C172 -> 0 | D176: 0
A177: =+[1]PliegoVig!A173 -> - Demanda Máxima | B177: =+[1]PliegoVig!B173 -> MTD1PpCD | C177: =+[1]PliegoVig!C173 -> 16.89 | D177: 15.27997144 | E177: -0.09532436719
A178: =+[1]PliegoVig!A174 -> - Energía en Distribución | B178: =+[1]PliegoVig!B174 -> MTD1EtCD | C178: =+[1]PliegoVig!C174 -> 0 | D178: 0
A179: =+[1]PliegoVig!A175 -> - Pérdidas Energía en Distribución | B179: =+[1]PliegoVig!B175 -> MTD1EtCPEP | C179: =+[1]PliegoVig!C175 -> 0.00811 | D179: 0.00796530064 | E179: -0.01784209124
A180: =+[1]PliegoVig!A176 -> - Pérdidas Potencia en Distribución | B180: MTD1PpCPEP | C180: =+[1]PliegoVig!C176 -> 0.37 | D180: 0.279484706 | E180: -0.2446359297
A181: =+[1]PliegoVig!A177 -> - Cargos por Conexión | B181: =+[1]PliegoVig!B177 -> MTD1CxCX | C181: =+[1]PliegoVig!C177 -> 142 | D181: 142 | E181: -9.992007222e-16
A182: =+[1]PliegoVig!A178 -> Alumbrado Público | B182: =+[1]PliegoVig!B178 ->  | C182: =+[1]PliegoVig!C178 -> 0 | D182: 0
A183: =+[1]PliegoVig!A179 -> - Sistema | B183: =+[1]PliegoVig!B179 -> MTD1EtCSAP | C183: =+[1]PliegoVig!C179 -> 0.00134 | D183: 0.001347581196 | E183: 0.005657608992
A184: =+[1]PliegoVig!A180 -> - Consumo de energía | B184: =+[1]PliegoVig!B180 -> MTD1EtCCAP | C184: =+[1]PliegoVig!C180 -> 0.00199 | D184: 0.001577977246 | E184: -0.20704661
A185: =+[1]PliegoVig!A181 -> Transmisión | B185: =+[1]PliegoVig!B181 ->  | C185: =+[1]PliegoVig!C181 -> 0 | D185: 0
A186: =+[1]PliegoVig!A182 -> - Demanda Máxima | B186: =+[1]PliegoVig!B182 -> MTD1PpCUCOST | C186: =+[1]PliegoVig!C182 -> 1.59 | D186: 1.829877758 | E186: 0.1508665144
A187: =+[1]PliegoVig!A183 -> - Energía | B187: =+[1]PliegoVig!B183 -> MTD1EtCUCOST | C187: =+[1]PliegoVig!C183 -> 0.00363 | D187: 0.004534906768 | E187: 0.2492856111
A188: =+[1]PliegoVig!A184 -> - Pérdidas de Energía en Transmisión | B188: =+[1]PliegoVig!B184 -> MTD1EtCPST | C188: =+[1]PliegoVig!C184 -> 0.00264 | D188: 0.002295342435 | E188: -0.1305521081
A189: =+[1]PliegoVig!A185 -> - Capacidad Transmision costo pérdidas | B189: =+[1]PliegoVig!B185 -> 0 | C189: =+[1]PliegoVig!C185 -> 0 | D189: 0
A190: =+[1]PliegoVig!A186 -> Generación | B190: =+[1]PliegoVig!B186 ->  | C190: =+[1]PliegoVig!C186 -> 0 | D190: 0
A191: =+[1]PliegoVig!A187 -> - Demanda Máxima | B191: =+[1]PliegoVig!B187 -> MTD1PpCPG | C191: =+[1]PliegoVig!C187 -> 1.75 | D191: 2.637016985 | E191: 0.5068668488
A192: =+[1]PliegoVig!A188 -> - Energía | B192: =+[1]PliegoVig!B188 -> MTD1EtCEGP | C192: =+[1]PliegoVig!C188 -> 0.09979 | D192: 0.08375036298 | E192: -0.1607339114
A193: =+[1]PliegoVig!A189 -> - Potencia Energizada | B193: =+[1]PliegoVig!B189 -> MTD1EtCPG | C193: =+[1]PliegoVig!C189 -> 0.02257 | D193: 0.03703282803 | E193: 0.6407987608
A194: =+[1]PliegoVig!A190 -> MTD (10,001-30,000) | B194: =+[1]PliegoVig!B190 -> 
A195: =+[1]PliegoVig!A191 -> Comercialización | B195: =+[1]PliegoVig!B191 ->  | C195: =+[1]PliegoVig!C191 -> 0 | D195: =+SUMIF($F$472:$F$1925,B195,$G$472:$G$1925) -> 0
A196: =+[1]PliegoVig!A192 -> – Fijo | B196: =+[1]PliegoVig!B192 -> MTD2CCCOF | C196: =+[1]PliegoVig!C192 -> 14.27 | D196: 0 | E196: -1
A197: =+[1]PliegoVig!A193 -> – Energía | B197: =+[1]PliegoVig!B193 -> MTD2EtCCOV | C197: =+[1]PliegoVig!C193 -> 0.00812 | D197: 0 | E197: -1
A198: =+[1]PliegoVig!A194 -> Distribución | B198: =+[1]PliegoVig!B194 ->  | C198: =+[1]PliegoVig!C194 -> 0 | D198: 0
A199: =+[1]PliegoVig!A195 -> - Demanda Máxima | B199: =+[1]PliegoVig!B195 -> MTD2PpCD | C199: =+[1]PliegoVig!C195 -> 16.89 | D199: 0 | E199: -1
A200: =+[1]PliegoVig!A196 -> - Energía en Distribución | B200: =+[1]PliegoVig!B196 -> MTD2EtCD | C200: =+[1]PliegoVig!C196 -> 0 | D200: 0
A201: =+[1]PliegoVig!A197 -> - Pérdidas Energía en Distribución | B201: =+[1]PliegoVig!B197 -> MTD2EtCPEP | C201: =+[1]PliegoVig!C197 -> 0.00811 | D201: 0 | E201: -1
... 1720 more rows

Sheet CD
A1: =+"Cargo de Distribución"&" - "&PremisaCosto!A2 -> Cargo de Distribución - EDEMET | AM1: =+PremisaCosto!A2 -> EDEMET | AP1: Factor de ajuste Cargos Distribución | AQ1: EDEMET | AR1: EDECHI
A2: Check: VP Costos = VP Ingresos | F2: =+PremisaCosto!F89 -> 2026/2027 | G2: =+PremisaCosto!G89 -> 2027/2028 | H2: =+PremisaCosto!H89 -> 2028/2029 | I2: =+PremisaCosto!I89 -> 2029/2030 | Z2: Ingresos año 1 nueva tarifa | AA2: Ingresos año 1 tarifa vigente | AB2: Ingresos a recuperar sig años | AK2: Recuperación costos 2022/2023 | AL2: Cuatro años = 1 | AM2: Factor de ajuste Pliego Vigente | AP2: Factor de ajuste Jul-Dic 22 | AQ2: 1.002837111 | AR2: 1.004313413
A3: =AI7 -> OK | E3: IMP - Costos por uso de red | F3: =+Costos!E35 -> 187170394.5 | G3: =+Costos!F35 -> 222164825.5 | H3: =+Costos!G35 -> 225308969.3 | I3: =+Costos!H35 -> 227150613.5 | AK3: =+Resumen!R3 -> 1 | AL3: Tres años = 2 | AM3: =IF(AM1="EDEMET",AQ2*AQ3,AR2*AR3) -> 1.019431601 | AP3: Factor de ajuste Ene-Jun 23 | AQ3: 1.016547543 | AR3: 1.023468809
E4: VP Costos Permitidos uso red | F4: =+SUMPRODUCT(F3:I3,PremisaCosto!$F$84:$I$84) -> 702912037 | Z4: 172861915.5 | AA4: =+SUM(Z10,AE10) -> 209366216.8 | AB4: =IF($AK$3=1,0,+Z4-AA4) -> 0 | AP4: Factor ajuste final | AQ4: 1.019431601 | AR4: 1.027883453
Z5: *Poner opción 1 en hoja "Resumen", celda R3 para ver los ingresos a recuperar
B6: Variables Auxiliares | E6: 1 - ASIGNACIÓN COSTOS | G6: 2 - DISEÑO DE CARGOS | M6: 3 - GENERACION DEL MULTIPLICADOR PARA AJUSTAR TARIFA | W6: 4 - CÁLCULO TARIFA A APLICAR | AK6: Para BUSCARV | AL6: 15 | AM6: 23
AD7: Check | AI7: =+IF(ROUND(SUM(AD10,AI10)-F4,0)=0,"OK","Error") -> OK | AL7: Tarifa Vigente | AP7: Ingreso por Potencia Cargo Relativo
A8: Categorías | B8: Sub Categoría | C8: Descuento | E8: % Asignación | G8: Diseño | J8: Cargo Relativo | M8: Ingreso por Energía Cargo Relativo | Q8: Ingreso por Energía a Cargo Relativo (VP) | R8: Ingreso por Potencia a Cargo Relativo (VP) | T8: Multiplicador Energía | U8: Multiplicador Potencia | W8: Tarifa a Aplicar (CR x Multiplicador) | Z8: Ingresos con Tarifa a Aplicar por Energía | AD8: Ingresos (VP) | AE8: Ingresos con Tarifa a Aplicar por Potencia | AI8: Ingresos (VP) | AK8: Categorías | AL8: Ingreso por Energia | AM8: Ingreso por Potencia | AP8: 2022/2023
G9: Energía | H9: Potencia | J9: Energía | K9: Potencia | M9: =+F2 -> 2026/2027 | N9: =+G2 -> 2027/2028 | O9: =+H2 -> 2028/2029 | P9: =+I2 -> 2029/2030 | W9: por Energía ($/kWh) | X9: por Potencia ($/kW mes) | Z9: =+M9 -> 2026/2027 | AA9: =+N9 -> 2027/2028 | AB9: =+O9 -> 2028/2029 | AC9: =+P9 -> 2029/2030 | AD9: por Energía | AE9: =+Z9 -> 2026/2027 | AF9: =+AA9 -> 2027/2028 | AG9: =+AB9 -> 2028/2029 | AH9: =+AC9 -> 2029/2030 | AI9: por Potencia | AL9: 2022/2023 | AM9: 2022/2023 | AP9: =+SUM(AP10,AP14,AP15,AP19,AP75,AP79,AP135,AP191,AP195,AP208,AP264,AP267,AP323) -> 132837201.5
A10: =+PremisaCosto!A92 -> TOTAL | E10: =+SUM(E11,E15,E16,E20,E76,E80,E136,E196,E209,E265,E268,E324) -> 1 | Z10: =+SUM(Z11,Z15,Z16,Z20,Z76,Z80,Z136,Z192,Z196,Z209,Z265,Z268,Z324) -> 89962949.81 | AA10: 91020640.03 | AB10: 92168579.1 | AC10: 93354154.43 | AD10: =+SUM(AD11,AD15,AD16,AD20,AD76,AD80,AD136,AD192,AD196,AD209,AD265,AD268,AD324) -> 300712476.2 | AE10: 119403267 | AF10: 121523700.1 | AG10: 123740453.2 | AH10: 125859302.9 | AI10: 402199560.8 | AK10: =+A10 -> TOTAL | AL10: =+IFERROR(VLOOKUP($AK10,[1]ITV_CD!$A$7:$W$149,AL$6,FALSE),0)/$AM$3 -> 97624577.74 | AM10: =+IFERROR(VLOOKUP($AK10,[1]ITV_CD!$A$7:$W$149,AM$6,FALSE),0)/$AM$3 -> 129461709.4 | AP10: =+SUM(AP11:AP13) -> 23.02108849
A11: =+PremisaCosto!A93 -> ATH | E11: =+[1]Asignación!B8 -> 9.981289233e-08 | M11: =+SUM(M12:M14) -> 0 | N11: 0 | O11: 0 | P11: 0 | Q11: 0 | R11: 77.55230816 | Z11: =+SUM(Z12:Z14) -> 0 | AA11: 0 | AB11: 0 | AC11: 0 | AD11: 0 | AE11: 20.8266178 | AF11: 21.19809021 | AG11: 21.58633731 | AH11: 21.95717387 | AI11: =+SUM(AI12:AI14) -> 70.15968346 | AK11: =+A11 -> ATH | AL11: =+IFERROR(VLOOKUP($AK11,[1]ITV_CD!$A$7:$W$149,AL$6,FALSE),0)/$AM$3 -> 0 | AM11: =+IFERROR(VLOOKUP($AK11,[1]ITV_CD!$A$7:$W$149,AM$6,FALSE),0)/$AM$3 -> 22.58227867 | AP11: =+Potencia!T12*$K12*12*1000*(1-$C12) -> 2.120241942
A12: =+PremisaCosto!A94 -> ATH Punta | B12: =+PremisaCosto!H94 -> Regular | C12: =+IF(B12=0,0,VLOOKUP(B12,PremisaCosto!$A$69:$D$79,4,FALSE)) -> 0 | E12: =+E11 -> 9.981289233e-08 | G12: =+VLOOKUP($A12,[1]Diseño!$A$7:$BH$61,2,FALSE) -> 0 | H12: =+VLOOKUP($A12,[1]Diseño!$A$7:$BH$61,3,FALSE) -> 1 | J12: =+VLOOKUP($A12,[1]Diseño!$A$7:$BH$76,4,FALSE) -> 0 | K12: =+VLOOKUP($A12,[1]Diseño!$A$7:$BH$76,5,FALSE) -> 6.89 | M12: =+$J12*Energía!Z12*(1-$C12)*1000 -> 0 | N12: =+$J12*Energía!AA12*(1-$C12)*1000 -> 0 | O12: =+$J12*Energía!AB12*(1-$C12)*1000 -> 0 | P12: =+$J12*Energía!AC12*(1-$C12)*1000 -> 0 | Q12: =+SUMPRODUCT(M12:P12,PremisaCosto!$F$84:$I$84) -> 0 | R12: =+Potencia!X12*$K12*12*1000*(1-$C12) -> 7.142566545 | T12: =IF(Q12=0,0,(IF($AK$3=1,$E12*$F$4*G12/$Q$11,($E12*$F$4*G12-$AL$11*PremisaCosto!$F$84)/($Q$11-$M$11*PremisaCosto!$F$84)))) -> 0 | U12: =IF(R12=0,0,IF($AK$3=1,$E12*$F$4*H12/$R$11,($E12*$F$4*H12-$AM$11*PremisaCosto!$F$84)/($R$11-$AP$10*PremisaCosto!$F$84))) -> 0.9046756328 | W12: =+J12*T12 -> 0 | X12: =+U12*K12 -> 6.23321511 | Z12: =+IF($AK$3=1,$W12*Energía!Z12*(1-$C12)*1000,AL12) -> 0 | AA12: =+$W12*Energía!AA12*(1-$C12)*1000 -> 0 | AB12: =+$W12*Energía!AB12*(1-$C12)*1000 -> 0 | AC12: =+$W12*Energía!AC12*(1-$C12)*1000 -> 0 | AD12: =+SUMPRODUCT(Z12:AC12,PremisaCosto!$F$84:$I$84) -> 0 | AE12: =+IF($AK$3=1,Potencia!T12*$X12*12*1000*(1-$C12),AM12) -> 1.918131221 | AF12: =+Potencia!U12*$X12*12*1000*(1-$C12) -> 1.952343825 | AG12: =+Potencia!V12*$X12*12*1000*(1-$C12) -> 1.988101377 | AH12: =+Potencia!W12*$X12*12*1000*(1-$C12) -> 2.02225542 | AI12: =+SUMPRODUCT(AE12:AH12,PremisaCosto!$F$84:$I$84) -> 6.461705909 | AK12: ATH Punta | AL12: =+IFERROR(VLOOKUP($AK12,[1]ITV_CD!$A$7:$W$149,AL$6,FALSE),0)/$AM$3 -> 0 | AM12: =+IFERROR(VLOOKUP($AK12,[1]ITV_CD!$A$7:$W$149,AM$6,FALSE),0)/$AM$3 -> 2.079827563 | AP12: =+Potencia!T13*$K13*12*1000*(1-$C13) -> 10.45042328
A13: =+PremisaCosto!A95 -> ATH Fuera de Punta Medio | B13: =+PremisaCosto!H95 -> Regular | C13: =+IF(B13=0,0,VLOOKUP(B13,PremisaCosto!$A$69:$D$79,4,FALSE)) -> 0 | E13: =+$E$11 -> 9.981289233e-08 | G13: =+VLOOKUP($A13,[1]Diseño!$A$7:$BH$61,2,FALSE) -> 0 | H13: =+VLOOKUP($A13,[1]Diseño!$A$7:$BH$61,3,FALSE) -> 1 | J13: =+VLOOKUP($A13,[1]Diseño!$A$7:$BH$76,4,FALSE) -> 0 | K13: =+VLOOKUP($A13,[1]Diseño!$A$7:$BH$76,5,FALSE) -> 5.66 | M13: =+$J13*Energía!Z13*(1-$C13)*1000 -> 0 | N13: =+$J13*Energía!AA13*(1-$C13)*1000 -> 0 | O13: =+$J13*Energía!AB13*(1-$C13)*1000 -> 0 | P13: =+$J13*Energía!AC13*(1-$C13)*1000 -> 0 | Q13: =+SUMPRODUCT(M13:P13,PremisaCosto!$F$84:$I$84) -> 0 | R13: =+Potencia!X13*$K13*12*1000*(1-$C13) -> 35.20487081 | T13: =IF(Q13=0,0,(IF($AK$3=1,$E13*$F$4*G13/$Q$11,($E13*$F$4*G13-$AL$11*PremisaCosto!$F$84)/($Q$11-$M$11*PremisaCosto!$F$84)))) -> 0 | U13: =IF(R13=0,0,IF($AK$3=1,$E13*$F$4*H13/$R$11,($E13*$F$4*H13-$AM$11*PremisaCosto!$F$84)/($R$11-$AP$10*PremisaCosto!$F$84))) -> 0.9046756328 | W13: =+J13*T13 -> 0 | X13: =+U13*K13 -> 5.120464082 | Z13: =+IF($AK$3=1,$W13*Energía!Z13*(1-$C13)*1000,AL13) -> 0 | AA13: =+$W13*Energía!AA13*(1-$C13)*1000 -> 0 | AB13: =+$W13*Energía!AB13*(1-$C13)*1000 -> 0 | AC13: =+$W13*Energía!AC13*(1-$C13)*1000 -> 0 | AD13: =+SUMPRODUCT(Z13:AC13,PremisaCosto!$F$84:$I$84) -> 0 | AE13: =+IF($AK$3=1,Potencia!T13*$X13*12*1000*(1-$C13),AM13) -> 9.45424329 | AF13: =+Potencia!U13*$X13*12*1000*(1-$C13) -> 9.622873192 | AG13: =+Potencia!V13*$X13*12*1000*(1-$C13) -> 9.799117965 | AH13: =+Potencia!W13*$X13*12*1000*(1-$C13) -> 9.967459224 | AI13: =+SUMPRODUCT(AE13:AH13,PremisaCosto!$F$84:$I$84) -> 31.84898878 | AK13: ATH Fuera de Punta Medio | AL13: =+IFERROR(VLOOKUP($AK13,[1]ITV_CD!$A$7:$W$149,AL$6,FALSE),0)/$AM$3 -> 0 | AM13: =+IFERROR(VLOOKUP($AK13,[1]ITV_CD!$A$7:$W$149,AM$6,FALSE),0)/$AM$3 -> 10.25122555 | AP13: =+Potencia!T14*$K14*12*1000*(1-$C14) -> 10.45042328
A14: =+PremisaCosto!A96 -> ATH Fuera de Punta Bajo | B14: =+PremisaCosto!H96 -> Regular | C14: =+IF(B14=0,0,VLOOKUP(B14,PremisaCosto!$A$69:$D$79,4,FALSE)) -> 0 | E14: =+$E$11 -> 9.981289233e-08 | G14: =+VLOOKUP($A14,[1]Diseño!$A$7:$BH$61,2,FALSE) -> 0 | H14: =+VLOOKUP($A14,[1]Diseño!$A$7:$BH$61,3,FALSE) -> 1 | J14: =+VLOOKUP($A14,[1]Diseño!$A$7:$BH$76,4,FALSE) -> 0 | K14: =+VLOOKUP($A14,[1]Diseño!$A$7:$BH$76,5,FALSE) -> 5.66 | M14: =+$J14*Energía!Z14*(1-$C14)*1000 -> 0 | N14: =+$J14*Energía!AA14*(1-$C14)*1000 -> 0 | O14: =+$J14*Energía!AB14*(1-$C14)*1000 -> 0 | P14: =+$J14*Energía!AC14*(1-$C14)*1000 -> 0 | Q14: =+SUMPRODUCT(M14:P14,PremisaCosto!$F$84:$I$84) -> 0 | R14: =+Potencia!X14*$K14*12*1000*(1-$C14) -> 35.20487081 | T14: =IF(Q14=0,0,(IF($AK$3=1,$E14*$F$4*G14/$Q$11,($E14*$F$4*G14-$AL$11*PremisaCosto!$F$84)/($Q$11-$M$11*PremisaCosto!$F$84)))) -> 0 | U14: =IF(R14=0,0,IF($AK$3=1,$E14*$F$4*H14/$R$11,($E14*$F$4*H14-$AM$11*PremisaCosto!$F$84)/($R$11-$AP$10*PremisaCosto!$F$84))) -> 0.9046756328 | W14: 0 | X14: 5.120464082 | Z14: =+IF($AK$3=1,$W14*Energía!Z14*(1-$C14)*1000,AL14) -> 0 | AA14: =+$W14*Energía!AA14*(1-$C14)*1000 -> 0 | AB14: =+$W14*Energía!AB14*(1-$C14)*1000 -> 0 | AC14: =+$W14*Energía!AC14*(1-$C14)*1000 -> 0 | AD14: =+SUMPRODUCT(Z14:AC14,PremisaCosto!$F$84:$I$84) -> 0 | AE14: =+IF($AK$3=1,Potencia!T14*$X14*12*1000*(1-$C14),AM14) -> 9.45424329 | AF14: =+Potencia!U14*$X14*12*1000*(1-$C14) -> 9.622873192 | AG14: =+Potencia!V14*$X14*12*1000*(1-$C14) -> 9.799117965 | AH14: =+Potencia!W14*$X14*12*1000*(1-$C14) -> 9.967459224 | AI14: =+SUMPRODUCT(AE14:AH14,PremisaCosto!$F$84:$I$84) -> 31.84898878 | AK14: ATH Fuera de Punta Bajo | AL14: =+IFERROR(VLOOKUP($AK14,[1]ITV_CD!$A$7:$W$149,AL$6,FALSE),0)/$AM$3 -> 0 | AM14: =+IFERROR(VLOOKUP($AK14,[1]ITV_CD!$A$7:$W$149,AM$6,FALSE),0)/$AM$3 -> 10.25122555 | AP14: =+Potencia!T15*$K15*12*1000*(1-$C15) -> 1762.908859
A15: =+PremisaCosto!A97 -> ATD | B15: =+PremisaCosto!H97 -> Regular | C15: =+IF(B15=0,0,VLOOKUP(B15,PremisaCosto!$A$69:$D$79,4,FALSE)) -> 0 | E15: =+[1]Asignación!B9 -> 7.643471429e-06 | G15: =+VLOOKUP($A15,[1]Diseño!$A$7:$BH$61,2,FALSE) -> 0 | H15: =+VLOOKUP($A15,[1]Diseño!$A$7:$BH$61,3,FALSE) -> 1 | J15: =+VLOOKUP($A15,[1]Diseño!$A$7:$BH$76,4,FALSE) -> 0 | K15: =+VLOOKUP($A15,[1]Diseño!$A$7:$BH$76,5,FALSE) -> 6.51 | M15: =+$J15*Energía!Z15*(1-$C15)*1000 -> 0 | N15: =+$J15*Energía!AA15*(1-$C15)*1000 -> 0 | O15: =+$J15*Energía!AB15*(1-$C15)*1000 -> 0 | P15: =+$J15*Energía!AC15*(1-$C15)*1000 -> 0 | Q15: =+SUMPRODUCT(M15:P15,PremisaCosto!$F$84:$I$84) -> 0 | R15: =+Potencia!X15*$K15*12*1000*(1-$C15) -> 5938.800468 | T15: =IF(Q15=0,0,(IF($AK$3=1,$E15*$F$4*G15/$Q$15,($E15*$F$4*G15-$AL$15*PremisaCosto!$F$84)/($Q$15-$M$15*PremisaCosto!$F$84)))) -> 0 | U15: =IF(R15=0,0,IF($AK$3=1,$E15*$F$4*H15/$R$15,($E15*$F$4*H15-$AM$15*PremisaCosto!$F$84)/($R$15-$AP$14*PremisaCosto!$F$84))) -> 0.9046756328 | W15: 0 | X15: 5.88943837 | Z15: =+IF($AK$3=1,$W15*Energía!Z15*(1-$C15)*1000,AL15) -> 0 | AA15: =+$W15*Energía!AA15*(1-$C15)*1000 -> 0 | AB15: =+$W15*Energía!AB15*(1-$C15)*1000 -> 0 | AC15: =+$W15*Energía!AC15*(1-$C15)*1000 -> 0 | AD15: =+SUMPRODUCT(Z15:AC15,PremisaCosto!$F$84:$I$84) -> 0 | AE15: =+IF($AK$3=1,Potencia!T15*$X15*12*1000*(1-$C15),AM15) -> 1594.860688 | AF15: =+Potencia!U15*$X15*12*1000*(1-$C15) -> 1623.307301 | AG15: =+Potencia!V15*$X15*12*1000*(1-$C15) -> 1653.038486 | AH15: =+Potencia!W15*$X15*12*1000*(1-$C15) -> 1681.436408 | AI15: =+SUMPRODUCT(AE15:AH15,PremisaCosto!$F$84:$I$84) -> 5372.688071 | AK15: ATD | AL15: =+IFERROR(VLOOKUP($AK15,[1]ITV_CD!$A$7:$W$149,AL$6,FALSE),0)/$AM$3 -> 0 | AM15: =+IFERROR(VLOOKUP($AK15,[1]ITV_CD!$A$7:$W$149,AM$6,FALSE),0)/$AM$3 -> 1729.305681 | AP15: =+SUM(AP16:AP18) -> 489722.8131
A16: =+PremisaCosto!A98 -> MTH | B16: =+PremisaCosto!H98 -> 0 | C16: =+IF(B16=0,0,VLOOKUP(B16,PremisaCosto!$A$69:$D$79,4,FALSE)) -> 0 | E16: =+[1]Asignación!B10 -> 0.002042534805 | G16: =+VLOOKUP($A16,[1]Diseño!$A$7:$BH$61,2,FALSE) -> 0 | H16: =+VLOOKUP($A16,[1]Diseño!$A$7:$BH$61,3,FALSE) -> 0 | M16: =+SUM(M17:M19) -> 0 | N16: 0 | O16: 0 | P16: 0 | Q16: 0 | R16: 1649754.073 | T16: =IF(Q16=0,0,(IF($AK$3=1,$E16*$F$4*G16/$Q$16,($E16*$F$4*G16-$AL$16*PremisaCosto!$F$84)/($Q$16-$M$16*PremisaCosto!$F$84)))) -> 0 | W16: 0 | X16: 0 | Z16: =+SUM(Z17:Z19) -> 0 | AA16: =+SUM(AA17:AA19) -> 0 | AB16: =+SUM(AB17:AB19) -> 0 | AC16: =+SUM(AC17:AC19) -> 0 | AD16: =+SUM(AD17:AD19) -> 0 | AE16: 426188.3485 | AF16: 433790.025 | AG16: 441734.9727 | AH16: 449323.6375 | AI16: =+SUM(AI17:AI19) -> 1435722.301 | AK16: MTH | AL16: =+IFERROR(VLOOKUP($AK16,[1]ITV_CD!$A$7:$W$149,AL$6,FALSE),0)/$AM$3 -> 0 | AM16: =+IFERROR(VLOOKUP($AK16,[1]ITV_CD!$A$7:$W$149,AM$6,FALSE),0)/$AM$3 -> 462115.5553 | AP16: =+Potencia!T17*$K17*12*1000*(1-$C17) -> 410904.9679
A17: =+PremisaCosto!A99 -> MTH Punta | B17: =+PremisaCosto!H99 -> Regular | C17: =+IF(B17=0,0,VLOOKUP(B17,PremisaCosto!$A$69:$D$79,4,FALSE)) -> 0 | E17: =+E16 -> 0.002042534805 | G17: =+VLOOKUP($A17,[1]Diseño!$A$7:$BH$61,2,FALSE) -> 0 | H17: =+VLOOKUP($A17,[1]Diseño!$A$7:$BH$61,3,FALSE) -> 1 | J17: =+VLOOKUP($A17,[1]Diseño!$A$7:$BH$76,4,FALSE) -> 0 | K17: =+VLOOKUP($A17,[1]Diseño!$A$7:$BH$76,5,FALSE) -> 15.16 | M17: =+$J17*Energía!Z17*(1-$C17)*1000 -> 0 | N17: =+$J17*Energía!AA17*(1-$C17)*1000 -> 0 | O17: =+$J17*Energía!AB17*(1-$C17)*1000 -> 0 | P17: =+$J17*Energía!AC17*(1-$C17)*1000 -> 0 | Q17: =+SUMPRODUCT(M17:P17,PremisaCosto!$F$84:$I$84) -> 0 | R17: =+Potencia!X17*$K17*12*1000*(1-$C17) -> 1384236.401 | T17: =IF(Q17=0,0,(IF($AK$3=1,$E17*$F$4*G17/$Q$16,($E17*$F$4*G17-$AL$16*PremisaCosto!$F$84)/($Q$16-$M$16*PremisaCosto!$F$84)))) -> 0 | U17: =IF(R17=0,0,IF($AK$3=1,$E17*$F$4*H17/$R$16,($E17*$F$4*H17-$AM$16*PremisaCosto!$F$84)/($R$16-$AP$15*PremisaCosto!$F$84))) -> 0.8702644375 | W17: 0 | X17: 13.19320887 | Z17: =+IF($AK$3=1,$W17*Energía!Z17*(1-$C17)*1000,AL17) -> 0 | AA17: =+$W17*Energía!AA17*(1-$C17)*1000 -> 0 | AB17: =+$W17*Energía!AB17*(1-$C17)*1000 -> 0 | AC17: =+$W17*Energía!AC17*(1-$C17)*1000 -> 0 | AD17: =+SUMPRODUCT(Z17:AC17,PremisaCosto!$F$84:$I$84) -> 0 | AE17: =+IF($AK$3=1,Potencia!T17*$X17*12*1000*(1-$C17),AM17) -> 357595.9807 | AF17: =+Potencia!U17*$X17*12*1000*(1-$C17) -> 363974.2146 | AG17: =+Potencia!V17*$X17*12*1000*(1-$C17) -> 370640.4724 | AH17: =+Potencia!W17*$X17*12*1000*(1-$C17) -> 377007.7887 | AI17: =+SUMPRODUCT(AE17:AH17,PremisaCosto!$F$84:$I$84) -> 1204651.713 | AK17: MTH Punta | AL17: =+IFERROR(VLOOKUP($AK17,[1]ITV_CD!$A$7:$W$149,AL$6,FALSE),0)/$AM$3 -> 0 | AM17: =+IFERROR(VLOOKUP($AK17,[1]ITV_CD!$A$7:$W$149,AM$6,FALSE),0)/$AM$3 -> 403072.6216 | AP17: =+Potencia!T18*$K18*12*1000*(1-$C18) -> 48722.72902
A18: =+PremisaCosto!A100 -> MTH Fuera de Punta Medio | B18: =+PremisaCosto!H100 -> Regular | C18: =+IF(B18=0,0,VLOOKUP(B18,PremisaCosto!$A$69:$D$79,4,FALSE)) -> 0 | E18: =+E17 -> 0.002042534805 | G18: =+VLOOKUP($A18,[1]Diseño!$A$7:$BH$61,2,FALSE) -> 0 | H18: =+VLOOKUP($A18,[1]Diseño!$A$7:$BH$61,3,FALSE) -> 1 | J18: =+VLOOKUP($A18,[1]Diseño!$A$7:$BH$76,4,FALSE) -> 0 | K18: =+VLOOKUP($A18,[1]Diseño!$A$7:$BH$76,5,FALSE) -> 2.51 | M18: =+$J18*Energía!Z17*(1-$C18)*1000 -> 0 | N18: =+$J18*Energía!AA17*(1-$C18)*1000 -> 0 | O18: =+$J18*Energía!AB17*(1-$C18)*1000 -> 0 | P18: =+$J18*Energía!AC17*(1-$C18)*1000 -> 0 | Q18: =+SUMPRODUCT(M18:P18,PremisaCosto!$F$84:$I$84) -> 0 | R18: =+Potencia!X18*$K18*12*1000*(1-$C18) -> 164134.7279 | T18: =IF(Q18=0,0,(IF($AK$3=1,$E18*$F$4*G18/$Q$16,($E18*$F$4*G18-$AL$16*PremisaCosto!$F$84)/($Q$16-$M$16*PremisaCosto!$F$84)))) -> 0 | U18: =IF(R18=0,0,IF($AK$3=1,$E18*$F$4*H18/$R$16,($E18*$F$4*H18-$AM$16*PremisaCosto!$F$84)/($R$16-$AP$15*PremisaCosto!$F$84))) -> 0.8702644375 | W18: =+J18*T18 -> 0 | X18: =+U18*K18 -> 2.184363738 | Z18: =+IF($AK$3=1,$W18*Energía!Z18*(1-$C18)*1000,AL18) -> 0 | AA18: =+$W18*Energía!AA17*(1-$C18)*1000 -> 0 | AB18: =+$W18*Energía!AB17*(1-$C18)*1000 -> 0 | AC18: =+$W18*Energía!AC17*(1-$C18)*1000 -> 0 | AD18: =+SUMPRODUCT(Z18:AC18,PremisaCosto!$F$84:$I$84) -> 0 | AE18: =+IF($AK$3=1,Potencia!T18*$X18*12*1000*(1-$C18),AM18) -> 42401.65836 | AF18: =+Potencia!U18*$X18*12*1000*(1-$C18) -> 43157.95237 | AG18: =+Potencia!V18*$X18*12*1000*(1-$C18) -> 43948.39856 | AH18: =+Potencia!W18*$X18*12*1000*(1-$C18) -> 44703.39802 | AI18: =+SUMPRODUCT(AE18:AH18,PremisaCosto!$F$84:$I$84) -> 142840.6166 | AK18: MTH Fuera de Punta Medio | AL18: =+IFERROR(VLOOKUP($AK18,[1]ITV_CD!$A$7:$W$149,AL$6,FALSE),0)/$AM$3 -> 0 | AM18: =+IFERROR(VLOOKUP($AK18,[1]ITV_CD!$A$7:$W$149,AM$6,FALSE),0)/$AM$3 -> 29521.46687 | AP18: =+Potencia!T19*$K19*12*1000*(1-$C19) -> 30095.11623
A19: =+PremisaCosto!A101 -> MTH Fuera de Punta Bajo | B19: =+PremisaCosto!H101 -> Regular | C19: =+IF(B19=0,0,VLOOKUP(B19,PremisaCosto!$A$69:$D$79,4,FALSE)) -> 0 | E19: =+E16 -> 0.002042534805 | G19: =+VLOOKUP($A19,[1]Diseño!$A$7:$BH$61,2,FALSE) -> 0 | H19: =+VLOOKUP($A19,[1]Diseño!$A$7:$BH$61,3,FALSE) -> 1 | J19: =+VLOOKUP($A19,[1]Diseño!$A$7:$BH$76,4,FALSE) -> 0 | K19: =+VLOOKUP($A19,[1]Diseño!$A$7:$BH$76,5,FALSE) -> 2.51 | M19: =+$J19*Energía!Z19*(1-$C19)*1000 -> 0 | N19: =+$J19*Energía!AA19*(1-$C19)*1000 -> 0 | O19: =+$J19*Energía!AB19*(1-$C19)*1000 -> 0 | P19: =+$J19*Energía!AC19*(1-$C19)*1000 -> 0 | Q19: =+SUMPRODUCT(M19:P19,PremisaCosto!$F$84:$I$84) -> 0 | R19: =+Potencia!X19*$K19*12*1000*(1-$C19) -> 101382.9441 | T19: =IF(Q19=0,0,(IF($AK$3=1,$E19*$F$4*G19/$Q$16,($E19*$F$4*G19-$AL$16*PremisaCosto!$F$84)/($Q$16-$M$16*PremisaCosto!$F$84)))) -> 0 | U19: =IF(R19=0,0,IF($AK$3=1,$E19*$F$4*H19/$R$16,($E19*$F$4*H19-$AM$16*PremisaCosto!$F$84)/($R$16-$AP$15*PremisaCosto!$F$84))) -> 0.8702644375 | W19: 0 | X19: 2.184363738 | Z19: =+IF($AK$3=1,$W19*Energía!Z19*(1-$C19)*1000,AL19) -> 0 | AA19: =+$W19*Energía!AA19*(1-$C19)*1000 -> 0 | AB19: =+$W19*Energía!AB19*(1-$C19)*1000 -> 0 | AC19: =+$W19*Energía!AC19*(1-$C19)*1000 -> 0 | AD19: =+SUMPRODUCT(Z19:AC19,PremisaCosto!$F$84:$I$84) -> 0 | AE19: =+IF($AK$3=1,Potencia!T19*$X19*12*1000*(1-$C19),AM19) -> 26190.70939 | AF19: =+Potencia!U19*$X19*12*1000*(1-$C19) -> 26657.85802 | AG19: =+Potencia!V19*$X19*12*1000*(1-$C19) -> 27146.10182 | AH19: =+Potencia!W19*$X19*12*1000*(1-$C19) -> 27612.45083 | AI19: =+SUMPRODUCT(AE19:AH19,PremisaCosto!$F$84:$I$84) -> 88229.97082 | AK19: MTH Fuera de Punta Bajo | AL19: =+IFERROR(VLOOKUP($AK19,[1]ITV_CD!$A$7:$W$149,AL$6,FALSE),0)/$AM$3 -> 0 | AM19: =+IFERROR(VLOOKUP($AK19,[1]ITV_CD!$A$7:$W$149,AM$6,FALSE),0)/$AM$3 -> 29521.46687 | AP19: =+SUM(AP20,AP31,AP42,AP53,AP64) -> 43207341.57
A20: =+PremisaCosto!A102 -> MTD | B20: =+PremisaCosto!H102 -> 0 | C20: =+IF(B20=0,0,VLOOKUP(B20,PremisaCosto!$A$69:$D$79,4,FALSE)) -> 0 | E20: =+[1]Asignación!B11 -> 0.1873344144 | G20: =+VLOOKUP($A20,[1]Diseño!$A$7:$BH$61,2,FALSE) -> 0 | H20: =+VLOOKUP($A20,[1]Diseño!$A$7:$BH$61,3,FALSE) -> 1 | J20: =+VLOOKUP($A20,[1]Diseño!$A$7:$BH$76,4,FALSE) -> 0 | K20: =+VLOOKUP($A20,[1]Diseño!$A$7:$BH$76,5,FALSE) -> 0 | M20: =+SUM(M21,M32,M43,M54,M65) -> 0 | N20: 0 | O20: 0 | P20: 0 | Q20: 0 | R20: 145554506 | T20: =IF(Q20=0,0,(IF($AK$3=1,$E20*$F$4*G20/$Q$20,($E20*$F$4*G20-$AL$20*PremisaCosto!$F$84)/($Q$20-$M$20*PremisaCosto!$F$84)))) -> 0 | U20: =IF(R20=0,0,IF($AK$3=1,$E20*$F$4*H20/$R$20,($E20*$F$4*H20-$AM$20*PremisaCosto!$F$84)/($R$20-$AP$19*PremisaCosto!$F$84))) -> 0.9046756328 | W20: 0 | X20: 0 | Z20: =+SUM(Z21,Z32,Z43,Z54,Z65) -> 0 | AA20: =+SUM(AA21,AA32,AA43,AA54,AA65) -> 0 | AB20: =+SUM(AB21,AB32,AB43,AB54,AB65) -> 0 | AC20: =+SUM(AC21,AC32,AC43,AC54,AC65) -> 0 | AD20: =+SUM(AD21,AD32,AD43,AD54,AD65) -> 0 | AE20: 39088629.07 | AF20: 39785775.95 | AG20: 40514408.67 | AH20: 41210377.65 | AI20: =+SUM(AI21,AI32,AI43,AI54,AI65) -> 131679614.8 | AK20: MTD | AL20: =+IFERROR(VLOOKUP($AK20,[1]ITV_CD!$A$7:$W$149,AL$6,FALSE),0)/$AM$3 -> 0 | AM20: =+IFERROR(VLOOKUP($AK20,[1]ITV_CD!$A$7:$W$149,AM$6,FALSE),0)/$AM$3 -> 42383757.31 | AP20: =+SUM(AP21:AP30) -> 43207341.57
A21: =+PremisaCosto!A103 -> MTD_1 (0-10,000) | B21: =+PremisaCosto!H103 -> 0 | C21: =+IF(B21=0,0,VLOOKUP(B21,PremisaCosto!$A$69:$D$79,4,FALSE)) -> 0 | E21: =+E20 -> 0.1873344144 | G21: =+G20 -> 0 | H21: =+H20 -> 1 | J21: =+VLOOKUP($A21,[1]Diseño!$A$7:$BH$76,4,FALSE) -> 0 | K21: =+VLOOKUP($A21,[1]Diseño!$A$7:$BH$76,5,FALSE) -> 16.89 | M21: =+SUM(M22:M31) -> 0 | N21: 0 | O21: 0 | P21: 0 | Q21: 0 | R21: 145554506 | T21: =IF(Q21=0,0,(IF($AK$3=1,$E21*$F$4*G21/$Q$20,($E21*$F$4*G21-$AL$20*PremisaCosto!$F$84)/($Q$20-$M$20*PremisaCosto!$F$84)))) -> 0 | U21: =IF(R21=0,0,IF($AK$3=1,$E21*$F$4*H21/$R$20,($E21*$F$4*H21-$AM$20*PremisaCosto!$F$84)/($R$20-$AP$19*PremisaCosto!$F$84))) -> 0.9046756328 | W21: =+W22 -> 0 | X21: =+X22 -> 15.27997144 | Z21: =+SUM(Z22:Z31) -> 0 | AA21: =+SUM(AA22:AA31) -> 0 | AB21: =+SUM(AB22:AB31) -> 0 | AC21: =+SUM(AC22:AC31) -> 0 | AD21: =+SUM(AD22:AD31) -> 0 | AE21: 39088629.07 | AF21: 39785775.95 | AG21: 40514408.67 | AH21: 41210377.65 | AI21: =+SUM(AI22:AI31) -> 131679614.8 | AK21: MTD_1 (0-10,000) | AL21: =+IFERROR(VLOOKUP($AK21,[1]ITV_CD!$A$7:$W$149,AL$6,FALSE),0)/$AM$3 -> 0 | AM21: =+IFERROR(VLOOKUP($AK21,[1]ITV_CD!$A$7:$W$149,AM$6,FALSE),0)/$AM$3 -> 0 | AP21: =+Potencia!T22*$K22*12*1000*(1-$C22) -> 42378776.39
A22: =+PremisaCosto!A104 -> MTD_1 Regular | B22: =+PremisaCosto!H104 -> Regular | C22: =+IF(B22=0,0,VLOOKUP(B22,PremisaCosto!$A$69:$D$79,4,FALSE)) -> 0 | E22: =+E21 -> 0.1873344144 | G22: =+G20 -> 0 | H22: =+H20 -> 1 | J22: =+J21 -> 0 | K22: =+K21 -> 16.89 | M22: =+$J22*Energía!Z22*(1-$C22)*1000 -> 0 | N22: =+$J22*Energía!AA22*(1-$C22)*1000 -> 0 | O22: =+$J22*Energía!AB22*(1-$C22)*1000 -> 0 | P22: =+$J22*Energía!AC22*(1-$C22)*1000 -> 0 | Q22: =+SUMPRODUCT(M22:P22,PremisaCosto!$F$84:$I$84) -> 0 | R22: =+Potencia!X22*$K22*12*1000*(1-$C22) -> 142763300 | T22: =IF(Q22=0,0,(IF($AK$3=1,$E22*$F$4*G22/$Q$20,($E22*$F$4*G22-$AL$20*PremisaCosto!$F$84)/($Q$20-$M$20*PremisaCosto!$F$84)))) -> 0 | U22: =IF(R22=0,0,IF($AK$3=1,$E22*$F$4*H22/$R$20,($E22*$F$4*H22-$AM$20*PremisaCosto!$F$84)/($R$20-$AP$19*PremisaCosto!$F$84))) -> 0.9046756328 | W22: 0 | X22: 15.27997144 | Z22: =+IF($AK$3=1,$W22*Energía!Z22*(1-$C22)*1000,AL22) -> 0 | AA22: =+$W22*Energía!AA22*(1-$C22)*1000 -> 0 | AB22: =+$W22*Energía!AB22*(1-$C22)*1000 -> 0 | AC22: =+$W22*Energía!AC22*(1-$C22)*1000 -> 0 | AD22: =+SUMPRODUCT(Z22:AC22,PremisaCosto!$F$84:$I$84) -> 0 | AE22: =+IF($AK$3=1,Potencia!T22*$X22*12*1000*(1-$C22),AM22) -> 38339046.35 | AF22: =+Potencia!U22*$X22*12*1000*(1-$C22) -> 39022828.36 | AG22: =+Potencia!V22*$X22*12*1000*(1-$C22) -> 39737492.27 | AH22: =+Potencia!W22*$X22*12*1000*(1-$C22) -> 40420117.84 | AI22: =+SUMPRODUCT(AE22:AH22,PremisaCosto!$F$84:$I$84) -> 129154478.8 | AK22: MTD_1 Regular | AL22: =+IFERROR(VLOOKUP($AK22,[1]ITV_CD!$A$7:$W$149,AL$6,FALSE),0)/$AM$3 -> 0 | AM22: =+IFERROR(VLOOKUP($AK22,[1]ITV_CD!$A$7:$W$149,AM$6,FALSE),0)/$AM$3 -> 41570985.59 | AP22: =+Potencia!T23*$K23*12*1000*(1-$C23) -> 827768.2495
A23: =+PremisaCosto!A105 -> MTD_1 Agro | B23: =+PremisaCosto!H105 -> Agro | C23: =+IF(B23=0,0,VLOOKUP(B23,PremisaCosto!$A$69:$D$79,4,FALSE)) -> 0.05 | E23: 0.1873344144 | G23: =+G22 -> 0 | H23: =+H22 -> 1 | J23: =+J22 -> 0 | K23: 16.89 | M23: =+$J23*Energía!Z23*(1-$C23)*1000 -> 0 | N23: =+$J23*Energía!AA23*(1-$C23)*1000 -> 0 | O23: =+$J23*Energía!AB23*(1-$C23)*1000 -> 0 | P23: =+$J23*Energía!AC23*(1-$C23)*1000 -> 0 | Q23: =+SUMPRODUCT(M23:P23,PremisaCosto!$F$84:$I$84) -> 0 | R23: =+Potencia!X23*$K23*12*1000*(1-$C23) -> 2788544.877 | T23: =IF(Q23=0,0,(IF($AK$3=1,$E23*$F$4*G23/$Q$20,($E23*$F$4*G23-$AL$20*PremisaCosto!$F$84)/($Q$20-$M$20*PremisaCosto!$F$84)))) -> 0 | U23: =IF(R23=0,0,IF($AK$3=1,$E23*$F$4*H23/$R$20,($E23*$F$4*H23-$AM$20*PremisaCosto!$F$84)/($R$20-$AP$19*PremisaCosto!$F$84))) -> 0.9046756328 | W23: 0 | X23: 15.27997144 | Z23: =+IF($AK$3=1,$W23*Energía!Z23*(1-$C23)*1000,AL23) -> 0 | AA23: =+$W23*Energía!AA23*(1-$C23)*1000 -> 0 | AB23: =+$W23*Energía!AB23*(1-$C23)*1000 -> 0 | AC23: =+$W23*Energía!AC23*(1-$C23)*1000 -> 0 | AD23: =+SUMPRODUCT(Z23:AC23,PremisaCosto!$F$84:$I$84) -> 0 | AE23: =+IF($AK$3=1,Potencia!T23*$X23*12*1000*(1-$C23),AM23) -> 748861.7649 | AF23: =+Potencia!U23*$X23*12*1000*(1-$C23) -> 762218.7818 | AG23: =+Potencia!V23*$X23*12*1000*(1-$C23) -> 776178.9653 | AH23: =+Potencia!W23*$X23*12*1000*(1-$C23) -> 789513.1189 | AI23: =+SUMPRODUCT(AE23:AH23,PremisaCosto!$F$84:$I$84) -> 2522728.601 | AK23: MTD_1 Agro | AL23: =+IFERROR(VLOOKUP($AK23,[1]ITV_CD!$A$7:$W$149,AL$6,FALSE),0)/$AM$3 -> 0 | AM23: =+IFERROR(VLOOKUP($AK23,[1]ITV_CD!$A$7:$W$149,AM$6,FALSE),0)/$AM$3 -> 811989.9843 | AP23: =+Potencia!T24*$K24*12*1000*(1-$C24) -> 796.9249
A24: =+PremisaCosto!A106 -> MTD_1 Jub. 1 | B24: =+PremisaCosto!H106 -> Jub. 1 | C24: =+IF(B24=0,0,VLOOKUP(B24,PremisaCosto!$A$69:$D$79,4,FALSE)) -> 0.25 | E24: 0.1873344144 | G24: 0 | H24: =+H23 -> 1 | J24: 0 | K24: 16.89 | M24: =+$J24*Energía!Z24*(1-$C24)*1000 -> 0 | N24: =+$J24*Energía!AA24*(1-$C24)*1000 -> 0 | O24: =+$J24*Energía!AB24*(1-$C24)*1000 -> 0 | P24: =+$J24*Energía!AC24*(1-$C24)*1000 -> 0 | Q24: =+SUMPRODUCT(M24:P24,PremisaCosto!$F$84:$I$84) -> 0 | R24: =+Potencia!X24*$K24*12*1000*(1-$C24) -> 2661.082856 | T24: =IF(Q24=0,0,(IF($AK$3=1,$E24*$F$4*G24/$Q$20,($E24*$F$4*G24-$AL$20*PremisaCosto!$F$84)/($Q$20-$M$20*PremisaCosto!$F$84)))) -> 0 | U24: =IF(R24=0,0,IF($AK$3=1,$E24*$F$4*H24/$R$20,($E24*$F$4*H24-$AM$20*PremisaCosto!$F$84)/($R$20-$AP$19*PremisaCosto!$F$84))) -> 0.9046756328 | W24: 0 | X24: 15.27997144 | Z24: =+IF($AK$3=1,$W24*Energía!Z24*(1-$C24)*1000,AL24) -> 0 | AA24: =+$W24*Energía!AA24*(1-$C24)*1000 -> 0 | AB24: =+$W24*Energía!AB24*(1-$C24)*1000 -> 0 | AC24: =+$W24*Energía!AC24*(1-$C24)*1000 -> 0 | AD24: =+SUMPRODUCT(Z24:AC24,PremisaCosto!$F$84:$I$84) -> 0 | AE24: =+IF($AK$3=1,Potencia!T24*$X24*12*1000*(1-$C24),AM24) -> 720.9585382 | AF24: =+Potencia!U24*$X24*12*1000*(1-$C24) -> 728.8105039 | AG24: =+Potencia!V24*$X24*12*1000*(1-$C24) -> 737.4367691 | AH24: =+Potencia!W24*$X24*12*1000*(1-$C24) -> 746.6905708 | AI24: =+SUMPRODUCT(AE24:AH24,PremisaCosto!$F$84:$I$84) -> 2407.416817 | AK24: MTD_1 Jub. 1 | AL24: =+IFERROR(VLOOKUP($AK24,[1]ITV_CD!$A$7:$W$149,AL$6,FALSE),0)/$AM$3 -> 0 | AM24: =+IFERROR(VLOOKUP($AK24,[1]ITV_CD!$A$7:$W$149,AM$6,FALSE),0)/$AM$3 -> 781.7345463 | AP24: =+Potencia!T25*$K25*12*1000*(1-$C25) -> 0
A25: =+PremisaCosto!A107 -> MTD_1 Jub. 2 | B25: =+PremisaCosto!H107 -> Jub. 2 | C25: =+IF(B25=0,0,VLOOKUP(B25,PremisaCosto!$A$69:$D$79,4,FALSE)) -> 0.25 | E25: 0.1873344144 | G25: 0 | H25: 1 | J25: 0 | K25: 16.89 | M25: =+$J25*((Energía!Z25-Clientes!T25*Límites!$B$14*12)+Clientes!T25*Límites!$B$14*12*(1-$C25))*1000 -> 0 | N25: =+$J25*((Energía!AA25-Clientes!U25*Límites!$B$14*12)+Clientes!U25*Límites!$B$14*12*(1-$C25))*1000 -> 0 | O25: =+$J25*((Energía!AB25-Clientes!V25*Límites!$B$14*12)+Clientes!V25*Límites!$B$14*12*(1-$C25))*1000 -> 0 | P25: =+$J25*((Energía!AC25-Clientes!W25*Límites!$B$14*12)+Clientes!W25*Límites!$B$14*12*(1-$C25))*1000 -> 0 | Q25: =+SUMPRODUCT(M25:P25,PremisaCosto!$F$84:$I$84) -> 0 | R25: =+Potencia!X25*$K25*12*1000*(1-$C25) -> 0 | T25: =IF(Q25=0,0,(IF($AK$3=1,$E25*$F$4*G25/$Q$20,($E25*$F$4*G25-$AL$20*PremisaCosto!$F$84)/($Q$20-$M$20*PremisaCosto!$F$84)))) -> 0 | U25: =IF(R25=0,0,IF($AK$3=1,$E25*$F$4*H25/$R$20,($E25*$F$4*H25-$AM$20*PremisaCosto!$F$84)/($R$20-$AP$19*PremisaCosto!$F$84))) -> 0 | W25: 0 | X25: 0 | Z25: =+IF($AK$3=1,$W25*((Energía!Z25-Clientes!T25*Límites!$B$14*12)+Clientes!T25*Límites!$B$14*12*(1-$C25))*1000,AL25) -> 0 | AA25: =+$W25*((Energía!AA25-Clientes!U25*Límites!$B$14*12)+Clientes!U25*Límites!$B$14*12*(1-$C25))*1000 -> 0 | AB25: =+$W25*((Energía!AB25-Clientes!V25*Límites!$B$14*12)+Clientes!V25*Límites!$B$14*12*(1-$C25))*1000 -> 0 | AC25: =+$W25*((Energía!AC25-Clientes!W25*Límites!$B$14*12)+Clientes!W25*Límites!$B$14*12*(1-$C25))*1000 -> 0 | AD25: =+SUMPRODUCT(Z25:AC25,PremisaCosto!$F$84:$I$84) -> 0 | AE25: =+IF($AK$3=1,Potencia!T25*$X25*12*1000*(1-$C25),AM25) -> 0 | AF25: =+Potencia!U25*$X25*12*1000*(1-$C25) -> 0 | AG25: =+Potencia!V25*$X25*12*1000*(1-$C25) -> 0 | AH25: =+Potencia!W25*$X25*12*1000*(1-$C25) -> 0 | AI25: =+SUMPRODUCT(AE25:AH25,PremisaCosto!$F$84:$I$84) -> 0 | AK25: MTD_1 Jub. 2 | AL25: =+IFERROR(VLOOKUP($AK25,[1]ITV_CD!$A$7:$W$149,AL$6,FALSE),0)/$AM$3 -> 0 | AM25: =+IFERROR(VLOOKUP($AK25,[1]ITV_CD!$A$7:$W$149,AM$6,FALSE),0)/$AM$3 -> 0 | AP25: =+Potencia!T26*$K26*12*1000*(1-$C26) -> 0
A26: =+PremisaCosto!A108 -> MTD_1 Político | B26: =+PremisaCosto!H108 -> Político | C26: =+IF(B26=0,0,VLOOKUP(B26,PremisaCosto!$A$69:$D$79,4,FALSE)) -> 0.5 | E26: 0.1873344144 | G26: 0 | H26: 1 | J26: 0 | K26: 16.89 | M26: =+$J26*Energía!Z26*(1-$C26)*1000 -> 0 | N26: =+$J26*Energía!AA26*(1-$C26)*1000 -> 0 | O26: =+$J26*Energía!AB26*(1-$C26)*1000 -> 0 | P26: =+$J26*Energía!AC26*(1-$C26)*1000 -> 0 | Q26: =+SUMPRODUCT(M26:P26,PremisaCosto!$F$84:$I$84) -> 0 | R26: =+Potencia!X26*$K26*12*1000*(1-$C26) -> 0 | T26: =IF(Q26=0,0,(IF($AK$3=1,$E26*$F$4*G26/$Q$20,($E26*$F$4*G26-$AL$20*PremisaCosto!$F$84)/($Q$20-$M$20*PremisaCosto!$F$84)))) -> 0 | U26: =IF(R26=0,0,IF($AK$3=1,$E26*$F$4*H26/$R$20,($E26*$F$4*H26-$AM$20*PremisaCosto!$F$84)/($R$20-$AP$19*PremisaCosto!$F$84))) -> 0 | W26: 0 | X26: 0 | Z26: =+IF($AK$3=1,$W26*Energía!Z26*(1-$C26)*1000,AL26) -> 0 | AA26: =+$W26*Energía!AA26*(1-$C26)*1000 -> 0 | AB26: =+$W26*Energía!AB26*(1-$C26)*1000 -> 0 | AC26: =+$W26*Energía!AC26*(1-$C26)*1000 -> 0 | AD26: =+SUMPRODUCT(Z26:AC26,PremisaCosto!$F$84:$I$84) -> 0 | AE26: =+IF($AK$3=1,Potencia!T26*$X26*12*1000*(1-$C26),AM26) -> 0 | AF26: =+Potencia!U26*$X26*12*1000*(1-$C26) -> 0 | AG26: =+Potencia!V26*$X26*12*1000*(1-$C26) -> 0 | AH26: =+Potencia!W26*$X26*12*1000*(1-$C26) -> 0 | AI26: =+SUMPRODUCT(AE26:AH26,PremisaCosto!$F$84:$I$84) -> 0 | AK26: MTD_1 Político | AL26: =+IFERROR(VLOOKUP($AK26,[1]ITV_CD!$A$7:$W$149,AL$6,FALSE),0)/$AM$3 -> 0 | AM26: =+IFERROR(VLOOKUP($AK26,[1]ITV_CD!$A$7:$W$149,AM$6,FALSE),0)/$AM$3 -> 0 | AP26: =+Potencia!T27*$K27*12*1000*(1-$C27) -> 0
A27: =+PremisaCosto!A109 -> MTD_1 x1 | B27: =+PremisaCosto!H109 -> x1 | C27: =+IF(B27=0,0,VLOOKUP(B27,PremisaCosto!$A$69:$D$79,4,FALSE)) -> 0 | E27: 0.1873344144 | G27: 0 | H27: 1 | J27: 0 | K27: 16.89 | M27: =+$J27*Energía!Z27*(1-$C27)*1000 -> 0 | N27: =+$J27*Energía!AA27*(1-$C27)*1000 -> 0 | O27: =+$J27*Energía!AB27*(1-$C27)*1000 -> 0 | P27: =+$J27*Energía!AC27*(1-$C27)*1000 -> 0 | Q27: =+SUMPRODUCT(M27:P27,PremisaCosto!$F$84:$I$84) -> 0 | R27: =+Potencia!X27*$K27*12*1000*(1-$C27) -> 0 | T27: =IF(Q27=0,0,(IF($AK$3=1,$E27*$F$4*G27/$Q$20,($E27*$F$4*G27-$AL$20*PremisaCosto!$F$84)/($Q$20-$M$20*PremisaCosto!$F$84)))) -> 0 | U27: =IF(R27=0,0,IF($AK$3=1,$E27*$F$4*H27/$R$20,($E27*$F$4*H27-$AM$20*PremisaCosto!$F$84)/($R$20-$AP$19*PremisaCosto!$F$84))) -> 0 | W27: 0 | X27: 0 | Z27: =+IF($AK$3=1,$W27*Energía!Z27*(1-$C27)*1000,AL27) -> 0 | AA27: =+$W27*Energía!AA27*(1-$C27)*1000 -> 0 | AB27: =+$W27*Energía!AB27*(1-$C27)*1000 -> 0 | AC27: =+$W27*Energía!AC27*(1-$C27)*1000 -> 0 | AD27: =+SUMPRODUCT(Z27:AC27,PremisaCosto!$F$84:$I$84) -> 0 | AE27: =+IF($AK$3=1,Potencia!T27*$X27*12*1000*(1-$C27),AM27) -> 0 | AF27: =+Potencia!U27*$X27*12*1000*(1-$C27) -> 0 | AG27: =+Potencia!V27*$X27*12*1000*(1-$C27) -> 0 | AH27: =+Potencia!W27*$X27*12*1000*(1-$C27) -> 0 | AI27: =+SUMPRODUCT(AE27:AH27,PremisaCosto!$F$84:$I$84) -> 0 | AK27: MTD_1 x1 | AL27: =+IFERROR(VLOOKUP($AK27,[1]ITV_CD!$A$7:$W$149,AL$6,FALSE),0)/$AM$3 -> 0 | AM27: =+IFERROR(VLOOKUP($AK27,[1]ITV_CD!$A$7:$W$149,AM$6,FALSE),0)/$AM$3 -> 0 | AP27: =+Potencia!T28*$K28*12*1000*(1-$C28) -> 0
A28: =+PremisaCosto!A110 -> MTD_1 x2 | B28: =+PremisaCosto!H110 -> x2 | C28: =+IF(B28=0,0,VLOOKUP(B28,PremisaCosto!$A$69:$D$79,4,FALSE)) -> 0 | E28: 0.1873344144 | G28: 0 | H28: 1 | J28: 0 | K28: 16.89 | M28: =+$J28*((Energía!Z28-Clientes!T28*Límites!$B$16*12)+Clientes!T28*Límites!$B$16*12*(1-$C28))*1000 -> 0 | N28: =+$J28*((Energía!AA28-Clientes!U28*Límites!$B$16*12)+Clientes!U28*Límites!$B$16*12*(1-$C28))*1000 -> 0 | O28: =+$J28*((Energía!AB28-Clientes!V28*Límites!$B$16*12)+Clientes!V28*Límites!$B$16*12*(1-$C28))*1000 -> 0 | P28: =+$J28*((Energía!AC28-Clientes!W28*Límites!$B$16*12)+Clientes!W28*Límites!$B$16*12*(1-$C28))*1000 -> 0 | Q28: =+SUMPRODUCT(M28:P28,PremisaCosto!$F$84:$I$84) -> 0 | R28: =+Potencia!X28*$K28*12*1000*(1-$C28) -> 0 | T28: =IF(Q28=0,0,(IF($AK$3=1,$E28*$F$4*G28/$Q$20,($E28*$F$4*G28-$AL$20*PremisaCosto!$F$84)/($Q$20-$M$20*PremisaCosto!$F$84)))) -> 0 | U28: =IF(R28=0,0,IF($AK$3=1,$E28*$F$4*H28/$R$20,($E28*$F$4*H28-$AM$20*PremisaCosto!$F$84)/($R$20-$AP$19*PremisaCosto!$F$84))) -> 0 | W28: 0 | X28: 0 | Z28: =+IF($AK$3=1,$W28*((Energía!Z28-Clientes!T28*Límites!$B$16*12)+Clientes!T28*Límites!$B$16*12*(1-$C28))*1000,AL28) -> 0 | AA28: =+$W28*((Energía!AA28-Clientes!U28*Límites!$B$16*12)+Clientes!U28*Límites!$B$16*12*(1-$C28))*1000 -> 0 | AB28: =+$W28*((Energía!AB28-Clientes!V28*Límites!$B$16*12)+Clientes!V28*Límites!$B$16*12*(1-$C28))*1000 -> 0 | AC28: =+$W28*((Energía!AC28-Clientes!W28*Límites!$B$16*12)+Clientes!W28*Límites!$B$16*12*(1-$C28))*1000 -> 0 | AD28: =+SUMPRODUCT(Z28:AC28,PremisaCosto!$F$84:$I$84) -> 0 | AE28: =+IF($AK$3=1,Potencia!T28*$X28*12*1000*(1-$C28),AM28) -> 0 | AF28: =+Potencia!U28*$X28*12*1000*(1-$C28) -> 0 | AG28: =+Potencia!V28*$X28*12*1000*(1-$C28) -> 0 | AH28: =+Potencia!W28*$X28*12*1000*(1-$C28) -> 0 | AI28: =+SUMPRODUCT(AE28:AH28,PremisaCosto!$F$84:$I$84) -> 0 | AK28: MTD_1 x2 | AL28: =+IFERROR(VLOOKUP($AK28,[1]ITV_CD!$A$7:$W$149,AL$6,FALSE),0)/$AM$3 -> 0 | AM28: =+IFERROR(VLOOKUP($AK28,[1]ITV_CD!$A$7:$W$149,AM$6,FALSE),0)/$AM$3 -> 0 | AP28: =+Potencia!T29*$K29*12*1000*(1-$C29) -> 0
A29: =+PremisaCosto!A111 -> MTD_1 Discap. | B29: =+PremisaCosto!H111 -> Discap. | C29: =+IF(B29=0,0,VLOOKUP(B29,PremisaCosto!$A$69:$D$79,4,FALSE)) -> 0.25 | E29: 0.1873344144 | G29: 0 | H29: 1 | J29: 0 | K29: 16.89 | M29: =+$J29*Energía!Z29*(1-$C29)*1000 -> 0 | N29: =+$J29*Energía!AA29*(1-$C29)*1000 -> 0 | O29: =+$J29*Energía!AB29*(1-$C29)*1000 -> 0 | P29: =+$J29*Energía!AC29*(1-$C29)*1000 -> 0 | Q29: =+SUMPRODUCT(M29:P29,PremisaCosto!$F$84:$I$84) -> 0 | R29: =+Potencia!X29*$K29*12*1000*(1-$C29) -> 0 | T29: =IF(Q29=0,0,(IF($AK$3=1,$E29*$F$4*G29/$Q$20,($E29*$F$4*G29-$AL$20*PremisaCosto!$F$84)/($Q$20-$M$20*PremisaCosto!$F$84)))) -> 0 | U29: =IF(R29=0,0,IF($AK$3=1,$E29*$F$4*H29/$R$20,($E29*$F$4*H29-$AM$20*PremisaCosto!$F$84)/($R$20-$AP$19*PremisaCosto!$F$84))) -> 0 | W29: 0 | X29: 0 | Z29: =+IF($AK$3=1,$W29*Energía!Z29*(1-$C29)*1000,AL29) -> 0 | AA29: =+$W29*Energía!AA29*(1-$C29)*1000 -> 0 | AB29: =+$W29*Energía!AB29*(1-$C29)*1000 -> 0 | AC29: =+$W29*Energía!AC29*(1-$C29)*1000 -> 0 | AD29: =+SUMPRODUCT(Z29:AC29,PremisaCosto!$F$84:$I$84) -> 0 | AE29: =+IF($AK$3=1,Potencia!T29*$X29*12*1000*(1-$C29),AM29) -> 0 | AF29: =+Potencia!U29*$X29*12*1000*(1-$C29) -> 0 | AG29: =+Potencia!V29*$X29*12*1000*(1-$C29) -> 0 | AH29: =+Potencia!W29*$X29*12*1000*(1-$C29) -> 0 | AI29: =+SUMPRODUCT(AE29:AH29,PremisaCosto!$F$84:$I$84) -> 0 | AK29: MTD_1 Discap. | AL29: =+IFERROR(VLOOKUP($AK29,[1]ITV_CD!$A$7:$W$149,AL$6,FALSE),0)/$AM$3 -> 0 | AM29: =+IFERROR(VLOOKUP($AK29,[1]ITV_CD!$A$7:$W$149,AM$6,FALSE),0)/$AM$3 -> 0 | AP29: =+Potencia!T30*$K30*12*1000*(1-$C30) -> 0
A30: =+PremisaCosto!A112 -> MTD_1 Discapacitados 601-más | B30: =+PremisaCosto!H112 -> Discapacitados 601-más | C30: =+IF(B30=0,0,VLOOKUP(B30,PremisaCosto!$A$69:$D$79,4,FALSE)) -> 0.25 | E30: 0.1873344144 | G30: 0 | H30: 1 | J30: 0 | K30: 16.89 | M30: =+$J30*((Energía!Z30-Clientes!T30*Límites!$B$15*12)+Clientes!T30*Límites!$B$15*12*(1-$C30))*1000 -> 0 | N30: =+$J30*((Energía!AA30-Clientes!U30*Límites!$B$15*12)+Clientes!U30*Límites!$B$15*12*(1-$C30))*1000 -> 0 | O30: =+$J30*((Energía!AB30-Clientes!V30*Límites!$B$15*12)+Clientes!V30*Límites!$B$15*12*(1-$C30))*1000 -> 0 | P30: =+$J30*((Energía!AC30-Clientes!W30*Límites!$B$15*12)+Clientes!W30*Límites!$B$15*12*(1-$C30))*1000 -> 0 | Q30: =+SUMPRODUCT(M30:P30,PremisaCosto!$F$84:$I$84) -> 0 | R30: =+Potencia!X30*$K30*12*1000*(1-$C30) -> 0 | T30: =IF(Q30=0,0,(IF($AK$3=1,$E30*$F$4*G30/$Q$20,($E30*$F$4*G30-$AL$20*PremisaCosto!$F$84)/($Q$20-$M$20*PremisaCosto!$F$84)))) -> 0 | U30: =IF(R30=0,0,IF($AK$3=1,$E30*$F$4*H30/$R$20,($E30*$F$4*H30-$AM$20*PremisaCosto!$F$84)/($R$20-$AP$19*PremisaCosto!$F$84))) -> 0 | W30: 0 | X30: 0 | Z30: =+IF($AK$3=1,$W30*((Energía!Z30-Clientes!T30*Límites!$B$15*12)+Clientes!T30*Límites!$B$15*12*(1-$C30))*1000,AL30) -> 0 | AA30: =+$W30*((Energía!AA30-Clientes!U30*Límites!$B$15*12)+Clientes!U30*Límites!$B$15*12*(1-$C30))*1000 -> 0 | AB30: =+$W30*((Energía!AB30-Clientes!V30*Límites!$B$15*12)+Clientes!V30*Límites!$B$15*12*(1-$C30))*1000 -> 0 | AC30: =+$W30*((Energía!AC30-Clientes!W30*Límites!$B$15*12)+Clientes!W30*Límites!$B$15*12*(1-$C30))*1000 -> 0 | AD30: =+SUMPRODUCT(Z30:AC30,PremisaCosto!$F$84:$I$84) -> 0 | AE30: =+IF($AK$3=1,Potencia!T30*$X30*12*1000*(1-$C30),AM30) -> 0 | AF30: =+Potencia!U30*$X30*12*1000*(1-$C30) -> 0 | AG30: =+Potencia!V30*$X30*12*1000*(1-$C30) -> 0 | AH30: =+Potencia!W30*$X30*12*1000*(1-$C30) -> 0 | AI30: =+SUMPRODUCT(AE30:AH30,PremisaCosto!$F$84:$I$84) -> 0 | AK30: MTD_1 Discapacitados 601-más | AL30: =+IFERROR(VLOOKUP($AK30,[1]ITV_CD!$A$7:$W$149,AL$6,FALSE),0)/$AM$3 -> 0 | AM30: =+IFERROR(VLOOKUP($AK30,[1]ITV_CD!$A$7:$W$149,AM$6,FALSE),0)/$AM$3 -> 0 | AP30: =+Potencia!T31*$K31*12*1000*(1-$C31) -> 0
A31: =+PremisaCosto!A113 -> MTD_1 Cruz Roja | B31: =+PremisaCosto!H113 -> Cruz Roja | C31: =+IF(B31=0,0,VLOOKUP(B31,PremisaCosto!$A$69:$D$79,4,FALSE)) -> 1 | E31: 0.1873344144 | G31: 0 | H31: 1 | J31: 0 | K31: 16.89 | M31: =+$J31*Energía!Z31*(1-$C31)*1000 -> 0 | N31: =+$J31*Energía!AA31*(1-$C31)*1000 -> 0 | O31: =+$J31*Energía!AB31*(1-$C31)*1000 -> 0 | P31: =+$J31*Energía!AC31*(1-$C31)*1000 -> 0 | Q31: =+SUMPRODUCT(M31:P31,PremisaCosto!$F$84:$I$84) -> 0 | R31: =+Potencia!X31*$K31*12*1000*(1-$C31) -> 0 | T31: =IF(Q31=0,0,(IF($AK$3=1,$E31*$F$4*G31/$Q$20,($E31*$F$4*G31-$AL$20*PremisaCosto!$F$84)/($Q$20-$M$20*PremisaCosto!$F$84)))) -> 0 | U31: =IF(R31=0,0,IF($AK$3=1,$E31*$F$4*H31/$R$20,($E31*$F$4*H31-$AM$20*PremisaCosto!$F$84)/($R$20-$AP$19*PremisaCosto!$F$84))) -> 0 | W31: 0 | X31: 0 | Z31: =+IF($AK$3=1,$W31*Energía!Z31*(1-$C31)*1000,AL31) -> 0 | AA31: =+$W31*Energía!AA31*(1-$C31)*1000 -> 0 | AB31: =+$W31*Energía!AB31*(1-$C31)*1000 -> 0 | AC31: =+$W31*Energía!AC31*(1-$C31)*1000 -> 0 | AD31: =+SUMPRODUCT(Z31:AC31,PremisaCosto!$F$84:$I$84) -> 0 | AE31: =+IF($AK$3=1,Potencia!T31*$X31*12*1000*(1-$C31),AM31) -> 0 | AF31: =+Potencia!U31*$X31*12*1000*(1-$C31) -> 0 | AG31: =+Potencia!V31*$X31*12*1000*(1-$C31) -> 0 | AH31: =+Potencia!W31*$X31*12*1000*(1-$C31) -> 0 | AI31: =+SUMPRODUCT(AE31:AH31,PremisaCosto!$F$84:$I$84) -> 0 | AK31: MTD_1 Cruz Roja | AL31: =+IFERROR(VLOOKUP($AK31,[1]ITV_CD!$A$7:$W$149,AL$6,FALSE),0)/$AM$3 -> 0 | AM31: =+IFERROR(VLOOKUP($AK31,[1]ITV_CD!$A$7:$W$149,AM$6,FALSE),0)/$AM$3 -> 0 | AP31: =+SUM(AP32:AP41) -> 0
A32: =+PremisaCosto!A114 -> MTD_2 (10,001-30,000) | B32: =+PremisaCosto!H114 -> 0 | C32: =+IF(B32=0,0,VLOOKUP(B32,PremisaCosto!$A$69:$D$79,4,FALSE)) -> 0 | E32: 0.1873344144 | G32: 0 | H32: 1 | J32: =+VLOOKUP($A32,[1]Diseño!$A$7:$BH$76,4,FALSE) -> 0 | K32: =+VLOOKUP($A32,[1]Diseño!$A$7:$BH$76,5,FALSE) -> 16.89 | M32: =+SUM(M33:M42) -> 0 | N32: 0 | O32: 0 | P32: 0 | Q32: 0 | R32: 0 | T32: =IF(Q32=0,0,(IF($AK$3=1,$E32*$F$4*G32/$Q$20,($E32*$F$4*G32-$AL$20*PremisaCosto!$F$84)/($Q$20-$M$20*PremisaCosto!$F$84)))) -> 0 | U32: =IF(R32=0,0,IF($AK$3=1,$E32*$F$4*H32/$R$20,($E32*$F$4*H32-$AM$20*PremisaCosto!$F$84)/($R$20-$AP$19*PremisaCosto!$F$84))) -> 0 | W32: =+W33 -> 0 | X32: =+X33 -> 0 | Z32: =+SUM(Z33:Z42) -> 0 | AA32: =+SUM(AA33:AA42) -> 0 | AB32: =+SUM(AB33:AB42) -> 0 | AC32: =+SUM(AC33:AC42) -> 0 | AD32: =+SUM(AD33:AD42) -> 0 | AE32: 0 | AF32: 0 | AG32: 0 | AH32: 0 | AI32: =+SUM(AI33:AI42) -> 0 | AK32: MTD_2 (10,001-30,000) | AL32: =+IFERROR(VLOOKUP($AK32,[1]ITV_CD!$A$7:$W$149,AL$6,FALSE),0)/$AM$3 -> 0 | AM32: =+IFERROR(VLOOKUP($AK32,[1]ITV_CD!$A$7:$W$149,AM$6,FALSE),0)/$AM$3 -> 0 | AP32: =+Potencia!T33*$K33*12*1000*(1-$C33) -> 0
A33: =+PremisaCosto!A115 -> MTD_2 Regular | B33: =+PremisaCosto!H115 -> Regular | C33: =+IF(B33=0,0,VLOOKUP(B33,PremisaCosto!$A$69:$D$79,4,FALSE)) -> 0 | E33: 0.1873344144 | G33: 0 | H33: 1 | J33: =+J32 -> 0 | K33: =+K32 -> 16.89 | M33: =+($J33*(Energía!Z33-Clientes!T33*Límites!$B$6*12)+$J22*Clientes!T33*Límites!$B$6*12)*(1-$C33)*1000 -> 0 | N33: =+($J33*(Energía!AA33-Clientes!U33*Límites!$B$6*12)+$J22*Clientes!U33*Límites!$B$6*12)*(1-$C33)*1000 -> 0 | O33: =+($J33*(Energía!AB33-Clientes!V33*Límites!$B$6*12)+$J22*Clientes!V33*Límites!$B$6*12)*(1-$C33)*1000 -> 0 | P33: =+($J33*(Energía!AC33-Clientes!W33*Límites!$B$6*12)+$J22*Clientes!W33*Límites!$B$6*12)*(1-$C33)*1000 -> 0 | Q33: =+SUMPRODUCT(M33:P33,PremisaCosto!$F$84:$I$84) -> 0 | R33: =+Potencia!X33*$K33*12*1000*(1-$C33) -> 0 | T33: =IF(Q33=0,0,(IF($AK$3=1,$E33*$F$4*G33/$Q$20,($E33*$F$4*G33-$AL$20*PremisaCosto!$F$84)/($Q$20-$M$20*PremisaCosto!$F$84)))) -> 0 | U33: =IF(R33=0,0,IF($AK$3=1,$E33*$F$4*H33/$R$20,($E33*$F$4*H33-$AM$20*PremisaCosto!$F$84)/($R$20-$AP$19*PremisaCosto!$F$84))) -> 0 | W33: 0 | X33: 0 | Z33: =+($W33*(Energía!Z33-Clientes!T33*Límites!$B$6*12)+$W22*Clientes!T33*Límites!$B$6*12)*(1-$C33)*1000 -> 0 | AA33: =+($W33*(Energía!AA33-Clientes!U33*Límites!$B$6*12)+$W22*Clientes!U33*Límites!$B$6*12)*(1-$C33)*1000 -> 0 | AB33: =+($W33*(Energía!AB33-Clientes!V33*Límites!$B$6*12)+$W22*Clientes!V33*Límites!$B$6*12)*(1-$C33)*1000 -> 0 | AC33: =+($W33*(Energía!AC33-Clientes!W33*Límites!$B$6*12)+$W22*Clientes!W33*Límites!$B$6*12)*(1-$C33)*1000 -> 0 | AD33: =+SUMPRODUCT(Z33:AC33,PremisaCosto!$F$84:$I$84) -> 0 | AE33: =+IF($AK$3=1,Potencia!T33*$X33*12*1000*(1-$C33),AM33) -> 0 | AF33: =+Potencia!U33*$X33*12*1000*(1-$C33) -> 0 | AG33: =+Potencia!V33*$X33*12*1000*(1-$C33) -> 0 | AH33: =+Potencia!W33*$X33*12*1000*(1-$C33) -> 0 | AI33: =+SUMPRODUCT(AE33:AH33,PremisaCosto!$F$84:$I$84) -> 0 | AK33: MTD_2 Regular | AL33: =+IFERROR(VLOOKUP($AK33,[1]ITV_CD!$A$7:$W$149,AL$6,FALSE),0)/$AM$3 -> 0 | AM33: =+IFERROR(VLOOKUP($AK33,[1]ITV_CD!$A$7:$W$149,AM$6,FALSE),0)/$AM$3 -> 0 | AP33: =+Potencia!T34*$K34*12*1000*(1-$C34) -> 0
A34: =+PremisaCosto!A116 -> MTD_2 Agro | B34: =+PremisaCosto!H116 -> Agro | C34: =+IF(B34=0,0,VLOOKUP(B34,PremisaCosto!$A$69:$D$79,4,FALSE)) -> 0.05 | E34: 0.1873344144 | G34: 0 | H34: 1 | J34: =+J33 -> 0 | K34: 16.89 | M34: =+($J34*(Energía!Z34-Clientes!T34*Límites!$B$6*12)+$J23*Clientes!T34*Límites!$B$6*12)*(1-$C34)*1000 -> 0 | N34: =+($J34*(Energía!AA34-Clientes!U34*Límites!$B$6*12)+$J23*Clientes!U34*Límites!$B$6*12)*(1-$C34)*1000 -> 0 | O34: =+($J34*(Energía!AB34-Clientes!V34*Límites!$B$6*12)+$J23*Clientes!V34*Límites!$B$6*12)*(1-$C34)*1000 -> 0 | P34: =+($J34*(Energía!AC34-Clientes!W34*Límites!$B$6*12)+$J23*Clientes!W34*Límites!$B$6*12)*(1-$C34)*1000 -> 0 | Q34: =+SUMPRODUCT(M34:P34,PremisaCosto!$F$84:$I$84) -> 0 | R34: =+Potencia!X34*$K34*12*1000*(1-$C34) -> 0 | T34: =IF(Q34=0,0,(IF($AK$3=1,$E34*$F$4*G34/$Q$20,($E34*$F$4*G34-$AL$20*PremisaCosto!$F$84)/($Q$20-$M$20*PremisaCosto!$F$84)))) -> 0 | U34: =IF(R34=0,0,IF($AK$3=1,$E34*$F$4*H34/$R$20,($E34*$F$4*H34-$AM$20*PremisaCosto!$F$84)/($R$20-$AP$19*PremisaCosto!$F$84))) -> 0 | W34: 0 | X34: 0 | Z34: =+($W34*(Energía!Z34-Clientes!T34*Límites!$B$6*12)+$W23*Clientes!T34*Límites!$B$6*12)*(1-$C34)*1000 -> 0 | AA34: =+($W34*(Energía!AA34-Clientes!U34*Límites!$B$6*12)+$W23*Clientes!U34*Límites!$B$6*12)*(1-$C34)*1000 -> 0 | AB34: =+($W34*(Energía!AB34-Clientes!V34*Límites!$B$6*12)+$W23*Clientes!V34*Límites!$B$6*12)*(1-$C34)*1000 -> 0 | AC34: =+($W34*(Energía!AC34-Clientes!W34*Límites!$B$6*12)+$W23*Clientes!W34*Límites!$B$6*12)*(1-$C34)*1000 -> 0 | AD34: =+SUMPRODUCT(Z34:AC34,PremisaCosto!$F$84:$I$84) -> 0 | AE34: =+IF($AK$3=1,Potencia!T34*$X34*12*1000*(1-$C34),AM34) -> 0 | AF34: =+Potencia!U34*$X34*12*1000*(1-$C34) -> 0 | AG34: =+Potencia!V34*$X34*12*1000*(1-$C34) -> 0 | AH34: =+Potencia!W34*$X34*12*1000*(1-$C34) -> 0 | AI34: =+SUMPRODUCT(AE34:AH34,PremisaCosto!$F$84:$I$84) -> 0 | AK34: MTD_2 Agro | AL34: =+IFERROR(VLOOKUP($AK34,[1]ITV_CD!$A$7:$W$149,AL$6,FALSE),0)/$AM$3 -> 0 | AM34: =+IFERROR(VLOOKUP($AK34,[1]ITV_CD!$A$7:$W$149,AM$6,FALSE),0)/$AM$3 -> 0 | AP34: =+Potencia!T35*$K35*12*1000*(1-$C35) -> 0
A35: =+PremisaCosto!A117 -> MTD_2 Jub. 1 | B35: =+PremisaCosto!H117 -> Jub. 1 | C35: =+IF(B35=0,0,VLOOKUP(B35,PremisaCosto!$A$69:$D$79,4,FALSE)) -> 0.25 | E35: 0.1873344144 | G35: 0 | H35: 1 | J35: 0 | K35: 16.89 | M35: =+($J35*(Energía!Z35-Clientes!T35*Límites!$B$6*12)+$J24*Clientes!T35*Límites!$B$6*12)*(1-$C35)*1000 -> 0 | N35: =+($J35*(Energía!AA35-Clientes!U35*Límites!$B$6*12)+$J24*Clientes!U35*Límites!$B$6*12)*(1-$C35)*1000 -> 0 | O35: =+($J35*(Energía!AB35-Clientes!V35*Límites!$B$6*12)+$J24*Clientes!V35*Límites!$B$6*12)*(1-$C35)*1000 -> 0 | P35: =+($J35*(Energía!AC35-Clientes!W35*Límites!$B$6*12)+$J24*Clientes!W35*Límites!$B$6*12)*(1-$C35)*1000 -> 0 | Q35: =+SUMPRODUCT(M35:P35,PremisaCosto!$F$84:$I$84) -> 0 | R35: =+Potencia!X35*$K35*12*1000*(1-$C35) -> 0 | T35: =IF(Q35=0,0,(IF($AK$3=1,$E35*$F$4*G35/$Q$20,($E35*$F$4*G35-$AL$20*PremisaCosto!$F$84)/($Q$20-$M$20*PremisaCosto!$F$84)))) -> 0 | U35: =IF(R35=0,0,IF($AK$3=1,$E35*$F$4*H35/$R$20,($E35*$F$4*H35-$AM$20*PremisaCosto!$F$84)/($R$20-$AP$19*PremisaCosto!$F$84))) -> 0 | W35: 0 | X35: 0 | Z35: =+($W35*(Energía!Z35-Clientes!T35*Límites!$B$6*12)+$W24*Clientes!T35*Límites!$B$6*12)*(1-$C35)*1000 -> 0 | AA35: =+($W35*(Energía!AA35-Clientes!U35*Límites!$B$6*12)+$W24*Clientes!U35*Límites!$B$6*12)*(1-$C35)*1000 -> 0 | AB35: =+($W35*(Energía!AB35-Clientes!V35*Límites!$B$6*12)+$W24*Clientes!V35*Límites!$B$6*12)*(1-$C35)*1000 -> 0 | AC35: =+($W35*(Energía!AC35-Clientes!W35*Límites!$B$6*12)+$W24*Clientes!W35*Límites!$B$6*12)*(1-$C35)*1000 -> 0 | AD35: =+SUMPRODUCT(Z35:AC35,PremisaCosto!$F$84:$I$84) -> 0 | AE35: =+IF($AK$3=1,Potencia!T35*$X35*12*1000*(1-$C35),AM35) -> 0 | AF35: =+Potencia!U35*$X35*12*1000*(1-$C35) -> 0 | AG35: =+Potencia!V35*$X35*12*1000*(1-$C35) -> 0 | AH35: =+Potencia!W35*$X35*12*1000*(1-$C35) -> 0 | AI35: =+SUMPRODUCT(AE35:AH35,PremisaCosto!$F$84:$I$84) -> 0 | AK35: MTD_2 Jub. 1 | AL35: =+IFERROR(VLOOKUP($AK35,[1]ITV_CD!$A$7:$W$149,AL$6,FALSE),0)/$AM$3 -> 0 | AM35: =+IFERROR(VLOOKUP($AK35,[1]ITV_CD!$A$7:$W$149,AM$6,FALSE),0)/$AM$3 -> 0 | AP35: =+Potencia!T36*$K36*12*1000*(1-$C36) -> 0
A36: =+PremisaCosto!A118 -> MTD_2 Jub. 2 | B36: =+PremisaCosto!H118 -> Jub. 2 | C36: =+IF(B36=0,0,VLOOKUP(B36,PremisaCosto!$A$69:$D$79,4,FALSE)) -> 0.25 | E36: 0.1873344144 | G36: 0 | H36: =+H35 -> 1 | J36: 0 | K36: 16.89 | M36: =+($J36*(Energía!Z36-Clientes!T36*Límites!$B$6*12)+$J25*Clientes!T36*Límites!$B$6*12)*(1-$C36)*1000 -> 0 | N36: =+($J36*(Energía!AA36-Clientes!U36*Límites!$B$6*12)+$J25*Clientes!U36*Límites!$B$6*12)*(1-$C36)*1000 -> 0 | O36: =+($J36*(Energía!AB36-Clientes!V36*Límites!$B$6*12)+$J25*Clientes!V36*Límites!$B$6*12)*(1-$C36)*1000 -> 0 | P36: =+($J36*(Energía!AC36-Clientes!W36*Límites!$B$6*12)+$J25*Clientes!W36*Límites!$B$6*12)*(1-$C36)*1000 -> 0 | Q36: =+SUMPRODUCT(M36:P36,PremisaCosto!$F$84:$I$84) -> 0 | R36: =+Potencia!X36*$K36*12*1000*(1-$C36) -> 0 | T36: =IF(Q36=0,0,(IF($AK$3=1,$E36*$F$4*G36/$Q$20,($E36*$F$4*G36-$AL$20*PremisaCosto!$F$84)/($Q$20-$M$20*PremisaCosto!$F$84)))) -> 0 | U36: =IF(R36=0,0,IF($AK$3=1,$E36*$F$4*H36/$R$20,($E36*$F$4*H36-$AM$20*PremisaCosto!$F$84)/($R$20-$AP$19*PremisaCosto!$F$84))) -> 0 | W36: 0 | X36: 0 | Z36: =+($W36*(Energía!Z36-Clientes!T36*Límites!$B$6*12)+$W25*Clientes!T36*Límites!$B$6*12)*(1-$C36)*1000 -> 0 | AA36: =+($W36*(Energía!AA36-Clientes!U36*Límites!$B$6*12)+$W25*Clientes!U36*Límites!$B$6*12)*(1-$C36)*1000 -> 0 | AB36: =+($W36*(Energía!AB36-Clientes!V36*Límites!$B$6*12)+$W25*Clientes!V36*Límites!$B$6*12)*(1-$C36)*1000 -> 0 | AC36: =+($W36*(Energía!AC36-Clientes!W36*Límites!$B$6*12)+$W25*Clientes!W36*Límites!$B$6*12)*(1-$C36)*1000 -> 0 | AD36: =+SUMPRODUCT(Z36:AC36,PremisaCosto!$F$84:$I$84) -> 0 | AE36: =+IF($AK$3=1,Potencia!T36*$X36*12*1000*(1-$C36),AM36) -> 0 | AF36: =+Potencia!U36*$X36*12*1000*(1-$C36) -> 0 | AG36: =+Potencia!V36*$X36*12*1000*(1-$C36) -> 0 | AH36: =+Potencia!W36*$X36*12*1000*(1-$C36) -> 0 | AI36: =+SUMPRODUCT(AE36:AH36,PremisaCosto!$F$84:$I$84) -> 0 | AK36: MTD_2 Jub. 2 | AL36: =+IFERROR(VLOOKUP($AK36,[1]ITV_CD!$A$7:$W$149,AL$6,FALSE),0)/$AM$3 -> 0 | AM36: =+IFERROR(VLOOKUP($AK36,[1]ITV_CD!$A$7:$W$149,AM$6,FALSE),0)/$AM$3 -> 0 | AP36: =+Potencia!T37*$K37*12*1000*(1-$C37) -> 0
A37: =+PremisaCosto!A119 -> MTD_2 Político | B37: =+PremisaCosto!H119 -> Político | C37: =+IF(B37=0,0,VLOOKUP(B37,PremisaCosto!$A$69:$D$79,4,FALSE)) -> 0.5 | E37: 0.1873344144 | G37: 0 | H37: 1 | J37: 0 | K37: 16.89 | M37: =+($J37*(Energía!Z37-Clientes!T37*Límites!$B$6*12)+$J26*Clientes!T37*Límites!$B$6*12)*(1-$C37)*1000 -> 0 | N37: =+($J37*(Energía!AA37-Clientes!U37*Límites!$B$6*12)+$J26*Clientes!U37*Límites!$B$6*12)*(1-$C37)*1000 -> 0 | O37: =+($J37*(Energía!AB37-Clientes!V37*Límites!$B$6*12)+$J26*Clientes!V37*Límites!$B$6*12)*(1-$C37)*1000 -> 0 | P37: =+($J37*(Energía!AC37-Clientes!W37*Límites!$B$6*12)+$J26*Clientes!W37*Límites!$B$6*12)*(1-$C37)*1000 -> 0 | Q37: =+SUMPRODUCT(M37:P37,PremisaCosto!$F$84:$I$84) -> 0 | R37: =+Potencia!X37*$K37*12*1000*(1-$C37) -> 0 | T37: =IF(Q37=0,0,(IF($AK$3=1,$E37*$F$4*G37/$Q$20,($E37*$F$4*G37-$AL$20*PremisaCosto!$F$84)/($Q$20-$M$20*PremisaCosto!$F$84)))) -> 0 | U37: =IF(R37=0,0,IF($AK$3=1,$E37*$F$4*H37/$R$20,($E37*$F$4*H37-$AM$20*PremisaCosto!$F$84)/($R$20-$AP$19*PremisaCosto!$F$84))) -> 0 | W37: 0 | X37: 0 | Z37: =+($W37*(Energía!Z37-Clientes!T37*Límites!$B$6*12)+$W26*Clientes!T37*Límites!$B$6*12)*(1-$C37)*1000 -> 0 | AA37: =+($W37*(Energía!AA37-Clientes!U37*Límites!$B$6*12)+$W26*Clientes!U37*Límites!$B$6*12)*(1-$C37)*1000 -> 0 | AB37: =+($W37*(Energía!AB37-Clientes!V37*Límites!$B$6*12)+$W26*Clientes!V37*Límites!$B$6*12)*(1-$C37)*1000 -> 0 | AC37: =+($W37*(Energía!AC37-Clientes!W37*Límites!$B$6*12)+$W26*Clientes!W37*Límites!$B$6*12)*(1-$C37)*1000 -> 0 | AD37: =+SUMPRODUCT(Z37:AC37,PremisaCosto!$F$84:$I$84) -> 0 | AE37: =+IF($AK$3=1,Potencia!T37*$X37*12*1000*(1-$C37),AM37) -> 0 | AF37: =+Potencia!U37*$X37*12*1000*(1-$C37) -> 0 | AG37: =+Potencia!V37*$X37*12*1000*(1-$C37) -> 0 | AH37: =+Potencia!W37*$X37*12*1000*(1-$C37) -> 0 | AI37: =+SUMPRODUCT(AE37:AH37,PremisaCosto!$F$84:$I$84) -> 0 | AK37: MTD_2 Político | AL37: =+IFERROR(VLOOKUP($AK37,[1]ITV_CD!$A$7:$W$149,AL$6,FALSE),0)/$AM$3 -> 0 | AM37: =+IFERROR(VLOOKUP($AK37,[1]ITV_CD!$A$7:$W$149,AM$6,FALSE),0)/$AM$3 -> 0 | AP37: =+Potencia!T38*$K38*12*1000*(1-$C38) -> 0
A38: =+PremisaCosto!A120 -> MTD_2 x1 | B38: =+PremisaCosto!H120 -> x1 | C38: =+IF(B38=0,0,VLOOKUP(B38,PremisaCosto!$A$69:$D$79,4,FALSE)) -> 0 | E38: 0.1873344144 | G38: 0 | H38: 1 | J38: 0 | K38: 16.89 | M38: =+($J38*(Energía!Z38-Clientes!T38*Límites!$B$6*12)+$J27*Clientes!T38*Límites!$B$6*12)*(1-$C38)*1000 -> 0 | N38: =+($J38*(Energía!AA38-Clientes!U38*Límites!$B$6*12)+$J27*Clientes!U38*Límites!$B$6*12)*(1-$C38)*1000 -> 0 | O38: =+($J38*(Energía!AB38-Clientes!V38*Límites!$B$6*12)+$J27*Clientes!V38*Límites!$B$6*12)*(1-$C38)*1000 -> 0 | P38: =+($J38*(Energía!AC38-Clientes!W38*Límites!$B$6*12)+$J27*Clientes!W38*Límites!$B$6*12)*(1-$C38)*1000 -> 0 | Q38: =+SUMPRODUCT(M38:P38,PremisaCosto!$F$84:$I$84) -> 0 | R38: =+Potencia!X38*$K38*12*1000*(1-$C38) -> 0 | T38: =IF(Q38=0,0,(IF($AK$3=1,$E38*$F$4*G38/$Q$20,($E38*$F$4*G38-$AL$20*PremisaCosto!$F$84)/($Q$20-$M$20*PremisaCosto!$F$84)))) -> 0 | U38: =IF(R38=0,0,IF($AK$3=1,$E38*$F$4*H38/$R$20,($E38*$F$4*H38-$AM$20*PremisaCosto!$F$84)/($R$20-$AP$19*PremisaCosto!$F$84))) -> 0 | W38: 0 | X38: 0 | Z38: =+($W38*(Energía!Z38-Clientes!T38*Límites!$B$6*12)+$W27*Clientes!T38*Límites!$B$6*12)*(1-$C38)*1000 -> 0 | AA38: =+($W38*(Energía!AA38-Clientes!U38*Límites!$B$6*12)+$W27*Clientes!U38*Límites!$B$6*12)*(1-$C38)*1000 -> 0 | AB38: =+($W38*(Energía!AB38-Clientes!V38*Límites!$B$6*12)+$W27*Clientes!V38*Límites!$B$6*12)*(1-$C38)*1000 -> 0 | AC38: =+($W38*(Energía!AC38-Clientes!W38*Límites!$B$6*12)+$W27*Clientes!W38*Límites!$B$6*12)*(1-$C38)*1000 -> 0 | AD38: =+SUMPRODUCT(Z38:AC38,PremisaCosto!$F$84:$I$84) -> 0 | AE38: =+IF($AK$3=1,Potencia!T38*$X38*12*1000*(1-$C38),AM38) -> 0 | AF38: =+Potencia!U38*$X38*12*1000*(1-$C38) -> 0 | AG38: =+Potencia!V38*$X38*12*1000*(1-$C38) -> 0 | AH38: =+Potencia!W38*$X38*12*1000*(1-$C38) -> 0 | AI38: =+SUMPRODUCT(AE38:AH38,PremisaCosto!$F$84:$I$84) -> 0 | AK38: MTD_2 x1 | AL38: =+IFERROR(VLOOKUP($AK38,[1]ITV_CD!$A$7:$W$149,AL$6,FALSE),0)/$AM$3 -> 0 | AM38: =+IFERROR(VLOOKUP($AK38,[1]ITV_CD!$A$7:$W$149,AM$6,FALSE),0)/$AM$3 -> 0 | AP38: =+Potencia!T39*$K39*12*1000*(1-$C39) -> 0
A39: =+PremisaCosto!A121 -> MTD_2 x2 | B39: =+PremisaCosto!H121 -> x2 | C39: =+IF(B39=0,0,VLOOKUP(B39,PremisaCosto!$A$69:$D$79,4,FALSE)) -> 0 | E39: 0.1873344144 | G39: 0 | H39: 1 | J39: 0 | K39: 16.89 | M39: =+($J39*(Energía!Z39-Clientes!T39*Límites!$B$6*12)+$J28*Clientes!T39*Límites!$B$6*12)*(1-$C39)*1000 -> 0 | N39: =+($J39*(Energía!AA39-Clientes!U39*Límites!$B$6*12)+$J28*Clientes!U39*Límites!$B$6*12)*(1-$C39)*1000 -> 0 | O39: =+($J39*(Energía!AB39-Clientes!V39*Límites!$B$6*12)+$J28*Clientes!V39*Límites!$B$6*12)*(1-$C39)*1000 -> 0 | P39: =+($J39*(Energía!AC39-Clientes!W39*Límites!$B$6*12)+$J28*Clientes!W39*Límites!$B$6*12)*(1-$C39)*1000 -> 0 | Q39: =+SUMPRODUCT(M39:P39,PremisaCosto!$F$84:$I$84) -> 0 | R39: =+Potencia!X39*$K39*12*1000*(1-$C39) -> 0 | T39: =IF(Q39=0,0,(IF($AK$3=1,$E39*$F$4*G39/$Q$20,($E39*$F$4*G39-$AL$20*PremisaCosto!$F$84)/($Q$20-$M$20*PremisaCosto!$F$84)))) -> 0 | U39: =IF(R39=0,0,IF($AK$3=1,$E39*$F$4*H39/$R$20,($E39*$F$4*H39-$AM$20*PremisaCosto!$F$84)/($R$20-$AP$19*PremisaCosto!$F$84))) -> 0 | W39: 0 | X39: 0 | Z39: =+($W39*(Energía!Z39-Clientes!T39*Límites!$B$6*12)+$W28*Clientes!T39*Límites!$B$6*12)*(1-$C39)*1000 -> 0 | AA39: =+($W39*(Energía!AA39-Clientes!U39*Límites!$B$6*12)+$W28*Clientes!U39*Límites!$B$6*12)*(1-$C39)*1000 -> 0 | AB39: =+($W39*(Energía!AB39-Clientes!V39*Límites!$B$6*12)+$W28*Clientes!V39*Límites!$B$6*12)*(1-$C39)*1000 -> 0 | AC39: =+($W39*(Energía!AC39-Clientes!W39*Límites!$B$6*12)+$W28*Clientes!W39*Límites!$B$6*12)*(1-$C39)*1000 -> 0 | AD39: =+SUMPRODUCT(Z39:AC39,PremisaCosto!$F$84:$I$84) -> 0 | AE39: =+IF($AK$3=1,Potencia!T39*$X39*12*1000*(1-$C39),AM39) -> 0 | AF39: =+Potencia!U39*$X39*12*1000*(1-$C39) -> 0 | AG39: =+Potencia!V39*$X39*12*1000*(1-$C39) -> 0 | AH39: =+Potencia!W39*$X39*12*1000*(1-$C39) -> 0 | AI39: =+SUMPRODUCT(AE39:AH39,PremisaCosto!$F$84:$I$84) -> 0 | AK39: MTD_2 x2 | AL39: =+IFERROR(VLOOKUP($AK39,[1]ITV_CD!$A$7:$W$149,AL$6,FALSE),0)/$AM$3 -> 0 | AM39: =+IFERROR(VLOOKUP($AK39,[1]ITV_CD!$A$7:$W$149,AM$6,FALSE),0)/$AM$3 -> 0 | AP39: =+Potencia!T40*$K40*12*1000*(1-$C40) -> 0
A40: =+PremisaCosto!A122 -> MTD_2 Discap. | B40: =+PremisaCosto!H122 -> Discap. | C40: =+IF(B40=0,0,VLOOKUP(B40,PremisaCosto!$A$69:$D$79,4,FALSE)) -> 0.25 | E40: 0.1873344144 | G40: 0 | H40: 1 | J40: 0 | K40: 16.89 | M40: =+($J40*(Energía!Z40-Clientes!T40*Límites!$B$6*12)+$J29*Clientes!T40*Límites!$B$6*12)*(1-$C40)*1000 -> 0 | N40: =+($J40*(Energía!AA40-Clientes!U40*Límites!$B$6*12)+$J29*Clientes!U40*Límites!$B$6*12)*(1-$C40)*1000 -> 0 | O40: =+($J40*(Energía!AB40-Clientes!V40*Límites!$B$6*12)+$J29*Clientes!V40*Límites!$B$6*12)*(1-$C40)*1000 -> 0 | P40: =+($J40*(Energía!AC40-Clientes!W40*Límites!$B$6*12)+$J29*Clientes!W40*Límites!$B$6*12)*(1-$C40)*1000 -> 0 | Q40: =+SUMPRODUCT(M40:P40,PremisaCosto!$F$84:$I$84) -> 0 | R40: =+Potencia!X40*$K40*12*1000*(1-$C40) -> 0 | T40: =IF(Q40=0,0,(IF($AK$3=1,$E40*$F$4*G40/$Q$20,($E40*$F$4*G40-$AL$20*PremisaCosto!$F$84)/($Q$20-$M$20*PremisaCosto!$F$84)))) -> 0 | U40: =IF(R40=0,0,IF($AK$3=1,$E40*$F$4*H40/$R$20,($E40*$F$4*H40-$AM$20*PremisaCosto!$F$84)/($R$20-$AP$19*PremisaCosto!$F$84))) -> 0 | W40: 0 | X40: 0 | Z40: =+($W40*(Energía!Z40-Clientes!T40*Límites!$B$6*12)+$W29*Clientes!T40*Límites!$B$6*12)*(1-$C40)*1000 -> 0 | AA40: =+($W40*(Energía!AA40-Clientes!U40*Límites!$B$6*12)+$W29*Clientes!U40*Límites!$B$6*12)*(1-$C40)*1000 -> 0 | AB40: =+($W40*(Energía!AB40-Clientes!V40*Límites!$B$6*12)+$W29*Clientes!V40*Límites!$B$6*12)*(1-$C40)*1000 -> 0 | AC40: =+($W40*(Energía!AC40-Clientes!W40*Límites!$B$6*12)+$W29*Clientes!W40*Límites!$B$6*12)*(1-$C40)*1000 -> 0 | AD40: =+SUMPRODUCT(Z40:AC40,PremisaCosto!$F$84:$I$84) -> 0 | AE40: =+IF($AK$3=1,Potencia!T40*$X40*12*1000*(1-$C40),AM40) -> 0 | AF40: =+Potencia!U40*$X40*12*1000*(1-$C40) -> 0 | AG40: =+Potencia!V40*$X40*12*1000*(1-$C40) -> 0 | AH40: =+Potencia!W40*$X40*12*1000*(1-$C40) -> 0 | AI40: =+SUMPRODUCT(AE40:AH40,PremisaCosto!$F$84:$I$84) -> 0 | AK40: MTD_2 Discap. | AL40: =+IFERROR(VLOOKUP($AK40,[1]ITV_CD!$A$7:$W$149,AL$6,FALSE),0)/$AM$3 -> 0 | AM40: =+IFERROR(VLOOKUP($AK40,[1]ITV_CD!$A$7:$W$149,AM$6,FALSE),0)/$AM$3 -> 0 | AP40: =+Potencia!T41*$K41*12*1000*(1-$C41) -> 0
A41: =+PremisaCosto!A123 -> MTD_2 Discapacitados 601-más | B41: =+PremisaCosto!H123 -> Discapacitados 601-más | C41: =+IF(B41=0,0,VLOOKUP(B41,PremisaCosto!$A$69:$D$79,4,FALSE)) -> 0.25 | E41: 0.1873344144 | G41: 0 | H41: 1 | J41: 0 | K41: 16.89 | M41: =+($J41*(Energía!Z41-Clientes!T41*Límites!$B$6*12)+$J30*Clientes!T41*Límites!$B$6*12)*(1-$C41)*1000 -> 0 | N41: =+($J41*(Energía!AA41-Clientes!U41*Límites!$B$6*12)+$J30*Clientes!U41*Límites!$B$6*12)*(1-$C41)*1000 -> 0 | O41: =+($J41*(Energía!AB41-Clientes!V41*Límites!$B$6*12)+$J30*Clientes!V41*Límites!$B$6*12)*(1-$C41)*1000 -> 0 | P41: =+($J41*(Energía!AC41-Clientes!W41*Límites!$B$6*12)+$J30*Clientes!W41*Límites!$B$6*12)*(1-$C41)*1000 -> 0 | Q41: =+SUMPRODUCT(M41:P41,PremisaCosto!$F$84:$I$84) -> 0 | R41: =+Potencia!X41*$K41*12*1000*(1-$C41) -> 0 | T41: =IF(Q41=0,0,(IF($AK$3=1,$E41*$F$4*G41/$Q$20,($E41*$F$4*G41-$AL$20*PremisaCosto!$F$84)/($Q$20-$M$20*PremisaCosto!$F$84)))) -> 0 | U41: =IF(R41=0,0,IF($AK$3=1,$E41*$F$4*H41/$R$20,($E41*$F$4*H41-$AM$20*PremisaCosto!$F$84)/($R$20-$AP$19*PremisaCosto!$F$84))) -> 0 | W41: 0 | X41: 0 | Z41: =+($W41*(Energía!Z41-Clientes!T41*Límites!$B$6*12)+$W30*Clientes!T41*Límites!$B$6*12)*(1-$C41)*1000 -> 0 | AA41: =+($W41*(Energía!AA41-Clientes!U41*Límites!$B$6*12)+$W30*Clientes!U41*Límites!$B$6*12)*(1-$C41)*1000 -> 0 | AB41: =+($W41*(Energía!AB41-Clientes!V41*Límites!$B$6*12)+$W30*Clientes!V41*Límites!$B$6*12)*(1-$C41)*1000 -> 0 | AC41: =+($W41*(Energía!AC41-Clientes!W41*Límites!$B$6*12)+$W30*Clientes!W41*Límites!$B$6*12)*(1-$C41)*1000 -> 0 | AD41: =+SUMPRODUCT(Z41:AC41,PremisaCosto!$F$84:$I$84) -> 0 | AE41: =+IF($AK$3=1,Potencia!T41*$X41*12*1000*(1-$C41),AM41) -> 0 | AF41: =+Potencia!U41*$X41*12*1000*(1-$C41) -> 0 | AG41: =+Potencia!V41*$X41*12*1000*(1-$C41) -> 0 | AH41: =+Potencia!W41*$X41*12*1000*(1-$C41) -> 0 | AI41: =+SUMPRODUCT(AE41:AH41,PremisaCosto!$F$84:$I$84) -> 0 | AK41: MTD_2 Discapacitados 601-más | AL41: =+IFERROR(VLOOKUP($AK41,[1]ITV_CD!$A$7:$W$149,AL$6,FALSE),0)/$AM$3 -> 0 | AM41: =+IFERROR(VLOOKUP($AK41,[1]ITV_CD!$A$7:$W$149,AM$6,FALSE),0)/$AM$3 -> 0 | AP41: =+Potencia!T42*$K42*12*1000*(1-$C42) -> 0
A42: =+PremisaCosto!A124 -> MTD_2 Cruz Roja | B42: =+PremisaCosto!H124 -> Cruz Roja | C42: =+IF(B42=0,0,VLOOKUP(B42,PremisaCosto!$A$69:$D$79,4,FALSE)) -> 1 | E42: 0.1873344144 | G42: 0 | H42: 1 | J42: 0 | K42: 16.89 | M42: =+($J42*(Energía!Z42-Clientes!T42*Límites!$B$6*12)+$J31*Clientes!T42*Límites!$B$6*12)*(1-$C42)*1000 -> 0 | N42: =+($J42*(Energía!AA42-Clientes!U42*Límites!$B$6*12)+$J31*Clientes!U42*Límites!$B$6*12)*(1-$C42)*1000 -> 0 | O42: =+($J42*(Energía!AB42-Clientes!V42*Límites!$B$6*12)+$J31*Clientes!V42*Límites!$B$6*12)*(1-$C42)*1000 -> 0 | P42: =+($J42*(Energía!AC42-Clientes!W42*Límites!$B$6*12)+$J31*Clientes!W42*Límites!$B$6*12)*(1-$C42)*1000 -> 0 | Q42: =+SUMPRODUCT(M42:P42,PremisaCosto!$F$84:$I$84) -> 0 | R42: =+Potencia!X42*$K42*12*1000*(1-$C42) -> 0 | T42: =IF(Q42=0,0,(IF($AK$3=1,$E42*$F$4*G42/$Q$20,($E42*$F$4*G42-$AL$20*PremisaCosto!$F$84)/($Q$20-$M$20*PremisaCosto!$F$84)))) -> 0 | U42: =IF(R42=0,0,IF($AK$3=1,$E42*$F$4*H42/$R$20,($E42*$F$4*H42-$AM$20*PremisaCosto!$F$84)/($R$20-$AP$19*PremisaCosto!$F$84))) -> 0 | W42: 0 | X42: 0 | Z42: =+($W42*(Energía!Z42-Clientes!T42*Límites!$B$6*12)+$W31*Clientes!T42*Límites!$B$6*12)*(1-$C42)*1000 -> 0 | AA42: =+($W42*(Energía!AA42-Clientes!U42*Límites!$B$6*12)+$W31*Clientes!U42*Límites!$B$6*12)*(1-$C42)*1000 -> 0 | AB42: =+($W42*(Energía!AB42-Clientes!V42*Límites!$B$6*12)+$W31*Clientes!V42*Límites!$B$6*12)*(1-$C42)*1000 -> 0 | AC42: =+($W42*(Energía!AC42-Clientes!W42*Límites!$B$6*12)+$W31*Clientes!W42*Límites!$B$6*12)*(1-$C42)*1000 -> 0 | AD42: =+SUMPRODUCT(Z42:AC42,PremisaCosto!$F$84:$I$84) -> 0 | AE42: =+IF($AK$3=1,Potencia!T42*$X42*12*1000*(1-$C42),AM42) -> 0 | AF42: =+Potencia!U42*$X42*12*1000*(1-$C42) -> 0 | AG42: =+Potencia!V42*$X42*12*1000*(1-$C42) -> 0 | AH42: =+Potencia!W42*$X42*12*1000*(1-$C42) -> 0 | AI42: =+SUMPRODUCT(AE42:AH42,PremisaCosto!$F$84:$I$84) -> 0 | AK42: MTD_2 Cruz Roja | AL42: =+IFERROR(VLOOKUP($AK42,[1]ITV_CD!$A$7:$W$149,AL$6,FALSE),0)/$AM$3 -> 0 | AM42: =+IFERROR(VLOOKUP($AK42,[1]ITV_CD!$A$7:$W$149,AM$6,FALSE),0)/$AM$3 -> 0 | AP42: =+SUM(AP43:AP52) -> 0
A43: =+PremisaCosto!A125 -> MTD_3 (30,001-50,000) | B43: =+PremisaCosto!H125 -> 0 | C43: =+IF(B43=0,0,VLOOKUP(B43,PremisaCosto!$A$69:$D$79,4,FALSE)) -> 0 | E43: 0.1873344144 | G43: 0 | H43: 1 | J43: =+VLOOKUP($A43,[1]Diseño!$A$7:$BH$76,4,FALSE) -> 0 | K43: =+VLOOKUP($A43,[1]Diseño!$A$7:$BH$76,5,FALSE) -> 16.89 | M43: =+SUM(M44:M53) -> 0 | N43: 0 | O43: 0 | P43: 0 | Q43: 0 | R43: 0 | T43: =IF(Q43=0,0,(IF($AK$3=1,$E43*$F$4*G43/$Q$20,($E43*$F$4*G43-$AL$20*PremisaCosto!$F$84)/($Q$20-$M$20*PremisaCosto!$F$84)))) -> 0 | U43: =IF(R43=0,0,IF($AK$3=1,$E43*$F$4*H43/$R$20,($E43*$F$4*H43-$AM$20*PremisaCosto!$F$84)/($R$20-$AP$19*PremisaCosto!$F$84))) -> 0 | W43: 0 | X43: 0 | Z43: =+SUM(Z44:Z53) -> 0 | AA43: =+SUM(AA44:AA53) -> 0 | AB43: =+SUM(AB44:AB53) -> 0 | AC43: =+SUM(AC44:AC53) -> 0 | AD43: =+SUM(AD44:AD53) -> 0 | AE43: 0 | AF43: 0 | AG43: 0 | AH43: 0 | AI43: =+SUM(AI44:AI53) -> 0 | AK43: MTD_3 (30,001-50,000) | AL43: =+IFERROR(VLOOKUP($AK43,[1]ITV_CD!$A$7:$W$149,AL$6,FALSE),0)/$AM$3 -> 0 | AM43: =+IFERROR(VLOOKUP($AK43,[1]ITV_CD!$A$7:$W$149,AM$6,FALSE),0)/$AM$3 -> 0 | AP43: =+Potencia!T44*$K44*12*1000*(1-$C44) -> 0
A44: =+PremisaCosto!A126 -> MTD_3 Regular | B44: =+PremisaCosto!H126 -> Regular | C44: =+IF(B44=0,0,VLOOKUP(B44,PremisaCosto!$A$69:$D$79,4,FALSE)) -> 0 | E44: 0.1873344144 | G44: 0 | H44: 1 | J44: =+J43 -> 0 | K44: =+K43 -> 16.89 | M44: =+($J44*(Energía!Z44-Clientes!T44*Límites!$C$6*12)+$J33*(Límites!$C$6-Límites!$B$6)*Clientes!T44*12+$J22*Clientes!T44*Límites!$B$6*12)*(1-$C44)*1000 -> 0 | N44: =+($J44*(Energía!AA44-Clientes!U44*Límites!$C$6*12)+$J33*(Límites!$C$6-Límites!$B$6)*Clientes!U44*12+$J22*Clientes!U44*Límites!$B$6*12)*(1-$C44)*1000 -> 0 | O44: =+($J44*(Energía!AB44-Clientes!V44*Límites!$C$6*12)+$J33*(Límites!$C$6-Límites!$B$6)*Clientes!V44*12+$J22*Clientes!V44*Límites!$B$6*12)*(1-$C44)*1000 -> 0 | P44: =+($J44*(Energía!AC44-Clientes!W44*Límites!$C$6*12)+$J33*(Límites!$C$6-Límites!$B$6)*Clientes!W44*12+$J22*Clientes!W44*Límites!$B$6*12)*(1-$C44)*1000 -> 0 | Q44: =+SUMPRODUCT(M44:P44,PremisaCosto!$F$84:$I$84) -> 0 | R44: =+Potencia!X44*$K44*12*1000*(1-$C44) -> 0 | T44: =IF(Q44=0,0,(IF($AK$3=1,$E44*$F$4*G44/$Q$20,($E44*$F$4*G44-$AL$20*PremisaCosto!$F$84)/($Q$20-$M$20*PremisaCosto!$F$84)))) -> 0 | U44: =IF(R44=0,0,IF($AK$3=1,$E44*$F$4*H44/$R$20,($E44*$F$4*H44-$AM$20*PremisaCosto!$F$84)/($R$20-$AP$19*PremisaCosto!$F$84))) -> 0 | W44: 0 | X44: 0 | Z44: =+($W44*(Energía!Z44-Clientes!T44*Límites!$C$6*12)+$W33*(Límites!$C$6-Límites!$B$6)*Clientes!T44*12+$W22*Clientes!T44*Límites!$B$6*12)*(1-$C44)*1000 -> 0 | AA44: =+($W44*(Energía!AA44-Clientes!U44*Límites!$C$6*12)+$W33*(Límites!$C$6-Límites!$B$6)*Clientes!U44*12+$W22*Clientes!U44*Límites!$B$6*12)*(1-$C44)*1000 -> 0 | AB44: =+($W44*(Energía!AB44-Clientes!V44*Límites!$C$6*12)+$W33*(Límites!$C$6-Límites!$B$6)*Clientes!V44*12+$W22*Clientes!V44*Límites!$B$6*12)*(1-$C44)*1000 -> 0 | AC44: =+($W44*(Energía!AC44-Clientes!W44*Límites!$C$6*12)+$W33*(Límites!$C$6-Límites!$B$6)*Clientes!W44*12+$W22*Clientes!W44*Límites!$B$6*12)*(1-$C44)*1000 -> 0 | AD44: =+SUMPRODUCT(Z44:AC44,PremisaCosto!$F$84:$I$84) -> 0 | AE44: =+IF($AK$3=1,Potencia!T44*$X44*12*1000*(1-$C44),AM44) -> 0 | AF44: =+Potencia!U44*$X44*12*1000*(1-$C44) -> 0 | AG44: =+Potencia!V44*$X44*12*1000*(1-$C44) -> 0 | AH44: =+Potencia!W44*$X44*12*1000*(1-$C44) -> 0 | AI44: =+SUMPRODUCT(AE44:AH44,PremisaCosto!$F$84:$I$84) -> 0 | AK44: MTD_3 Regular | AL44: =+IFERROR(VLOOKUP($AK44,[1]ITV_CD!$A$7:$W$149,AL$6,FALSE),0)/$AM$3 -> 0 | AM44: =+IFERROR(VLOOKUP($AK44,[1]ITV_CD!$A$7:$W$149,AM$6,FALSE),0)/$AM$3 -> 0 | AP44: =+Potencia!T45*$K45*12*1000*(1-$C45) -> 0
A45: =+PremisaCosto!A127 -> MTD_3 Agro | B45: =+PremisaCosto!H127 -> Agro | C45: =+IF(B45=0,0,VLOOKUP(B45,PremisaCosto!$A$69:$D$79,4,FALSE)) -> 0.05 | E45: 0.1873344144 | G45: 0 | H45: 1 | J45: =+J44 -> 0 | K45: 16.89 | M45: =+($J45*(Energía!Z45-Clientes!T45*Límites!$C$6*12)+$J34*(Límites!$C$6-Límites!$B$6)*Clientes!T45*12+$J23*Clientes!T45*Límites!$B$6*12)*(1-$C45)*1000 -> 0 | N45: =+($J45*(Energía!AA45-Clientes!U45*Límites!$C$6*12)+$J34*(Límites!$C$6-Límites!$B$6)*Clientes!U45*12+$J23*Clientes!U45*Límites!$B$6*12)*(1-$C45)*1000 -> 0 | O45: =+($J45*(Energía!AB45-Clientes!V45*Límites!$C$6*12)+$J34*(Límites!$C$6-Límites!$B$6)*Clientes!V45*12+$J23*Clientes!V45*Límites!$B$6*12)*(1-$C45)*1000 -> 0 | P45: =+($J45*(Energía!AC45-Clientes!W45*Límites!$C$6*12)+$J34*(Límites!$C$6-Límites!$B$6)*Clientes!W45*12+$J23*Clientes!W45*Límites!$B$6*12)*(1-$C45)*1000 -> 0 | Q45: =+SUMPRODUCT(M45:P45,PremisaCosto!$F$84:$I$84) -> 0 | R45: =+Potencia!X45*$K45*12*1000*(1-$C45) -> 0 | T45: =IF(Q45=0,0,(IF($AK$3=1,$E45*$F$4*G45/$Q$20,($E45*$F$4*G45-$AL$20*PremisaCosto!$F$84)/($Q$20-$M$20*PremisaCosto!$F$84)))) -> 0 | U45: =IF(R45=0,0,IF($AK$3=1,$E45*$F$4*H45/$R$20,($E45*$F$4*H45-$AM$20*PremisaCosto!$F$84)/($R$20-$AP$19*PremisaCosto!$F$84))) -> 0 | W45: 0 | X45: 0 | Z45: =+($W45*(Energía!Z45-Clientes!T45*Límites!$C$6*12)+$W34*(Límites!$C$6-Límites!$B$6)*Clientes!T45*12+$W23*Clientes!T45*Límites!$B$6*12)*(1-$C45)*1000 -> 0 | AA45: =+($W45*(Energía!AA45-Clientes!U45*Límites!$C$6*12)+$W34*(Límites!$C$6-Límites!$B$6)*Clientes!U45*12+$W23*Clientes!U45*Límites!$B$6*12)*(1-$C45)*1000 -> 0 | AB45: =+($W45*(Energía!AB45-Clientes!V45*Límites!$C$6*12)+$W34*(Límites!$C$6-Límites!$B$6)*Clientes!V45*12+$W23*Clientes!V45*Límites!$B$6*12)*(1-$C45)*1000 -> 0 | AC45: =+($W45*(Energía!AC45-Clientes!W45*Límites!$C$6*12)+$W34*(Límites!$C$6-Límites!$B$6)*Clientes!W45*12+$W23*Clientes!W45*Límites!$B$6*12)*(1-$C45)*1000 -> 0 | AD45: =+SUMPRODUCT(Z45:AC45,PremisaCosto!$F$84:$I$84) -> 0 | AE45: =+IF($AK$3=1,Potencia!T45*$X45*12*1000*(1-$C45),AM45) -> 0 | AF45: =+Potencia!U45*$X45*12*1000*(1-$C45) -> 0 | AG45: =+Potencia!V45*$X45*12*1000*(1-$C45) -> 0 | AH45: =+Potencia!W45*$X45*12*1000*(1-$C45) -> 0 | AI45: =+SUMPRODUCT(AE45:AH45,PremisaCosto!$F$84:$I$84) -> 0 | AK45: MTD_3 Agro | AL45: =+IFERROR(VLOOKUP($AK45,[1]ITV_CD!$A$7:$W$149,AL$6,FALSE),0)/$AM$3 -> 0 | AM45: =+IFERROR(VLOOKUP($AK45,[1]ITV_CD!$A$7:$W$149,AM$6,FALSE),0)/$AM$3 -> 0 | AP45: =+Potencia!T46*$K46*12*1000*(1-$C46) -> 0
A46: =+PremisaCosto!A128 -> MTD_3 Jub. 1 | B46: =+PremisaCosto!H128 -> Jub. 1 | C46: =+IF(B46=0,0,VLOOKUP(B46,PremisaCosto!$A$69:$D$79,4,FALSE)) -> 0.25 | E46: =+E45 -> 0.1873344144 | G46: 0 | H46: 1 | J46: 0 | K46: 16.89 | M46: =+($J46*(Energía!Z46-Clientes!T46*Límites!$C$6*12)+$J35*(Límites!$C$6-Límites!$B$6)*Clientes!T46*12+$J24*Clientes!T46*Límites!$B$6*12)*(1-$C46)*1000 -> 0 | N46: =+($J46*(Energía!AA46-Clientes!U46*Límites!$C$6*12)+$J35*(Límites!$C$6-Límites!$B$6)*Clientes!U46*12+$J24*Clientes!U46*Límites!$B$6*12)*(1-$C46)*1000 -> 0 | O46: =+($J46*(Energía!AB46-Clientes!V46*Límites!$C$6*12)+$J35*(Límites!$C$6-Límites!$B$6)*Clientes!V46*12+$J24*Clientes!V46*Límites!$B$6*12)*(1-$C46)*1000 -> 0 | P46: =+($J46*(Energía!AC46-Clientes!W46*Límites!$C$6*12)+$J35*(Límites!$C$6-Límites!$B$6)*Clientes!W46*12+$J24*Clientes!W46*Límites!$B$6*12)*(1-$C46)*1000 -> 0 | Q46: =+SUMPRODUCT(M46:P46,PremisaCosto!$F$84:$I$84) -> 0 | R46: =+Potencia!X46*$K46*12*1000*(1-$C46) -> 0 | T46: =IF(Q46=0,0,(IF($AK$3=1,$E46*$F$4*G46/$Q$20,($E46*$F$4*G46-$AL$20*PremisaCosto!$F$84)/($Q$20-$M$20*PremisaCosto!$F$84)))) -> 0 | U46: =IF(R46=0,0,IF($AK$3=1,$E46*$F$4*H46/$R$20,($E46*$F$4*H46-$AM$20*PremisaCosto!$F$84)/($R$20-$AP$19*PremisaCosto!$F$84))) -> 0 | W46: 0 | X46: 0 | Z46: =+($W46*(Energía!Z46-Clientes!T46*Límites!$C$6*12)+$W35*(Límites!$C$6-Límites!$B$6)*Clientes!T46*12+$W24*Clientes!T46*Límites!$B$6*12)*(1-$C46)*1000 -> 0 | AA46: =+($W46*(Energía!AA46-Clientes!U46*Límites!$C$6*12)+$W35*(Límites!$C$6-Límites!$B$6)*Clientes!U46*12+$W24*Clientes!U46*Límites!$B$6*12)*(1-$C46)*1000 -> 0 | AB46: =+($W46*(Energía!AB46-Clientes!V46*Límites!$C$6*12)+$W35*(Límites!$C$6-Límites!$B$6)*Clientes!V46*12+$W24*Clientes!V46*Límites!$B$6*12)*(1-$C46)*1000 -> 0 | AC46: =+($W46*(Energía!AC46-Clientes!W46*Límites!$C$6*12)+$W35*(Límites!$C$6-Límites!$B$6)*Clientes!W46*12+$W24*Clientes!W46*Límites!$B$6*12)*(1-$C46)*1000 -> 0 | AD46: =+SUMPRODUCT(Z46:AC46,PremisaCosto!$F$84:$I$84) -> 0 | AE46: =+IF($AK$3=1,Potencia!T46*$X46*12*1000*(1-$C46),AM46) -> 0 | AF46: =+Potencia!U46*$X46*12*1000*(1-$C46) -> 0 | AG46: =+Potencia!V46*$X46*12*1000*(1-$C46) -> 0 | AH46: =+Potencia!W46*$X46*12*1000*(1-$C46) -> 0 | AI46: =+SUMPRODUCT(AE46:AH46,PremisaCosto!$F$84:$I$84) -> 0 | AK46: MTD_3 Jub. 1 | AL46: =+IFERROR(VLOOKUP($AK46,[1]ITV_CD!$A$7:$W$149,AL$6,FALSE),0)/$AM$3 -> 0 | AM46: =+IFERROR(VLOOKUP($AK46,[1]ITV_CD!$A$7:$W$149,AM$6,FALSE),0)/$AM$3 -> 0 | AP46: =+Potencia!T47*$K47*12*1000*(1-$C47) -> 0
A47: =+PremisaCosto!A129 -> MTD_3 Jub. 2 | B47: =+PremisaCosto!H129 -> Jub. 2 | C47: =+IF(B47=0,0,VLOOKUP(B47,PremisaCosto!$A$69:$D$79,4,FALSE)) -> 0.25 | E47: 0.1873344144 | G47: 0 | H47: 1 | J47: 0 | K47: 16.89 | M47: =+($J47*(Energía!Z47-Clientes!T47*Límites!$C$6*12)+$J36*(Límites!$C$6-Límites!$B$6)*Clientes!T47*12+$J25*Clientes!T47*Límites!$B$6*12)*(1-$C47)*1000 -> 0 | N47: =+($J47*(Energía!AA47-Clientes!U47*Límites!$C$6*12)+$J36*(Límites!$C$6-Límites!$B$6)*Clientes!U47*12+$J25*Clientes!U47*Límites!$B$6*12)*(1-$C47)*1000 -> 0 | O47: =+($J47*(Energía!AB47-Clientes!V47*Límites!$C$6*12)+$J36*(Límites!$C$6-Límites!$B$6)*Clientes!V47*12+$J25*Clientes!V47*Límites!$B$6*12)*(1-$C47)*1000 -> 0 | P47: =+($J47*(Energía!AC47-Clientes!W47*Límites!$C$6*12)+$J36*(Límites!$C$6-Límites!$B$6)*Clientes!W47*12+$J25*Clientes!W47*Límites!$B$6*12)*(1-$C47)*1000 -> 0 | Q47: =+SUMPRODUCT(M47:P47,PremisaCosto!$F$84:$I$84) -> 0 | R47: =+Potencia!X47*$K47*12*1000*(1-$C47) -> 0 | T47: =IF(Q47=0,0,(IF($AK$3=1,$E47*$F$4*G47/$Q$20,($E47*$F$4*G47-$AL$20*PremisaCosto!$F$84)/($Q$20-$M$20*PremisaCosto!$F$84)))) -> 0 | U47: =IF(R47=0,0,IF($AK$3=1,$E47*$F$4*H47/$R$20,($E47*$F$4*H47-$AM$20*PremisaCosto!$F$84)/($R$20-$AP$19*PremisaCosto!$F$84))) -> 0 | W47: 0 | X47: 0 | Z47: =+($W47*(Energía!Z47-Clientes!T47*Límites!$C$6*12)+$W36*(Límites!$C$6-Límites!$B$6)*Clientes!T47*12+$W25*Clientes!T47*Límites!$B$6*12)*(1-$C47)*1000 -> 0 | AA47: =+($W47*(Energía!AA47-Clientes!U47*Límites!$C$6*12)+$W36*(Límites!$C$6-Límites!$B$6)*Clientes!U47*12+$W25*Clientes!U47*Límites!$B$6*12)*(1-$C47)*1000 -> 0 | AB47: =+($W47*(Energía!AB47-Clientes!V47*Límites!$C$6*12)+$W36*(Límites!$C$6-Límites!$B$6)*Clientes!V47*12+$W25*Clientes!V47*Límites!$B$6*12)*(1-$C47)*1000 -> 0 | AC47: =+($W47*(Energía!AC47-Clientes!W47*Límites!$C$6*12)+$W36*(Límites!$C$6-Límites!$B$6)*Clientes!W47*12+$W25*Clientes!W47*Límites!$B$6*12)*(1-$C47)*1000 -> 0 | AD47: =+SUMPRODUCT(Z47:AC47,PremisaCosto!$F$84:$I$84) -> 0 | AE47: =+IF($AK$3=1,Potencia!T47*$X47*12*1000*(1-$C47),AM47) -> 0 | AF47: =+Potencia!U47*$X47*12*1000*(1-$C47) -> 0 | AG47: =+Potencia!V47*$X47*12*1000*(1-$C47) -> 0 | AH47: =+Potencia!W47*$X47*12*1000*(1-$C47) -> 0 | AI47: =+SUMPRODUCT(AE47:AH47,PremisaCosto!$F$84:$I$84) -> 0 | AK47: MTD_3 Jub. 2 | AL47: =+IFERROR(VLOOKUP($AK47,[1]ITV_CD!$A$7:$W$149,AL$6,FALSE),0)/$AM$3 -> 0 | AM47: =+IFERROR(VLOOKUP($AK47,[1]ITV_CD!$A$7:$W$149,AM$6,FALSE),0)/$AM$3 -> 0 | AP47: =+Potencia!T48*$K48*12*1000*(1-$C48) -> 0
A48: =+PremisaCosto!A130 -> MTD_3 Político | B48: =+PremisaCosto!H130 -> Político | C48: =+IF(B48=0,0,VLOOKUP(B48,PremisaCosto!$A$69:$D$79,4,FALSE)) -> 0.5 | E48: 0.1873344144 | G48: 0 | H48: 1 | J48: 0 | K48: 16.89 | M48: =+($J48*(Energía!Z48-Clientes!T48*Límites!$C$6*12)+$J37*(Límites!$C$6-Límites!$B$6)*Clientes!T48*12+$J26*Clientes!T48*Límites!$B$6*12)*(1-$C48)*1000 -> 0 | N48: =+($J48*(Energía!AA48-Clientes!U48*Límites!$C$6*12)+$J37*(Límites!$C$6-Límites!$B$6)*Clientes!U48*12+$J26*Clientes!U48*Límites!$B$6*12)*(1-$C48)*1000 -> 0 | O48: =+($J48*(Energía!AB48-Clientes!V48*Límites!$C$6*12)+$J37*(Límites!$C$6-Límites!$B$6)*Clientes!V48*12+$J26*Clientes!V48*Límites!$B$6*12)*(1-$C48)*1000 -> 0 | P48: =+($J48*(Energía!AC48-Clientes!W48*Límites!$C$6*12)+$J37*(Límites!$C$6-Límites!$B$6)*Clientes!W48*12+$J26*Clientes!W48*Límites!$B$6*12)*(1-$C48)*1000 -> 0 | Q48: =+SUMPRODUCT(M48:P48,PremisaCosto!$F$84:$I$84) -> 0 | R48: =+Potencia!X48*$K48*12*1000*(1-$C48) -> 0 | T48: =IF(Q48=0,0,(IF($AK$3=1,$E48*$F$4*G48/$Q$20,($E48*$F$4*G48-$AL$20*PremisaCosto!$F$84)/($Q$20-$M$20*PremisaCosto!$F$84)))) -> 0 | U48: =IF(R48=0,0,IF($AK$3=1,$E48*$F$4*H48/$R$20,($E48*$F$4*H48-$AM$20*PremisaCosto!$F$84)/($R$20-$AP$19*PremisaCosto!$F$84))) -> 0 | W48: 0 | X48: 0 | Z48: =+($W48*(Energía!Z48-Clientes!T48*Límites!$C$6*12)+$W37*(Límites!$C$6-Límites!$B$6)*Clientes!T48*12+$W26*Clientes!T48*Límites!$B$6*12)*(1-$C48)*1000 -> 0 | AA48: =+($W48*(Energía!AA48-Clientes!U48*Límites!$C$6*12)+$W37*(Límites!$C$6-Límites!$B$6)*Clientes!U48*12+$W26*Clientes!U48*Límites!$B$6*12)*(1-$C48)*1000 -> 0 | AB48: =+($W48*(Energía!AB48-Clientes!V48*Límites!$C$6*12)+$W37*(Límites!$C$6-Límites!$B$6)*Clientes!V48*12+$W26*Clientes!V48*Límites!$B$6*12)*(1-$C48)*1000 -> 0 | AC48: =+($W48*(Energía!AC48-Clientes!W48*Límites!$C$6*12)+$W37*(Límites!$C$6-Límites!$B$6)*Clientes!W48*12+$W26*Clientes!W48*Límites!$B$6*12)*(1-$C48)*1000 -> 0 | AD48: =+SUMPRODUCT(Z48:AC48,PremisaCosto!$F$84:$I$84) -> 0 | AE48: =+IF($AK$3=1,Potencia!T48*$X48*12*1000*(1-$C48),AM48) -> 0 | AF48: =+Potencia!U48*$X48*12*1000*(1-$C48) -> 0 | AG48: =+Potencia!V48*$X48*12*1000*(1-$C48) -> 0 | AH48: =+Potencia!W48*$X48*12*1000*(1-$C48) -> 0 | AI48: =+SUMPRODUCT(AE48:AH48,PremisaCosto!$F$84:$I$84) -> 0 | AK48: MTD_3 Político | AL48: =+IFERROR(VLOOKUP($AK48,[1]ITV_CD!$A$7:$W$149,AL$6,FALSE),0)/$AM$3 -> 0 | AM48: =+IFERROR(VLOOKUP($AK48,[1]ITV_CD!$A$7:$W$149,AM$6,FALSE),0)/$AM$3 -> 0 | AP48: =+Potencia!T49*$K49*12*1000*(1-$C49) -> 0
A49: =+PremisaCosto!A131 -> MTD_3 x1 | B49: =+PremisaCosto!H131 -> x1 | C49: =+IF(B49=0,0,VLOOKUP(B49,PremisaCosto!$A$69:$D$79,4,FALSE)) -> 0 | E49: 0.1873344144 | G49: 0 | H49: =+H48 -> 1 | J49: 0 | K49: 16.89 | M49: =+($J49*(Energía!Z49-Clientes!T49*Límites!$C$6*12)+$J38*(Límites!$C$6-Límites!$B$6)*Clientes!T49*12+$J27*Clientes!T49*Límites!$B$6*12)*(1-$C49)*1000 -> 0 | N49: =+($J49*(Energía!AA49-Clientes!U49*Límites!$C$6*12)+$J38*(Límites!$C$6-Límites!$B$6)*Clientes!U49*12+$J27*Clientes!U49*Límites!$B$6*12)*(1-$C49)*1000 -> 0 | O49: =+($J49*(Energía!AB49-Clientes!V49*Límites!$C$6*12)+$J38*(Límites!$C$6-Límites!$B$6)*Clientes!V49*12+$J27*Clientes!V49*Límites!$B$6*12)*(1-$C49)*1000 -> 0 | P49: =+($J49*(Energía!AC49-Clientes!W49*Límites!$C$6*12)+$J38*(Límites!$C$6-Límites!$B$6)*Clientes!W49*12+$J27*Clientes!W49*Límites!$B$6*12)*(1-$C49)*1000 -> 0 | Q49: =+SUMPRODUCT(M49:P49,PremisaCosto!$F$84:$I$84) -> 0 | R49: =+Potencia!X49*$K49*12*1000*(1-$C49) -> 0 | T49: =IF(Q49=0,0,(IF($AK$3=1,$E49*$F$4*G49/$Q$20,($E49*$F$4*G49-$AL$20*PremisaCosto!$F$84)/($Q$20-$M$20*PremisaCosto!$F$84)))) -> 0 | U49: =IF(R49=0,0,IF($AK$3=1,$E49*$F$4*H49/$R$20,($E49*$F$4*H49-$AM$20*PremisaCosto!$F$84)/($R$20-$AP$19*PremisaCosto!$F$84))) -> 0 | W49: 0 | X49: 0 | Z49: =+($W49*(Energía!Z49-Clientes!T49*Límites!$C$6*12)+$W38*(Límites!$C$6-Límites!$B$6)*Clientes!T49*12+$W27*Clientes!T49*Límites!$B$6*12)*(1-$C49)*1000 -> 0 | AA49: =+($W49*(Energía!AA49-Clientes!U49*Límites!$C$6*12)+$W38*(Límites!$C$6-Límites!$B$6)*Clientes!U49*12+$W27*Clientes!U49*Límites!$B$6*12)*(1-$C49)*1000 -> 0 | AB49: =+($W49*(Energía!AB49-Clientes!V49*Límites!$C$6*12)+$W38*(Límites!$C$6-Límites!$B$6)*Clientes!V49*12+$W27*Clientes!V49*Límites!$B$6*12)*(1-$C49)*1000 -> 0 | AC49: =+($W49*(Energía!AC49-Clientes!W49*Límites!$C$6*12)+$W38*(Límites!$C$6-Límites!$B$6)*Clientes!W49*12+$W27*Clientes!W49*Límites!$B$6*12)*(1-$C49)*1000 -> 0 | AD49: =+SUMPRODUCT(Z49:AC49,PremisaCosto!$F$84:$I$84) -> 0 | AE49: =+IF($AK$3=1,Potencia!T49*$X49*12*1000*(1-$C49),AM49) -> 0 | AF49: =+Potencia!U49*$X49*12*1000*(1-$C49) -> 0 | AG49: =+Potencia!V49*$X49*12*1000*(1-$C49) -> 0 | AH49: =+Potencia!W49*$X49*12*1000*(1-$C49) -> 0 | AI49: =+SUMPRODUCT(AE49:AH49,PremisaCosto!$F$84:$I$84) -> 0 | AK49: MTD_3 x1 | AL49: =+IFERROR(VLOOKUP($AK49,[1]ITV_CD!$A$7:$W$149,AL$6,FALSE),0)/$AM$3 -> 0 | AM49: =+IFERROR(VLOOKUP($AK49,[1]ITV_CD!$A$7:$W$149,AM$6,FALSE),0)/$AM$3 -> 0 | AP49: =+Potencia!T50*$K50*12*1000*(1-$C50) -> 0
A50: =+PremisaCosto!A132 -> MTD_3 x2 | B50: =+PremisaCosto!H132 -> x2 | C50: =+IF(B50=0,0,VLOOKUP(B50,PremisaCosto!$A$69:$D$79,4,FALSE)) -> 0 | E50: 0.1873344144 | G50: 0 | H50: 1 | J50: 0 | K50: 16.89 | M50: =+($J50*(Energía!Z50-Clientes!T50*Límites!$C$6*12)+$J39*(Límites!$C$6-Límites!$B$6)*Clientes!T50*12+$J28*Clientes!T50*Límites!$B$6*12)*(1-$C50)*1000 -> 0 | N50: =+($J50*(Energía!AA50-Clientes!U50*Límites!$C$6*12)+$J39*(Límites!$C$6-Límites!$B$6)*Clientes!U50*12+$J28*Clientes!U50*Límites!$B$6*12)*(1-$C50)*1000 -> 0 | O50: =+($J50*(Energía!AB50-Clientes!V50*Límites!$C$6*12)+$J39*(Límites!$C$6-Límites!$B$6)*Clientes!V50*12+$J28*Clientes!V50*Límites!$B$6*12)*(1-$C50)*1000 -> 0 | P50: =+($J50*(Energía!AC50-Clientes!W50*Límites!$C$6*12)+$J39*(Límites!$C$6-Límites!$B$6)*Clientes!W50*12+$J28*Clientes!W50*Límites!$B$6*12)*(1-$C50)*1000 -> 0 | Q50: =+SUMPRODUCT(M50:P50,PremisaCosto!$F$84:$I$84) -> 0 | R50: =+Potencia!X50*$K50*12*1000*(1-$C50) -> 0 | T50: =IF(Q50=0,0,(IF($AK$3=1,$E50*$F$4*G50/$Q$20,($E50*$F$4*G50-$AL$20*PremisaCosto!$F$84)/($Q$20-$M$20*PremisaCosto!$F$84)))) -> 0 | U50: =IF(R50=0,0,IF($AK$3=1,$E50*$F$4*H50/$R$20,($E50*$F$4*H50-$AM$20*PremisaCosto!$F$84)/($R$20-$AP$19*PremisaCosto!$F$84))) -> 0 | W50: 0 | X50: 0 | Z50: =+($W50*(Energía!Z50-Clientes!T50*Límites!$C$6*12)+$W39*(Límites!$C$6-Límites!$B$6)*Clientes!T50*12+$W28*Clientes!T50*Límites!$B$6*12)*(1-$C50)*1000 -> 0 | AA50: =+($W50*(Energía!AA50-Clientes!U50*Límites!$C$6*12)+$W39*(Límites!$C$6-Límites!$B$6)*Clientes!U50*12+$W28*Clientes!U50*Límites!$B$6*12)*(1-$C50)*1000 -> 0 | AB50: =+($W50*(Energía!AB50-Clientes!V50*Límites!$C$6*12)+$W39*(Límites!$C$6-Límites!$B$6)*Clientes!V50*12+$W28*Clientes!V50*Límites!$B$6*12)*(1-$C50)*1000 -> 0 | AC50: =+($W50*(Energía!AC50-Clientes!W50*Límites!$C$6*12)+$W39*(Límites!$C$6-Límites!$B$6)*Clientes!W50*12+$W28*Clientes!W50*Límites!$B$6*12)*(1-$C50)*1000 -> 0 | AD50: =+SUMPRODUCT(Z50:AC50,PremisaCosto!$F$84:$I$84) -> 0 | AE50: =+IF($AK$3=1,Potencia!T50*$X50*12*1000*(1-$C50),AM50) -> 0 | AF50: =+Potencia!U50*$X50*12*1000*(1-$C50) -> 0 | AG50: =+Potencia!V50*$X50*12*1000*(1-$C50) -> 0 | AH50: =+Potencia!W50*$X50*12*1000*(1-$C50) -> 0 | AI50: =+SUMPRODUCT(AE50:AH50,PremisaCosto!$F$84:$I$84) -> 0 | AK50: MTD_3 x2 | AL50: =+IFERROR(VLOOKUP($AK50,[1]ITV_CD!$A$7:$W$149,AL$6,FALSE),0)/$AM$3 -> 0 | AM50: =+IFERROR(VLOOKUP($AK50,[1]ITV_CD!$A$7:$W$149,AM$6,FALSE),0)/$AM$3 -> 0 | AP50: =+Potencia!T51*$K51*12*1000*(1-$C51) -> 0
A51: =+PremisaCosto!A133 -> MTD_3 Discap. | B51: =+PremisaCosto!H133 -> Discap. | C51: =+IF(B51=0,0,VLOOKUP(B51,PremisaCosto!$A$69:$D$79,4,FALSE)) -> 0.25 | E51: 0.1873344144 | G51: 0 | H51: 1 | J51: 0 | K51: 16.89 | M51: =+($J51*(Energía!Z51-Clientes!T51*Límites!$C$6*12)+$J40*(Límites!$C$6-Límites!$B$6)*Clientes!T51*12+$J29*Clientes!T51*Límites!$B$6*12)*(1-$C51)*1000 -> 0 | N51: =+($J51*(Energía!AA51-Clientes!U51*Límites!$C$6*12)+$J40*(Límites!$C$6-Límites!$B$6)*Clientes!U51*12+$J29*Clientes!U51*Límites!$B$6*12)*(1-$C51)*1000 -> 0 | O51: =+($J51*(Energía!AB51-Clientes!V51*Límites!$C$6*12)+$J40*(Límites!$C$6-Límites!$B$6)*Clientes!V51*12+$J29*Clientes!V51*Límites!$B$6*12)*(1-$C51)*1000 -> 0 | P51: =+($J51*(Energía!AC51-Clientes!W51*Límites!$C$6*12)+$J40*(Límites!$C$6-Límites!$B$6)*Clientes!W51*12+$J29*Clientes!W51*Límites!$B$6*12)*(1-$C51)*1000 -> 0 | Q51: =+SUMPRODUCT(M51:P51,PremisaCosto!$F$84:$I$84) -> 0 | R51: =+Potencia!X51*$K51*12*1000*(1-$C51) -> 0 | T51: =IF(Q51=0,0,(IF($AK$3=1,$E51*$F$4*G51/$Q$20,($E51*$F$4*G51-$AL$20*PremisaCosto!$F$84)/($Q$20-$M$20*PremisaCosto!$F$84)))) -> 0 | U51: =IF(R51=0,0,IF($AK$3=1,$E51*$F$4*H51/$R$20,($E51*$F$4*H51-$AM$20*PremisaCosto!$F$84)/($R$20-$AP$19*PremisaCosto!$F$84))) -> 0 | W51: 0 | X51: 0 | Z51: =+($W51*(Energía!Z51-Clientes!T51*Límites!$C$6*12)+$W40*(Límites!$C$6-Límites!$B$6)*Clientes!T51*12+$W29*Clientes!T51*Límites!$B$6*12)*(1-$C51)*1000 -> 0 | AA51: =+($W51*(Energía!AA51-Clientes!U51*Límites!$C$6*12)+$W40*(Límites!$C$6-Límites!$B$6)*Clientes!U51*12+$W29*Clientes!U51*Límites!$B$6*12)*(1-$C51)*1000 -> 0 | AB51: =+($W51*(Energía!AB51-Clientes!V51*Límites!$C$6*12)+$W40*(Límites!$C$6-Límites!$B$6)*Clientes!V51*12+$W29*Clientes!V51*Límites!$B$6*12)*(1-$C51)*1000 -> 0 | AC51: =+($W51*(Energía!AC51-Clientes!W51*Límites!$C$6*12)+$W40*(Límites!$C$6-Límites!$B$6)*Clientes!W51*12+$W29*Clientes!W51*Límites!$B$6*12)*(1-$C51)*1000 -> 0 | AD51: =+SUMPRODUCT(Z51:AC51,PremisaCosto!$F$84:$I$84) -> 0 | AE51: =+IF($AK$3=1,Potencia!T51*$X51*12*1000*(1-$C51),AM51) -> 0 | AF51: =+Potencia!U51*$X51*12*1000*(1-$C51) -> 0 | AG51: =+Potencia!V51*$X51*12*1000*(1-$C51) -> 0 | AH51: =+Potencia!W51*$X51*12*1000*(1-$C51) -> 0 | AI51: =+SUMPRODUCT(AE51:AH51,PremisaCosto!$F$84:$I$84) -> 0 | AK51: MTD_3 Discap. | AL51: =+IFERROR(VLOOKUP($AK51,[1]ITV_CD!$A$7:$W$149,AL$6,FALSE),0)/$AM$3 -> 0 | AM51: =+IFERROR(VLOOKUP($AK51,[1]ITV_CD!$A$7:$W$149,AM$6,FALSE),0)/$AM$3 -> 0 | AP51: =+Potencia!T52*$K52*12*1000*(1-$C52) -> 0
A52: =+PremisaCosto!A134 -> MTD_3 Discapacitados 601-más | B52: =+PremisaCosto!H134 -> Discapacitados 601-más | C52: =+IF(B52=0,0,VLOOKUP(B52,PremisaCosto!$A$69:$D$79,4,FALSE)) -> 0.25 | E52: 0.1873344144 | G52: 0 | H52: 1 | J52: 0 | K52: 16.89 | M52: =+($J52*(Energía!Z52-Clientes!T52*Límites!$C$6*12)+$J41*(Límites!$C$6-Límites!$B$6)*Clientes!T52*12+$J30*Clientes!T52*Límites!$B$6*12)*(1-$C52)*1000 -> 0 | N52: =+($J52*(Energía!AA52-Clientes!U52*Límites!$C$6*12)+$J41*(Límites!$C$6-Límites!$B$6)*Clientes!U52*12+$J30*Clientes!U52*Límites!$B$6*12)*(1-$C52)*1000 -> 0 | O52: =+($J52*(Energía!AB52-Clientes!V52*Límites!$C$6*12)+$J41*(Límites!$C$6-Límites!$B$6)*Clientes!V52*12+$J30*Clientes!V52*Límites!$B$6*12)*(1-$C52)*1000 -> 0 | P52: =+($J52*(Energía!AC52-Clientes!W52*Límites!$C$6*12)+$J41*(Límites!$C$6-Límites!$B$6)*Clientes!W52*12+$J30*Clientes!W52*Límites!$B$6*12)*(1-$C52)*1000 -> 0 | Q52: =+SUMPRODUCT(M52:P52,PremisaCosto!$F$84:$I$84) -> 0 | R52: =+Potencia!X52*$K52*12*1000*(1-$C52) -> 0 | T52: =IF(Q52=0,0,(IF($AK$3=1,$E52*$F$4*G52/$Q$20,($E52*$F$4*G52-$AL$20*PremisaCosto!$F$84)/($Q$20-$M$20*PremisaCosto!$F$84)))) -> 0 | U52: =IF(R52=0,0,IF($AK$3=1,$E52*$F$4*H52/$R$20,($E52*$F$4*H52-$AM$20*PremisaCosto!$F$84)/($R$20-$AP$19*PremisaCosto!$F$84))) -> 0 | W52: 0 | X52: 0 | Z52: =+($W52*(Energía!Z52-Clientes!T52*Límites!$C$6*12)+$W41*(Límites!$C$6-Límites!$B$6)*Clientes!T52*12+$W30*Clientes!T52*Límites!$B$6*12)*(1-$C52)*1000 -> 0 | AA52: =+($W52*(Energía!AA52-Clientes!U52*Límites!$C$6*12)+$W41*(Límites!$C$6-Límites!$B$6)*Clientes!U52*12+$W30*Clientes!U52*Límites!$B$6*12)*(1-$C52)*1000 -> 0 | AB52: =+($W52*(Energía!AB52-Clientes!V52*Límites!$C$6*12)+$W41*(Límites!$C$6-Límites!$B$6)*Clientes!V52*12+$W30*Clientes!V52*Límites!$B$6*12)*(1-$C52)*1000 -> 0 | AC52: =+($W52*(Energía!AC52-Clientes!W52*Límites!$C$6*12)+$W41*(Límites!$C$6-Límites!$B$6)*Clientes!W52*12+$W30*Clientes!W52*Límites!$B$6*12)*(1-$C52)*1000 -> 0 | AD52: =+SUMPRODUCT(Z52:AC52,PremisaCosto!$F$84:$I$84) -> 0 | AE52: =+IF($AK$3=1,Potencia!T52*$X52*12*1000*(1-$C52),AM52) -> 0 | AF52: =+Potencia!U52*$X52*12*1000*(1-$C52) -> 0 | AG52: =+Potencia!V52*$X52*12*1000*(1-$C52) -> 0 | AH52: =+Potencia!W52*$X52*12*1000*(1-$C52) -> 0 | AI52: =+SUMPRODUCT(AE52:AH52,PremisaCosto!$F$84:$I$84) -> 0 | AK52: MTD_3 Discapacitados 601-más | AL52: =+IFERROR(VLOOKUP($AK52,[1]ITV_CD!$A$7:$W$149,AL$6,FALSE),0)/$AM$3 -> 0 | AM52: =+IFERROR(VLOOKUP($AK52,[1]ITV_CD!$A$7:$W$149,AM$6,FALSE),0)/$AM$3 -> 0 | AP52: =+Potencia!T53*$K53*12*1000*(1-$C53) -> 0
A53: =+PremisaCosto!A135 -> MTD_3 Cruz Roja | B53: =+PremisaCosto!H135 -> Cruz Roja | C53: =+IF(B53=0,0,VLOOKUP(B53,PremisaCosto!$A$69:$D$79,4,FALSE)) -> 1 | E53: 0.1873344144 | G53: 0 | H53: 1 | J53: 0 | K53: 16.89 | M53: =+($J53*(Energía!Z53-Clientes!T53*Límites!$C$6*12)+$J42*(Límites!$C$6-Límites!$B$6)*Clientes!T53*12+$J31*Clientes!T53*Límites!$B$6*12)*(1-$C53)*1000 -> 0 | N53: =+($J53*(Energía!AA53-Clientes!U53*Límites!$C$6*12)+$J42*(Límites!$C$6-Límites!$B$6)*Clientes!U53*12+$J31*Clientes!U53*Límites!$B$6*12)*(1-$C53)*1000 -> 0 | O53: =+($J53*(Energía!AB53-Clientes!V53*Límites!$C$6*12)+$J42*(Límites!$C$6-Límites!$B$6)*Clientes!V53*12+$J31*Clientes!V53*Límites!$B$6*12)*(1-$C53)*1000 -> 0 | P53: =+($J53*(Energía!AC53-Clientes!W53*Límites!$C$6*12)+$J42*(Límites!$C$6-Límites!$B$6)*Clientes!W53*12+$J31*Clientes!W53*Límites!$B$6*12)*(1-$C53)*1000 -> 0 | Q53: =+SUMPRODUCT(M53:P53,PremisaCosto!$F$84:$I$84) -> 0 | R53: =+Potencia!X53*$K53*12*1000*(1-$C53) -> 0 | T53: =IF(Q53=0,0,(IF($AK$3=1,$E53*$F$4*G53/$Q$20,($E53*$F$4*G53-$AL$20*PremisaCosto!$F$84)/($Q$20-$M$20*PremisaCosto!$F$84)))) -> 0 | U53: =IF(R53=0,0,IF($AK$3=1,$E53*$F$4*H53/$R$20,($E53*$F$4*H53-$AM$20*PremisaCosto!$F$84)/($R$20-$AP$19*PremisaCosto!$F$84))) -> 0 | W53: 0 | X53: 0 | Z53: =+($W53*(Energía!Z53-Clientes!T53*Límites!$C$6*12)+$W42*(Límites!$C$6-Límites!$B$6)*Clientes!T53*12+$W31*Clientes!T53*Límites!$B$6*12)*(1-$C53)*1000 -> 0 | AA53: =+($W53*(Energía!AA53-Clientes!U53*Límites!$C$6*12)+$W42*(Límites!$C$6-Límites!$B$6)*Clientes!U53*12+$W31*Clientes!U53*Límites!$B$6*12)*(1-$C53)*1000 -> 0 | AB53: =+($W53*(Energía!AB53-Clientes!V53*Límites!$C$6*12)+$W42*(Límites!$C$6-Límites!$B$6)*Clientes!V53*12+$W31*Clientes!V53*Límites!$B$6*12)*(1-$C53)*1000 -> 0 | AC53: =+($W53*(Energía!AC53-Clientes!W53*Límites!$C$6*12)+$W42*(Límites!$C$6-Límites!$B$6)*Clientes!W53*12+$W31*Clientes!W53*Límites!$B$6*12)*(1-$C53)*1000 -> 0 | AD53: =+SUMPRODUCT(Z53:AC53,PremisaCosto!$F$84:$I$84) -> 0 | AE53: =+IF($AK$3=1,Potencia!T53*$X53*12*1000*(1-$C53),AM53) -> 0 | AF53: =+Potencia!U53*$X53*12*1000*(1-$C53) -> 0 | AG53: =+Potencia!V53*$X53*12*1000*(1-$C53) -> 0 | AH53: =+Potencia!W53*$X53*12*1000*(1-$C53) -> 0 | AI53: =+SUMPRODUCT(AE53:AH53,PremisaCosto!$F$84:$I$84) -> 0 | AK53: MTD_3 Cruz Roja | AL53: =+IFERROR(VLOOKUP($AK53,[1]ITV_CD!$A$7:$W$149,AL$6,FALSE),0)/$AM$3 -> 0 | AM53: =+IFERROR(VLOOKUP($AK53,[1]ITV_CD!$A$7:$W$149,AM$6,FALSE),0)/$AM$3 -> 0 | AP53: =+SUM(AP54:AP63) -> 0
A54: =+PremisaCosto!A136 -> MTD_4 (50,001-más) | B54: =+PremisaCosto!H136 -> 0 | C54: =+IF(B54=0,0,VLOOKUP(B54,PremisaCosto!$A$69:$D$79,4,FALSE)) -> 0 | E54: 0.1873344144 | G54: 0 | H54: 1 | J54: =+VLOOKUP($A54,[1]Diseño!$A$7:$BH$76,4,FALSE) -> 0 | K54: =+VLOOKUP($A54,[1]Diseño!$A$7:$BH$76,5,FALSE) -> 16.89 | M54: =+SUM(M55:M64) -> 0 | N54: 0 | O54: 0 | P54: 0 | Q54: 0 | R54: 0 | T54: =IF(Q54=0,0,(IF($AK$3=1,$E54*$F$4*G54/$Q$20,($E54*$F$4*G54-$AL$20*PremisaCosto!$F$84)/($Q$20-$M$20*PremisaCosto!$F$84)))) -> 0 | U54: =IF(R54=0,0,IF($AK$3=1,$E54*$F$4*H54/$R$20,($E54*$F$4*H54-$AM$20*PremisaCosto!$F$84)/($R$20-$AP$19*PremisaCosto!$F$84))) -> 0 | W54: 0 | X54: 0 | Z54: =+SUM(Z55:Z64) -> 0 | AA54: =+SUM(AA55:AA64) -> 0 | AB54: =+SUM(AB55:AB64) -> 0 | AC54: =+SUM(AC55:AC64) -> 0 | AD54: =+SUM(AD55:AD64) -> 0 | AE54: 0 | AF54: 0 | AG54: 0 | AH54: 0 | AI54: =+SUM(AI55:AI64) -> 0 | AK54: MTD_4 (50,001-más) | AL54: =+IFERROR(VLOOKUP($AK54,[1]ITV_CD!$A$7:$W$149,AL$6,FALSE),0)/$AM$3 -> 0 | AM54: =+IFERROR(VLOOKUP($AK54,[1]ITV_CD!$A$7:$W$149,AM$6,FALSE),0)/$AM$3 -> 0 | AP54: =+Potencia!T55*$K55*12*1000*(1-$C55) -> 0
A55: =+PremisaCosto!A137 -> MTD_4 Regular | B55: =+PremisaCosto!H137 -> Regular | C55: =+IF(B55=0,0,VLOOKUP(B55,PremisaCosto!$A$69:$D$79,4,FALSE)) -> 0 | E55: 0.1873344144 | G55: 0 | H55: 1 | J55: =+J54 -> 0 | K55: =+K54 -> 16.89 | M55: =+($J55*(Energía!Z55-Clientes!T55*Límites!$D$6*12)+$J44*(Límites!$D$6-Límites!$C$6)*Clientes!T55*12+$J33*(Límites!$C$6-Límites!$B$6)*Clientes!T55*12+$J22*Clientes!T55*Límites!$B$6*12)*(1-$C55)*1000 -> 0 | N55: =+($J55*(Energía!AA55-Clientes!U55*Límites!$D$6*12)+$J44*(Límites!$D$6-Límites!$C$6)*Clientes!U55*12+$J33*(Límites!$C$6-Límites!$B$6)*Clientes!U55*12+$J22*Clientes!U55*Límites!$B$6*12)*(1-$C55)*1000 -> 0 | O55: =+($J55*(Energía!AB55-Clientes!V55*Límites!$D$6*12)+$J44*(Límites!$D$6-Límites!$C$6)*Clientes!V55*12+$J33*(Límites!$C$6-Límites!$B$6)*Clientes!V55*12+$J22*Clientes!V55*Límites!$B$6*12)*(1-$C55)*1000 -> 0 | P55: =+($J55*(Energía!AC55-Clientes!W55*Límites!$D$6*12)+$J44*(Límites!$D$6-Límites!$C$6)*Clientes!W55*12+$J33*(Límites!$C$6-Límites!$B$6)*Clientes!W55*12+$J22*Clientes!W55*Límites!$B$6*12)*(1-$C55)*1000 -> 0 | Q55: =+SUMPRODUCT(M55:P55,PremisaCosto!$F$84:$I$84) -> 0 | R55: =+Potencia!X55*$K55*12*1000*(1-$C55) -> 0 | T55: =IF(Q55=0,0,(IF($AK$3=1,$E55*$F$4*G55/$Q$20,($E55*$F$4*G55-$AL$20*PremisaCosto!$F$84)/($Q$20-$M$20*PremisaCosto!$F$84)))) -> 0 | U55: =IF(R55=0,0,IF($AK$3=1,$E55*$F$4*H55/$R$20,($E55*$F$4*H55-$AM$20*PremisaCosto!$F$84)/($R$20-$AP$19*PremisaCosto!$F$84))) -> 0 | W55: 0 | X55: 0 | Z55: =+($W55*(Energía!Z55-Clientes!T55*Límites!$D$6*12)+$W44*(Límites!$D$6-Límites!$C$6)*Clientes!T55*12+$W33*(Límites!$C$6-Límites!$B$6)*Clientes!T55*12+$W22*Clientes!T55*Límites!$B$6*12)*(1-$C55)*1000 -> 0 | AA55: =+($W55*(Energía!AA55-Clientes!U55*Límites!$D$6*12)+$W44*(Límites!$D$6-Límites!$C$6)*Clientes!U55*12+$W33*(Límites!$C$6-Límites!$B$6)*Clientes!U55*12+$W22*Clientes!U55*Límites!$B$6*12)*(1-$C55)*1000 -> 0 | AB55: =+($W55*(Energía!AB55-Clientes!V55*Límites!$D$6*12)+$W44*(Límites!$D$6-Límites!$C$6)*Clientes!V55*12+$W33*(Límites!$C$6-Límites!$B$6)*Clientes!V55*12+$W22*Clientes!V55*Límites!$B$6*12)*(1-$C55)*1000 -> 0 | AC55: =+($W55*(Energía!AC55-Clientes!W55*Límites!$D$6*12)+$W44*(Límites!$D$6-Límites!$C$6)*Clientes!W55*12+$W33*(Límites!$C$6-Límites!$B$6)*Clientes!W55*12+$W22*Clientes!W55*Límites!$B$6*12)*(1-$C55)*1000 -> 0 | AD55: =+SUMPRODUCT(Z55:AC55,PremisaCosto!$F$84:$I$84) -> 0 | AE55: =+IF($AK$3=1,Potencia!T55*$X55*12*1000*(1-$C55),AM55) -> 0 | AF55: =+Potencia!U55*$X55*12*1000*(1-$C55) -> 0 | AG55: =+Potencia!V55*$X55*12*1000*(1-$C55) -> 0 | AH55: =+Potencia!W55*$X55*12*1000*(1-$C55) -> 0 | AI55: =+SUMPRODUCT(AE55:AH55,PremisaCosto!$F$84:$I$84) -> 0 | AK55: MTD_4 Regular | AL55: =+IFERROR(VLOOKUP($AK55,[1]ITV_CD!$A$7:$W$149,AL$6,FALSE),0)/$AM$3 -> 0 | AM55: =+IFERROR(VLOOKUP($AK55,[1]ITV_CD!$A$7:$W$149,AM$6,FALSE),0)/$AM$3 -> 0 | AP55: =+Potencia!T56*$K56*12*1000*(1-$C56) -> 0
A56: =+PremisaCosto!A138 -> MTD_4 Agro | B56: =+PremisaCosto!H138 -> Agro | C56: =+IF(B56=0,0,VLOOKUP(B56,PremisaCosto!$A$69:$D$79,4,FALSE)) -> 0.05 | E56: 0.1873344144 | G56: 0 | H56: 1 | J56: =+J55 -> 0 | K56: 16.89 | M56: =+($J56*(Energía!Z56-Clientes!T56*Límites!$D$6*12)+$J45*(Límites!$D$6-Límites!$C$6)*Clientes!T56*12+$J34*(Límites!$C$6-Límites!$B$6)*Clientes!T56*12+$J23*Clientes!T56*Límites!$B$6*12)*(1-$C56)*1000 -> 0 | N56: =+($J56*(Energía!AA56-Clientes!U56*Límites!$D$6*12)+$J45*(Límites!$D$6-Límites!$C$6)*Clientes!U56*12+$J34*(Límites!$C$6-Límites!$B$6)*Clientes!U56*12+$J23*Clientes!U56*Límites!$B$6*12)*(1-$C56)*1000 -> 0 | O56: =+($J56*(Energía!AB56-Clientes!V56*Límites!$D$6*12)+$J45*(Límites!$D$6-Límites!$C$6)*Clientes!V56*12+$J34*(Límites!$C$6-Límites!$B$6)*Clientes!V56*12+$J23*Clientes!V56*Límites!$B$6*12)*(1-$C56)*1000 -> 0 | P56: =+($J56*(Energía!AC56-Clientes!W56*Límites!$D$6*12)+$J45*(Límites!$D$6-Límites!$C$6)*Clientes!W56*12+$J34*(Límites!$C$6-Límites!$B$6)*Clientes!W56*12+$J23*Clientes!W56*Límites!$B$6*12)*(1-$C56)*1000 -> 0 | Q56: =+SUMPRODUCT(M56:P56,PremisaCosto!$F$84:$I$84) -> 0 | R56: =+Potencia!X56*$K56*12*1000*(1-$C56) -> 0 | T56: =IF(Q56=0,0,(IF($AK$3=1,$E56*$F$4*G56/$Q$20,($E56*$F$4*G56-$AL$20*PremisaCosto!$F$84)/($Q$20-$M$20*PremisaCosto!$F$84)))) -> 0 | U56: =IF(R56=0,0,IF($AK$3=1,$E56*$F$4*H56/$R$20,($E56*$F$4*H56-$AM$20*PremisaCosto!$F$84)/($R$20-$AP$19*PremisaCosto!$F$84))) -> 0 | W56: 0 | X56: 0 | Z56: =+($W56*(Energía!Z56-Clientes!T56*Límites!$D$6*12)+$W45*(Límites!$D$6-Límites!$C$6)*Clientes!T56*12+$W34*(Límites!$C$6-Límites!$B$6)*Clientes!T56*12+$W23*Clientes!T56*Límites!$B$6*12)*(1-$C56)*1000 -> 0 | AA56: =+($W56*(Energía!AA56-Clientes!U56*Límites!$D$6*12)+$W45*(Límites!$D$6-Límites!$C$6)*Clientes!U56*12+$W34*(Límites!$C$6-Límites!$B$6)*Clientes!U56*12+$W23*Clientes!U56*Límites!$B$6*12)*(1-$C56)*1000 -> 0 | AB56: =+($W56*(Energía!AB56-Clientes!V56*Límites!$D$6*12)+$W45*(Límites!$D$6-Límites!$C$6)*Clientes!V56*12+$W34*(Límites!$C$6-Límites!$B$6)*Clientes!V56*12+$W23*Clientes!V56*Límites!$B$6*12)*(1-$C56)*1000 -> 0 | AC56: =+($W56*(Energía!AC56-Clientes!W56*Límites!$D$6*12)+$W45*(Límites!$D$6-Límites!$C$6)*Clientes!W56*12+$W34*(Límites!$C$6-Límites!$B$6)*Clientes!W56*12+$W23*Clientes!W56*Límites!$B$6*12)*(1-$C56)*1000 -> 0 | AD56: =+SUMPRODUCT(Z56:AC56,PremisaCosto!$F$84:$I$84) -> 0 | AE56: =+IF($AK$3=1,Potencia!T56*$X56*12*1000*(1-$C56),AM56) -> 0 | AF56: =+Potencia!U56*$X56*12*1000*(1-$C56) -> 0 | AG56: =+Potencia!V56*$X56*12*1000*(1-$C56) -> 0 | AH56: =+Potencia!W56*$X56*12*1000*(1-$C56) -> 0 | AI56: =+SUMPRODUCT(AE56:AH56,PremisaCosto!$F$84:$I$84) -> 0 | AK56: MTD_4 Agro | AL56: =+IFERROR(VLOOKUP($AK56,[1]ITV_CD!$A$7:$W$149,AL$6,FALSE),0)/$AM$3 -> 0 | AM56: =+IFERROR(VLOOKUP($AK56,[1]ITV_CD!$A$7:$W$149,AM$6,FALSE),0)/$AM$3 -> 0 | AP56: =+Potencia!T57*$K57*12*1000*(1-$C57) -> 0
A57: =+PremisaCosto!A139 -> MTD_4 Jub. 1 | B57: =+PremisaCosto!H139 -> Jub. 1 | C57: =+IF(B57=0,0,VLOOKUP(B57,PremisaCosto!$A$69:$D$79,4,FALSE)) -> 0.25 | E57: 0.1873344144 | G57: 0 | H57: 1 | J57: 0 | K57: 16.89 | M57: =+($J57*(Energía!Z57-Clientes!T57*Límites!$D$6*12)+$J46*(Límites!$D$6-Límites!$C$6)*Clientes!T57*12+$J35*(Límites!$C$6-Límites!$B$6)*Clientes!T57*12+$J24*Clientes!T57*Límites!$B$6*12)*(1-$C57)*1000 -> 0 | N57: =+($J57*(Energía!AA57-Clientes!U57*Límites!$D$6*12)+$J46*(Límites!$D$6-Límites!$C$6)*Clientes!U57*12+$J35*(Límites!$C$6-Límites!$B$6)*Clientes!U57*12+$J24*Clientes!U57*Límites!$B$6*12)*(1-$C57)*1000 -> 0 | O57: =+($J57*(Energía!AB57-Clientes!V57*Límites!$D$6*12)+$J46*(Límites!$D$6-Límites!$C$6)*Clientes!V57*12+$J35*(Límites!$C$6-Límites!$B$6)*Clientes!V57*12+$J24*Clientes!V57*Límites!$B$6*12)*(1-$C57)*1000 -> 0 | P57: =+($J57*(Energía!AC57-Clientes!W57*Límites!$D$6*12)+$J46*(Límites!$D$6-Límites!$C$6)*Clientes!W57*12+$J35*(Límites!$C$6-Límites!$B$6)*Clientes!W57*12+$J24*Clientes!W57*Límites!$B$6*12)*(1-$C57)*1000 -> 0 | Q57: =+SUMPRODUCT(M57:P57,PremisaCosto!$F$84:$I$84) -> 0 | R57: =+Potencia!X57*$K57*12*1000*(1-$C57) -> 0 | T57: =IF(Q57=0,0,(IF($AK$3=1,$E57*$F$4*G57/$Q$20,($E57*$F$4*G57-$AL$20*PremisaCosto!$F$84)/($Q$20-$M$20*PremisaCosto!$F$84)))) -> 0 | U57: =IF(R57=0,0,IF($AK$3=1,$E57*$F$4*H57/$R$20,($E57*$F$4*H57-$AM$20*PremisaCosto!$F$84)/($R$20-$AP$19*PremisaCosto!$F$84))) -> 0 | W57: 0 | X57: 0 | Z57: =+($W57*(Energía!Z57-Clientes!T57*Límites!$D$6*12)+$W46*(Límites!$D$6-Límites!$C$6)*Clientes!T57*12+$W35*(Límites!$C$6-Límites!$B$6)*Clientes!T57*12+$W24*Clientes!T57*Límites!$B$6*12)*(1-$C57)*1000 -> 0 | AA57: =+($W57*(Energía!AA57-Clientes!U57*Límites!$D$6*12)+$W46*(Límites!$D$6-Límites!$C$6)*Clientes!U57*12+$W35*(Límites!$C$6-Límites!$B$6)*Clientes!U57*12+$W24*Clientes!U57*Límites!$B$6*12)*(1-$C57)*1000 -> 0 | AB57: =+($W57*(Energía!AB57-Clientes!V57*Límites!$D$6*12)+$W46*(Límites!$D$6-Límites!$C$6)*Clientes!V57*12+$W35*(Límites!$C$6-Límites!$B$6)*Clientes!V57*12+$W24*Clientes!V57*Límites!$B$6*12)*(1-$C57)*1000 -> 0 | AC57: =+($W57*(Energía!AC57-Clientes!W57*Límites!$D$6*12)+$W46*(Límites!$D$6-Límites!$C$6)*Clientes!W57*12+$W35*(Límites!$C$6-Límites!$B$6)*Clientes!W57*12+$W24*Clientes!W57*Límites!$B$6*12)*(1-$C57)*1000 -> 0 | AD57: =+SUMPRODUCT(Z57:AC57,PremisaCosto!$F$84:$I$84) -> 0 | AE57: =+IF($AK$3=1,Potencia!T57*$X57*12*1000*(1-$C57),AM57) -> 0 | AF57: =+Potencia!U57*$X57*12*1000*(1-$C57) -> 0 | AG57: =+Potencia!V57*$X57*12*1000*(1-$C57) -> 0 | AH57: =+Potencia!W57*$X57*12*1000*(1-$C57) -> 0 | AI57: =+SUMPRODUCT(AE57:AH57,PremisaCosto!$F$84:$I$84) -> 0 | AK57: MTD_4 Jub. 1 | AL57: =+IFERROR(VLOOKUP($AK57,[1]ITV_CD!$A$7:$W$149,AL$6,FALSE),0)/$AM$3 -> 0 | AM57: =+IFERROR(VLOOKUP($AK57,[1]ITV_CD!$A$7:$W$149,AM$6,FALSE),0)/$AM$3 -> 0 | AP57: =+Potencia!T58*$K58*12*1000*(1-$C58) -> 0
A58: =+PremisaCosto!A140 -> MTD_4 Jub. 2 | B58: =+PremisaCosto!H140 -> Jub. 2 | C58: =+IF(B58=0,0,VLOOKUP(B58,PremisaCosto!$A$69:$D$79,4,FALSE)) -> 0.25 | E58: 0.1873344144 | G58: 0 | H58: 1 | J58: 0 | K58: 16.89 | M58: =+($J58*(Energía!Z58-Clientes!T58*Límites!$D$6*12)+$J47*(Límites!$D$6-Límites!$C$6)*Clientes!T58*12+$J36*(Límites!$C$6-Límites!$B$6)*Clientes!T58*12+$J25*Clientes!T58*Límites!$B$6*12)*(1-$C58)*1000 -> 0 | N58: =+($J58*(Energía!AA58-Clientes!U58*Límites!$D$6*12)+$J47*(Límites!$D$6-Límites!$C$6)*Clientes!U58*12+$J36*(Límites!$C$6-Límites!$B$6)*Clientes!U58*12+$J25*Clientes!U58*Límites!$B$6*12)*(1-$C58)*1000 -> 0 | O58: =+($J58*(Energía!AB58-Clientes!V58*Límites!$D$6*12)+$J47*(Límites!$D$6-Límites!$C$6)*Clientes!V58*12+$J36*(Límites!$C$6-Límites!$B$6)*Clientes!V58*12+$J25*Clientes!V58*Límites!$B$6*12)*(1-$C58)*1000 -> 0 | P58: =+($J58*(Energía!AC58-Clientes!W58*Límites!$D$6*12)+$J47*(Límites!$D$6-Límites!$C$6)*Clientes!W58*12+$J36*(Límites!$C$6-Límites!$B$6)*Clientes!W58*12+$J25*Clientes!W58*Límites!$B$6*12)*(1-$C58)*1000 -> 0 | Q58: =+SUMPRODUCT(M58:P58,PremisaCosto!$F$84:$I$84) -> 0 | R58: =+Potencia!X58*$K58*12*1000*(1-$C58) -> 0 | T58: =IF(Q58=0,0,(IF($AK$3=1,$E58*$F$4*G58/$Q$20,($E58*$F$4*G58-$AL$20*PremisaCosto!$F$84)/($Q$20-$M$20*PremisaCosto!$F$84)))) -> 0 | U58: =IF(R58=0,0,IF($AK$3=1,$E58*$F$4*H58/$R$20,($E58*$F$4*H58-$AM$20*PremisaCosto!$F$84)/($R$20-$AP$19*PremisaCosto!$F$84))) -> 0 | W58: 0 | X58: 0 | Z58: =+($W58*(Energía!Z58-Clientes!T58*Límites!$D$6*12)+$W47*(Límites!$D$6-Límites!$C$6)*Clientes!T58*12+$W36*(Límites!$C$6-Límites!$B$6)*Clientes!T58*12+$W25*Clientes!T58*Límites!$B$6*12)*(1-$C58)*1000 -> 0 | AA58: =+($W58*(Energía!AA58-Clientes!U58*Límites!$D$6*12)+$W47*(Límites!$D$6-Límites!$C$6)*Clientes!U58*12+$W36*(Límites!$C$6-Límites!$B$6)*Clientes!U58*12+$W25*Clientes!U58*Límites!$B$6*12)*(1-$C58)*1000 -> 0 | AB58: =+($W58*(Energía!AB58-Clientes!V58*Límites!$D$6*12)+$W47*(Límites!$D$6-Límites!$C$6)*Clientes!V58*12+$W36*(Límites!$C$6-Límites!$B$6)*Clientes!V58*12+$W25*Clientes!V58*Límites!$B$6*12)*(1-$C58)*1000 -> 0 | AC58: =+($W58*(Energía!AC58-Clientes!W58*Límites!$D$6*12)+$W47*(Límites!$D$6-Límites!$C$6)*Clientes!W58*12+$W36*(Límites!$C$6-Límites!$B$6)*Clientes!W58*12+$W25*Clientes!W58*Límites!$B$6*12)*(1-$C58)*1000 -> 0 | AD58: =+SUMPRODUCT(Z58:AC58,PremisaCosto!$F$84:$I$84) -> 0 | AE58: =+IF($AK$3=1,Potencia!T58*$X58*12*1000*(1-$C58),AM58) -> 0 | AF58: =+Potencia!U58*$X58*12*1000*(1-$C58) -> 0 | AG58: =+Potencia!V58*$X58*12*1000*(1-$C58) -> 0 | AH58: =+Potencia!W58*$X58*12*1000*(1-$C58) -> 0 | AI58: =+SUMPRODUCT(AE58:AH58,PremisaCosto!$F$84:$I$84) -> 0 | AK58: MTD_4 Jub. 2 | AL58: =+IFERROR(VLOOKUP($AK58,[1]ITV_CD!$A$7:$W$149,AL$6,FALSE),0)/$AM$3 -> 0 | AM58: =+IFERROR(VLOOKUP($AK58,[1]ITV_CD!$A$7:$W$149,AM$6,FALSE),0)/$AM$3 -> 0 | AP58: =+Potencia!T59*$K59*12*1000*(1-$C59) -> 0
A59: =+PremisaCosto!A141 -> MTD_4 Político | B59: =+PremisaCosto!H141 -> Político | C59: =+IF(B59=0,0,VLOOKUP(B59,PremisaCosto!$A$69:$D$79,4,FALSE)) -> 0.5 | E59: 0.1873344144 | G59: 0 | H59: =+H58 -> 1 | J59: 0 | K59: 16.89 | M59: =+($J59*(Energía!Z59-Clientes!T59*Límites!$D$6*12)+$J48*(Límites!$D$6-Límites!$C$6)*Clientes!T59*12+$J37*(Límites!$C$6-Límites!$B$6)*Clientes!T59*12+$J26*Clientes!T59*Límites!$B$6*12)*(1-$C59)*1000 -> 0 | N59: =+($J59*(Energía!AA59-Clientes!U59*Límites!$D$6*12)+$J48*(Límites!$D$6-Límites!$C$6)*Clientes!U59*12+$J37*(Límites!$C$6-Límites!$B$6)*Clientes!U59*12+$J26*Clientes!U59*Límites!$B$6*12)*(1-$C59)*1000 -> 0 | O59: =+($J59*(Energía!AB59-Clientes!V59*Límites!$D$6*12)+$J48*(Límites!$D$6-Límites!$C$6)*Clientes!V59*12+$J37*(Límites!$C$6-Límites!$B$6)*Clientes!V59*12+$J26*Clientes!V59*Límites!$B$6*12)*(1-$C59)*1000 -> 0 | P59: =+($J59*(Energía!AC59-Clientes!W59*Límites!$D$6*12)+$J48*(Límites!$D$6-Límites!$C$6)*Clientes!W59*12+$J37*(Límites!$C$6-Límites!$B$6)*Clientes!W59*12+$J26*Clientes!W59*Límites!$B$6*12)*(1-$C59)*1000 -> 0 | Q59: =+SUMPRODUCT(M59:P59,PremisaCosto!$F$84:$I$84) -> 0 | R59: =+Potencia!X59*$K59*12*1000*(1-$C59) -> 0 | T59: =IF(Q59=0,0,(IF($AK$3=1,$E59*$F$4*G59/$Q$20,($E59*$F$4*G59-$AL$20*PremisaCosto!$F$84)/($Q$20-$M$20*PremisaCosto!$F$84)))) -> 0 | U59: =IF(R59=0,0,IF($AK$3=1,$E59*$F$4*H59/$R$20,($E59*$F$4*H59-$AM$20*PremisaCosto!$F$84)/($R$20-$AP$19*PremisaCosto!$F$84))) -> 0 | W59: 0 | X59: 0 | Z59: =+($W59*(Energía!Z59-Clientes!T59*Límites!$D$6*12)+$W48*(Límites!$D$6-Límites!$C$6)*Clientes!T59*12+$W37*(Límites!$C$6-Límites!$B$6)*Clientes!T59*12+$W26*Clientes!T59*Límites!$B$6*12)*(1-$C59)*1000 -> 0 | AA59: =+($W59*(Energía!AA59-Clientes!U59*Límites!$D$6*12)+$W48*(Límites!$D$6-Límites!$C$6)*Clientes!U59*12+$W37*(Límites!$C$6-Límites!$B$6)*Clientes!U59*12+$W26*Clientes!U59*Límites!$B$6*12)*(1-$C59)*1000 -> 0 | AB59: =+($W59*(Energía!AB59-Clientes!V59*Límites!$D$6*12)+$W48*(Límites!$D$6-Límites!$C$6)*Clientes!V59*12+$W37*(Límites!$C$6-Límites!$B$6)*Clientes!V59*12+$W26*Clientes!V59*Límites!$B$6*12)*(1-$C59)*1000 -> 0 | AC59: =+($W59*(Energía!AC59-Clientes!W59*Límites!$D$6*12)+$W48*(Límites!$D$6-Límites!$C$6)*Clientes!W59*12+$W37*(Límites!$C$6-Límites!$B$6)*Clientes!W59*12+$W26*Clientes!W59*Límites!$B$6*12)*(1-$C59)*1000 -> 0 | AD59: =+SUMPRODUCT(Z59:AC59,PremisaCosto!$F$84:$I$84) -> 0 | AE59: =+IF($AK$3=1,Potencia!T59*$X59*12*1000*(1-$C59),AM59) -> 0 | AF59: =+Potencia!U59*$X59*12*1000*(1-$C59) -> 0 | AG59: =+Potencia!V59*$X59*12*1000*(1-$C59) -> 0 | AH59: =+Potencia!W59*$X59*12*1000*(1-$C59) -> 0 | AI59: =+SUMPRODUCT(AE59:AH59,PremisaCosto!$F$84:$I$84) -> 0 | AK59: MTD_4 Político | AL59: =+IFERROR(VLOOKUP($AK59,[1]ITV_CD!$A$7:$W$149,AL$6,FALSE),0)/$AM$3 -> 0 | AM59: =+IFERROR(VLOOKUP($AK59,[1]ITV_CD!$A$7:$W$149,AM$6,FALSE),0)/$AM$3 -> 0 | AP59: =+Potencia!T60*$K60*12*1000*(1-$C60) -> 0
A60: =+PremisaCosto!A142 -> MTD_4 x1 | B60: =+PremisaCosto!H142 -> x1 | C60: =+IF(B60=0,0,VLOOKUP(B60,PremisaCosto!$A$69:$D$79,4,FALSE)) -> 0 | E60: 0.1873344144 | G60: 0 | H60: 1 | J60: 0 | K60: 16.89 | M60: =+($J60*(Energía!Z60-Clientes!T60*Límites!$D$6*12)+$J49*(Límites!$D$6-Límites!$C$6)*Clientes!T60*12+$J38*(Límites!$C$6-Límites!$B$6)*Clientes!T60*12+$J27*Clientes!T60*Límites!$B$6*12)*(1-$C60)*1000 -> 0 | N60: =+($J60*(Energía!AA60-Clientes!U60*Límites!$D$6*12)+$J49*(Límites!$D$6-Límites!$C$6)*Clientes!U60*12+$J38*(Límites!$C$6-Límites!$B$6)*Clientes!U60*12+$J27*Clientes!U60*Límites!$B$6*12)*(1-$C60)*1000 -> 0 | O60: =+($J60*(Energía!AB60-Clientes!V60*Límites!$D$6*12)+$J49*(Límites!$D$6-Límites!$C$6)*Clientes!V60*12+$J38*(Límites!$C$6-Límites!$B$6)*Clientes!V60*12+$J27*Clientes!V60*Límites!$B$6*12)*(1-$C60)*1000 -> 0 | P60: =+($J60*(Energía!AC60-Clientes!W60*Límites!$D$6*12)+$J49*(Límites!$D$6-Límites!$C$6)*Clientes!W60*12+$J38*(Límites!$C$6-Límites!$B$6)*Clientes!W60*12+$J27*Clientes!W60*Límites!$B$6*12)*(1-$C60)*1000 -> 0 | Q60: =+SUMPRODUCT(M60:P60,PremisaCosto!$F$84:$I$84) -> 0 | R60: =+Potencia!X60*$K60*12*1000*(1-$C60) -> 0 | T60: =IF(Q60=0,0,(IF($AK$3=1,$E60*$F$4*G60/$Q$20,($E60*$F$4*G60-$AL$20*PremisaCosto!$F$84)/($Q$20-$M$20*PremisaCosto!$F$84)))) -> 0 | U60: =IF(R60=0,0,IF($AK$3=1,$E60*$F$4*H60/$R$20,($E60*$F$4*H60-$AM$20*PremisaCosto!$F$84)/($R$20-$AP$19*PremisaCosto!$F$84))) -> 0 | W60: 0 | X60: 0 | Z60: =+($W60*(Energía!Z60-Clientes!T60*Límites!$D$6*12)+$W49*(Límites!$D$6-Límites!$C$6)*Clientes!T60*12+$W38*(Límites!$C$6-Límites!$B$6)*Clientes!T60*12+$W27*Clientes!T60*Límites!$B$6*12)*(1-$C60)*1000 -> 0 | AA60: =+($W60*(Energía!AA60-Clientes!U60*Límites!$D$6*12)+$W49*(Límites!$D$6-Límites!$C$6)*Clientes!U60*12+$W38*(Límites!$C$6-Límites!$B$6)*Clientes!U60*12+$W27*Clientes!U60*Límites!$B$6*12)*(1-$C60)*1000 -> 0 | AB60: =+($W60*(Energía!AB60-Clientes!V60*Límites!$D$6*12)+$W49*(Límites!$D$6-Límites!$C$6)*Clientes!V60*12+$W38*(Límites!$C$6-Límites!$B$6)*Clientes!V60*12+$W27*Clientes!V60*Límites!$B$6*12)*(1-$C60)*1000 -> 0 | AC60: =+($W60*(Energía!AC60-Clientes!W60*Límites!$D$6*12)+$W49*(Límites!$D$6-Límites!$C$6)*Clientes!W60*12+$W38*(Límites!$C$6-Límites!$B$6)*Clientes!W60*12+$W27*Clientes!W60*Límites!$B$6*12)*(1-$C60)*1000 -> 0 | AD60: =+SUMPRODUCT(Z60:AC60,PremisaCosto!$F$84:$I$84) -> 0 | AE60: =+IF($AK$3=1,Potencia!T60*$X60*12*1000*(1-$C60),AM60) -> 0 | AF60: =+Potencia!U60*$X60*12*1000*(1-$C60) -> 0 | AG60: =+Potencia!V60*$X60*12*1000*(1-$C60) -> 0 | AH60: =+Potencia!W60*$X60*12*1000*(1-$C60) -> 0 | AI60: =+SUMPRODUCT(AE60:AH60,PremisaCosto!$F$84:$I$84) -> 0 | AK60: MTD_4 x1 | AL60: =+IFERROR(VLOOKUP($AK60,[1]ITV_CD!$A$7:$W$149,AL$6,FALSE),0)/$AM$3 -> 0 | AM60: =+IFERROR(VLOOKUP($AK60,[1]ITV_CD!$A$7:$W$149,AM$6,FALSE),0)/$AM$3 -> 0 | AP60: =+Potencia!T61*$K61*12*1000*(1-$C61) -> 0
A61: =+PremisaCosto!A143 -> MTD_4 x2 | B61: =+PremisaCosto!H143 -> x2 | C61: =+IF(B61=0,0,VLOOKUP(B61,PremisaCosto!$A$69:$D$79,4,FALSE)) -> 0 | E61: 0.1873344144 | G61: 0 | H61: 1 | J61: 0 | K61: 16.89 | M61: =+($J61*(Energía!Z61-Clientes!T61*Límites!$D$6*12)+$J50*(Límites!$D$6-Límites!$C$6)*Clientes!T61*12+$J39*(Límites!$C$6-Límites!$B$6)*Clientes!T61*12+$J28*Clientes!T61*Límites!$B$6*12)*(1-$C61)*1000 -> 0 | N61: =+($J61*(Energía!AA61-Clientes!U61*Límites!$D$6*12)+$J50*(Límites!$D$6-Límites!$C$6)*Clientes!U61*12+$J39*(Límites!$C$6-Límites!$B$6)*Clientes!U61*12+$J28*Clientes!U61*Límites!$B$6*12)*(1-$C61)*1000 -> 0 | O61: =+($J61*(Energía!AB61-Clientes!V61*Límites!$D$6*12)+$J50*(Límites!$D$6-Límites!$C$6)*Clientes!V61*12+$J39*(Límites!$C$6-Límites!$B$6)*Clientes!V61*12+$J28*Clientes!V61*Límites!$B$6*12)*(1-$C61)*1000 -> 0 | P61: =+($J61*(Energía!AC61-Clientes!W61*Límites!$D$6*12)+$J50*(Límites!$D$6-Límites!$C$6)*Clientes!W61*12+$J39*(Límites!$C$6-Límites!$B$6)*Clientes!W61*12+$J28*Clientes!W61*Límites!$B$6*12)*(1-$C61)*1000 -> 0 | Q61: =+SUMPRODUCT(M61:P61,PremisaCosto!$F$84:$I$84) -> 0 | R61: =+Potencia!X61*$K61*12*1000*(1-$C61) -> 0 | T61: =IF(Q61=0,0,(IF($AK$3=1,$E61*$F$4*G61/$Q$20,($E61*$F$4*G61-$AL$20*PremisaCosto!$F$84)/($Q$20-$M$20*PremisaCosto!$F$84)))) -> 0 | U61: =IF(R61=0,0,IF($AK$3=1,$E61*$F$4*H61/$R$20,($E61*$F$4*H61-$AM$20*PremisaCosto!$F$84)/($R$20-$AP$19*PremisaCosto!$F$84))) -> 0 | W61: 0 | X61: 0 | Z61: =+($W61*(Energía!Z61-Clientes!T61*Límites!$D$6*12)+$W50*(Límites!$D$6-Límites!$C$6)*Clientes!T61*12+$W39*(Límites!$C$6-Límites!$B$6)*Clientes!T61*12+$W28*Clientes!T61*Límites!$B$6*12)*(1-$C61)*1000 -> 0 | AA61: =+($W61*(Energía!AA61-Clientes!U61*Límites!$D$6*12)+$W50*(Límites!$D$6-Límites!$C$6)*Clientes!U61*12+$W39*(Límites!$C$6-Límites!$B$6)*Clientes!U61*12+$W28*Clientes!U61*Límites!$B$6*12)*(1-$C61)*1000 -> 0 | AB61: =+($W61*(Energía!AB61-Clientes!V61*Límites!$D$6*12)+$W50*(Límites!$D$6-Límites!$C$6)*Clientes!V61*12+$W39*(Límites!$C$6-Límites!$B$6)*Clientes!V61*12+$W28*Clientes!V61*Límites!$B$6*12)*(1-$C61)*1000 -> 0 | AC61: =+($W61*(Energía!AC61-Clientes!W61*Límites!$D$6*12)+$W50*(Límites!$D$6-Límites!$C$6)*Clientes!W61*12+$W39*(Límites!$C$6-Límites!$B$6)*Clientes!W61*12+$W28*Clientes!W61*Límites!$B$6*12)*(1-$C61)*1000 -> 0 | AD61: =+SUMPRODUCT(Z61:AC61,PremisaCosto!$F$84:$I$84) -> 0 | AE61: =+IF($AK$3=1,Potencia!T61*$X61*12*1000*(1-$C61),AM61) -> 0 | AF61: =+Potencia!U61*$X61*12*1000*(1-$C61) -> 0 | AG61: =+Potencia!V61*$X61*12*1000*(1-$C61) -> 0 | AH61: =+Potencia!W61*$X61*12*1000*(1-$C61) -> 0 | AI61: =+SUMPRODUCT(AE61:AH61,PremisaCosto!$F$84:$I$84) -> 0 | AK61: MTD_4 x2 | AL61: =+IFERROR(VLOOKUP($AK61,[1]ITV_CD!$A$7:$W$149,AL$6,FALSE),0)/$AM$3 -> 0 | AM61: =+IFERROR(VLOOKUP($AK61,[1]ITV_CD!$A$7:$W$149,AM$6,FALSE),0)/$AM$3 -> 0 | AP61: =+Potencia!T62*$K62*12*1000*(1-$C62) -> 0
A62: =+PremisaCosto!A144 -> MTD_4 Discap. | B62: =+PremisaCosto!H144 -> Discap. | C62: =+IF(B62=0,0,VLOOKUP(B62,PremisaCosto!$A$69:$D$79,4,FALSE)) -> 0.25 | E62: 0.1873344144 | G62: 0 | H62: 1 | J62: 0 | K62: 16.89 | M62: =+($J62*(Energía!Z62-Clientes!T62*Límites!$D$6*12)+$J51*(Límites!$D$6-Límites!$C$6)*Clientes!T62*12+$J40*(Límites!$C$6-Límites!$B$6)*Clientes!T62*12+$J29*Clientes!T62*Límites!$B$6*12)*(1-$C62)*1000 -> 0 | N62: =+($J62*(Energía!AA62-Clientes!U62*Límites!$D$6*12)+$J51*(Límites!$D$6-Límites!$C$6)*Clientes!U62*12+$J40*(Límites!$C$6-Límites!$B$6)*Clientes!U62*12+$J29*Clientes!U62*Límites!$B$6*12)*(1-$C62)*1000 -> 0 | O62: =+($J62*(Energía!AB62-Clientes!V62*Límites!$D$6*12)+$J51*(Límites!$D$6-Límites!$C$6)*Clientes!V62*12+$J40*(Límites!$C$6-Límites!$B$6)*Clientes!V62*12+$J29*Clientes!V62*Límites!$B$6*12)*(1-$C62)*1000 -> 0 | P62: =+($J62*(Energía!AC62-Clientes!W62*Límites!$D$6*12)+$J51*(Límites!$D$6-Límites!$C$6)*Clientes!W62*12+$J40*(Límites!$C$6-Límites!$B$6)*Clientes!W62*12+$J29*Clientes!W62*Límites!$B$6*12)*(1-$C62)*1000 -> 0 | Q62: =+SUMPRODUCT(M62:P62,PremisaCosto!$F$84:$I$84) -> 0 | R62: =+Potencia!X62*$K62*12*1000*(1-$C62) -> 0 | T62: =IF(Q62=0,0,(IF($AK$3=1,$E62*$F$4*G62/$Q$20,($E62*$F$4*G62-$AL$20*PremisaCosto!$F$84)/($Q$20-$M$20*PremisaCosto!$F$84)))) -> 0 | U62: =IF(R62=0,0,IF($AK$3=1,$E62*$F$4*H62/$R$20,($E62*$F$4*H62-$AM$20*PremisaCosto!$F$84)/($R$20-$AP$19*PremisaCosto!$F$84))) -> 0 | W62: 0 | X62: 0 | Z62: =+($W62*(Energía!Z62-Clientes!T62*Límites!$D$6*12)+$W51*(Límites!$D$6-Límites!$C$6)*Clientes!T62*12+$W40*(Límites!$C$6-Límites!$B$6)*Clientes!T62*12+$W29*Clientes!T62*Límites!$B$6*12)*(1-$C62)*1000 -> 0 | AA62: =+($W62*(Energía!AA62-Clientes!U62*Límites!$D$6*12)+$W51*(Límites!$D$6-Límites!$C$6)*Clientes!U62*12+$W40*(Límites!$C$6-Límites!$B$6)*Clientes!U62*12+$W29*Clientes!U62*Límites!$B$6*12)*(1-$C62)*1000 -> 0 | AB62: =+($W62*(Energía!AB62-Clientes!V62*Límites!$D$6*12)+$W51*(Límites!$D$6-Límites!$C$6)*Clientes!V62*12+$W40*(Límites!$C$6-Límites!$B$6)*Clientes!V62*12+$W29*Clientes!V62*Límites!$B$6*12)*(1-$C62)*1000 -> 0 | AC62: =+($W62*(Energía!AC62-Clientes!W62*Límites!$D$6*12)+$W51*(Límites!$D$6-Límites!$C$6)*Clientes!W62*12+$W40*(Límites!$C$6-Límites!$B$6)*Clientes!W62*12+$W29*Clientes!W62*Límites!$B$6*12)*(1-$C62)*1000 -> 0 | AD62: =+SUMPRODUCT(Z62:AC62,PremisaCosto!$F$84:$I$84) -> 0 | AE62: =+IF($AK$3=1,Potencia!T62*$X62*12*1000*(1-$C62),AM62) -> 0 | AF62: =+Potencia!U62*$X62*12*1000*(1-$C62) -> 0 | AG62: =+Potencia!V62*$X62*12*1000*(1-$C62) -> 0 | AH62: =+Potencia!W62*$X62*12*1000*(1-$C62) -> 0 | AI62: =+SUMPRODUCT(AE62:AH62,PremisaCosto!$F$84:$I$84) -> 0 | AK62: MTD_4 Discap. | AL62: =+IFERROR(VLOOKUP($AK62,[1]ITV_CD!$A$7:$W$149,AL$6,FALSE),0)/$AM$3 -> 0 | AM62: =+IFERROR(VLOOKUP($AK62,[1]ITV_CD!$A$7:$W$149,AM$6,FALSE),0)/$AM$3 -> 0 | AP62: =+Potencia!T63*$K63*12*1000*(1-$C63) -> 0
A63: =+PremisaCosto!A145 -> MTD_4 Discapacitados 601-más | B63: =+PremisaCosto!H145 -> Discapacitados 601-más | C63: =+IF(B63=0,0,VLOOKUP(B63,PremisaCosto!$A$69:$D$79,4,FALSE)) -> 0.25 | E63: 0.1873344144 | G63: 0 | H63: 1 | J63: 0 | K63: 16.89 | M63: =+($J63*(Energía!Z63-Clientes!T63*Límites!$D$6*12)+$J52*(Límites!$D$6-Límites!$C$6)*Clientes!T63*12+$J41*(Límites!$C$6-Límites!$B$6)*Clientes!T63*12+$J30*Clientes!T63*Límites!$B$6*12)*(1-$C63)*1000 -> 0 | N63: =+($J63*(Energía!AA63-Clientes!U63*Límites!$D$6*12)+$J52*(Límites!$D$6-Límites!$C$6)*Clientes!U63*12+$J41*(Límites!$C$6-Límites!$B$6)*Clientes!U63*12+$J30*Clientes!U63*Límites!$B$6*12)*(1-$C63)*1000 -> 0 | O63: =+($J63*(Energía!AB63-Clientes!V63*Límites!$D$6*12)+$J52*(Límites!$D$6-Límites!$C$6)*Clientes!V63*12+$J41*(Límites!$C$6-Límites!$B$6)*Clientes!V63*12+$J30*Clientes!V63*Límites!$B$6*12)*(1-$C63)*1000 -> 0 | P63: =+($J63*(Energía!AC63-Clientes!W63*Límites!$D$6*12)+$J52*(Límites!$D$6-Límites!$C$6)*Clientes!W63*12+$J41*(Límites!$C$6-Límites!$B$6)*Clientes!W63*12+$J30*Clientes!W63*Límites!$B$6*12)*(1-$C63)*1000 -> 0 | Q63: =+SUMPRODUCT(M63:P63,PremisaCosto!$F$84:$I$84) -> 0 | R63: =+Potencia!X63*$K63*12*1000*(1-$C63) -> 0 | T63: =IF(Q63=0,0,(IF($AK$3=1,$E63*$F$4*G63/$Q$20,($E63*$F$4*G63-$AL$20*PremisaCosto!$F$84)/($Q$20-$M$20*PremisaCosto!$F$84)))) -> 0 | U63: =IF(R63=0,0,IF($AK$3=1,$E63*$F$4*H63/$R$20,($E63*$F$4*H63-$AM$20*PremisaCosto!$F$84)/($R$20-$AP$19*PremisaCosto!$F$84))) -> 0 | W63: 0 | X63: 0 | Z63: =+($W63*(Energía!Z63-Clientes!T63*Límites!$D$6*12)+$W52*(Límites!$D$6-Límites!$C$6)*Clientes!T63*12+$W41*(Límites!$C$6-Límites!$B$6)*Clientes!T63*12+$W30*Clientes!T63*Límites!$B$6*12)*(1-$C63)*1000 -> 0 | AA63: =+($W63*(Energía!AA63-Clientes!U63*Límites!$D$6*12)+$W52*(Límites!$D$6-Límites!$C$6)*Clientes!U63*12+$W41*(Límites!$C$6-Límites!$B$6)*Clientes!U63*12+$W30*Clientes!U63*Límites!$B$6*12)*(1-$C63)*1000 -> 0 | AB63: =+($W63*(Energía!AB63-Clientes!V63*Límites!$D$6*12)+$W52*(Límites!$D$6-Límites!$C$6)*Clientes!V63*12+$W41*(Límites!$C$6-Límites!$B$6)*Clientes!V63*12+$W30*Clientes!V63*Límites!$B$6*12)*(1-$C63)*1000 -> 0 | AC63: =+($W63*(Energía!AC63-Clientes!W63*Límites!$D$6*12)+$W52*(Límites!$D$6-Límites!$C$6)*Clientes!W63*12+$W41*(Límites!$C$6-Límites!$B$6)*Clientes!W63*12+$W30*Clientes!W63*Límites!$B$6*12)*(1-$C63)*1000 -> 0 | AD63: =+SUMPRODUCT(Z63:AC63,PremisaCosto!$F$84:$I$84) -> 0 | AE63: =+IF($AK$3=1,Potencia!T63*$X63*12*1000*(1-$C63),AM63) -> 0 | AF63: =+Potencia!U63*$X63*12*1000*(1-$C63) -> 0 | AG63: =+Potencia!V63*$X63*12*1000*(1-$C63) -> 0 | AH63: =+Potencia!W63*$X63*12*1000*(1-$C63) -> 0 | AI63: =+SUMPRODUCT(AE63:AH63,PremisaCosto!$F$84:$I$84) -> 0 | AK63: MTD_4 Discapacitados 601-más | AL63: =+IFERROR(VLOOKUP($AK63,[1]ITV_CD!$A$7:$W$149,AL$6,FALSE),0)/$AM$3 -> 0 | AM63: =+IFERROR(VLOOKUP($AK63,[1]ITV_CD!$A$7:$W$149,AM$6,FALSE),0)/$AM$3 -> 0 | AP63: =+Potencia!T64*$K64*12*1000*(1-$C64) -> 0
A64: =+PremisaCosto!A146 -> MTD_4 Cruz Roja | B64: =+PremisaCosto!H146 -> Cruz Roja | C64: =+IF(B64=0,0,VLOOKUP(B64,PremisaCosto!$A$69:$D$79,4,FALSE)) -> 1 | E64: 0.1873344144 | G64: 0 | H64: 1 | J64: 0 | K64: 16.89 | M64: =+($J64*(Energía!Z64-Clientes!T64*Límites!$D$6*12)+$J53*(Límites!$D$6-Límites!$C$6)*Clientes!T64*12+$J42*(Límites!$C$6-Límites!$B$6)*Clientes!T64*12+$J31*Clientes!T64*Límites!$B$6*12)*(1-$C64)*1000 -> 0 | N64: =+($J64*(Energía!AA64-Clientes!U64*Límites!$D$6*12)+$J53*(Límites!$D$6-Límites!$C$6)*Clientes!U64*12+$J42*(Límites!$C$6-Límites!$B$6)*Clientes!U64*12+$J31*Clientes!U64*Límites!$B$6*12)*(1-$C64)*1000 -> 0 | O64: =+($J64*(Energía!AB64-Clientes!V64*Límites!$D$6*12)+$J53*(Límites!$D$6-Límites!$C$6)*Clientes!V64*12+$J42*(Límites!$C$6-Límites!$B$6)*Clientes!V64*12+$J31*Clientes!V64*Límites!$B$6*12)*(1-$C64)*1000 -> 0 | P64: =+($J64*(Energía!AC64-Clientes!W64*Límites!$D$6*12)+$J53*(Límites!$D$6-Límites!$C$6)*Clientes!W64*12+$J42*(Límites!$C$6-Límites!$B$6)*Clientes!W64*12+$J31*Clientes!W64*Límites!$B$6*12)*(1-$C64)*1000 -> 0 | Q64: =+SUMPRODUCT(M64:P64,PremisaCosto!$F$84:$I$84) -> 0 | R64: =+Potencia!X64*$K64*12*1000*(1-$C64) -> 0 | T64: =IF(Q64=0,0,(IF($AK$3=1,$E64*$F$4*G64/$Q$20,($E64*$F$4*G64-$AL$20*PremisaCosto!$F$84)/($Q$20-$M$20*PremisaCosto!$F$84)))) -> 0 | U64: =IF(R64=0,0,IF($AK$3=1,$E64*$F$4*H64/$R$20,($E64*$F$4*H64-$AM$20*PremisaCosto!$F$84)/($R$20-$AP$19*PremisaCosto!$F$84))) -> 0 | W64: 0 | X64: 0 | Z64: =+($W64*(Energía!Z64-Clientes!T64*Límites!$D$6*12)+$W53*(Límites!$D$6-Límites!$C$6)*Clientes!T64*12+$W42*(Límites!$C$6-Límites!$B$6)*Clientes!T64*12+$W31*Clientes!T64*Límites!$B$6*12)*(1-$C64)*1000 -> 0 | AA64: =+($W64*(Energía!AA64-Clientes!U64*Límites!$D$6*12)+$W53*(Límites!$D$6-Límites!$C$6)*Clientes!U64*12+$W42*(Límites!$C$6-Límites!$B$6)*Clientes!U64*12+$W31*Clientes!U64*Límites!$B$6*12)*(1-$C64)*1000 -> 0 | AB64: =+($W64*(Energía!AB64-Clientes!V64*Límites!$D$6*12)+$W53*(Límites!$D$6-Límites!$C$6)*Clientes!V64*12+$W42*(Límites!$C$6-Límites!$B$6)*Clientes!V64*12+$W31*Clientes!V64*Límites!$B$6*12)*(1-$C64)*1000 -> 0 | AC64: =+($W64*(Energía!AC64-Clientes!W64*Límites!$D$6*12)+$W53*(Límites!$D$6-Límites!$C$6)*Clientes!W64*12+$W42*(Límites!$C$6-Límites!$B$6)*Clientes!W64*12+$W31*Clientes!W64*Límites!$B$6*12)*(1-$C64)*1000 -> 0 | AD64: =+SUMPRODUCT(Z64:AC64,PremisaCosto!$F$84:$I$84) -> 0 | AE64: =+IF($AK$3=1,Potencia!T64*$X64*12*1000*(1-$C64),AM64) -> 0 | AF64: =+Potencia!U64*$X64*12*1000*(1-$C64) -> 0 | AG64: =+Potencia!V64*$X64*12*1000*(1-$C64) -> 0 | AH64: =+Potencia!W64*$X64*12*1000*(1-$C64) -> 0 | AI64: =+SUMPRODUCT(AE64:AH64,PremisaCosto!$F$84:$I$84) -> 0 | AK64: MTD_4 Cruz Roja | AL64: =+IFERROR(VLOOKUP($AK64,[1]ITV_CD!$A$7:$W$149,AL$6,FALSE),0)/$AM$3 -> 0 | AM64: =+IFERROR(VLOOKUP($AK64,[1]ITV_CD!$A$7:$W$149,AM$6,FALSE),0)/$AM$3 -> 0 | AP64: =+SUM(AP65:AP74) -> 0
A65: =+PremisaCosto!A147 -> MTD_5 (xxx) | B65: =+PremisaCosto!H147 -> 0 | C65: =+IF(B65=0,0,VLOOKUP(B65,PremisaCosto!$A$69:$D$79,4,FALSE)) -> 0 | E65: 0.1873344144 | G65: 0 | H65: 1 | J65: =+VLOOKUP($A65,[1]Diseño!$A$7:$BH$76,4,FALSE) -> 0 | K65: =+VLOOKUP($A65,[1]Diseño!$A$7:$BH$76,5,FALSE) -> 0 | M65: =+SUM(M66:M75) -> 0 | N65: 0 | O65: 0 | P65: 0 | Q65: 0 | R65: 0 | T65: =IF(Q65=0,0,(IF($AK$3=1,$E65*$F$4*G65/$Q$20,($E65*$F$4*G65-$AL$20*PremisaCosto!$F$84)/($Q$20-$M$20*PremisaCosto!$F$84)))) -> 0 | U65: =IF(R65=0,0,IF($AK$3=1,$E65*$F$4*H65/$R$20,($E65*$F$4*H65-$AM$20*PremisaCosto!$F$84)/($R$20-$AP$19*PremisaCosto!$F$84))) -> 0 | W65: 0 | X65: 0 | Z65: =+SUM(Z66:Z75) -> 0 | AA65: =+SUM(AA66:AA75) -> 0 | AB65: =+SUM(AB66:AB75) -> 0 | AC65: =+SUM(AC66:AC75) -> 0 | AD65: =+SUM(AD66:AD75) -> 0 | AE65: 0 | AF65: 0 | AG65: 0 | AH65: 0 | AI65: =+SUM(AI66:AI75) -> 0 | AK65: MTD_5 (xxx) | AL65: =+IFERROR(VLOOKUP($AK65,[1]ITV_CD!$A$7:$W$149,AL$6,FALSE),0)/$AM$3 -> 0 | AM65: =+IFERROR(VLOOKUP($AK65,[1]ITV_CD!$A$7:$W$149,AM$6,FALSE),0)/$AM$3 -> 0 | AP65: =+Potencia!T66*$K66*12*1000*(1-$C66) -> 0
A66: =+PremisaCosto!A148 -> MTD_5 Regular | B66: =+PremisaCosto!H148 -> Regular | C66: =+IF(B66=0,0,VLOOKUP(B66,PremisaCosto!$A$69:$D$79,4,FALSE)) -> 0 | E66: 0.1873344144 | G66: 0 | H66: 1 | J66: =+J65 -> 0 | K66: =+K65 -> 0 | M66: =+($J66*(Energía!Z66-Clientes!T66*Límites!$E$6*12)+$J55*(Límites!$E$6-Límites!$D$6)*Clientes!T66*12+$J44*(Límites!$D$6-Límites!$C$6)*Clientes!T66*12+$J33*(Límites!$C$6-Límites!$B$6)*Clientes!T66*12+$J22*Clientes!T66*Límites!$B$6*12)*(1-$C66)*1000 -> 0 | N66: =+($J66*(Energía!AA66-Clientes!U66*Límites!$E$6*12)+(Límites!$E$6-Límites!$D$6)*Clientes!U66*12*$J55+(Límites!$D$6-Límites!$C$6)*Clientes!U66*12*$J44+(Límites!$C$6-Límites!$B$6)*Clientes!U66*12*$J33+Clientes!U66*Límites!$B$6*12*$J22)*(1-$C66)*1000 -> 0 | O66: =+($J66*(Energía!AB66-Clientes!V66*Límites!$E$6*12)+(Límites!$E$6-Límites!$D$6)*Clientes!V66*12*$J55+(Límites!$D$6-Límites!$C$6)*Clientes!V66*12*$J44+(Límites!$C$6-Límites!$B$6)*Clientes!V66*12*$J33+Clientes!V66*Límites!$B$6*12*$J22)*(1-$C66)*1000 -> 0 | P66: =+($J66*(Energía!AC66-Clientes!W66*Límites!$E$6*12)+(Límites!$E$6-Límites!$D$6)*Clientes!W66*12*$J55+(Límites!$D$6-Límites!$C$6)*Clientes!W66*12*$J44+(Límites!$C$6-Límites!$B$6)*Clientes!W66*12*$J33+Clientes!W66*Límites!$B$6*12*$J22)*(1-$C66)*1000 -> 0 | Q66: =+SUMPRODUCT(M66:P66,PremisaCosto!$F$84:$I$84) -> 0 | R66: =+Potencia!X66*$K66*12*1000*(1-$C66) -> 0 | T66: =IF(Q66=0,0,(IF($AK$3=1,$E66*$F$4*G66/$Q$20,($E66*$F$4*G66-$AL$20*PremisaCosto!$F$84)/($Q$20-$M$20*PremisaCosto!$F$84)))) -> 0 | U66: =IF(R66=0,0,IF($AK$3=1,$E66*$F$4*H66/$R$20,($E66*$F$4*H66-$AM$20*PremisaCosto!$F$84)/($R$20-$AP$19*PremisaCosto!$F$84))) -> 0 | W66: 0 | X66: 0 | Z66: =+($W66*(Energía!Z66-Clientes!T66*Límites!$E$6*12)+$W55*(Límites!$E$6-Límites!$D$6)*Clientes!T66*12+$W44*(Límites!$D$6-Límites!$C$6)*Clientes!T66*12+$W33*(Límites!$C$6-Límites!$B$6)*Clientes!T66*12+$W22*Clientes!T66*Límites!$B$6*12)*(1-$C66)*1000 -> 0 | AA66: =+($W66*(Energía!AA66-Clientes!U66*Límites!$E$6*12)+(Límites!$E$6-Límites!$D$6)*Clientes!U66*12*$W55+(Límites!$D$6-Límites!$C$6)*Clientes!U66*12*$W44+(Límites!$C$6-Límites!$B$6)*Clientes!U66*12*$W33+Clientes!U66*Límites!$B$6*12*$W22)*(1-$C66)*1000 -> 0 | AB66: =+($W66*(Energía!AB66-Clientes!V66*Límites!$E$6*12)+(Límites!$E$6-Límites!$D$6)*Clientes!V66*12*$W55+(Límites!$D$6-Límites!$C$6)*Clientes!V66*12*$W44+(Límites!$C$6-Límites!$B$6)*Clientes!V66*12*$W33+Clientes!V66*Límites!$B$6*12*$W22)*(1-$C66)*1000 -> 0 | AC66: =+($W66*(Energía!AC66-Clientes!W66*Límites!$E$6*12)+(Límites!$E$6-Límites!$D$6)*Clientes!W66*12*$W55+(Límites!$D$6-Límites!$C$6)*Clientes!W66*12*$W44+(Límites!$C$6-Límites!$B$6)*Clientes!W66*12*$W33+Clientes!W66*Límites!$B$6*12*$W22)*(1-$C66)*1000 -> 0 | AD66: =+SUMPRODUCT(Z66:AC66,PremisaCosto!$F$84:$I$84) -> 0 | AE66: =+IF($AK$3=1,Potencia!T66*$X66*12*1000*(1-$C66),AM66) -> 0 | AF66: =+Potencia!U66*$X66*12*1000*(1-$C66) -> 0 | AG66: =+Potencia!V66*$X66*12*1000*(1-$C66) -> 0 | AH66: =+Potencia!W66*$X66*12*1000*(1-$C66) -> 0 | AI66: =+SUMPRODUCT(AE66:AH66,PremisaCosto!$F$84:$I$84) -> 0 | AK66: MTD_5 Regular | AL66: =+IFERROR(VLOOKUP($AK66,[1]ITV_CD!$A$7:$W$149,AL$6,FALSE),0)/$AM$3 -> 0 | AM66: =+IFERROR(VLOOKUP($AK66,[1]ITV_CD!$A$7:$W$149,AM$6,FALSE),0)/$AM$3 -> 0 | AP66: =+Potencia!T67*$K67*12*1000*(1-$C67) -> 0
A67: =+PremisaCosto!A149 -> MTD_5 Agro | B67: =+PremisaCosto!H149 -> Agro | C67: =+IF(B67=0,0,VLOOKUP(B67,PremisaCosto!$A$69:$D$79,4,FALSE)) -> 0.05 | E67: 0.1873344144 | G67: 0 | H67: 1 | J67: =+J66 -> 0 | K67: 0 | M67: =+($J67*(Energía!Z67-Clientes!T67*Límites!$E$6*12)+(Límites!$E$6-Límites!$D$6)*Clientes!T67*12*$J56+(Límites!$D$6-Límites!$C$6)*Clientes!T67*12*$J45+(Límites!$C$6-Límites!$B$6)*Clientes!T67*12*$J34+Clientes!T67*Límites!$B$6*12*$J23)*(1-$C67)*1000 -> 0 | N67: =+($J67*(Energía!AA67-Clientes!U67*Límites!$E$6*12)+(Límites!$E$6-Límites!$D$6)*Clientes!U67*12*$J56+(Límites!$D$6-Límites!$C$6)*Clientes!U67*12*$J45+(Límites!$C$6-Límites!$B$6)*Clientes!U67*12*$J34+Clientes!U67*Límites!$B$6*12*$J23)*(1-$C67)*1000 -> 0 | O67: =+($J67*(Energía!AB67-Clientes!V67*Límites!$E$6*12)+(Límites!$E$6-Límites!$D$6)*Clientes!V67*12*$J56+(Límites!$D$6-Límites!$C$6)*Clientes!V67*12*$J45+(Límites!$C$6-Límites!$B$6)*Clientes!V67*12*$J34+Clientes!V67*Límites!$B$6*12*$J23)*(1-$C67)*1000 -> 0 | P67: =+($J67*(Energía!AC67-Clientes!W67*Límites!$E$6*12)+(Límites!$E$6-Límites!$D$6)*Clientes!W67*12*$J56+(Límites!$D$6-Límites!$C$6)*Clientes!W67*12*$J45+(Límites!$C$6-Límites!$B$6)*Clientes!W67*12*$J34+Clientes!W67*Límites!$B$6*12*$J23)*(1-$C67)*1000 -> 0 | Q67: =+SUMPRODUCT(M67:P67,PremisaCosto!$F$84:$I$84) -> 0 | R67: =+Potencia!X67*$K67*12*1000*(1-$C67) -> 0 | T67: =IF(Q67=0,0,(IF($AK$3=1,$E67*$F$4*G67/$Q$20,($E67*$F$4*G67-$AL$20*PremisaCosto!$F$84)/($Q$20-$M$20*PremisaCosto!$F$84)))) -> 0 | U67: =IF(R67=0,0,IF($AK$3=1,$E67*$F$4*H67/$R$20,($E67*$F$4*H67-$AM$20*PremisaCosto!$F$84)/($R$20-$AP$19*PremisaCosto!$F$84))) -> 0 | W67: 0 | X67: 0 | Z67: =+($W67*(Energía!Z67-Clientes!T67*Límites!$E$6*12)+(Límites!$E$6-Límites!$D$6)*Clientes!T67*12*$W56+(Límites!$D$6-Límites!$C$6)*Clientes!T67*12*$W45+(Límites!$C$6-Límites!$B$6)*Clientes!T67*12*$W34+Clientes!T67*Límites!$B$6*12*$W23)*(1-$C67)*1000 -> 0 | AA67: =+($W67*(Energía!AA67-Clientes!U67*Límites!$E$6*12)+(Límites!$E$6-Límites!$D$6)*Clientes!U67*12*$W56+(Límites!$D$6-Límites!$C$6)*Clientes!U67*12*$W45+(Límites!$C$6-Límites!$B$6)*Clientes!U67*12*$W34+Clientes!U67*Límites!$B$6*12*$W23)*(1-$C67)*1000 -> 0 | AB67: =+($W67*(Energía!AB67-Clientes!V67*Límites!$E$6*12)+(Límites!$E$6-Límites!$D$6)*Clientes!V67*12*$W56+(Límites!$D$6-Límites!$C$6)*Clientes!V67*12*$W45+(Límites!$C$6-Límites!$B$6)*Clientes!V67*12*$W34+Clientes!V67*Límites!$B$6*12*$W23)*(1-$C67)*1000 -> 0 | AC67: =+($W67*(Energía!AC67-Clientes!W67*Límites!$E$6*12)+(Límites!$E$6-Límites!$D$6)*Clientes!W67*12*$W56+(Límites!$D$6-Límites!$C$6)*Clientes!W67*12*$W45+(Límites!$C$6-Límites!$B$6)*Clientes!W67*12*$W34+Clientes!W67*Límites!$B$6*12*$W23)*(1-$C67)*1000 -> 0 | AD67: =+SUMPRODUCT(Z67:AC67,PremisaCosto!$F$84:$I$84) -> 0 | AE67: =+IF($AK$3=1,Potencia!T67*$X67*12*1000*(1-$C67),AM67) -> 0 | AF67: =+Potencia!U67*$X67*12*1000*(1-$C67) -> 0 | AG67: =+Potencia!V67*$X67*12*1000*(1-$C67) -> 0 | AH67: =+Potencia!W67*$X67*12*1000*(1-$C67) -> 0 | AI67: =+SUMPRODUCT(AE67:AH67,PremisaCosto!$F$84:$I$84) -> 0 | AK67: MTD_5 Agro | AL67: =+IFERROR(VLOOKUP($AK67,[1]ITV_CD!$A$7:$W$149,AL$6,FALSE),0)/$AM$3 -> 0 | AM67: =+IFERROR(VLOOKUP($AK67,[1]ITV_CD!$A$7:$W$149,AM$6,FALSE),0)/$AM$3 -> 0 | AP67: =+Potencia!T68*$K68*12*1000*(1-$C68) -> 0
A68: =+PremisaCosto!A150 -> MTD_5 Jub. 1 | B68: =+PremisaCosto!H150 -> Jub. 1 | C68: =+IF(B68=0,0,VLOOKUP(B68,PremisaCosto!$A$69:$D$79,4,FALSE)) -> 0.25 | E68: 0.1873344144 | G68: 0 | H68: 1 | J68: 0 | K68: 0 | M68: =+($J68*(Energía!Z68-Clientes!T68*Límites!$E$6*12)+(Límites!$E$6-Límites!$D$6)*Clientes!T68*12*$J57+(Límites!$D$6-Límites!$C$6)*Clientes!T68*12*$J46+(Límites!$C$6-Límites!$B$6)*Clientes!T68*12*$J35+Clientes!T68*Límites!$B$6*12*$J24)*(1-$C68)*1000 -> 0 | N68: =+($J68*(Energía!AA68-Clientes!U68*Límites!$E$6*12)+(Límites!$E$6-Límites!$D$6)*Clientes!U68*12*$J57+(Límites!$D$6-Límites!$C$6)*Clientes!U68*12*$J46+(Límites!$C$6-Límites!$B$6)*Clientes!U68*12*$J35+Clientes!U68*Límites!$B$6*12*$J24)*(1-$C68)*1000 -> 0 | O68: =+($J68*(Energía!AB68-Clientes!V68*Límites!$E$6*12)+(Límites!$E$6-Límites!$D$6)*Clientes!V68*12*$J57+(Límites!$D$6-Límites!$C$6)*Clientes!V68*12*$J46+(Límites!$C$6-Límites!$B$6)*Clientes!V68*12*$J35+Clientes!V68*Límites!$B$6*12*$J24)*(1-$C68)*1000 -> 0 | P68: =+($J68*(Energía!AC68-Clientes!W68*Límites!$E$6*12)+(Límites!$E$6-Límites!$D$6)*Clientes!W68*12*$J57+(Límites!$D$6-Límites!$C$6)*Clientes!W68*12*$J46+(Límites!$C$6-Límites!$B$6)*Clientes!W68*12*$J35+Clientes!W68*Límites!$B$6*12*$J24)*(1-$C68)*1000 -> 0 | Q68: =+SUMPRODUCT(M68:P68,PremisaCosto!$F$84:$I$84) -> 0 | R68: =+Potencia!X68*$K68*12*1000*(1-$C68) -> 0 | T68: =IF(Q68=0,0,(IF($AK$3=1,$E68*$F$4*G68/$Q$20,($E68*$F$4*G68-$AL$20*PremisaCosto!$F$84)/($Q$20-$M$20*PremisaCosto!$F$84)))) -> 0 | U68: =IF(R68=0,0,IF($AK$3=1,$E68*$F$4*H68/$R$20,($E68*$F$4*H68-$AM$20*PremisaCosto!$F$84)/($R$20-$AP$19*PremisaCosto!$F$84))) -> 0 | W68: 0 | X68: 0 | Z68: =+($W68*(Energía!Z68-Clientes!T68*Límites!$E$6*12)+(Límites!$E$6-Límites!$D$6)*Clientes!T68*12*$W57+(Límites!$D$6-Límites!$C$6)*Clientes!T68*12*$W46+(Límites!$C$6-Límites!$B$6)*Clientes!T68*12*$W35+Clientes!T68*Límites!$B$6*12*$W24)*(1-$C68)*1000 -> 0 | AA68: =+($W68*(Energía!AA68-Clientes!U68*Límites!$E$6*12)+(Límites!$E$6-Límites!$D$6)*Clientes!U68*12*$W57+(Límites!$D$6-Límites!$C$6)*Clientes!U68*12*$W46+(Límites!$C$6-Límites!$B$6)*Clientes!U68*12*$W35+Clientes!U68*Límites!$B$6*12*$W24)*(1-$C68)*1000 -> 0 | AB68: =+($W68*(Energía!AB68-Clientes!V68*Límites!$E$6*12)+(Límites!$E$6-Límites!$D$6)*Clientes!V68*12*$W57+(Límites!$D$6-Límites!$C$6)*Clientes!V68*12*$W46+(Límites!$C$6-Límites!$B$6)*Clientes!V68*12*$W35+Clientes!V68*Límites!$B$6*12*$W24)*(1-$C68)*1000 -> 0 | AC68: =+($W68*(Energía!AC68-Clientes!W68*Límites!$E$6*12)+(Límites!$E$6-Límites!$D$6)*Clientes!W68*12*$W57+(Límites!$D$6-Límites!$C$6)*Clientes!W68*12*$W46+(Límites!$C$6-Límites!$B$6)*Clientes!W68*12*$W35+Clientes!W68*Límites!$B$6*12*$W24)*(1-$C68)*1000 -> 0 | AD68: =+SUMPRODUCT(Z68:AC68,PremisaCosto!$F$84:$I$84) -> 0 | AE68: =+IF($AK$3=1,Potencia!T68*$X68*12*1000*(1-$C68),AM68) -> 0 | AF68: =+Potencia!U68*$X68*12*1000*(1-$C68) -> 0 | AG68: =+Potencia!V68*$X68*12*1000*(1-$C68) -> 0 | AH68: =+Potencia!W68*$X68*12*1000*(1-$C68) -> 0 | AI68: =+SUMPRODUCT(AE68:AH68,PremisaCosto!$F$84:$I$84) -> 0 | AK68: MTD_5 Jub. 1 | AL68: =+IFERROR(VLOOKUP($AK68,[1]ITV_CD!$A$7:$W$149,AL$6,FALSE),0)/$AM$3 -> 0 | AM68: =+IFERROR(VLOOKUP($AK68,[1]ITV_CD!$A$7:$W$149,AM$6,FALSE),0)/$AM$3 -> 0 | AP68: =+Potencia!T69*$K69*12*1000*(1-$C69) -> 0
A69: =+PremisaCosto!A151 -> MTD_5 Jub. 2 | B69: =+PremisaCosto!H151 -> Jub. 2 | C69: =+IF(B69=0,0,VLOOKUP(B69,PremisaCosto!$A$69:$D$79,4,FALSE)) -> 0.25 | E69: 0.1873344144 | G69: =+G68 -> 0 | H69: =+H68 -> 1 | J69: 0 | K69: 0 | M69: =+($J69*(Energía!Z69-Clientes!T69*Límites!$E$6*12)+(Límites!$E$6-Límites!$D$6)*Clientes!T69*12*$J58+(Límites!$D$6-Límites!$C$6)*Clientes!T69*12*$J47+(Límites!$C$6-Límites!$B$6)*Clientes!T69*12*$J36+Clientes!T69*Límites!$B$6*12*$J25)*(1-$C69)*1000 -> 0 | N69: =+($J69*(Energía!AA69-Clientes!U69*Límites!$E$6*12)+(Límites!$E$6-Límites!$D$6)*Clientes!U69*12*$J58+(Límites!$D$6-Límites!$C$6)*Clientes!U69*12*$J47+(Límites!$C$6-Límites!$B$6)*Clientes!U69*12*$J36+Clientes!U69*Límites!$B$6*12*$J25)*(1-$C69)*1000 -> 0 | O69: =+($J69*(Energía!AB69-Clientes!V69*Límites!$E$6*12)+(Límites!$E$6-Límites!$D$6)*Clientes!V69*12*$J58+(Límites!$D$6-Límites!$C$6)*Clientes!V69*12*$J47+(Límites!$C$6-Límites!$B$6)*Clientes!V69*12*$J36+Clientes!V69*Límites!$B$6*12*$J25)*(1-$C69)*1000 -> 0 | P69: =+($J69*(Energía!AC69-Clientes!W69*Límites!$E$6*12)+(Límites!$E$6-Límites!$D$6)*Clientes!W69*12*$J58+(Límites!$D$6-Límites!$C$6)*Clientes!W69*12*$J47+(Límites!$C$6-Límites!$B$6)*Clientes!W69*12*$J36+Clientes!W69*Límites!$B$6*12*$J25)*(1-$C69)*1000 -> 0 | Q69: =+SUMPRODUCT(M69:P69,PremisaCosto!$F$84:$I$84) -> 0 | R69: =+Potencia!X69*$K69*12*1000*(1-$C69) -> 0 | T69: =IF(Q69=0,0,(IF($AK$3=1,$E69*$F$4*G69/$Q$20,($E69*$F$4*G69-$AL$20*PremisaCosto!$F$84)/($Q$20-$M$20*PremisaCosto!$F$84)))) -> 0 | U69: =IF(R69=0,0,IF($AK$3=1,$E69*$F$4*H69/$R$20,($E69*$F$4*H69-$AM$20*PremisaCosto!$F$84)/($R$20-$AP$19*PremisaCosto!$F$84))) -> 0 | W69: 0 | X69: 0 | Z69: =+($W69*(Energía!Z69-Clientes!T69*Límites!$E$6*12)+(Límites!$E$6-Límites!$D$6)*Clientes!T69*12*$W58+(Límites!$D$6-Límites!$C$6)*Clientes!T69*12*$W47+(Límites!$C$6-Límites!$B$6)*Clientes!T69*12*$W36+Clientes!T69*Límites!$B$6*12*$W25)*(1-$C69)*1000 -> 0 | AA69: =+($W69*(Energía!AA69-Clientes!U69*Límites!$E$6*12)+(Límites!$E$6-Límites!$D$6)*Clientes!U69*12*$W58+(Límites!$D$6-Límites!$C$6)*Clientes!U69*12*$W47+(Límites!$C$6-Límites!$B$6)*Clientes!U69*12*$W36+Clientes!U69*Límites!$B$6*12*$W25)*(1-$C69)*1000 -> 0 | AB69: =+($W69*(Energía!AB69-Clientes!V69*Límites!$E$6*12)+(Límites!$E$6-Límites!$D$6)*Clientes!V69*12*$W58+(Límites!$D$6-Límites!$C$6)*Clientes!V69*12*$W47+(Límites!$C$6-Límites!$B$6)*Clientes!V69*12*$W36+Clientes!V69*Límites!$B$6*12*$W25)*(1-$C69)*1000 -> 0 | AC69: =+($W69*(Energía!AC69-Clientes!W69*Límites!$E$6*12)+(Límites!$E$6-Límites!$D$6)*Clientes!W69*12*$W58+(Límites!$D$6-Límites!$C$6)*Clientes!W69*12*$W47+(Límites!$C$6-Límites!$B$6)*Clientes!W69*12*$W36+Clientes!W69*Límites!$B$6*12*$W25)*(1-$C69)*1000 -> 0 | AD69: =+SUMPRODUCT(Z69:AC69,PremisaCosto!$F$84:$I$84) -> 0 | AE69: =+IF($AK$3=1,Potencia!T69*$X69*12*1000*(1-$C69),AM69) -> 0 | AF69: =+Potencia!U69*$X69*12*1000*(1-$C69) -> 0 | AG69: =+Potencia!V69*$X69*12*1000*(1-$C69) -> 0 | AH69: =+Potencia!W69*$X69*12*1000*(1-$C69) -> 0 | AI69: =+SUMPRODUCT(AE69:AH69,PremisaCosto!$F$84:$I$84) -> 0 | AK69: MTD_5 Jub. 2 | AL69: =+IFERROR(VLOOKUP($AK69,[1]ITV_CD!$A$7:$W$149,AL$6,FALSE),0)/$AM$3 -> 0 | AM69: =+IFERROR(VLOOKUP($AK69,[1]ITV_CD!$A$7:$W$149,AM$6,FALSE),0)/$AM$3 -> 0 | AP69: =+Potencia!T70*$K70*12*1000*(1-$C70) -> 0
A70: =+PremisaCosto!A152 -> MTD_5 Político | B70: =+PremisaCosto!H152 -> Político | C70: =+IF(B70=0,0,VLOOKUP(B70,PremisaCosto!$A$69:$D$79,4,FALSE)) -> 0.5 | E70: 0.1873344144 | G70: 0 | H70: 1 | J70: 0 | K70: 0 | M70: =+($J70*(Energía!Z70-Clientes!T70*Límites!$E$6*12)+(Límites!$E$6-Límites!$D$6)*Clientes!T70*12*$J59+(Límites!$D$6-Límites!$C$6)*Clientes!T70*12*$J48+(Límites!$C$6-Límites!$B$6)*Clientes!T70*12*$J37+Clientes!T70*Límites!$B$6*12*$J26)*(1-$C70)*1000 -> 0 | N70: =+($J70*(Energía!AA70-Clientes!U70*Límites!$E$6*12)+(Límites!$E$6-Límites!$D$6)*Clientes!U70*12*$J59+(Límites!$D$6-Límites!$C$6)*Clientes!U70*12*$J48+(Límites!$C$6-Límites!$B$6)*Clientes!U70*12*$J37+Clientes!U70*Límites!$B$6*12*$J26)*(1-$C70)*1000 -> 0 | O70: =+($J70*(Energía!AB70-Clientes!V70*Límites!$E$6*12)+(Límites!$E$6-Límites!$D$6)*Clientes!V70*12*$J59+(Límites!$D$6-Límites!$C$6)*Clientes!V70*12*$J48+(Límites!$C$6-Límites!$B$6)*Clientes!V70*12*$J37+Clientes!V70*Límites!$B$6*12*$J26)*(1-$C70)*1000 -> 0 | P70: =+($J70*(Energía!AC70-Clientes!W70*Límites!$E$6*12)+(Límites!$E$6-Límites!$D$6)*Clientes!W70*12*$J59+(Límites!$D$6-Límites!$C$6)*Clientes!W70*12*$J48+(Límites!$C$6-Límites!$B$6)*Clientes!W70*12*$J37+Clientes!W70*Límites!$B$6*12*$J26)*(1-$C70)*1000 -> 0 | Q70: =+SUMPRODUCT(M70:P70,PremisaCosto!$F$84:$I$84) -> 0 | R70: =+Potencia!X70*$K70*12*1000*(1-$C70) -> 0 | T70: =IF(Q70=0,0,(IF($AK$3=1,$E70*$F$4*G70/$Q$20,($E70*$F$4*G70-$AL$20*PremisaCosto!$F$84)/($Q$20-$M$20*PremisaCosto!$F$84)))) -> 0 | U70: =IF(R70=0,0,IF($AK$3=1,$E70*$F$4*H70/$R$20,($E70*$F$4*H70-$AM$20*PremisaCosto!$F$84)/($R$20-$AP$19*PremisaCosto!$F$84))) -> 0 | W70: 0 | X70: 0 | Z70: =+($W70*(Energía!Z70-Clientes!T70*Límites!$E$6*12)+(Límites!$E$6-Límites!$D$6)*Clientes!T70*12*$W59+(Límites!$D$6-Límites!$C$6)*Clientes!T70*12*$W48+(Límites!$C$6-Límites!$B$6)*Clientes!T70*12*$W37+Clientes!T70*Límites!$B$6*12*$W26)*(1-$C70)*1000 -> 0 | AA70: =+($W70*(Energía!AA70-Clientes!U70*Límites!$E$6*12)+(Límites!$E$6-Límites!$D$6)*Clientes!U70*12*$W59+(Límites!$D$6-Límites!$C$6)*Clientes!U70*12*$W48+(Límites!$C$6-Límites!$B$6)*Clientes!U70*12*$W37+Clientes!U70*Límites!$B$6*12*$W26)*(1-$C70)*1000 -> 0 | AB70: =+($W70*(Energía!AB70-Clientes!V70*Límites!$E$6*12)+(Límites!$E$6-Límites!$D$6)*Clientes!V70*12*$W59+(Límites!$D$6-Límites!$C$6)*Clientes!V70*12*$W48+(Límites!$C$6-Límites!$B$6)*Clientes!V70*12*$W37+Clientes!V70*Límites!$B$6*12*$W26)*(1-$C70)*1000 -> 0 | AC70: =+($W70*(Energía!AC70-Clientes!W70*Límites!$E$6*12)+(Límites!$E$6-Límites!$D$6)*Clientes!W70*12*$W59+(Límites!$D$6-Límites!$C$6)*Clientes!W70*12*$W48+(Límites!$C$6-Límites!$B$6)*Clientes!W70*12*$W37+Clientes!W70*Límites!$B$6*12*$W26)*(1-$C70)*1000 -> 0 | AD70: =+SUMPRODUCT(Z70:AC70,PremisaCosto!$F$84:$I$84) -> 0 | AE70: =+IF($AK$3=1,Potencia!T70*$X70*12*1000*(1-$C70),AM70) -> 0 | AF70: =+Potencia!U70*$X70*12*1000*(1-$C70) -> 0 | AG70: =+Potencia!V70*$X70*12*1000*(1-$C70) -> 0 | AH70: =+Potencia!W70*$X70*12*1000*(1-$C70) -> 0 | AI70: =+SUMPRODUCT(AE70:AH70,PremisaCosto!$F$84:$I$84) -> 0 | AK70: MTD_5 Político | AL70: =+IFERROR(VLOOKUP($AK70,[1]ITV_CD!$A$7:$W$149,AL$6,FALSE),0)/$AM$3 -> 0 | AM70: =+IFERROR(VLOOKUP($AK70,[1]ITV_CD!$A$7:$W$149,AM$6,FALSE),0)/$AM$3 -> 0 | AP70: =+Potencia!T71*$K71*12*1000*(1-$C71) -> 0
A71: =+PremisaCosto!A153 -> MTD_5 x1 | B71: =+PremisaCosto!H153 -> x1 | C71: =+IF(B71=0,0,VLOOKUP(B71,PremisaCosto!$A$69:$D$79,4,FALSE)) -> 0 | E71: 0.1873344144 | G71: 0 | H71: 1 | J71: 0 | K71: 0 | M71: =+($J71*(Energía!Z71-Clientes!T71*Límites!$E$6*12)+(Límites!$E$6-Límites!$D$6)*Clientes!T71*12*$J60+(Límites!$D$6-Límites!$C$6)*Clientes!T71*12*$J49+(Límites!$C$6-Límites!$B$6)*Clientes!T71*12*$J38+Clientes!T71*Límites!$B$6*12*$J27)*(1-$C71)*1000 -> 0 | N71: =+($J71*(Energía!AA71-Clientes!U71*Límites!$E$6*12)+(Límites!$E$6-Límites!$D$6)*Clientes!U71*12*$J60+(Límites!$D$6-Límites!$C$6)*Clientes!U71*12*$J49+(Límites!$C$6-Límites!$B$6)*Clientes!U71*12*$J38+Clientes!U71*Límites!$B$6*12*$J27)*(1-$C71)*1000 -> 0 | O71: =+($J71*(Energía!AB71-Clientes!V71*Límites!$E$6*12)+(Límites!$E$6-Límites!$D$6)*Clientes!V71*12*$J60+(Límites!$D$6-Límites!$C$6)*Clientes!V71*12*$J49+(Límites!$C$6-Límites!$B$6)*Clientes!V71*12*$J38+Clientes!V71*Límites!$B$6*12*$J27)*(1-$C71)*1000 -> 0 | P71: =+($J71*(Energía!AC71-Clientes!W71*Límites!$E$6*12)+(Límites!$E$6-Límites!$D$6)*Clientes!W71*12*$J60+(Límites!$D$6-Límites!$C$6)*Clientes!W71*12*$J49+(Límites!$C$6-Límites!$B$6)*Clientes!W71*12*$J38+Clientes!W71*Límites!$B$6*12*$J27)*(1-$C71)*1000 -> 0 | Q71: =+SUMPRODUCT(M71:P71,PremisaCosto!$F$84:$I$84) -> 0 | R71: =+Potencia!X71*$K71*12*1000*(1-$C71) -> 0 | T71: =IF(Q71=0,0,(IF($AK$3=1,$E71*$F$4*G71/$Q$20,($E71*$F$4*G71-$AL$20*PremisaCosto!$F$84)/($Q$20-$M$20*PremisaCosto!$F$84)))) -> 0 | U71: =IF(R71=0,0,IF($AK$3=1,$E71*$F$4*H71/$R$20,($E71*$F$4*H71-$AM$20*PremisaCosto!$F$84)/($R$20-$AP$19*PremisaCosto!$F$84))) -> 0 | W71: 0 | X71: 0 | Z71: =+($W71*(Energía!Z71-Clientes!T71*Límites!$E$6*12)+(Límites!$E$6-Límites!$D$6)*Clientes!T71*12*$W60+(Límites!$D$6-Límites!$C$6)*Clientes!T71*12*$W49+(Límites!$C$6-Límites!$B$6)*Clientes!T71*12*$W38+Clientes!T71*Límites!$B$6*12*$W27)*(1-$C71)*1000 -> 0 | AA71: =+($W71*(Energía!AA71-Clientes!U71*Límites!$E$6*12)+(Límites!$E$6-Límites!$D$6)*Clientes!U71*12*$W60+(Límites!$D$6-Límites!$C$6)*Clientes!U71*12*$W49+(Límites!$C$6-Límites!$B$6)*Clientes!U71*12*$W38+Clientes!U71*Límites!$B$6*12*$W27)*(1-$C71)*1000 -> 0 | AB71: =+($W71*(Energía!AB71-Clientes!V71*Límites!$E$6*12)+(Límites!$E$6-Límites!$D$6)*Clientes!V71*12*$W60+(Límites!$D$6-Límites!$C$6)*Clientes!V71*12*$W49+(Límites!$C$6-Límites!$B$6)*Clientes!V71*12*$W38+Clientes!V71*Límites!$B$6*12*$W27)*(1-$C71)*1000 -> 0 | AC71: =+($W71*(Energía!AC71-Clientes!W71*Límites!$E$6*12)+(Límites!$E$6-Límites!$D$6)*Clientes!W71*12*$W60+(Límites!$D$6-Límites!$C$6)*Clientes!W71*12*$W49+(Límites!$C$6-Límites!$B$6)*Clientes!W71*12*$W38+Clientes!W71*Límites!$B$6*12*$W27)*(1-$C71)*1000 -> 0 | AD71: =+SUMPRODUCT(Z71:AC71,PremisaCosto!$F$84:$I$84) -> 0 | AE71: =+IF($AK$3=1,Potencia!T71*$X71*12*1000*(1-$C71),AM71) -> 0 | AF71: =+Potencia!U71*$X71*12*1000*(1-$C71) -> 0 | AG71: =+Potencia!V71*$X71*12*1000*(1-$C71) -> 0 | AH71: =+Potencia!W71*$X71*12*1000*(1-$C71) -> 0 | AI71: =+SUMPRODUCT(AE71:AH71,PremisaCosto!$F$84:$I$84) -> 0 | AK71: MTD_5 x1 | AL71: =+IFERROR(VLOOKUP($AK71,[1]ITV_CD!$A$7:$W$149,AL$6,FALSE),0)/$AM$3 -> 0 | AM71: =+IFERROR(VLOOKUP($AK71,[1]ITV_CD!$A$7:$W$149,AM$6,FALSE),0)/$AM$3 -> 0 | AP71: =+Potencia!T72*$K72*12*1000*(1-$C72) -> 0
A72: =+PremisaCosto!A154 -> MTD_5 x2 | B72: =+PremisaCosto!H154 -> x2 | C72: =+IF(B72=0,0,VLOOKUP(B72,PremisaCosto!$A$69:$D$79,4,FALSE)) -> 0 | E72: 0.1873344144 | G72: 0 | H72: 1 | J72: 0 | K72: 0 | M72: =+($J72*(Energía!Z72-Clientes!T72*Límites!$E$6*12)+(Límites!$E$6-Límites!$D$6)*Clientes!T72*12*$J61+(Límites!$D$6-Límites!$C$6)*Clientes!T72*12*$J50+(Límites!$C$6-Límites!$B$6)*Clientes!T72*12*$J39+Clientes!T72*Límites!$B$6*12*$J28)*(1-$C72)*1000 -> 0 | N72: =+($J72*(Energía!AA72-Clientes!U72*Límites!$E$6*12)+(Límites!$E$6-Límites!$D$6)*Clientes!U72*12*$J61+(Límites!$D$6-Límites!$C$6)*Clientes!U72*12*$J50+(Límites!$C$6-Límites!$B$6)*Clientes!U72*12*$J39+Clientes!U72*Límites!$B$6*12*$J28)*(1-$C72)*1000 -> 0 | O72: =+($J72*(Energía!AB72-Clientes!V72*Límites!$E$6*12)+(Límites!$E$6-Límites!$D$6)*Clientes!V72*12*$J61+(Límites!$D$6-Límites!$C$6)*Clientes!V72*12*$J50+(Límites!$C$6-Límites!$B$6)*Clientes!V72*12*$J39+Clientes!V72*Límites!$B$6*12*$J28)*(1-$C72)*1000 -> 0 | P72: =+($J72*(Energía!AC72-Clientes!W72*Límites!$E$6*12)+(Límites!$E$6-Límites!$D$6)*Clientes!W72*12*$J61+(Límites!$D$6-Límites!$C$6)*Clientes!W72*12*$J50+(Límites!$C$6-Límites!$B$6)*Clientes!W72*12*$J39+Clientes!W72*Límites!$B$6*12*$J28)*(1-$C72)*1000 -> 0 | Q72: =+SUMPRODUCT(M72:P72,PremisaCosto!$F$84:$I$84) -> 0 | R72: =+Potencia!X72*$K72*12*1000*(1-$C72) -> 0 | T72: =IF(Q72=0,0,(IF($AK$3=1,$E72*$F$4*G72/$Q$20,($E72*$F$4*G72-$AL$20*PremisaCosto!$F$84)/($Q$20-$M$20*PremisaCosto!$F$84)))) -> 0 | U72: =IF(R72=0,0,IF($AK$3=1,$E72*$F$4*H72/$R$20,($E72*$F$4*H72-$AM$20*PremisaCosto!$F$84)/($R$20-$AP$19*PremisaCosto!$F$84))) -> 0 | W72: 0 | X72: 0 | Z72: =+($W72*(Energía!Z72-Clientes!T72*Límites!$E$6*12)+(Límites!$E$6-Límites!$D$6)*Clientes!T72*12*$W61+(Límites!$D$6-Límites!$C$6)*Clientes!T72*12*$W50+(Límites!$C$6-Límites!$B$6)*Clientes!T72*12*$W39+Clientes!T72*Límites!$B$6*12*$W28)*(1-$C72)*1000 -> 0 | AA72: =+($W72*(Energía!AA72-Clientes!U72*Límites!$E$6*12)+(Límites!$E$6-Límites!$D$6)*Clientes!U72*12*$W61+(Límites!$D$6-Límites!$C$6)*Clientes!U72*12*$W50+(Límites!$C$6-Límites!$B$6)*Clientes!U72*12*$W39+Clientes!U72*Límites!$B$6*12*$W28)*(1-$C72)*1000 -> 0 | AB72: =+($W72*(Energía!AB72-Clientes!V72*Límites!$E$6*12)+(Límites!$E$6-Límites!$D$6)*Clientes!V72*12*$W61+(Límites!$D$6-Límites!$C$6)*Clientes!V72*12*$W50+(Límites!$C$6-Límites!$B$6)*Clientes!V72*12*$W39+Clientes!V72*Límites!$B$6*12*$W28)*(1-$C72)*1000 -> 0 | AC72: =+($W72*(Energía!AC72-Clientes!W72*Límites!$E$6*12)+(Límites!$E$6-Límites!$D$6)*Clientes!W72*12*$W61+(Límites!$D$6-Límites!$C$6)*Clientes!W72*12*$W50+(Límites!$C$6-Límites!$B$6)*Clientes!W72*12*$W39+Clientes!W72*Límites!$B$6*12*$W28)*(1-$C72)*1000 -> 0 | AD72: =+SUMPRODUCT(Z72:AC72,PremisaCosto!$F$84:$I$84) -> 0 | AE72: =+IF($AK$3=1,Potencia!T72*$X72*12*1000*(1-$C72),AM72) -> 0 | AF72: =+Potencia!U72*$X72*12*1000*(1-$C72) -> 0 | AG72: =+Potencia!V72*$X72*12*1000*(1-$C72) -> 0 | AH72: =+Potencia!W72*$X72*12*1000*(1-$C72) -> 0 | AI72: =+SUMPRODUCT(AE72:AH72,PremisaCosto!$F$84:$I$84) -> 0 | AK72: MTD_5 x2 | AL72: =+IFERROR(VLOOKUP($AK72,[1]ITV_CD!$A$7:$W$149,AL$6,FALSE),0)/$AM$3 -> 0 | AM72: =+IFERROR(VLOOKUP($AK72,[1]ITV_CD!$A$7:$W$149,AM$6,FALSE),0)/$AM$3 -> 0 | AP72: =+Potencia!T73*$K73*12*1000*(1-$C73) -> 0
A73: =+PremisaCosto!A155 -> MTD_5 Discap. | B73: =+PremisaCosto!H155 -> Discap. | C73: =+IF(B73=0,0,VLOOKUP(B73,PremisaCosto!$A$69:$D$79,4,FALSE)) -> 0.25 | E73: 0.1873344144 | G73: 0 | H73: 1 | J73: 0 | K73: 0 | M73: =+($J73*(Energía!Z73-Clientes!T73*Límites!$E$6*12)+(Límites!$E$6-Límites!$D$6)*Clientes!T73*12*$J62+(Límites!$D$6-Límites!$C$6)*Clientes!T73*12*$J51+(Límites!$C$6-Límites!$B$6)*Clientes!T73*12*$J40+Clientes!T73*Límites!$B$6*12*$J29)*(1-$C73)*1000 -> 0 | N73: =+($J73*(Energía!AA73-Clientes!U73*Límites!$E$6*12)+(Límites!$E$6-Límites!$D$6)*Clientes!U73*12*$J62+(Límites!$D$6-Límites!$C$6)*Clientes!U73*12*$J51+(Límites!$C$6-Límites!$B$6)*Clientes!U73*12*$J40+Clientes!U73*Límites!$B$6*12*$J29)*(1-$C73)*1000 -> 0 | O73: =+($J73*(Energía!AB73-Clientes!V73*Límites!$E$6*12)+(Límites!$E$6-Límites!$D$6)*Clientes!V73*12*$J62+(Límites!$D$6-Límites!$C$6)*Clientes!V73*12*$J51+(Límites!$C$6-Límites!$B$6)*Clientes!V73*12*$J40+Clientes!V73*Límites!$B$6*12*$J29)*(1-$C73)*1000 -> 0 | P73: =+($J73*(Energía!AC73-Clientes!W73*Límites!$E$6*12)+(Límites!$E$6-Límites!$D$6)*Clientes!W73*12*$J62+(Límites!$D$6-Límites!$C$6)*Clientes!W73*12*$J51+(Límites!$C$6-Límites!$B$6)*Clientes!W73*12*$J40+Clientes!W73*Límites!$B$6*12*$J29)*(1-$C73)*1000 -> 0 | Q73: =+SUMPRODUCT(M73:P73,PremisaCosto!$F$84:$I$84) -> 0 | R73: =+Potencia!X73*$K73*12*1000*(1-$C73) -> 0 | T73: =IF(Q73=0,0,(IF($AK$3=1,$E73*$F$4*G73/$Q$20,($E73*$F$4*G73-$AL$20*PremisaCosto!$F$84)/($Q$20-$M$20*PremisaCosto!$F$84)))) -> 0 | U73: =IF(R73=0,0,IF($AK$3=1,$E73*$F$4*H73/$R$20,($E73*$F$4*H73-$AM$20*PremisaCosto!$F$84)/($R$20-$AP$19*PremisaCosto!$F$84))) -> 0 | W73: 0 | X73: 0 | Z73: =+($W73*(Energía!Z73-Clientes!T73*Límites!$E$6*12)+(Límites!$E$6-Límites!$D$6)*Clientes!T73*12*$W62+(Límites!$D$6-Límites!$C$6)*Clientes!T73*12*$W51+(Límites!$C$6-Límites!$B$6)*Clientes!T73*12*$W40+Clientes!T73*Límites!$B$6*12*$W29)*(1-$C73)*1000 -> 0 | AA73: =+($W73*(Energía!AA73-Clientes!U73*Límites!$E$6*12)+(Límites!$E$6-Límites!$D$6)*Clientes!U73*12*$W62+(Límites!$D$6-Límites!$C$6)*Clientes!U73*12*$W51+(Límites!$C$6-Límites!$B$6)*Clientes!U73*12*$W40+Clientes!U73*Límites!$B$6*12*$W29)*(1-$C73)*1000 -> 0 | AB73: =+($W73*(Energía!AB73-Clientes!V73*Límites!$E$6*12)+(Límites!$E$6-Límites!$D$6)*Clientes!V73*12*$W62+(Límites!$D$6-Límites!$C$6)*Clientes!V73*12*$W51+(Límites!$C$6-Límites!$B$6)*Clientes!V73*12*$W40+Clientes!V73*Límites!$B$6*12*$W29)*(1-$C73)*1000 -> 0 | AC73: =+($W73*(Energía!AC73-Clientes!W73*Límites!$E$6*12)+(Límites!$E$6-Límites!$D$6)*Clientes!W73*12*$W62+(Límites!$D$6-Límites!$C$6)*Clientes!W73*12*$W51+(Límites!$C$6-Límites!$B$6)*Clientes!W73*12*$W40+Clientes!W73*Límites!$B$6*12*$W29)*(1-$C73)*1000 -> 0 | AD73: =+SUMPRODUCT(Z73:AC73,PremisaCosto!$F$84:$I$84) -> 0 | AE73: =+IF($AK$3=1,Potencia!T73*$X73*12*1000*(1-$C73),AM73) -> 0 | AF73: =+Potencia!U73*$X73*12*1000*(1-$C73) -> 0 | AG73: =+Potencia!V73*$X73*12*1000*(1-$C73) -> 0 | AH73: =+Potencia!W73*$X73*12*1000*(1-$C73) -> 0 | AI73: =+SUMPRODUCT(AE73:AH73,PremisaCosto!$F$84:$I$84) -> 0 | AK73: MTD_5 Discap. | AL73: =+IFERROR(VLOOKUP($AK73,[1]ITV_CD!$A$7:$W$149,AL$6,FALSE),0)/$AM$3 -> 0 | AM73: =+IFERROR(VLOOKUP($AK73,[1]ITV_CD!$A$7:$W$149,AM$6,FALSE),0)/$AM$3 -> 0 | AP73: =+Potencia!T74*$K74*12*1000*(1-$C74) -> 0
A74: =+PremisaCosto!A156 -> MTD_5 Discapacitados 601-más | B74: =+PremisaCosto!H156 -> Discapacitados 601-más | C74: =+IF(B74=0,0,VLOOKUP(B74,PremisaCosto!$A$69:$D$79,4,FALSE)) -> 0.25 | E74: =+E73 -> 0.1873344144 | G74: 0 | H74: 1 | J74: 0 | K74: 0 | M74: =+($J74*(Energía!Z74-Clientes!T74*Límites!$E$6*12)+(Límites!$E$6-Límites!$D$6)*Clientes!T74*12*$J63+(Límites!$D$6-Límites!$C$6)*Clientes!T74*12*$J52+(Límites!$C$6-Límites!$B$6)*Clientes!T74*12*$J41+Clientes!T74*Límites!$B$6*12*$J30)*(1-$C74)*1000 -> 0 | N74: =+($J74*(Energía!AA74-Clientes!U74*Límites!$E$6*12)+(Límites!$E$6-Límites!$D$6)*Clientes!U74*12*$J63+(Límites!$D$6-Límites!$C$6)*Clientes!U74*12*$J52+(Límites!$C$6-Límites!$B$6)*Clientes!U74*12*$J41+Clientes!U74*Límites!$B$6*12*$J30)*(1-$C74)*1000 -> 0 | O74: =+($J74*(Energía!AB74-Clientes!V74*Límites!$E$6*12)+(Límites!$E$6-Límites!$D$6)*Clientes!V74*12*$J63+(Límites!$D$6-Límites!$C$6)*Clientes!V74*12*$J52+(Límites!$C$6-Límites!$B$6)*Clientes!V74*12*$J41+Clientes!V74*Límites!$B$6*12*$J30)*(1-$C74)*1000 -> 0 | P74: =+($J74*(Energía!AC74-Clientes!W74*Límites!$E$6*12)+(Límites!$E$6-Límites!$D$6)*Clientes!W74*12*$J63+(Límites!$D$6-Límites!$C$6)*Clientes!W74*12*$J52+(Límites!$C$6-Límites!$B$6)*Clientes!W74*12*$J41+Clientes!W74*Límites!$B$6*12*$J30)*(1-$C74)*1000 -> 0 | Q74: =+SUMPRODUCT(M74:P74,PremisaCosto!$F$84:$I$84) -> 0 | R74: =+Potencia!X74*$K74*12*1000*(1-$C74) -> 0 | T74: =IF(Q74=0,0,(IF($AK$3=1,$E74*$F$4*G74/$Q$20,($E74*$F$4*G74-$AL$20*PremisaCosto!$F$84)/($Q$20-$M$20*PremisaCosto!$F$84)))) -> 0 | U74: =IF(R74=0,0,IF($AK$3=1,$E74*$F$4*H74/$R$20,($E74*$F$4*H74-$AM$20*PremisaCosto!$F$84)/($R$20-$AP$19*PremisaCosto!$F$84))) -> 0 | W74: 0 | X74: 0 | Z74: =+($W74*(Energía!Z74-Clientes!T74*Límites!$E$6*12)+(Límites!$E$6-Límites!$D$6)*Clientes!T74*12*$W63+(Límites!$D$6-Límites!$C$6)*Clientes!T74*12*$W52+(Límites!$C$6-Límites!$B$6)*Clientes!T74*12*$W41+Clientes!T74*Límites!$B$6*12*$W30)*(1-$C74)*1000 -> 0 | AA74: =+($W74*(Energía!AA74-Clientes!U74*Límites!$E$6*12)+(Límites!$E$6-Límites!$D$6)*Clientes!U74*12*$W63+(Límites!$D$6-Límites!$C$6)*Clientes!U74*12*$W52+(Límites!$C$6-Límites!$B$6)*Clientes!U74*12*$W41+Clientes!U74*Límites!$B$6*12*$W30)*(1-$C74)*1000 -> 0 | AB74: =+($W74*(Energía!AB74-Clientes!V74*Límites!$E$6*12)+(Límites!$E$6-Límites!$D$6)*Clientes!V74*12*$W63+(Límites!$D$6-Límites!$C$6)*Clientes!V74*12*$W52+(Límites!$C$6-Límites!$B$6)*Clientes!V74*12*$W41+Clientes!V74*Límites!$B$6*12*$W30)*(1-$C74)*1000 -> 0 | AC74: =+($W74*(Energía!AC74-Clientes!W74*Límites!$E$6*12)+(Límites!$E$6-Límites!$D$6)*Clientes!W74*12*$W63+(Límites!$D$6-Límites!$C$6)*Clientes!W74*12*$W52+(Límites!$C$6-Límites!$B$6)*Clientes!W74*12*$W41+Clientes!W74*Límites!$B$6*12*$W30)*(1-$C74)*1000 -> 0 | AD74: =+SUMPRODUCT(Z74:AC74,PremisaCosto!$F$84:$I$84) -> 0 | AE74: =+IF($AK$3=1,Potencia!T74*$X74*12*1000*(1-$C74),AM74) -> 0 | AF74: =+Potencia!U74*$X74*12*1000*(1-$C74) -> 0 | AG74: =+Potencia!V74*$X74*12*1000*(1-$C74) -> 0 | AH74: =+Potencia!W74*$X74*12*1000*(1-$C74) -> 0 | AI74: =+SUMPRODUCT(AE74:AH74,PremisaCosto!$F$84:$I$84) -> 0 | AK74: MTD_5 Discapacitados 601-más | AL74: =+IFERROR(VLOOKUP($AK74,[1]ITV_CD!$A$7:$W$149,AL$6,FALSE),0)/$AM$3 -> 0 | AM74: =+IFERROR(VLOOKUP($AK74,[1]ITV_CD!$A$7:$W$149,AM$6,FALSE),0)/$AM$3 -> 0 | AP74: =+Potencia!T75*$K75*12*1000*(1-$C75) -> 0
A75: =+PremisaCosto!A157 -> MTD_5 Cruz Roja | B75: =+PremisaCosto!H157 -> Cruz Roja | C75: =+IF(B75=0,0,VLOOKUP(B75,PremisaCosto!$A$69:$D$79,4,FALSE)) -> 1 | E75: 0.1873344144 | G75: 0 | H75: 1 | J75: 0 | K75: 0 | M75: =+($J75*(Energía!Z75-Clientes!T75*Límites!$E$6*12)+(Límites!$E$6-Límites!$D$6)*Clientes!T75*12*$J64+(Límites!$D$6-Límites!$C$6)*Clientes!T75*12*$J53+(Límites!$C$6-Límites!$B$6)*Clientes!T75*12*$J42+Clientes!T75*Límites!$B$6*12*$J31)*(1-$C75)*1000 -> 0 | N75: =+($J75*(Energía!AA75-Clientes!U75*Límites!$E$6*12)+(Límites!$E$6-Límites!$D$6)*Clientes!U75*12*$J64+(Límites!$D$6-Límites!$C$6)*Clientes!U75*12*$J53+(Límites!$C$6-Límites!$B$6)*Clientes!U75*12*$J42+Clientes!U75*Límites!$B$6*12*$J31)*(1-$C75)*1000 -> 0 | O75: =+($J75*(Energía!AB75-Clientes!V75*Límites!$E$6*12)+(Límites!$E$6-Límites!$D$6)*Clientes!V75*12*$J64+(Límites!$D$6-Límites!$C$6)*Clientes!V75*12*$J53+(Límites!$C$6-Límites!$B$6)*Clientes!V75*12*$J42+Clientes!V75*Límites!$B$6*12*$J31)*(1-$C75)*1000 -> 0 | P75: =+($J75*(Energía!AC75-Clientes!W75*Límites!$E$6*12)+(Límites!$E$6-Límites!$D$6)*Clientes!W75*12*$J64+(Límites!$D$6-Límites!$C$6)*Clientes!W75*12*$J53+(Límites!$C$6-Límites!$B$6)*Clientes!W75*12*$J42+Clientes!W75*Límites!$B$6*12*$J31)*(1-$C75)*1000 -> 0 | Q75: =+SUMPRODUCT(M75:P75,PremisaCosto!$F$84:$I$84) -> 0 | R75: =+Potencia!X75*$K75*12*1000*(1-$C75) -> 0 | T75: =IF(Q75=0,0,(IF($AK$3=1,$E75*$F$4*G75/$Q$20,($E75*$F$4*G75-$AL$20*PremisaCosto!$F$84)/($Q$20-$M$20*PremisaCosto!$F$84)))) -> 0 | U75: =IF(R75=0,0,IF($AK$3=1,$E75*$F$4*H75/$R$20,($E75*$F$4*H75-$AM$20*PremisaCosto!$F$84)/($R$20-$AP$19*PremisaCosto!$F$84))) -> 0 | W75: 0 | X75: 0 | Z75: =+($W75*(Energía!Z75-Clientes!T75*Límites!$E$6*12)+(Límites!$E$6-Límites!$D$6)*Clientes!T75*12*$W64+(Límites!$D$6-Límites!$C$6)*Clientes!T75*12*$W53+(Límites!$C$6-Límites!$B$6)*Clientes!T75*12*$W42+Clientes!T75*Límites!$B$6*12*$W31)*(1-$C75)*1000 -> 0 | AA75: =+($W75*(Energía!AA75-Clientes!U75*Límites!$E$6*12)+(Límites!$E$6-Límites!$D$6)*Clientes!U75*12*$W64+(Límites!$D$6-Límites!$C$6)*Clientes!U75*12*$W53+(Límites!$C$6-Límites!$B$6)*Clientes!U75*12*$W42+Clientes!U75*Límites!$B$6*12*$W31)*(1-$C75)*1000 -> 0 | AB75: =+($W75*(Energía!AB75-Clientes!V75*Límites!$E$6*12)+(Límites!$E$6-Límites!$D$6)*Clientes!V75*12*$W64+(Límites!$D$6-Límites!$C$6)*Clientes!V75*12*$W53+(Límites!$C$6-Límites!$B$6)*Clientes!V75*12*$W42+Clientes!V75*Límites!$B$6*12*$W31)*(1-$C75)*1000 -> 0 | AC75: =+($W75*(Energía!AC75-Clientes!W75*Límites!$E$6*12)+(Límites!$E$6-Límites!$D$6)*Clientes!W75*12*$W64+(Límites!$D$6-Límites!$C$6)*Clientes!W75*12*$W53+(Límites!$C$6-Límites!$B$6)*Clientes!W75*12*$W42+Clientes!W75*Límites!$B$6*12*$W31)*(1-$C75)*1000 -> 0 | AD75: =+SUMPRODUCT(Z75:AC75,PremisaCosto!$F$84:$I$84) -> 0 | AE75: =+IF($AK$3=1,Potencia!T75*$X75*12*1000*(1-$C75),AM75) -> 0 | AF75: =+Potencia!U75*$X75*12*1000*(1-$C75) -> 0 | AG75: =+Potencia!V75*$X75*12*1000*(1-$C75) -> 0 | AH75: =+Potencia!W75*$X75*12*1000*(1-$C75) -> 0 | AI75: =+SUMPRODUCT(AE75:AH75,PremisaCosto!$F$84:$I$84) -> 0 | AK75: MTD_5 Cruz Roja | AL75: =+IFERROR(VLOOKUP($AK75,[1]ITV_CD!$A$7:$W$149,AL$6,FALSE),0)/$AM$3 -> 0 | AM75: =+IFERROR(VLOOKUP($AK75,[1]ITV_CD!$A$7:$W$149,AM$6,FALSE),0)/$AM$3 -> 0 | AP75: =+SUM(AP76:AP78) -> 1259130.504
A76: =+PremisaCosto!A158 -> BTH | B76: =+PremisaCosto!H158 -> 0 | C76: =+IF(B76=0,0,VLOOKUP(B76,PremisaCosto!$A$69:$D$79,4,FALSE)) -> 0 | E76: =+[1]Asignación!B12 -> 0.005457659369 | G76: =+VLOOKUP($A76,[1]Diseño!$A$7:$BH$61,2,FALSE) -> 0 | H76: =VLOOKUP($A76,[1]Diseño!$A$7:$BH$61,3,FALSE) -> 1 | J76: =+VLOOKUP($A76,[1]Diseño!$A$7:$BH$76,4,FALSE) -> 0 | M76: =+SUM(M77:M79) -> 0 | N76: 0 | O76: 0 | P76: 0 | Q76: 0 | R76: 4240475.066 | T76: =IF(Q76=0,0,(IF($AK$3=1,$E76*$F$4*G76/$Q$76,($E76*$F$4*G76-$AL$76*PremisaCosto!$F$84)/($Q$76-$M$76*PremisaCosto!$F$84)))) -> 0 | U76: =IF(R76=0,0,IF($AK$3=1,$E76*$F$4*H76/$R$76,($E76*$F$4*H76-$AM$76*PremisaCosto!$F$84)/($R$76-$AP$75*PremisaCosto!$F$84))) -> 0.9046756329 | W76: 0 | X76: 0 | Z76: =+SUM(Z77:Z79) -> 0 | AA76: 0 | AB76: 0 | AC76: 0 | AD76: 0 | AE76: 1139104.685 | AF76: 1159162.566 | AG76: 1180147.973 | AH76: 1200244.915 | AI76: 3836254.464 | AK76: BTH | AL76: =+IFERROR(VLOOKUP($AK76,[1]ITV_CD!$A$7:$W$149,AL$6,FALSE),0)/$AM$3 -> 0 | AM76: =+IFERROR(VLOOKUP($AK76,[1]ITV_CD!$A$7:$W$149,AM$6,FALSE),0)/$AM$3 -> 1235129.952 | AP76: =+Potencia!T77*$K77*12*1000*(1-$C77) -> 1086156.763
A77: =+PremisaCosto!A159 -> BTH Punta | B77: =+PremisaCosto!H159 -> 0 | C77: =+IF(B77=0,0,VLOOKUP(B77,PremisaCosto!$A$69:$D$79,4,FALSE)) -> 0 | E77: =+E76 -> 0.005457659369 | G77: =+VLOOKUP($A77,[1]Diseño!$A$7:$BH$61,2,FALSE) -> 0 | H77: =VLOOKUP($A77,[1]Diseño!$A$7:$BH$61,3,FALSE) -> 1 | J77: =+VLOOKUP($A77,[1]Diseño!$A$7:$BH$76,4,FALSE) -> 0 | K77: =+VLOOKUP($A77,[1]Diseño!$A$7:$BH$76,5,FALSE) -> 16.59 | M77: =+$J77*Energía!Z77*(1-$C77)*1000 -> 0 | N77: =+$J77*Energía!AA77*(1-$C77)*1000 -> 0 | O77: =+$J77*Energía!AB77*(1-$C77)*1000 -> 0 | P77: =+$J77*Energía!AC77*(1-$C77)*1000 -> 0 | Q77: =+SUMPRODUCT(M77:P77,PremisaCosto!$F$84:$I$84) -> 0 | R77: =+Potencia!X77*$K77*12*1000*(1-$C77) -> 3657956.228 | T77: =IF(Q77=0,0,(IF($AK$3=1,$E77*$F$4*G77/$Q$76,($E77*$F$4*G77-$AL$76*PremisaCosto!$F$84)/($Q$76-$M$76*PremisaCosto!$F$84)))) -> 0 | U77: =IF(R77=0,0,IF($AK$3=1,$E77*$F$4*H77/$R$76,($E77*$F$4*H77-$AM$76*PremisaCosto!$F$84)/($R$76-$AP$75*PremisaCosto!$F$84))) -> 0.9046756329 | W77: 0 | X77: 15.00856875 | Z77: =+IF($AK$3=1,$W77*Energía!Z77*(1-$C77)*1000,AL77) -> 0 | AA77: =+$W77*Energía!AA77*(1-$C77)*1000 -> 0 | AB77: =+$W77*Energía!AB77*(1-$C77)*1000 -> 0 | AC77: =+$W77*Energía!AC77*(1-$C77)*1000 -> 0 | AD77: =+SUMPRODUCT(Z77:AC77,PremisaCosto!$F$84:$I$84) -> 0 | AE77: =+IF($AK$3=1,Potencia!T77*$X77*12*1000*(1-$C77),AM77) -> 982619.5568 | AF77: =+Potencia!U77*$X77*12*1000*(1-$C77) -> 999925.9587 | AG77: =+Potencia!V77*$X77*12*1000*(1-$C77) -> 1018032.313 | AH77: =+Potencia!W77*$X77*12*1000*(1-$C77) -> 1035371.277 | AI77: =+SUMPRODUCT(AE77:AH77,PremisaCosto!$F$84:$I$84) -> 3309263.866 | AK77: =+A77 -> BTH Punta | AL77: =+IFERROR(VLOOKUP($AK77,[1]ITV_CD!$A$7:$W$149,AL$6,FALSE),0)/$AM$3 -> 0 | AM77: =+IFERROR(VLOOKUP($AK77,[1]ITV_CD!$A$7:$W$149,AM$6,FALSE),0)/$AM$3 -> 1065453.3 | AP77: =+Potencia!T78*$K78*12*1000*(1-$C78) -> 81837.32951
A78: =+PremisaCosto!A160 -> BTH Fuera de Punta Medio | B78: =+PremisaCosto!H160 -> 0 | C78: =+IF(B78=0,0,VLOOKUP(B78,PremisaCosto!$A$69:$D$79,4,FALSE)) -> 0 | E78: =+$E$76 -> 0.005457659369 | G78: =+VLOOKUP($A78,[1]Diseño!$A$7:$BH$61,2,FALSE) -> 0 | H78: =VLOOKUP($A78,[1]Diseño!$A$7:$BH$61,3,FALSE) -> 1 | J78: =+VLOOKUP($A78,[1]Diseño!$A$7:$BH$76,4,FALSE) -> 0 | K78: =+VLOOKUP($A78,[1]Diseño!$A$7:$BH$76,5,FALSE) -> 2.29 | M78: =+$J78*Energía!Z78*(1-$C78)*1000 -> 0 | N78: =+$J78*Energía!AA78*(1-$C78)*1000 -> 0 | O78: =+$J78*Energía!AB78*(1-$C78)*1000 -> 0 | P78: =+$J78*Energía!AC78*(1-$C78)*1000 -> 0 | Q78: =+SUMPRODUCT(M78:P78,PremisaCosto!$F$84:$I$84) -> 0 | R78: =+Potencia!X78*$K78*12*1000*(1-$C78) -> 275596.7705 | T78: =IF(Q78=0,0,(IF($AK$3=1,$E78*$F$4*G78/$Q$76,($E78*$F$4*G78-$AL$76*PremisaCosto!$F$84)/($Q$76-$M$76*PremisaCosto!$F$84)))) -> 0 | U78: =IF(R78=0,0,IF($AK$3=1,$E78*$F$4*H78/$R$76,($E78*$F$4*H78-$AM$76*PremisaCosto!$F$84)/($R$76-$AP$75*PremisaCosto!$F$84))) -> 0.9046756329 | W78: =+J78*T78 -> 0 | X78: =+U78*K78 -> 2.071707199 | Z78: =+IF($AK$3=1,$W78*Energía!Z78*(1-$C78)*1000,AL78) -> 0 | AA78: =+$W78*Energía!AA78*(1-$C78)*1000 -> 0 | AB78: =+$W78*Energía!AB78*(1-$C78)*1000 -> 0 | AC78: =+$W78*Energía!AC78*(1-$C78)*1000 -> 0 | AD78: =+SUMPRODUCT(Z78:AC78,PremisaCosto!$F$84:$I$84) -> 0 | AE78: =+IF($AK$3=1,Potencia!T78*$X78*12*1000*(1-$C78),AM78) -> 74036.23787 | AF78: =+Potencia!U78*$X78*12*1000*(1-$C78) -> 75337.05687 | AG78: =+Potencia!V78*$X78*12*1000*(1-$C78) -> 76698.27054 | AH78: =+Potencia!W78*$X78*12*1000*(1-$C78) -> 78002.43738 | AI78: =+SUMPRODUCT(AE78:AH78,PremisaCosto!$F$84:$I$84) -> 249325.6827 | AK78: =+A78 -> BTH Fuera de Punta Medio | AL78: =+IFERROR(VLOOKUP($AK78,[1]ITV_CD!$A$7:$W$149,AL$6,FALSE),0)/$AM$3 -> 0 | AM78: =+IFERROR(VLOOKUP($AK78,[1]ITV_CD!$A$7:$W$149,AM$6,FALSE),0)/$AM$3 -> 80277.41091 | AP78: =+Potencia!T79*$K79*12*1000*(1-$C79) -> 91136.41135
A79: =+PremisaCosto!A161 -> BTH Fuera de Punta Bajo | B79: =+PremisaCosto!H161 -> 0 | C79: =+IF(B79=0,0,VLOOKUP(B79,PremisaCosto!$A$69:$D$79,4,FALSE)) -> 0 | E79: =+$E$76 -> 0.005457659369 | G79: =+VLOOKUP($A79,[1]Diseño!$A$7:$BH$61,2,FALSE) -> 0 | H79: =VLOOKUP($A79,[1]Diseño!$A$7:$BH$61,3,FALSE) -> 1 | J79: =+VLOOKUP($A79,[1]Diseño!$A$7:$BH$76,4,FALSE) -> 0 | K79: =+VLOOKUP($A79,[1]Diseño!$A$7:$BH$76,5,FALSE) -> 2.29 | M79: =+$J79*Energía!Z79*(1-$C79)*1000 -> 0 | N79: =+$J79*Energía!AA79*(1-$C79)*1000 -> 0 | O79: =+$J79*Energía!AB79*(1-$C79)*1000 -> 0 | P79: =+$J79*Energía!AC79*(1-$C79)*1000 -> 0 | Q79: =+SUMPRODUCT(M79:P79,PremisaCosto!$F$84:$I$84) -> 0 | R79: =+Potencia!X79*$K79*12*1000*(1-$C79) -> 306922.0673 | T79: =IF(Q79=0,0,(IF($AK$3=1,$E79*$F$4*G79/$Q$76,($E79*$F$4*G79-$AL$76*PremisaCosto!$F$84)/($Q$76-$M$76*PremisaCosto!$F$84)))) -> 0 | U79: =IF(R79=0,0,IF($AK$3=1,$E79*$F$4*H79/$R$76,($E79*$F$4*H79-$AM$76*PremisaCosto!$F$84)/($R$76-$AP$75*PremisaCosto!$F$84))) -> 0.9046756329 | W79: =+J79*T79 -> 0 | X79: =+U79*K79 -> 2.071707199 | Z79: =+IF($AK$3=1,$W79*Energía!Z79*(1-$C79)*1000,AL79) -> 0 | AA79: =+$W79*Energía!AA79*(1-$C79)*1000 -> 0 | AB79: =+$W79*Energía!AB79*(1-$C79)*1000 -> 0 | AC79: =+$W79*Energía!AC79*(1-$C79)*1000 -> 0 | AD79: =+SUMPRODUCT(Z79:AC79,PremisaCosto!$F$84:$I$84) -> 0 | AE79: =+IF($AK$3=1,Potencia!T79*$X79*12*1000*(1-$C79),AM79) -> 82448.89061 | AF79: =+Potencia!U79*$X79*12*1000*(1-$C79) -> 83899.55049 | AG79: =+Potencia!V79*$X79*12*1000*(1-$C79) -> 85417.38911 | AH79: =+Potencia!W79*$X79*12*1000*(1-$C79) -> 86871.19992 | AI79: =+SUMPRODUCT(AE79:AH79,PremisaCosto!$F$84:$I$84) -> 277664.9155 | AK79: BTH Fuera de Punta Bajo | AL79: =+IFERROR(VLOOKUP($AK79,[1]ITV_CD!$A$7:$W$149,AL$6,FALSE),0)/$AM$3 -> 0 | AM79: =+IFERROR(VLOOKUP($AK79,[1]ITV_CD!$A$7:$W$149,AM$6,FALSE),0)/$AM$3 -> 89399.24099 | AP79: =+SUM(AP80,AP91,AP102,AP113,AP124) -> 87879220.69
A80: =+PremisaCosto!A162 -> BTD | B80: =+PremisaCosto!H162 -> 0 | C80: =+IF(B80=0,0,VLOOKUP(B80,PremisaCosto!$A$69:$D$79,4,FALSE)) -> 0 | E80: =+[1]Asignación!B13 -> 0.3773481068 | G80: =+VLOOKUP($A80,[1]Diseño!$A$7:$BH$61,2,FALSE) -> 0 | H80: =VLOOKUP($A80,[1]Diseño!$A$7:$BH$61,3,FALSE) -> 1 | J80: =+VLOOKUP($A80,[1]Diseño!$A$7:$BH$76,4,FALSE) -> 0 | M80: =+SUM(M81,M92,M103,M114,M125) -> 0 | N80: 0 | O80: 0 | P80: 0 | Q80: 0 | R80: 295999729.1 | T80: =IF(Q80=0,0,(IF($AK$3=1,$E80*$F$4*G80/$Q$80,($E80*$F$4*G80-$AL$80*PremisaCosto!$F$84)/($Q$80-$M$80*PremisaCosto!$F$84)))) -> 0 | U80: =IF(R80=0,0,IF($AK$3=1,$E80*$F$4*H80/$R$80,($E80*$F$4*H80-$AM$80*PremisaCosto!$F$84)/($R$80-$AP$79*PremisaCosto!$F$84))) -> 0.8960904363 | W80: 0 | X80: 0 | Z80: =+SUM(Z81,Z92,Z103,Z114,Z125) -> 0 | AA80: =+SUM(AA81,AA92,AA103,AA114,AA125) -> 0 | AB80: =+SUM(AB81,AB92,AB103,AB114,AB125) -> 0 | AC80: =+SUM(AC81,AC92,AC103,AC114,AC125) -> 0 | AD80: =+SUM(AD81,AD92,AD103,AD114,AD125) -> 0 | AE80: 78747729.21 | AF80: 80143327.02 | AG80: 81602486.92 | AH80: 82997653.26 | AI80: =+SUM(AI81,AI92,AI103,AI114,AI125) -> 265242526.4 | AK80: BTD | AL80: =+IFERROR(VLOOKUP($AK80,[1]ITV_CD!$A$7:$W$149,AL$6,FALSE),0)/$AM$3 -> 0 | AM80: =+IFERROR(VLOOKUP($AK80,[1]ITV_CD!$A$7:$W$149,AM$6,FALSE),0)/$AM$3 -> 85378954.67 | AP80: =+SUM(AP81:AP90) -> 40683213.41
A81: =+PremisaCosto!A163 -> BTD_1 (0-10,000) | B81: =+PremisaCosto!H163 -> 0 | C81: =+IF(B81=0,0,VLOOKUP(B81,PremisaCosto!$A$69:$D$79,4,FALSE)) -> 0 | E81: =+E80 -> 0.3773481068 | G81: =+G80 -> 0 | H81: 1 | J81: =+VLOOKUP($A81,[1]Diseño!$A$7:$BH$76,4,FALSE) -> 0 | K81: =+VLOOKUP($A81,[1]Diseño!$A$7:$BH$76,5,FALSE) -> 16.02 | M81: =+SUM(M82:M91) -> 0 | N81: 0 | O81: 0 | P81: 0 | Q81: 0 | R81: =+SUM(R82:R91) -> 137015705.3 | T81: =IF(Q81=0,0,(IF($AK$3=1,$E81*$F$4*G81/$Q$80,($E81*$F$4*G81-$AL$80*PremisaCosto!$F$84)/($Q$80-$M$80*PremisaCosto!$F$84)))) -> 0 | U81: =IF(R81=0,0,IF($AK$3=1,$E81*$F$4*H81/$R$80,($E81*$F$4*H81-$AM$80*PremisaCosto!$F$84)/($R$80-$AP$79*PremisaCosto!$F$84))) -> 0.8960904363 | W81: 0 | X81: 14.35536879 | Z81: =+SUM(Z82:Z91) -> 0 | AA81: =+SUM(AA82:AA91) -> 0 | AB81: =+SUM(AB82:AB91) -> 0 | AC81: =+SUM(AC82:AC91) -> 0 | AD81: =+SUM(AD82:AD91) -> 0 | AE81: =+SUM(AE82:AE91) -> 36455838.46 | AF81: 37098632.01 | AG81: 37770939.32 | AH81: 38414361.56 | AI81: =+SUM(AI82:AI91) -> 122778463.2 | AK81: BTD_1 (0-10,000) | AL81: =+IFERROR(VLOOKUP($AK81,[1]ITV_CD!$A$7:$W$149,AL$6,FALSE),0)/$AM$3 -> 0 | AM81: =+IFERROR(VLOOKUP($AK81,[1]ITV_CD!$A$7:$W$149,AM$6,FALSE),0)/$AM$3 -> 0 | AP81: =+Potencia!T82*$K82*12*1000*(1-$C82) -> 39571644.37
A82: =+PremisaCosto!A164 -> BTD_1 Regular | B82: =+PremisaCosto!H164 -> Regular | C82: =+IF(B82=0,0,VLOOKUP(B82,PremisaCosto!$A$69:$D$79,4,FALSE)) -> 0 | E82: 0.3773481068 | G82: 0 | H82: 1 | J82: =+J81 -> 0 | K82: =+K81 -> 16.02 | M82: =+$J82*Energía!Z82*(1-$C82)*1000 -> 0 | N82: =+$J82*Energía!AA82*(1-$C82)*1000 -> 0 | O82: =+$J82*Energía!AB82*(1-$C82)*1000 -> 0 | P82: =+$J82*Energía!AC82*(1-$C82)*1000 -> 0 | Q82: =+SUMPRODUCT(M82:P82,PremisaCosto!$F$84:$I$84) -> 0 | R82: =+Potencia!X82*$K82*12*1000*(1-$C82) -> 133296904 | T82: =IF(Q82=0,0,(IF($AK$3=1,$E82*$F$4*G82/$Q$80,($E82*$F$4*G82-$AL$80*PremisaCosto!$F$84)/($Q$80-$M$80*PremisaCosto!$F$84)))) -> 0 | U82: =IF(R82=0,0,IF($AK$3=1,$E82*$F$4*H82/$R$80,($E82*$F$4*H82-$AM$80*PremisaCosto!$F$84)/($R$80-$AP$79*PremisaCosto!$F$84))) -> 0.8960904363 | W82: 0 | X82: 14.35536879 | Z82: =+IF($AK$3=1,$W82*Energía!Z82*(1-$C82)*1000,AL82) -> 0 | AA82: =+$W82*Energía!AA82*(1-$C82)*1000 -> 0 | AB82: =+$W82*Energía!AB82*(1-$C82)*1000 -> 0 | AC82: =+$W82*Energía!AC82*(1-$C82)*1000 -> 0 | AD82: =+SUMPRODUCT(Z82:AC82,PremisaCosto!$F$84:$I$84) -> 0 | AE82: =+IF($AK$3=1,Potencia!T82*$X82*12*1000*(1-$C82),AM82) -> 35459772.07 | AF82: =+Potencia!U82*$X82*12*1000*(1-$C82) -> 36090230.61 | AG82: =+Potencia!V82*$X82*12*1000*(1-$C82) -> 36749190.65 | AH82: =+Potencia!W82*$X82*12*1000*(1-$C82) -> 37378763.9 | AI82: =+SUMPRODUCT(AE82:AH82,PremisaCosto!$F$84:$I$84) -> 119446080.8 | AK82: BTD_1 Regular | AL82: =+IFERROR(VLOOKUP($AK82,[1]ITV_CD!$A$7:$W$149,AL$6,FALSE),0)/$AM$3 -> 0 | AM82: =+IFERROR(VLOOKUP($AK82,[1]ITV_CD!$A$7:$W$149,AM$6,FALSE),0)/$AM$3 -> 38817360.91 | AP82: =+Potencia!T83*$K83*12*1000*(1-$C83) -> 231495.6992
A83: =+PremisaCosto!A165 -> BTD_1 Agro | B83: =+PremisaCosto!H165 -> Agro | C83: =+IF(B83=0,0,VLOOKUP(B83,PremisaCosto!$A$69:$D$79,4,FALSE)) -> 0.05 | E83: 0.3773481068 | G83: 0 | H83: 1 | J83: =+J82 -> 0 | K83: 16.02 | M83: =+$J83*Energía!Z83*(1-$C83)*1000 -> 0 | N83: =+$J83*Energía!AA83*(1-$C83)*1000 -> 0 | O83: =+$J83*Energía!AB83*(1-$C83)*1000 -> 0 | P83: =+$J83*Energía!AC83*(1-$C83)*1000 -> 0 | Q83: =+SUMPRODUCT(M83:P83,PremisaCosto!$F$84:$I$84) -> 0 | R83: =+Potencia!X83*$K83*12*1000*(1-$C83) -> 779851.3007 | T83: =IF(Q83=0,0,(IF($AK$3=1,$E83*$F$4*G83/$Q$80,($E83*$F$4*G83-$AL$80*PremisaCosto!$F$84)/($Q$80-$M$80*PremisaCosto!$F$84)))) -> 0 | U83: =IF(R83=0,0,IF($AK$3=1,$E83*$F$4*H83/$R$80,($E83*$F$4*H83-$AM$80*PremisaCosto!$F$84)/($R$80-$AP$79*PremisaCosto!$F$84))) -> 0.8960904363 | W83: 0 | X83: 14.35536879 | Z83: =+IF($AK$3=1,$W83*Energía!Z83*(1-$C83)*1000,AL83) -> 0 | AA83: =+$W83*Energía!AA83*(1-$C83)*1000 -> 0 | AB83: =+$W83*Energía!AB83*(1-$C83)*1000 -> 0 | AC83: =+$W83*Energía!AC83*(1-$C83)*1000 -> 0 | AD83: =+SUMPRODUCT(Z83:AC83,PremisaCosto!$F$84:$I$84) -> 0 | AE83: =+IF($AK$3=1,Potencia!T83*$X83*12*1000*(1-$C83),AM83) -> 207441.0821 | AF83: =+Potencia!U83*$X83*12*1000*(1-$C83) -> 211141.0895 | AG83: =+Potencia!V83*$X83*12*1000*(1-$C83) -> 215008.1791 | AH83: =+Potencia!W83*$X83*12*1000*(1-$C83) -> 218701.8531 | AI83: =+SUMPRODUCT(AE83:AH83,PremisaCosto!$F$84:$I$84) -> 698817.2923 | AK83: BTD_1 Agro | AL83: =+IFERROR(VLOOKUP($AK83,[1]ITV_CD!$A$7:$W$149,AL$6,FALSE),0)/$AM$3 -> 0 | AM83: =+IFERROR(VLOOKUP($AK83,[1]ITV_CD!$A$7:$W$149,AM$6,FALSE),0)/$AM$3 -> 227083.1109 | AP83: =+Potencia!T84*$K84*12*1000*(1-$C84) -> 841216.2627
A84: =+PremisaCosto!A166 -> BTD_1 Jub. 1 | B84: =+PremisaCosto!H166 -> Jub. 1 | C84: =+IF(B84=0,0,VLOOKUP(B84,PremisaCosto!$A$69:$D$79,4,FALSE)) -> 0.25 | E84: 0.3773481068 | G84: =+G83 -> 0 | H84: =+H83 -> 1 | J84: 0 | K84: 16.02 | M84: =+$J84*Energía!Z84*(1-$C84)*1000 -> 0 | N84: =+$J84*Energía!AA84*(1-$C84)*1000 -> 0 | O84: =+$J84*Energía!AB84*(1-$C84)*1000 -> 0 | P84: =+$J84*Energía!AC84*(1-$C84)*1000 -> 0 | Q84: =+SUMPRODUCT(M84:P84,PremisaCosto!$F$84:$I$84) -> 0 | R84: =+Potencia!X84*$K84*12*1000*(1-$C84) -> 2808980.087 | T84: =IF(Q84=0,0,(IF($AK$3=1,$E84*$F$4*G84/$Q$80,($E84*$F$4*G84-$AL$80*PremisaCosto!$F$84)/($Q$80-$M$80*PremisaCosto!$F$84)))) -> 0 | U84: =IF(R84=0,0,IF($AK$3=1,$E84*$F$4*H84/$R$80,($E84*$F$4*H84-$AM$80*PremisaCosto!$F$84)/($R$80-$AP$79*PremisaCosto!$F$84))) -> 0.8960904363 | W84: 0 | X84: 14.35536879 | Z84: =+IF($AK$3=1,$W84*Energía!Z84*(1-$C84)*1000,AL84) -> 0 | AA84: =+$W84*Energía!AA84*(1-$C84)*1000 -> 0 | AB84: =+$W84*Energía!AB84*(1-$C84)*1000 -> 0 | AC84: =+$W84*Energía!AC84*(1-$C84)*1000 -> 0 | AD84: =+SUMPRODUCT(Z84:AC84,PremisaCosto!$F$84:$I$84) -> 0 | AE84: =+IF($AK$3=1,Potencia!T84*$X84*12*1000*(1-$C84),AM84) -> 753805.8478 | AF84: =+Potencia!U84*$X84*12*1000*(1-$C84) -> 762015.5539 | AG84: =+Potencia!V84*$X84*12*1000*(1-$C84) -> 771034.837 | AH84: =+Potencia!W84*$X84*12*1000*(1-$C84) -> 780710.2475 | AI84: =+SUMPRODUCT(AE84:AH84,PremisaCosto!$F$84:$I$84) -> 2517100.192 | AK84: BTD_1 Jub. 1 | AL84: =+IFERROR(VLOOKUP($AK84,[1]ITV_CD!$A$7:$W$149,AL$6,FALSE),0)/$AM$3 -> 0 | AM84: =+IFERROR(VLOOKUP($AK84,[1]ITV_CD!$A$7:$W$149,AM$6,FALSE),0)/$AM$3 -> 0 | AP84: =+Potencia!T85*$K85*12*1000*(1-$C85) -> 31454.1733
A85: =+PremisaCosto!A167 -> BTD_1 Jub. 2 | B85: =+PremisaCosto!H167 -> Jub. 2 | C85: =+IF(B85=0,0,VLOOKUP(B85,PremisaCosto!$A$69:$D$79,4,FALSE)) -> 0.25 | E85: 0.3773481068 | G85: 0 | H85: 1 | J85: 0 | K85: 16.02 | M85: =+$J85*((Energía!Z85-Clientes!T85*Límites!$B$14*12)+Clientes!T85*Límites!$B$14*12*(1-$C85))*1000 -> 0 | N85: =+$J85*((Energía!AA85-Clientes!U85*Límites!$B$14*12)+Clientes!U85*Límites!$B$14*12*(1-$C85))*1000 -> 0 | O85: =+$J85*((Energía!AB85-Clientes!V85*Límites!$B$14*12)+Clientes!V85*Límites!$B$14*12*(1-$C85))*1000 -> 0 | P85: =+$J85*((Energía!AC85-Clientes!W85*Límites!$B$14*12)+Clientes!W85*Límites!$B$14*12*(1-$C85))*1000 -> 0 | Q85: =+SUMPRODUCT(M85:P85,PremisaCosto!$F$84:$I$84) -> 0 | R85: =+Potencia!X85*$K85*12*1000*(1-$C85) -> 105031.4293 | T85: =IF(Q85=0,0,(IF($AK$3=1,$E85*$F$4*G85/$Q$80,($E85*$F$4*G85-$AL$80*PremisaCosto!$F$84)/($Q$80-$M$80*PremisaCosto!$F$84)))) -> 0 | U85: =IF(R85=0,0,IF($AK$3=1,$E85*$F$4*H85/$R$80,($E85*$F$4*H85-$AM$80*PremisaCosto!$F$84)/($R$80-$AP$79*PremisaCosto!$F$84))) -> 0.8960904363 | W85: 0 | X85: 14.35536879 | Z85: =+IF($AK$3=1,$W85*((Energía!Z85-Clientes!T85*Límites!$B$14*12)+Clientes!T85*Límites!$B$14*12*(1-$C85))*1000,AL85) -> 0 | AA85: =+$W85*((Energía!AA85-Clientes!U85*Límites!$B$14*12)+Clientes!U85*Límites!$B$14*12*(1-$C85))*1000 -> 0 | AB85: =+$W85*((Energía!AB85-Clientes!V85*Límites!$B$14*12)+Clientes!V85*Límites!$B$14*12*(1-$C85))*1000 -> 0 | AC85: =+$W85*((Energía!AC85-Clientes!W85*Límites!$B$14*12)+Clientes!W85*Límites!$B$14*12*(1-$C85))*1000 -> 0 | AD85: =+SUMPRODUCT(Z85:AC85,PremisaCosto!$F$84:$I$84) -> 0 | AE85: =+IF($AK$3=1,Potencia!T85*$X85*12*1000*(1-$C85),AM85) -> 28185.78388 | AF85: =+Potencia!U85*$X85*12*1000*(1-$C85) -> 28492.75549 | AG85: =+Potencia!V85*$X85*12*1000*(1-$C85) -> 28829.99825 | AH85: =+Potencia!W85*$X85*12*1000*(1-$C85) -> 29191.77447 | AI85: =+SUMPRODUCT(AE85:AH85,PremisaCosto!$F$84:$I$84) -> 94117.65934 | AK85: BTD_1 Jub. 2 | AL85: =+IFERROR(VLOOKUP($AK85,[1]ITV_CD!$A$7:$W$149,AL$6,FALSE),0)/$AM$3 -> 0 | AM85: =+IFERROR(VLOOKUP($AK85,[1]ITV_CD!$A$7:$W$149,AM$6,FALSE),0)/$AM$3 -> 30854.61867 | AP85: =+Potencia!T86*$K86*12*1000*(1-$C86) -> 7402.90629
A86: =+PremisaCosto!A168 -> BTD_1 Político | B86: =+PremisaCosto!H168 -> Político | C86: =+IF(B86=0,0,VLOOKUP(B86,PremisaCosto!$A$69:$D$79,4,FALSE)) -> 0.5 | E86: 0.3773481068 | G86: 0 | H86: 1 | J86: 0 | K86: 16.02 | M86: =+$J86*Energía!Z86*(1-$C86)*1000 -> 0 | N86: =+$J86*Energía!AA86*(1-$C86)*1000 -> 0 | O86: =+$J86*Energía!AB86*(1-$C86)*1000 -> 0 | P86: =+$J86*Energía!AC86*(1-$C86)*1000 -> 0 | Q86: =+SUMPRODUCT(M86:P86,PremisaCosto!$F$84:$I$84) -> 0 | R86: =+Potencia!X86*$K86*12*1000*(1-$C86) -> 24938.54581 | T86: =IF(Q86=0,0,(IF($AK$3=1,$E86*$F$4*G86/$Q$80,($E86*$F$4*G86-$AL$80*PremisaCosto!$F$84)/($Q$80-$M$80*PremisaCosto!$F$84)))) -> 0 | U86: =IF(R86=0,0,IF($AK$3=1,$E86*$F$4*H86/$R$80,($E86*$F$4*H86-$AM$80*PremisaCosto!$F$84)/($R$80-$AP$79*PremisaCosto!$F$84))) -> 0.8960904363 | W86: 0 | X86: 14.35536879 | Z86: =+IF($AK$3=1,$W86*Energía!Z86*(1-$C86)*1000,AL86) -> 0 | AA86: =+$W86*Energía!AA86*(1-$C86)*1000 -> 0 | AB86: =+$W86*Energía!AB86*(1-$C86)*1000 -> 0 | AC86: =+$W86*Energía!AC86*(1-$C86)*1000 -> 0 | AD86: =+SUMPRODUCT(Z86:AC86,PremisaCosto!$F$84:$I$84) -> 0 | AE86: =+IF($AK$3=1,Potencia!T86*$X86*12*1000*(1-$C86),AM86) -> 6633.673527 | AF86: =+Potencia!U86*$X86*12*1000*(1-$C86) -> 6751.994549 | AG86: =+Potencia!V86*$X86*12*1000*(1-$C86) -> 6875.658627 | AH86: =+Potencia!W86*$X86*12*1000*(1-$C86) -> 6993.777118 | AI86: =+SUMPRODUCT(AE86:AH86,PremisaCosto!$F$84:$I$84) -> 22347.19239 | AK86: BTD_1 Político | AL86: =+IFERROR(VLOOKUP($AK86,[1]ITV_CD!$A$7:$W$149,AL$6,FALSE),0)/$AM$3 -> 0 | AM86: =+IFERROR(VLOOKUP($AK86,[1]ITV_CD!$A$7:$W$149,AM$6,FALSE),0)/$AM$3 -> 7261.797931 | AP86: =+Potencia!T87*$K87*12*1000*(1-$C87) -> 0
A87: =+PremisaCosto!A169 -> BTD_1 x1 | B87: =+PremisaCosto!H169 -> x1 | C87: =+IF(B87=0,0,VLOOKUP(B87,PremisaCosto!$A$69:$D$79,4,FALSE)) -> 0 | E87: 0.3773481068 | G87: 0 | H87: 1 | J87: 0 | K87: 16.02 | M87: =+$J87*Energía!Z87*(1-$C87)*1000 -> 0 | N87: =+$J87*Energía!AA87*(1-$C87)*1000 -> 0 | O87: =+$J87*Energía!AB87*(1-$C87)*1000 -> 0 | P87: =+$J87*Energía!AC87*(1-$C87)*1000 -> 0 | Q87: =+SUMPRODUCT(M87:P87,PremisaCosto!$F$84:$I$84) -> 0 | R87: =+Potencia!X87*$K87*12*1000*(1-$C87) -> 0 | T87: =IF(Q87=0,0,(IF($AK$3=1,$E87*$F$4*G87/$Q$80,($E87*$F$4*G87-$AL$80*PremisaCosto!$F$84)/($Q$80-$M$80*PremisaCosto!$F$84)))) -> 0 | U87: =IF(R87=0,0,IF($AK$3=1,$E87*$F$4*H87/$R$80,($E87*$F$4*H87-$AM$80*PremisaCosto!$F$84)/($R$80-$AP$79*PremisaCosto!$F$84))) -> 0 | W87: 0 | X87: 0 | Z87: =+IF($AK$3=1,$W87*Energía!Z87*(1-$C87)*1000,AL87) -> 0 | AA87: =+$W87*Energía!AA87*(1-$C87)*1000 -> 0 | AB87: =+$W87*Energía!AB87*(1-$C87)*1000 -> 0 | AC87: =+$W87*Energía!AC87*(1-$C87)*1000 -> 0 | AD87: =+SUMPRODUCT(Z87:AC87,PremisaCosto!$F$84:$I$84) -> 0 | AE87: =+IF($AK$3=1,Potencia!T87*$X87*12*1000*(1-$C87),AM87) -> 0 | AF87: =+Potencia!U87*$X87*12*1000*(1-$C87) -> 0 | AG87: =+Potencia!V87*$X87*12*1000*(1-$C87) -> 0 | AH87: =+Potencia!W87*$X87*12*1000*(1-$C87) -> 0 | AI87: =+SUMPRODUCT(AE87:AH87,PremisaCosto!$F$84:$I$84) -> 0 | AK87: BTD_1 x1 | AL87: =+IFERROR(VLOOKUP($AK87,[1]ITV_CD!$A$7:$W$149,AL$6,FALSE),0)/$AM$3 -> 0 | AM87: =+IFERROR(VLOOKUP($AK87,[1]ITV_CD!$A$7:$W$149,AM$6,FALSE),0)/$AM$3 -> 0 | AP87: =+Potencia!T88*$K88*12*1000*(1-$C88) -> 0
A88: =+PremisaCosto!A170 -> BTD_1 x2 | B88: =+PremisaCosto!H170 -> x2 | C88: =+IF(B88=0,0,VLOOKUP(B88,PremisaCosto!$A$69:$D$79,4,FALSE)) -> 0 | E88: 0.3773481068 | G88: 0 | H88: 1 | J88: 0 | K88: 16.02 | M88: =+$J88*((Energía!Z88-Clientes!T88*Límites!$B$16*12)+Clientes!T88*Límites!$B$16*12*(1-$C88))*1000 -> 0 | N88: =+$J88*((Energía!AA88-Clientes!U88*Límites!$B$16*12)+Clientes!U88*Límites!$B$16*12*(1-$C88))*1000 -> 0 | O88: =+$J88*((Energía!AB88-Clientes!V88*Límites!$B$16*12)+Clientes!V88*Límites!$B$16*12*(1-$C88))*1000 -> 0 | P88: =+$J88*((Energía!AC88-Clientes!W88*Límites!$B$16*12)+Clientes!W88*Límites!$B$16*12*(1-$C88))*1000 -> 0 | Q88: =+SUMPRODUCT(M88:P88,PremisaCosto!$F$84:$I$84) -> 0 | R88: =+Potencia!X88*$K88*12*1000*(1-$C88) -> 0 | T88: =IF(Q88=0,0,(IF($AK$3=1,$E88*$F$4*G88/$Q$80,($E88*$F$4*G88-$AL$80*PremisaCosto!$F$84)/($Q$80-$M$80*PremisaCosto!$F$84)))) -> 0 | U88: =IF(R88=0,0,IF($AK$3=1,$E88*$F$4*H88/$R$80,($E88*$F$4*H88-$AM$80*PremisaCosto!$F$84)/($R$80-$AP$79*PremisaCosto!$F$84))) -> 0 | W88: 0 | X88: 0 | Z88: =+IF($AK$3=1,$W88*((Energía!Z88-Clientes!T88*Límites!$B$16*12)+Clientes!T88*Límites!$B$16*12*(1-$C88))*1000,AL88) -> 0 | AA88: =+$W88*((Energía!AA88-Clientes!U88*Límites!$B$16*12)+Clientes!U88*Límites!$B$16*12*(1-$C88))*1000 -> 0 | AB88: =+$W88*((Energía!AB88-Clientes!V88*Límites!$B$16*12)+Clientes!V88*Límites!$B$16*12*(1-$C88))*1000 -> 0 | AC88: =+$W88*((Energía!AC88-Clientes!W88*Límites!$B$16*12)+Clientes!W88*Límites!$B$16*12*(1-$C88))*1000 -> 0 | AD88: =+SUMPRODUCT(Z88:AC88,PremisaCosto!$F$84:$I$84) -> 0 | AE88: =+IF($AK$3=1,Potencia!T88*$X88*12*1000*(1-$C88),AM88) -> 0 | AF88: =+Potencia!U88*$X88*12*1000*(1-$C88) -> 0 | AG88: =+Potencia!V88*$X88*12*1000*(1-$C88) -> 0 | AH88: =+Potencia!W88*$X88*12*1000*(1-$C88) -> 0 | AI88: =+SUMPRODUCT(AE88:AH88,PremisaCosto!$F$84:$I$84) -> 0 | AK88: BTD_1 x2 | AL88: =+IFERROR(VLOOKUP($AK88,[1]ITV_CD!$A$7:$W$149,AL$6,FALSE),0)/$AM$3 -> 0 | AM88: =+IFERROR(VLOOKUP($AK88,[1]ITV_CD!$A$7:$W$149,AM$6,FALSE),0)/$AM$3 -> 0 | AP88: =+Potencia!T89*$K89*12*1000*(1-$C89) -> 0
A89: =+PremisaCosto!A171 -> BTD_1 Discap. | B89: =+PremisaCosto!H171 -> Discap. | C89: =+IF(B89=0,0,VLOOKUP(B89,PremisaCosto!$A$69:$D$79,4,FALSE)) -> 0.25 | E89: 0.3773481068 | G89: 0 | H89: 1 | J89: 0 | K89: 16.02 | M89: =+$J89*Energía!Z89*(1-$C89)*1000 -> 0 | N89: =+$J89*Energía!AA89*(1-$C89)*1000 -> 0 | O89: =+$J89*Energía!AB89*(1-$C89)*1000 -> 0 | P89: =+$J89*Energía!AC89*(1-$C89)*1000 -> 0 | Q89: =+SUMPRODUCT(M89:P89,PremisaCosto!$F$84:$I$84) -> 0 | R89: =+Potencia!X89*$K89*12*1000*(1-$C89) -> 0 | T89: =IF(Q89=0,0,(IF($AK$3=1,$E89*$F$4*G89/$Q$80,($E89*$F$4*G89-$AL$80*PremisaCosto!$F$84)/($Q$80-$M$80*PremisaCosto!$F$84)))) -> 0 | U89: =IF(R89=0,0,IF($AK$3=1,$E89*$F$4*H89/$R$80,($E89*$F$4*H89-$AM$80*PremisaCosto!$F$84)/($R$80-$AP$79*PremisaCosto!$F$84))) -> 0 | W89: 0 | X89: 0 | Z89: =+IF($AK$3=1,$W89*Energía!Z89*(1-$C89)*1000,AL89) -> 0 | AA89: =+$W89*Energía!AA89*(1-$C89)*1000 -> 0 | AB89: =+$W89*Energía!AB89*(1-$C89)*1000 -> 0 | AC89: =+$W89*Energía!AC89*(1-$C89)*1000 -> 0 | AD89: =+SUMPRODUCT(Z89:AC89,PremisaCosto!$F$84:$I$84) -> 0 | AE89: =+IF($AK$3=1,Potencia!T89*$X89*12*1000*(1-$C89),AM89) -> 0 | AF89: =+Potencia!U89*$X89*12*1000*(1-$C89) -> 0 | AG89: =+Potencia!V89*$X89*12*1000*(1-$C89) -> 0 | AH89: =+Potencia!W89*$X89*12*1000*(1-$C89) -> 0 | AI89: =+SUMPRODUCT(AE89:AH89,PremisaCosto!$F$84:$I$84) -> 0 | AK89: BTD_1 Discap. | AL89: =+IFERROR(VLOOKUP($AK89,[1]ITV_CD!$A$7:$W$149,AL$6,FALSE),0)/$AM$3 -> 0 | AM89: =+IFERROR(VLOOKUP($AK89,[1]ITV_CD!$A$7:$W$149,AM$6,FALSE),0)/$AM$3 -> 0 | AP89: =+Potencia!T90*$K90*12*1000*(1-$C90) -> 0
A90: =+PremisaCosto!A172 -> BTD_1 Discapacitados 601-más | B90: =+PremisaCosto!H172 -> Discapacitados 601-más | C90: =+IF(B90=0,0,VLOOKUP(B90,PremisaCosto!$A$69:$D$79,4,FALSE)) -> 0.25 | E90: 0.3773481068 | G90: 0 | H90: 1 | J90: 0 | K90: 16.02 | M90: =+$J90*((Energía!Z90-Clientes!T90*Límites!$B$15*12)+Clientes!T90*Límites!$B$15*12*(1-$C90))*1000 -> 0 | N90: =+$J90*((Energía!AA90-Clientes!U90*Límites!$B$15*12)+Clientes!U90*Límites!$B$15*12*(1-$C90))*1000 -> 0 | O90: =+$J90*((Energía!AB90-Clientes!V90*Límites!$B$15*12)+Clientes!V90*Límites!$B$15*12*(1-$C90))*1000 -> 0 | P90: =+$J90*((Energía!AC90-Clientes!W90*Límites!$B$15*12)+Clientes!W90*Límites!$B$15*12*(1-$C90))*1000 -> 0 | Q90: =+SUMPRODUCT(M90:P90,PremisaCosto!$F$84:$I$84) -> 0 | R90: =+Potencia!X90*$K90*12*1000*(1-$C90) -> 0 | T90: =IF(Q90=0,0,(IF($AK$3=1,$E90*$F$4*G90/$Q$80,($E90*$F$4*G90-$AL$80*PremisaCosto!$F$84)/($Q$80-$M$80*PremisaCosto!$F$84)))) -> 0 | U90: =IF(R90=0,0,IF($AK$3=1,$E90*$F$4*H90/$R$80,($E90*$F$4*H90-$AM$80*PremisaCosto!$F$84)/($R$80-$AP$79*PremisaCosto!$F$84))) -> 0 | W90: 0 | X90: 0 | Z90: =+IF($AK$3=1,$W90*((Energía!Z90-Clientes!T90*Límites!$B$15*12)+Clientes!T90*Límites!$B$15*12*(1-$C90))*1000,AL90) -> 0 | AA90: =+$W90*((Energía!AA90-Clientes!U90*Límites!$B$15*12)+Clientes!U90*Límites!$B$15*12*(1-$C90))*1000 -> 0 | AB90: =+$W90*((Energía!AB90-Clientes!V90*Límites!$B$15*12)+Clientes!V90*Límites!$B$15*12*(1-$C90))*1000 -> 0 | AC90: =+$W90*((Energía!AC90-Clientes!W90*Límites!$B$15*12)+Clientes!W90*Límites!$B$15*12*(1-$C90))*1000 -> 0 | AD90: =+SUMPRODUCT(Z90:AC90,PremisaCosto!$F$84:$I$84) -> 0 | AE90: =+IF($AK$3=1,Potencia!T90*$X90*12*1000*(1-$C90),AM90) -> 0 | AF90: =+Potencia!U90*$X90*12*1000*(1-$C90) -> 0 | AG90: =+Potencia!V90*$X90*12*1000*(1-$C90) -> 0 | AH90: =+Potencia!W90*$X90*12*1000*(1-$C90) -> 0 | AI90: =+SUMPRODUCT(AE90:AH90,PremisaCosto!$F$84:$I$84) -> 0 | AK90: BTD_1 Discapacitados 601-más | AL90: =+IFERROR(VLOOKUP($AK90,[1]ITV_CD!$A$7:$W$149,AL$6,FALSE),0)/$AM$3 -> 0 | AM90: =+IFERROR(VLOOKUP($AK90,[1]ITV_CD!$A$7:$W$149,AM$6,FALSE),0)/$AM$3 -> 0 | AP90: =+Potencia!T91*$K91*12*1000*(1-$C91) -> 0
A91: =+PremisaCosto!A173 -> BTD_1 Cruz Roja | B91: =+PremisaCosto!H173 -> Cruz Roja | C91: =+IF(B91=0,0,VLOOKUP(B91,PremisaCosto!$A$69:$D$79,4,FALSE)) -> 1 | E91: 0.3773481068 | G91: 0 | H91: 1 | J91: 0 | K91: 16.02 | M91: =+$J91*Energía!Z91*(1-$C91)*1000 -> 0 | N91: =+$J91*Energía!AA91*(1-$C91)*1000 -> 0 | O91: =+$J91*Energía!AB91*(1-$C91)*1000 -> 0 | P91: =+$J91*Energía!AC91*(1-$C91)*1000 -> 0 | Q91: =+SUMPRODUCT(M91:P91,PremisaCosto!$F$84:$I$84) -> 0 | R91: =+Potencia!X91*$K91*12*1000*(1-$C91) -> 0 | T91: =IF(Q91=0,0,(IF($AK$3=1,$E91*$F$4*G91/$Q$80,($E91*$F$4*G91-$AL$80*PremisaCosto!$F$84)/($Q$80-$M$80*PremisaCosto!$F$84)))) -> 0 | U91: =IF(R91=0,0,IF($AK$3=1,$E91*$F$4*H91/$R$80,($E91*$F$4*H91-$AM$80*PremisaCosto!$F$84)/($R$80-$AP$79*PremisaCosto!$F$84))) -> 0 | W91: 0 | X91: 0 | Z91: =+IF($AK$3=1,$W91*Energía!Z91*(1-$C91)*1000,AL91) -> 0 | AA91: =+$W91*Energía!AA91*(1-$C91)*1000 -> 0 | AB91: =+$W91*Energía!AB91*(1-$C91)*1000 -> 0 | AC91: =+$W91*Energía!AC91*(1-$C91)*1000 -> 0 | AD91: =+SUMPRODUCT(Z91:AC91,PremisaCosto!$F$84:$I$84) -> 0 | AE91: =+IF($AK$3=1,Potencia!T91*$X91*12*1000*(1-$C91),AM91) -> 0 | AF91: =+Potencia!U91*$X91*12*1000*(1-$C91) -> 0 | AG91: =+Potencia!V91*$X91*12*1000*(1-$C91) -> 0 | AH91: =+Potencia!W91*$X91*12*1000*(1-$C91) -> 0 | AI91: =+SUMPRODUCT(AE91:AH91,PremisaCosto!$F$84:$I$84) -> 0 | AK91: BTD_1 Cruz Roja | AL91: =+IFERROR(VLOOKUP($AK91,[1]ITV_CD!$A$7:$W$149,AL$6,FALSE),0)/$AM$3 -> 0 | AM91: =+IFERROR(VLOOKUP($AK91,[1]ITV_CD!$A$7:$W$149,AM$6,FALSE),0)/$AM$3 -> 0 | AP91: =+SUM(AP92:AP101) -> 23869585.11
A92: =+PremisaCosto!A174 -> BTD_2 (10,001-30,000) | B92: =+PremisaCosto!H174 -> 0 | C92: =+IF(B92=0,0,VLOOKUP(B92,PremisaCosto!$A$69:$D$79,4,FALSE)) -> 0 | E92: 0.3773481068 | G92: 0 | H92: 1 | J92: =+VLOOKUP($A92,[1]Diseño!$A$7:$BH$76,4,FALSE) -> 0 | K92: =+VLOOKUP($A92,[1]Diseño!$A$7:$BH$76,5,FALSE) -> 16.02 | M92: =+SUM(M93:M102) -> 0 | N92: 0 | O92: 0 | P92: 0 | Q92: 0 | R92: 80404428.23 | T92: =IF(Q92=0,0,(IF($AK$3=1,$E92*$F$4*G92/$Q$80,($E92*$F$4*G92-$AL$80*PremisaCosto!$F$84)/($Q$80-$M$80*PremisaCosto!$F$84)))) -> 0 | U92: =IF(R92=0,0,IF($AK$3=1,$E92*$F$4*H92/$R$80,($E92*$F$4*H92-$AM$80*PremisaCosto!$F$84)/($R$80-$AP$79*PremisaCosto!$F$84))) -> 0.8960904363 | W92: 0 | X92: 14.35536879 | Z92: =+SUM(Z93:Z102) -> 0 | AA92: =+SUM(AA93:AA102) -> 0 | AB92: =+SUM(AB93:AB102) -> 0 | AC92: =+SUM(AC93:AC102) -> 0 | AD92: =+SUM(AD93:AD102) -> 0 | AE92: =+SUM(AE93:AE102) -> 21389306.94 | AF92: 21769558.71 | AG92: 22167012.3 | AH92: 22546763.93 | AI92: =+SUM(AI93:AI102) -> 72049639.17 | AK92: BTD_2 (10,001-30,000) | AL92: =+IFERROR(VLOOKUP($AK92,[1]ITV_CD!$A$7:$W$149,AL$6,FALSE),0)/$AM$3 -> 0 | AM92: =+IFERROR(VLOOKUP($AK92,[1]ITV_CD!$A$7:$W$149,AM$6,FALSE),0)/$AM$3 -> 0 | AP92: =+Potencia!T93*$K93*12*1000*(1-$C93) -> 23724934.78
A93: =+PremisaCosto!A175 -> BTD_2 Regular | B93: =+PremisaCosto!H175 -> Regular | C93: =+IF(B93=0,0,VLOOKUP(B93,PremisaCosto!$A$69:$D$79,4,FALSE)) -> 0 | E93: 0.3773481068 | G93: 0 | H93: 1 | J93: =+J92 -> 0 | K93: =+K92 -> 16.02 | M93: =+($J93*(Energía!Z93-Clientes!T93*Límites!$B$7*12)+$J82*Clientes!T93*Límites!$B$7*12)*(1-$C93)*1000 -> 0 | N93: =+($J93*(Energía!AA93-Clientes!U93*Límites!$B$7*12)+$J82*Clientes!U93*Límites!$B$7*12)*(1-$C93)*1000 -> 0 | O93: =+($J93*(Energía!AB93-Clientes!V93*Límites!$B$7*12)+$J82*Clientes!V93*Límites!$B$7*12)*(1-$C93)*1000 -> 0 | P93: =+($J93*(Energía!AC93-Clientes!W93*Límites!$B$7*12)+$J82*Clientes!W93*Límites!$B$7*12)*(1-$C93)*1000 -> 0 | Q93: =+SUMPRODUCT(M93:P93,PremisaCosto!$F$84:$I$84) -> 0 | R93: =+Potencia!X93*$K93*12*1000*(1-$C93) -> 79917686.57 | T93: =IF(Q93=0,0,(IF($AK$3=1,$E93*$F$4*G93/$Q$80,($E93*$F$4*G93-$AL$80*PremisaCosto!$F$84)/($Q$80-$M$80*PremisaCosto!$F$84)))) -> 0 | U93: =IF(R93=0,0,IF($AK$3=1,$E93*$F$4*H93/$R$80,($E93*$F$4*H93-$AM$80*PremisaCosto!$F$84)/($R$80-$AP$79*PremisaCosto!$F$84))) -> 0.8960904363 | W93: 0 | X93: 14.35536879 | Z93: =+IF($AK$3=1,$W93*Energía!Z93*(1-$C93)*1000,AL93) -> 0 | AA93: =+($W93*(Energía!AA93-Clientes!U93*Límites!$B$7*12)+$W82*Clientes!U93*Límites!$B$7*12)*(1-$C93)*1000 -> 0 | AB93: =+($W93*(Energía!AB93-Clientes!V93*Límites!$B$7*12)+$W82*Clientes!V93*Límites!$B$7*12)*(1-$C93)*1000 -> 0 | AC93: =+($W93*(Energía!AC93-Clientes!W93*Límites!$B$7*12)+$W82*Clientes!W93*Límites!$B$7*12)*(1-$C93)*1000 -> 0 | AD93: =+SUMPRODUCT(Z93:AC93,PremisaCosto!$F$84:$I$84) -> 0 | AE93: =+IF($AK$3=1,Potencia!T93*$X93*12*1000*(1-$C93),AM93) -> 21259687.16 | AF93: =+Potencia!U93*$X93*12*1000*(1-$C93) -> 21637742.62 | AG93: =+Potencia!V93*$X93*12*1000*(1-$C93) -> 22032891.02 | AH93: =+Potencia!W93*$X93*12*1000*(1-$C93) -> 22410417.4 | AI93: =+SUMPRODUCT(AE93:AH93,PremisaCosto!$F$84:$I$84) -> 71613474.63 | AK93: BTD_2 Regular | AL93: =+IFERROR(VLOOKUP($AK93,[1]ITV_CD!$A$7:$W$149,AL$6,FALSE),0)/$AM$3 -> 0 | AM93: =+IFERROR(VLOOKUP($AK93,[1]ITV_CD!$A$7:$W$149,AM$6,FALSE),0)/$AM$3 -> 23272708.79 | AP93: =+Potencia!T94*$K94*12*1000*(1-$C94) -> 118971.5236
A94: =+PremisaCosto!A176 -> BTD_2 Agro | B94: =+PremisaCosto!H176 -> Agro | C94: =+IF(B94=0,0,VLOOKUP(B94,PremisaCosto!$A$69:$D$79,4,FALSE)) -> 0.05 | E94: 0.3773481068 | G94: 0 | H94: 1 | J94: =+J93 -> 0 | K94: 16.02 | M94: =+($J94*(Energía!Z94-Clientes!T94*Límites!$B$7*12)+$J83*Clientes!T94*Límites!$B$7*12)*(1-$C94)*1000 -> 0 | N94: =+($J94*(Energía!AA94-Clientes!U94*Límites!$B$7*12)+$J83*Clientes!U94*Límites!$B$7*12)*(1-$C94)*1000 -> 0 | O94: =+($J94*(Energía!AB94-Clientes!V94*Límites!$B$7*12)+$J83*Clientes!V94*Límites!$B$7*12)*(1-$C94)*1000 -> 0 | P94: =+($J94*(Energía!AC94-Clientes!W94*Límites!$B$7*12)+$J83*Clientes!W94*Límites!$B$7*12)*(1-$C94)*1000 -> 0 | Q94: =+SUMPRODUCT(M94:P94,PremisaCosto!$F$84:$I$84) -> 0 | R94: =+Potencia!X94*$K94*12*1000*(1-$C94) -> 400785.4045 | T94: =IF(Q94=0,0,(IF($AK$3=1,$E94*$F$4*G94/$Q$80,($E94*$F$4*G94-$AL$80*PremisaCosto!$F$84)/($Q$80-$M$80*PremisaCosto!$F$84)))) -> 0 | U94: =IF(R94=0,0,IF($AK$3=1,$E94*$F$4*H94/$R$80,($E94*$F$4*H94-$AM$80*PremisaCosto!$F$84)/($R$80-$AP$79*PremisaCosto!$F$84))) -> 0.8960904363 | W94: 0 | X94: 14.35536879 | Z94: =+IF($AK$3=1,$W94*Energía!Z94*(1-$C94)*1000,AL94) -> 0 | AA94: =+($W94*(Energía!AA94-Clientes!U94*Límites!$B$7*12)+$W83*Clientes!U94*Límites!$B$7*12)*(1-$C94)*1000 -> 0 | AB94: =+($W94*(Energía!AB94-Clientes!V94*Límites!$B$7*12)+$W83*Clientes!V94*Límites!$B$7*12)*(1-$C94)*1000 -> 0 | AC94: =+($W94*(Energía!AC94-Clientes!W94*Límites!$B$7*12)+$W83*Clientes!W94*Límites!$B$7*12)*(1-$C94)*1000 -> 0 | AD94: =+SUMPRODUCT(Z94:AC94,PremisaCosto!$F$84:$I$84) -> 0 | AE94: =+IF($AK$3=1,Potencia!T94*$X94*12*1000*(1-$C94),AM94) -> 106609.2445 | AF94: =+Potencia!U94*$X94*12*1000*(1-$C94) -> 108510.7723 | AG94: =+Potencia!V94*$X94*12*1000*(1-$C94) -> 110498.168 | AH94: =+Potencia!W94*$X94*12*1000*(1-$C94) -> 112396.4409 | AI94: =+SUMPRODUCT(AE94:AH94,PremisaCosto!$F$84:$I$84) -> 359139.968 | AK94: BTD_2 Agro | AL94: =+IFERROR(VLOOKUP($AK94,[1]ITV_CD!$A$7:$W$149,AL$6,FALSE),0)/$AM$3 -> 0 | AM94: =+IFERROR(VLOOKUP($AK94,[1]ITV_CD!$A$7:$W$149,AM$6,FALSE),0)/$AM$3 -> 116703.7823 | AP94: =+Potencia!T95*$K95*12*1000*(1-$C95) -> 0
A95: =+PremisaCosto!A177 -> BTD_2 Jub. 1 | B95: =+PremisaCosto!H177 -> Jub. 1 | C95: =+IF(B95=0,0,VLOOKUP(B95,PremisaCosto!$A$69:$D$79,4,FALSE)) -> 0.25 | E95: 0.3773481068 | G95: 0 | H95: 1 | J95: 0 | K95: 16.02 | M95: =+($J95*(Energía!Z95-Clientes!T95*Límites!$B$7*12)+$J84*Clientes!T95*Límites!$B$7*12)*(1-$C95)*1000 -> 0 | N95: =+($J95*(Energía!AA95-Clientes!U95*Límites!$B$7*12)+$J84*Clientes!U95*Límites!$B$7*12)*(1-$C95)*1000 -> 0 | O95: =+($J95*(Energía!AB95-Clientes!V95*Límites!$B$7*12)+$J84*Clientes!V95*Límites!$B$7*12)*(1-$C95)*1000 -> 0 | P95: =+($J95*(Energía!AC95-Clientes!W95*Límites!$B$7*12)+$J84*Clientes!W95*Límites!$B$7*12)*(1-$C95)*1000 -> 0 | Q95: =+SUMPRODUCT(M95:P95,PremisaCosto!$F$84:$I$84) -> 0 | R95: =+Potencia!X95*$K95*12*1000*(1-$C95) -> 0 | T95: =IF(Q95=0,0,(IF($AK$3=1,$E95*$F$4*G95/$Q$80,($E95*$F$4*G95-$AL$80*PremisaCosto!$F$84)/($Q$80-$M$80*PremisaCosto!$F$84)))) -> 0 | U95: =IF(R95=0,0,IF($AK$3=1,$E95*$F$4*H95/$R$80,($E95*$F$4*H95-$AM$80*PremisaCosto!$F$84)/($R$80-$AP$79*PremisaCosto!$F$84))) -> 0 | W95: 0 | X95: 0 | Z95: =+IF($AK$3=1,$W95*Energía!Z95*(1-$C95)*1000,AL95) -> 0 | AA95: =+($W95*(Energía!AA95-Clientes!U95*Límites!$B$7*12)+$W84*Clientes!U95*Límites!$B$7*12)*(1-$C95)*1000 -> 0 | AB95: =+($W95*(Energía!AB95-Clientes!V95*Límites!$B$7*12)+$W84*Clientes!V95*Límites!$B$7*12)*(1-$C95)*1000 -> 0 | AC95: =+($W95*(Energía!AC95-Clientes!W95*Límites!$B$7*12)+$W84*Clientes!W95*Límites!$B$7*12)*(1-$C95)*1000 -> 0 | AD95: =+SUMPRODUCT(Z95:AC95,PremisaCosto!$F$84:$I$84) -> 0 | AE95: =+IF($AK$3=1,Potencia!T95*$X95*12*1000*(1-$C95),AM95) -> 0 | AF95: =+Potencia!U95*$X95*12*1000*(1-$C95) -> 0 | AG95: =+Potencia!V95*$X95*12*1000*(1-$C95) -> 0 | AH95: =+Potencia!W95*$X95*12*1000*(1-$C95) -> 0 | AI95: =+SUMPRODUCT(AE95:AH95,PremisaCosto!$F$84:$I$84) -> 0 | AK95: BTD_2 Jub. 1 | AL95: =+IFERROR(VLOOKUP($AK95,[1]ITV_CD!$A$7:$W$149,AL$6,FALSE),0)/$AM$3 -> 0 | AM95: =+IFERROR(VLOOKUP($AK95,[1]ITV_CD!$A$7:$W$149,AM$6,FALSE),0)/$AM$3 -> 0 | AP95: =+Potencia!T96*$K96*12*1000*(1-$C96) -> 18579.90702
A96: =+PremisaCosto!A178 -> BTD_2 Jub. 2 | B96: =+PremisaCosto!H178 -> Jub. 2 | C96: =+IF(B96=0,0,VLOOKUP(B96,PremisaCosto!$A$69:$D$79,4,FALSE)) -> 0.25 | E96: 0.3773481068 | G96: 0 | H96: 1 | J96: 0 | K96: 16.02 | M96: =+($J96*(Energía!Z96-Clientes!T96*Límites!$B$7*12)+$J85*Clientes!T96*Límites!$B$7*12)*(1-$C96)*1000 -> 0 | N96: =+($J96*(Energía!AA96-Clientes!U96*Límites!$B$7*12)+$J85*Clientes!U96*Límites!$B$7*12)*(1-$C96)*1000 -> 0 | O96: =+($J96*(Energía!AB96-Clientes!V96*Límites!$B$7*12)+$J85*Clientes!V96*Límites!$B$7*12)*(1-$C96)*1000 -> 0 | P96: =+($J96*(Energía!AC96-Clientes!W96*Límites!$B$7*12)+$J85*Clientes!W96*Límites!$B$7*12)*(1-$C96)*1000 -> 0 | Q96: =+SUMPRODUCT(M96:P96,PremisaCosto!$F$84:$I$84) -> 0 | R96: =+Potencia!X96*$K96*12*1000*(1-$C96) -> 62041.82105 | T96: =IF(Q96=0,0,(IF($AK$3=1,$E96*$F$4*G96/$Q$80,($E96*$F$4*G96-$AL$80*PremisaCosto!$F$84)/($Q$80-$M$80*PremisaCosto!$F$84)))) -> 0 | U96: =IF(R96=0,0,IF($AK$3=1,$E96*$F$4*H96/$R$80,($E96*$F$4*H96-$AM$80*PremisaCosto!$F$84)/($R$80-$AP$79*PremisaCosto!$F$84))) -> 0.8960904363 | W96: 0 | X96: 14.35536879 | Z96: =+($W96*(Energía!Z96-Clientes!T96*Límites!$B$7*12)+$W85*Clientes!T96*Límites!$B$7*12)*(1-$C96)*1000 -> 0 | AA96: =+IF($AK$3=1,+($W96*(Energía!AA96-Clientes!U96*Límites!$B$7*12)+$W85*Clientes!U96*Límites!$B$7*12)*(1-$C96)*1000,AL96) -> 0 | AB96: =+($W96*(Energía!AB96-Clientes!V96*Límites!$B$7*12)+$W85*Clientes!V96*Límites!$B$7*12)*(1-$C96)*1000 -> 0 | AC96: =+($W96*(Energía!AC96-Clientes!W96*Límites!$B$7*12)+$W85*Clientes!W96*Límites!$B$7*12)*(1-$C96)*1000 -> 0 | AD96: =+SUMPRODUCT(Z96:AC96,PremisaCosto!$F$84:$I$84) -> 0 | AE96: =+IF($AK$3=1,Potencia!T96*$X96*12*1000*(1-$C96),AM96) -> 16649.27699 | AF96: =+Potencia!U96*$X96*12*1000*(1-$C96) -> 16830.60441 | AG96: =+Potencia!V96*$X96*12*1000*(1-$C96) -> 17029.81292 | AH96: =+Potencia!W96*$X96*12*1000*(1-$C96) -> 17243.51329 | AI96: =+SUMPRODUCT(AE96:AH96,PremisaCosto!$F$84:$I$84) -> 55595.08249 | AK96: BTD_2 Jub. 2 | AL96: =+IFERROR(VLOOKUP($AK96,[1]ITV_CD!$A$7:$W$149,AL$6,FALSE),0)/$AM$3 -> 0 | AM96: =+IFERROR(VLOOKUP($AK96,[1]ITV_CD!$A$7:$W$149,AM$6,FALSE),0)/$AM$3 -> 18225.75149 | AP96: =+Potencia!T97*$K97*12*1000*(1-$C97) -> 7098.902369
